Workbook

Sheet Guidance>>>
A1: =MID(CELL( "filename", $A$1 ), SEARCH( "[",CELL( "filename", $A$1 ) ) + 1, SEARCH( "]",CELL( "filename", $A$1 ) ) - SEARCH( "[",CELL( "filename", $A$1 ) ) - 1 ) -> 
B2: =RIGHT(CELL( "filename", B2 ), LEN(CELL( "filename", B2 ) ) - SEARCH( "]",CELL( "filename", B2 ) ) ) -> 

Sheet Intro
A1: =MID(CELL( "filename", $A$1 ), SEARCH( "[",CELL( "filename", $A$1 ) ) + 1, SEARCH( "]",CELL( "filename", $A$1 ) ) - SEARCH( "[",CELL( "filename", $A$1 ) ) - 1 ) -> 
B2: =RIGHT(CELL( "filename", B2 ), LEN(CELL( "filename", B2 ) ) - SEARCH( "]",CELL( "filename", B2 ) ) ) -> 
C9: Development of Financial Model
C10: The Civil Aviation Authority (CAA) provides this Price Control Model (PCM). It is prepared in relation to setting price controls over Heathrow Airport for the H7 period. The purposes of the PCM are to: • assess the affordability and financeability of the proposed price controls applied by the CAA; • allow assessment of policy options in respect of incentives; • calculate the maximum allowable yield; and • incorporate high-level cost modelling on a base plus marginal basis. The inputs, calculations and outputs in the PCM are solely for the purposes stated above. There may be discrepancies with other related data sources (e.g. HAL's accounts) due to different assumptions used, different time periods, etc. This model is published alongside the CAA’s decision on H7 final issues (published in March 2024) and the inputs in the model reflects CAA’s assumptions in the final decision. All questions and comments related to the PCM should be directed to the CAA (maggie.kwok@caa.co.uk, omo.ugowe@caa.co.uk and dan.rock@caa.co.uk).
A27: End of spreadsheet

Sheet Version log
A1: =MID(CELL( "filename", $A$1 ), SEARCH( "[",CELL( "filename", $A$1 ) ) + 1, SEARCH( "]",CELL( "filename", $A$1 ) ) - SEARCH( "[",CELL( "filename", $A$1 ) ) - 1 ) -> 
B2: =RIGHT(CELL( "filename", B2 ), LEN(CELL( "filename", B2 ) ) - SEARCH( "]",CELL( "filename", B2 ) ) ) -> 
E9: Version number | F9: Date | G9: File name
E10: 2.12 | F10: =TODAY( ) -> 2024-03-12 | G10: =MID( CELL( "filename", A1 ), FIND( "[", CELL( "filename", A1 ) ) + 1, FIND( "]", CELL( "filename", A1 ) ) - FIND( "[", CELL( "filename", A1 ) ) - 1 ) -> 
E12: Version number | F12: Date | G12: File name | H12: Change Info | I12: Change suggested by | J12: Type of change | K12: Additional notes | L12: Modeller
E14: 1 | F14: 2019-11-25 | G14: Copy of CAA H7 Pricing Control Model 251119_with inputs v3 gtuk v2_CS | H14: RAB indexation - Changes incorporated in the attached in rows 60, 76, 92 and 108 of C_RAB to accommodate in-year indexation from average to end of year | I14: HAL | J14: Formula | K14: HAL IBP submission includes an edit to the RAB indexation which should result in the same amendment to the RAB indexation as performed by GT. | L14: CAA
E15: 1.01 | F15: 2020-01-28 | G15: CAA H7 Pricing Control Model v1.01_28012020.xlsb | H15: Implement a version log sheet. Removed External links from file Copy of CAA H7 Pricing Control Model 251119_with inputs v3 gtuk v2_CS | I15: CAA | J15: Additional guidance notes | K15: - | L15: CAA
E16: 1.01 | F16: 2020-02-26 | G16: CAA H7 Pricing Control Model v1.01_28012020 A-notional.xlsb | I16: CAA | J16: Updating inputs | K16: - | L16: CAA
E17: 1.01 | F17: 2020-03-09 | G17: CAA H7 Pricing Control Model v1.01_04032020 A-notional.xlsb | H17: Inclusion of dashboard of charts to compare scenarios. Inputs and scenarios for working draft of notional company. | I17: CAA | J17: Updating outputs | K17: - | L17: CAA
E18: 1.01 | F18: 2020-03-18 | G18: CAA H7 Pricing Control Model v1.01_18032020 A-notional.xlsb | H18: Updating scenario manager to remove model mode, WACC inputs adjusted to allow selection between high,medium and low for Cost of Equity and Cost of Debt. | I18: CAA | J18: Updating scenario manager, WACC inputs method | K18: - | L18: CAA
E19: 1.02 | F19: 2020-03-25 | G19: CAA H7 Pricing Control Model v1.02_24032020 A-notional.xlsb | H19: Add the High Medium low input for the Fixed debt/Indexed Linked reference rate, Fixed interest/Indexed linked debt premium over reference rate. Adjust the corresponding calcs in the C_Fin_Fixed, C_Fin_Ind, C_Fin_Synth and C_Fin_SynthAccretion. | I19: CAA | J19: Input approach | K19: - | L19: CAA
E20: 1.02 | F20: 2020-04-02 | G20: CAA H7 Pricing Control Model v1.02_02042020.xlsb | H20: Combine Reference Rate and Premium for High, Medium and Low scenarios | I20: CAA | J20: Input approach | K20: - | L20: CAA
E21: 1.03 | F21: 2020-04-27 | G21: CAA H7 Pricing Control Model v1.03_27042020.xlsb | H21: Amendment of the formula in C_Tax row 371 to take into account scenario where Pretax WACC and WACC uplift are selected together. Removes previously incorrect double count of tax allowance. | I21: CAA | J21: Formula | K21: - | L21: CAA
E22: 1.04 | F22: 2020-05-06 | G22: CAA H7 Pricing Control Model v1.04_06052020.xlsb | H22: Correction for the discount factor used in the profiling calculations. | I22: CAA | J22: Formula | K22: - | L22: CAA
E23: 1.04 | F23: 2020-05-19 | G23: CAA H7 Pricing Control Model v1.04_06052020.xlsb | H23: Restored the missing links between Capital allowance allocations on I_Scenarios Cell F310-F313 to C_Tax Cell F32-F35 | I23: CAA | J23: Correcting structural error | K23: - | L23: CAA
E24: 1.05 | F24: 2020-05-22 | G24: CAA H7 Pricing Control Model v1.05_06052020.xlsb | H24: Adapting the scenario sheet into 2 separate input sheets. | I24: CAA | J24: Input sheet | K24: - | L24: CAA
E25: 1.06 | F25: 2020-05-28 | G25: CAA H7 Pricing Control Model v1.06_28052020.xlsb | H25: Adjusting macro to take into account new scenario manager listing | I25: CAA | J25: Macro | K25: - | L25: CAA
E26: 1.07 | F26: 2020-05-29 | G26: CAA H7 Pricing Control Model v1.07_28052020.xlsb | H26: Addressing minor issues on formatting from issue log. | I26: CAA | J26: formatting | K26: - | L26: CAA
E27: 1.08 | F27: 2020-06-04 | G27: CAA H7 Pricing Control Model v1.08_28052020.xlsb | H27: Reinstate model mode functionality | I27: CAA | J27: Macro | K27: - | L27: CAA
E28: 1.09 | F28: 2020-06-11 | G28: CAA H7 Pricing Control Model v1.09_11062020.xlsb | H28: Addressing issues from issue log. Moved input % accretion to sceario sheet. | I28: CAA | J28: Input sheet | K28: - | L28: CAA
E29: 1.1 | F29: 2020-06-16 | G29: CAA H7 Pricing Control Model v1.10_16062020.xlsb | H29: Addressing Issues 8, 10, 16, 17, 24, 28, 39, 65, 123, 124, 125, 134, 135, 136 from issue log. | I29: CAA | J29: Formatting, formula, explanatory notes, etc. | K29: - | L29: CAA
E30: 1.11 | F30: 2020-07-02 | G30: CAA H7 Pricing Control Model v1.11_02072020.xlsb | H30: Renaming collection of inputs to sets of inputs in the I_scenario sheet. Making the Allowed passenger numbers to be variable by high,medium,low. | I30: CAA | J30: Input sheet | K30: - | L30: CAA
E31: 1.12 | F31: 2020-07-02 | G31: CAA H7 Pricing Control Model v1.12_03072020.xlsb | H31: Add functionality to incoporate outturn pax to the model's FS via copy paste macro of Allowed airport charges per passenger (nominal) (profiled). | I31: CAA | J31: Structure | K31: - | L31: CAA
E32: 1.13 | F32: 2020-07-03 | G32: CAA H7 Pricing Control Model v1.13_03072020.xlsb | H32: Adjustment to run all scenarios macro to take account of additional copy paste functionality of Allowed airport charges per passenger (nominal) (profiled). | I32: CAA | J32: Structure | K32: - | L32: CAA
E33: 1.14 | F33: 2020-07-03 | G33: CAA H7 Pricing Control Model v1.14_03072020.xlsb | H33: Amend SCEN sheet structure to include at the top the sets of inputs used in each scenario | I33: CAA | J33: Structure | K33: - | L33: CAA
E34: 1.15 | F34: 2020-07-06 | G34: CAA H7 Pricing Control Model v1.15_03072020.xlsb | H34: Add 3 additional passenger input scenarios | I34: CAA | J34: Structure | K34: - | L34: CAA
E35: 1.16 | F35: 2020-07-07 | G35: CAA H7 Pricing Control Model v1.16_03072020.xlsb | H35: Update macro code to reorder the looping order | I35: CAA | J35: Structure | K35: - | L35: CAA
E36: 1.17 | F36: 2020-07-09 | G36: CAA H7 Pricing Control Model v1.17_03072020.xlsb | H36: Update revenue profiling macro to include copy paste of aero yield charges | I36: CAA | J36: Structure | K36: - | L36: CAA
E37: 1.18 | F37: 2020-07-21 | G37: CAA H7 Pricing Control Model v1.18_21072020.xlsb | H37: Adding direct feeds for all scenarios aero charge calculated via the macro to the C_revenue sheet. | I37: CAA | J37: Structure | K37: - | L37: CAA
E38: 1.19 | F38: 2020-08-11 | G38: CAA H7 PCM v1.19.xlsb | H38: Adding scenario selections (high,medium,low) for allowed capex, RAB 1 adjustment and profiled depreciation for RAB 1-3. | I38: CAA | J38: Structure | K38: - | L38: CAA
E39: 1.2 | F39: 2020-09-01 | G39: CAA H7 PCM v1.20.xlsb | H39: Addressing iH7 input values | I39: CAA | J39: Structure | K39: - | L39: CAA
E40: 1.21 | F40: 2020-09-01 | G40: CAA H7 PCM v1.21.xlsb | H40: Adjustment to RAB indexation calculations on C_RAB | I40: CAA | J40: Formula | K40: - | L40: CAA
E41: 1.22 | F41: 2020-09-16 | G41: CAA H7 PCM v1.22.xlsb | H41: Adjustment to RAB indexation calculations on C_RAB, inclusion of additional depreciation profile | I41: CAA | J41: Formula | K41: - | L41: CAA
E42: 1.23 | F42: 2020-09-30 | G42: CAA H7 PCM v1.23.xlsb | H42: Add BBU no RAB adjustment inputs to model | I42: CAA | J42: inputs | K42: - | L42: CAA
E43: 1.24 | F43: 2020-10-09 | G43: CAA H7 PCM v1.24 TRS.xlsb | H43: Add traffic risk sharing mechanism, setting model forecast to start in 2020. | I43: CAA | J43: Structure | K43: - | L43: CAA
E44: 1.25 | F44: 2020-10-20 | G44: CAA H7 PCM v1.25 TRS.xlsb | H44: Add graphs of TRS, amend indexation in TRS | I44: CAA | J44: Formula | K44: - | L44: CAA
E45: 1.26 | F45: 2020-10-20 | G45: CAA H7 PCM v1.26 TRS.xlsb | H45: Relink amended calculations in C_TRS following adjustment to indexation | I45: CAA | J45: Formula | K45: - | L45: CAA
E46: 1.27 | F46: 2020-11-10 | G46: CAA H7 PCM v1.27 TRS.xlsb | H46: Incorporate depreciation related to TRS into RAB 2 | I46: CAA | J46: Structure | K46: - | L46: CAA
E47: 1.28 | F47: 2020-11-17 | G47: CAA H7 PCM v1.28 TRS.xlsb | H47: Add accretion related to embedded debt to model, Redo modelling of embedded debt so it is calculated | I47: CAA | J47: Structure | K47: - | L47: CAA
E48: 1.29 | F48: 2020-11-19 | G48: CAA H7 PCM v1.29 TRS.xlsb | H48: Add cargo revenue, Add profiling adjustment calcs, Amend accretion related to embedded debt | I48: CAA | J48: Structure | K48: - | L48: CAA
E49: 1.3 | F49: 2020-12-01 | G49: CAA H7 PCM v1.30 TRS.xlsb | H49: Add RRS calcs | I49: CAA | J49: Structure | K49: - | L49: CAA
E50: 1.31 | F50: 2020-12-08 | G50: CAA H7 PCM v1.31 TRS.xlsb | H50: Amend formulas requiring IL embedded debt in ratios. Rename RAB to basic RAB, link up RAB including profiling adjustment to relevant calculations. | I50: CAA | J50: Formula | K50: - | L50: CAA
E51: 1.32 | F51: 2021-04-10 | G51: CAA H7 PCM v1.32.xlsb | H51: Addressing items in issue log raised by CEPA. | I51: CAA | J51: Inputs | K51: - | L51: CAA
E52: 1.33 | F52: 2021-05-10 | G52: CAA H7 PCM v1.33.xlsb | H52: 1.C_Tax row 252/343 - tax loss offset calculation updated to match calc in row 343 2.Tax allowance - tax losses for offset calculation made to start in H7. 3.Readded Embedded debt accretion for deductions to allowed PBT in tax allowance 4.C_RABDepr!54:54,C_RABDepr!104:104,C_RABDepr!155:155,C_RABDepr!205:205 formulas updated to indexmatch 5.Added switch in I_scenarios to enter a profiled input of Notional WACC which overrides the calculated WACC (so changes in gearing can be tested without impacted the allowed return). 6.Added input checks to ensure signage of inputs are correctly entered in I_Actual,I_series 7.Equity IRR calc- adjusted to be XIRR calc and included the equity entry value. Calculation over H7 only. 8.Added logic such that dividend constrained by ICR lockup. Any cash not paid out is treated as trapped cash. 9.Added macro of gearing solver which calculates a glidepath for gearing based on the assumption of no equity or dividend payments. 10.Added macro of flat charges which calculates charges and profiles it such that X=0. 11.Added revised tax inputs from GT/HAL. | I52: CEPA/ CAA | J52: Various | K52: - | L52: CAA/SM
E53: 1.33 | F53: 2021-05-10 | G53: CAA H7 PCM v1.33.xlsb | H53: 1. [Formula] Updated all formulae in C_Ratios, C_Fin_Summ and O_FinStats refer to inputs from raw sources where possible (no daisy chains) 2. [Structure] Renamed I_Scenarios to I_InputSets and I_Manager to I_Scenarios. Refreshed the layout of I_Scenarios 3. [Structure] Moved cargo revenue lines from C_NonAeroRev to the new C_CargoRev 4. [Inputs] Linked corporate tax rates to updated sources and noted that they apply from April to March 5. [Inputs] Updated description of inflation indices (historical and forecast) on I_Series 6. [Inputs] Link all drop down lists for inputs on I_InputSets to I_Global 7. [Presentation] Standardised marco names and descriptions 8. [Presentation] Updated purpose of the model on Intro sheet 9. [Presentation] Updated model map on Map | I53: CEPA/ CAA | J53: Various | K53: - | L53: CAA/MK
E54: 1.33 | F54: 2021-05-10 | G54: CAA H7 PCM v1.33.xlsb | H54: Update indices to match HAL RBP | I54: CEPA/ CAA | J54: Various | K54: - | L54: CAA/SM
E55: 1.34 | F55: 2021-05-11 | G55: CAA H7 PCM v1.34.xlsb | H55: Remove circular reference related to intra period profiling by relinking formulas to RAB without profiling adjustment, | I55: CEPA/ CAA | J55: Various | K55: - | L55: CAA/SM
E56: 1.34 | F56: 2021-05-28 | G56: CAA H7 PCM v1.34.xlsb | H56: Update net debt to RAB to include profiling adjustment. | I56: HAL | J56: Various | K56: - | L56: CAA/DR
E57: 1.35 | F57: 2021-06-15 | G57: CAA H7 PCM v1.35.xlsb | H57: Address issue from CEPA issue log on index match formula in C_RABDepr!205:205 | I57: CEPA/ CAA | J57: Various | K57: - | L57: CAA/SM
E59: 1.37 | F59: 2021-06-30 | G59: CAA H7 PCM v1.37.xlsb | H59: Adding CAA charts and tables | I59: CAA | J59: Various | K59: - | L59: CAA/SM
E60: 1.38 | F60: 2021-07-30 | G60: CAA H7 PCM v1.38.xlsb | H60: Tax losses for offset amended start claculating only from H7 | I60: CAA | J60: Various | K60: - | L60: CAA/SM
E61: 2 | F61: 2021-09-17 | G61: CAA H7 PCM v2.00.xlsb | H61: Tax losses for offset included in H7, ICR lockup not used in iH7 to generate opening gearing | I61: CAA | J61: Various | K61: - | L61: CAA/SM
E62: 2.01 | F62: 2021-10-05 | G62: CAA H7 PCM v2.01.xlsb | H62: 2. Update to handle cargo in stress tests 3. Make cumulative RAB adjustment from TRS go directly into reported RAB within H7 (but not affect prices until H8) 4. Put in inputs for cost of equity issuance 5. Put in a proper line for allowance for asymmetric risk 6. Update IRR calcs to use live gearing | I62: CAA | J62: Various | K62: - | L62: CAA/SM
E63: 2.02 | F63: 2022-01-05 | G63: CAA H7 PCM v2.02.xlsb | H63: Revise TRS calcs | I63: CAA | J63: Structure | K63: - | L63: CAA
E64: 2.03 | F64: 2022-03-18 | G64: CAA H7 PCM v2.03.xlsb | H64: Rework model macros to incorporate 2022 charge figure. | I64: CAA | J64: Structure | K64: - | L64: CAA
E65: 2.04 | F65: 2022-04-04 | G65: CAA H7 PCM v2.04.xlsb | H65: Addressing comments from model review | I65: CAA | J65: Various | K65: - | L65: CAA/SM
E66: 2.05 | F66: 2022-04-27 | G66: CAA H7 PCM v2.05.xlsm | H66: Remodelling TRS calcs for FP | I66: CAA | J66: Various | K66: - | L66: CAA/SM
E67: 2.06 | F67: 2022-04-27 | G67: CAA H7 PCM v2.06.xlsm | H67: Remodelling TRS calcs for FP | I67: CAA | J67: Various | K67: - | L67: CAA/SM
E68: 2.07 | F68: 2022-05-26 | G68: CAA H7 PCM v2.07 Mid pax FP.xlsm | H68: Addressing JE comments on WACC | I68: CAA | J68: Various | K68: - | L68: CAA/SM
E69: 2.08 | F69: 2022-06-01 | G69: CAA H7 PCM v2.08 Mid pax profiled FP.xlsm | H69: Reverting change on the calculation of Nominal WACC | I69: CAA | J69: Various | K69: - | L69: CAA/SM
E70: 2.09 | F70: 2022-06-08 | G70: CAA H7 PCM v2.09 Mid pax profiled FP.xlsm | H70: Addressing QA issues | I70: CAA | J70: Various | K70: - | L70: CAA/SM
E71: 2.1 | F71: 2022-06-10 | G71: CAA H7 PCM v2.10 Mid pax profiled FP.xlsm | H71: Completing TRS modelling, revised inputs on Commercial revs, Depn | I71: CAA | J71: Various | K71: - | L71: CAA/SM
E72: 2.11 | F72: 2022-03-07 | G72: CAA H7 PCM v2.11 7Mar FDs.xlsm | H72: Updated inputs (pax, opex, CRs, cargo, WACC) to reflect FDs. Fixed errors identified in response to FPs | I72: CAA | J72: Various | K72: - | L72: CAA/DR
E73: 2.12 | F73: 2024-03-07 | G73: caa-h7-pcm-v2-12-implementation-public.xlsm | H73: Inputs updated to reflect decision on H7 final issues | I73: CAA | J73: Input changes | K73: - | L73: CAA/DR
A76: End of spreadsheet

Sheet Key
A1: =MID(CELL( "filename", $A$1 ), SEARCH( "[",CELL( "filename", $A$1 ) ) + 1, SEARCH( "]",CELL( "filename", $A$1 ) ) - SEARCH( "[",CELL( "filename", $A$1 ) ) - 1 ) -> 
B2: =RIGHT(CELL( "filename", B2 ), LEN(CELL( "filename", B2 ) ) - SEARCH( "]",CELL( "filename", B2 ) ) ) ->  | I2: =I_InputSets!$I$2 -> Warning, dashboard overrides active
E3: =Checks!E$3 -> Checks & Alerts | F3: =Checks!F$3 -> -1 | H3: =C_Ratios!H3 -> Alerts | I3: =C_Ratios!I3 -> ALERT: one or more financial ratios are breaching thresholds
B4: =I_Scenarios!$G$16 -> Input set used to determine prices | F4: =I_Scenarios!$G$17 -> Input set 1
B5: =I_Scenarios!$I$16 -> Input set used to determine outturn financial statements & ratios | F5: =I_Scenarios!$I$17 -> Input set 1
B6: =I_Scenarios!$E$16 -> Live Scenario | F6: =I_Scenarios!E$17 & " " & I_Scenarios!F$17 -> Scenario 1 Mid case
B8: Cell Colour Key:
E10: Title | G10: Workbook Title
E12: Heading 1 | G12: Sheet Heading
E14: Heading 2 | G14: Sub Heading level 2
E16: Heading 3 | G16: Sub Heading level 3
E18: Heading 4 | G18: Sub Heading level 4
E20: Time Line | G20: Timeline cells
E22: Section Split | G22: Section split in calculation worksheets
E24: Calculation | G24: Cells containing calculations, or containing links to other cells within sheet without applying calculations
E26: Sub Total | G26: Cells containing sub totals
E28: Total | G28: Cells containing totals
E30: Linked Cell | G30: Cells containing links to other cells on other sheets without applying calculations
E32: Input | G32: Input cells for user inputs
E34: Data Validated Input | G34: Input cells for user inputs
E36: Output | G36: Output to different sheet
E38: Named Range | G38: Named Range
E40: Explanatory Text | G40: Instructions & Explanations
E42: Warning Text | G42: Warning text
E44: Check Cell | G44: Check cell indicating no error
E46: Note | G46: Modeller notes
E48: Percent | G48: Excel defined number format
E50: Currency | G50: Excel defined number format
E52: Comma | G52: Excel defined number format
E54: Normal | G54: Normal
A56: End of spreadsheet

Sheet Sign off
A1: =MID(CELL( "filename", $A$1 ), SEARCH( "[",CELL( "filename", $A$1 ) ) + 1, SEARCH( "]",CELL( "filename", $A$1 ) ) - SEARCH( "[",CELL( "filename", $A$1 ) ) - 1 ) -> 
B2: =RIGHT(CELL( "filename", B2 ), LEN(CELL( "filename", B2 ) ) - SEARCH( "]",CELL( "filename", B2 ) ) ) ->  | I2: Dashboard overrides not used
E3: Checks | F3: 0 | H3: Alerts | I3: ALERT: one or more financial ratios are breaching thresholds
B7: Sign off Points
H9: Signed off by | I9: Date
C10: 1 | D10: A message or an alert showing the presence of any data that 'must not be published' (Col K in input sheets)
C11: =C10 + 1 -> 2 | D11: Has the description on the 'Intro' worksheet been reviewed and updated?
C12: =C11 + 1 -> 3 | D12: Self review of the model by [name] and sign off [date]
C13: =C12 + 1 -> 4 | D13: Peer review of the model by [name] and sign off [date]
C14: =C13 + 1 -> 5 | D14: External review of the model by [consultant] and sign off [date]
C15: =C14 + 1 -> 6 | D15: Authorised publication by [name] on [date]
A17: End of spreadsheet

Sheet Guide
A1: =MID(CELL( "filename", $A$1 ), SEARCH( "[",CELL( "filename", $A$1 ) ) + 1, SEARCH( "]",CELL( "filename", $A$1 ) ) - SEARCH( "[",CELL( "filename", $A$1 ) ) - 1 ) -> 
B2: =RIGHT(CELL( "filename", B2 ), LEN(CELL( "filename", B2 ) ) - SEARCH( "]",CELL( "filename", B2 ) ) ) -> 
D7: This draft user guide is not a policy statement.
A9: 1: MODEL OVERVIEW
D11: Summary: | H11: This is a Price Control Model with the primary aim of calculating the appropriate pricing per passenger by Heathrow Airport to its customers (the airlines), considering the planned expansion programme associated with the proposed new runway (the “Project”).
H13: The model is also be used to:
H15: · assess the affordability and financial viability of the proposed expansion program under the pricing controls applied by the CAA;
H16: · allow assessment of policy options in respect of incentives
H17: · calculate the maximum allowable yield,
H18: · incorporate high-level cost modelling on a base plus marginal basis; and
H19: · incorporate and support Monte Carlo analysis as necessary
H21: In accordance with the FAST modelling standard (http://www.fast-standard.org) the model logic flows from left to right in the general form of Inputs > Calculations > Outputs. Further detail regarding the model design and logic flow is presented within the graphic provided in the 'Map' sheet. Hyperlinks to specific sheets are included within the Map to aid navigation.
H23: =Map!B2 -> 
D25: 1.1 Sheet Overview:
H27: Guidance & Control Sheets | J27: Guidance sheets provide qualitative information about the model and assist users in their understanding and navigation. Control sheets include a summary of model integrity checks and a list of macros, including descriptions of their purposes. These sheets are shaded purple. Following standard model convention, they appear first (from left to right).
H30: Input Sheets | J30: Input sheets are where users are required to enter information which is then used to drive the rest of the model. These sheets are shaded yellow. Following standard model convention, they appear after model guidance and control sheets and before calculations. I_Global holds static inputs which are not expected to be updated by users. I_Scenarios holds static inputs which can be edited by users and allows users to select from multiple scenarios (each a column from AA:AJ). Column AA holds the base case scenario. Where an input cell is left blank from AB:AJ the model defaults to the base case entry in AA, allowing for changes to be viewed by exception. I_Series holds profiled inputs which can be varied from period to period. I_Actuals holds historic actual financial information. I_Ratio holds inputs for ratio calculations - e.g. adjustments not calculated by the model.
H33: Calculation Sheets | J33: Calculations are done within the Calculation Sheets. Users are not expected to update these sheets as calculations will update automatically when inputs are changed in the Input Sheets. These sheets are shaded white. Following standard model convention, they appear after the input sheets but before outputs.
H36: Output Sheets | J36: Output sheets store key financial information which is expected to be of most interest to users, such as financial statements and dashboards. Users are not expected to update these sheets except for overrides shown in yellow shaded cells. These sheets are shaded blue. Following standard convention, they are the right most sheets of the model.
D39: 1.2 Units overview:
H40: Column G of each sheet specifies the relevant units.
H41: All monetary inputs are either in nominal prices and [price index]-real prices.
H42: £'m refers to monetary inputs in nominal prices, which are monetary amounts expressed in the current year prices base.
H43: £'m [price index]-real refers to monetary inputs in real prices, which are monetary amounts expressed in terms of (1) the price base year and (2) the price index used to convert to nominal prices.
H44: Where real figures are used they are later converted to nominal via calculations later in the model, as described in Section 7. INDEXATION below.
D46: 1.3 Data sources for inputs:
H47: Each input requires a corresponding data source to be entered in column I.
D49: 1.4 Confidentiality status:
H50: Each input requires a corresponding confidentiality status to be selected in column K. "Already published" refers to information which is available in the public domain. "Must not be published" refers to sensitive confidential information. "Being published with this model" refers to information which is not confidential but is not public.
D52: 1.5 Guidance notes:
H53: Guidance notes are included in column H to assist users' understanding and support the correct entry of inputs
D55: 1.6 Recurring terminology:
H56: The model includes the following recurring terminology:
H57: BEG | I57: - | J57: Refers to an opening balance
H58: POS | I58: - | J58: Refers to a positive number where its negative is included elsewhere in the model. The purpose is to simplify SUM formulae and to be more clear and transparent for users. For example 'RAB Depreciation POS' is one of the building blocks that sum to the allowed aero revenues (before profiling).
H59: NEG | I59: - | J59: Refers to a negative number where its positive is included elsewhere in the model
D61: 1.7 Navigation shortcuts:
H62: Navigation through the model is supported by the following keyboard shortcuts which are best used in conjunction:
H63: Ctrl + [ | J63: Navigates to linked cell
H64: F5 + Enter | J64: Returns to previous location
H66: "Navigate to Scenario Selector" and "Navigate to Dashboards" buttons are included to facilitate seamless switching between these key high-level sheets
A68: 2: MODEL TIMEFRAME
D70: Summary: | H70: The model is based on and calculated on an annual timeline. It works on the calendar year, that is, from 1 January to 31 December. Calendar years 2017 and 2018 are kept in the model for any inputs required for 'Actuals' period. The model is forecasting from year 2019 till 2050 (i.e. from 1st January 2019 till 31st December 2050)
H72: Timeline assumptions are present under the below mentioned heading:
H75: =I_Global!A14 -> 1.b Time
A77: 3: NAMED RANGES
D79: Summary: | H79: Named ranges are kept to a minimum within the model. The principal uses of named ranges are for model management and quick links to model guidance. Use of named ranges within calculations is limited to referencing global technical modelling inputs such as sign switch, units converter (e.g. from £ to £’000) and check tolerances.
H81: The below is an exhaustive list of named ranges active within the model alongside a description of their purpose (listed alphabetically):
H83: CheckTOL | K83: A small number used in model logic and cross referencing checks to allow for some minor deviation from zero
H84: Credit_rating_for_alerts | K84: Input for users to select relevant credit rating for ratio threshold testing
H85: Credit_Ratings | K85: List of available credit ratings
H86: Time_Stamp | K86: Stores time stamp for when scenario macro last run
H87: DisclaimerText | K87: Quick link to disclaimer text
H88: Finstat_copy | K88: Copy zone for running Finstat delta sheet
H89: Finstat_paste | K89: Paste zone for pasting values when resetting Finstat delta sheet
H90: Q6_NPVcheck | K90: Difference between NPVs of profiled and unprofiled revenues in the associated period
H91: Q6_X | K91: The calculated value of X to achieve zero difference between NPV's of profiled and unprofiled revenues in associated period
H92: Q6plus1_NPVcheck | K92: Difference between NPVs of profiled and unprofiled revenues in the associated period
H93: Q6plus1_X | K93: The calculated value of X to achieve zero difference between NPV's of profiled and unprofiled revenues in associated period
H94: iH7_NPVcheck | K94: Difference between NPVs of profiled and unprofiled revenues in the associated period
H95: iH7_X | K95: The calculated value of X to achieve zero difference between NPV's of profiled and unprofiled revenues in associated period
H96: H7_NPVcheck | K96: Difference between NPVs of profiled and unprofiled revenues in the associated period
H97: H7_X | K97: The calculated value of X to achieve zero difference between NPV's of profiled and unprofiled revenues in associated period
H98: H8_NPVcheck | K98: Difference between NPVs of profiled and unprofiled revenues in the associated period
H99: H8_X | K99: The calculated value of X to achieve zero difference between NPV's of profiled and unprofiled revenues in associated period
H100: H9_NPVcheck | K100: Difference between NPVs of profiled and unprofiled revenues in the associated period
H101: H9_X | K101: The calculated value of X to achieve zero difference between NPV's of profiled and unprofiled revenues in associated period
H102: H10_NPVcheck | K102: Difference between NPVs of profiled and unprofiled revenues in the associated period
H103: H10_X | K103: The calculated value of X to achieve zero difference between NPV's of profiled and unprofiled revenues in associated period
H104: H11_NPVcheck | K104: Difference between NPVs of profiled and unprofiled revenues in the associated period
H105: H11_X | K105: The calculated value of X to achieve zero difference between NPV's of profiled and unprofiled revenues in associated period
H106: H12_NPVcheck | K106: Difference between NPVs of profiled and unprofiled revenues in the associated period
H107: H12_X | K107: The calculated value of X to achieve zero difference between NPV's of profiled and unprofiled revenues in associated period
H108: Live Ratios | K108: Live ratios calculated within the model, to be copied and pasted as values for each scenarios when running the the 'store all scenarios' macro
H109: Live_Scenario | K109: Live scenario being used in the model
H110: LookForwardPeriods | K110: Maximum number of years available for liquidity look-forward
H111: Price_Base | K111: Universal price base year used for indexation purposes
H112: Model_Mode | K112: Selection between 'set price control' and 'Run live outputs'
H113: Pricing_Scenario | K113: Scenario used when Model_Mode is set to 'set price control'
H114: Print_Area | K114: Defines print area for specific sheets
H115: SignSwitch | K115: Used to convert positive figures to negative and vice versa
H116: Styles | K116: Quick link to model formatting styles
A118: 4: MACROS
D120: Summary: | H120: The model makes use of a limited number of macros. All macros are included within the following sheet, along with a description of its purpose and a button for triggering its function. No hidden or automated calculation macros are included within the model. [To add new macros here]
H121: Macros
H123: The following macros are included within the model:
H124: =Macros!B17 -> Run_Deltas (to store current FinStat values)
H125: =Macros!B24 -> Run_All_Scenarios
H126: =Macros!B31 -> Profile_Revenue
A128: 5: DASHBOARD OVERRIDES
D130: Summary: | H130: While the dedicated input sheets are the primary access for entering model assumptions, dashboard overrides are available within O_Dashboards for selected key inputs. This allows users to update assumptions and see the impacts from a high-level view within a single sheet.
H131: Dashboard overrides: | J131: When dashboard overrides are in use, they are carried back into column Y of I_Scenarios to allow users to see the entered value amongst other input assumptions. Y16:Y23 allow for users to manually input adjustments to the change in charges from one period to the next. These can be used to avoid large step ups or down between price control periods.
J132: Further information regarding warning flags is provided in Section 6 below.
A134: 6: CHECKS, WARNINGS AND ALERTS
D136: Summary: | H136: The model includes various checks throughout which highlight alerts, warnings and errors to users. Summary outputs relating to these are included at the top of each sheet in consistent cell locations to aid usability and flag potential issues to users efficiently. Checks, warnings and alerts apply only to the live scenario.
D137: 6.1 Cell F3:
H138: Model integrity checks: | J138: Model integrity checks test whether the model calculations are functioning correctly. This includes items such as confirming that the Balance Sheet balances. If an error has occurred within the model column F of the Checks sheet will flag the word 'ERROR' (conditionally formatted with red text). If these checks are satisfied they will be marked with the word 'ok'. As these checks test the logical integrity of the model they should all be in 'ok' status at all times. Any exceptions to this should be investigated. A summary of all integrity checks is included in cell F3 of each sheet. Note cell F3 includes 3 possible outcomes: 'Ok', 'ERROR' and 'ALERT'. An explanation of the 'ALERT' status is provided below.
H139: Price profiling checks: | J139: These checks confirm whether the Net Present Value of the profiled aero revenues is equal to the Net Present Value of the unprofiled aero revenues for each price control period. An 'ALERT' result here provides an alert to users that allowed aero revenues have not been re-profiled since inputs have been updated. An 'ALERT' in this instance does not reflect an error in model integrity as users may wish to run stress tests where the realised scenario differs from the assumptions used when setting the price control. In order to update revenue profiling once inputs have been changed, and return 'ok' results for all periods, users should run the revenue profiling macro by clicking the "Run Revenue Profiling" button stored within the Macros sheet.
J140: Therefore an 'Ok' result in cell F3 of each sheet reflects that all model integrity checks are satisfied and the Revenue Profiling macro has been re-run since inputs where last updated.
D141: 6.2 Cell I3:
H142: Ratio alerts: | J142: C_Ratios calculates the live financial ratios for each period based on user inputs and tests these against specified thresholds which are intended to reflect AAA, BBB+ and BBB credit ratings. Users can select the appropriate credit rating to test here:
J143: O_Dashboards
J144: Selected credit rating for threshold testing
J146: Cell I3 of each sheet provides a high-level summary of the results of ratio testing across all relevant periods for all ratios. If an 'ALERT' is triggered, users can manually examine the C_Ratios sheets to see which ratios thresholds are being breached in which periods. Note that an 'ALERT' in this cell provides commercial information, it does not indicate an integrity error within the model.
D147: 6.3 Cell I2:
H148: Dashboard overrides: | J148: As mentioned in Section 5 above, certain input overrides are available within O_Dashboards. Where overrides are active (i.e. not blank) the following warning will be flagged in cell I2 on all sheets: "Warning, dashboard overrides active" This alerts warns users that dashboard overrides are in use and therefore updating certain inputs within the input sheets will not impact on calculations and outputs.
A150: 7. INDEXATION
D152: Summary: | H152: The inputs to the PCM are either in nominal prices and [price index]-real prices. The PCM then converts inputs to nominal before conducting calculations, and deflate the calculation results by a suitable inflation index.
H154: For any price monetary input series, two elements will need to be specified: (1) the price base year and (2) the price index used for uplifting to nominal prices. Some examples:
H155: Price series | I155: Price base year | J155: Price index used for uplifting to nominal prices
H156: RPI-real 2018 prices | I156: 2018 | J156: RPI
H157: Nominal prices | I157: The current year | J157: Not applicable
H158: CPI-real 2020 prices | I158: 2020 | J158: CPI
H159: Labour cost index-real 2020 prices | I159: 2020 | J159: Labour cost index
H161: The price base year for indexation purposes are specified within I_Global here: | O161: Price Base
H163: Where appropriate, column H of the Input sheets contains guidance notes to instruct users whether data should be entered in [price index]-real or nominal terms. Where data is entered in [price index]-real terms users should ensure that (1) inputs in [price index]-real terms are consistent with the specified price base year of the PCM and (2) the the price index used to inflate inputs to nominal prices is clearly stated in Column H and recorded in a separate workbook "Indexation for PCM".
H165: The majority of forecasts inputs are entered in [price index]-real terms with indexation being applied separately, unless otherwise specified. The model allows users to assign appropriate indices to different line items within the model via drop-downs within I_InputSets. Profiled inputs for each index are provided in I_Series.
H167: Indexation assumptions and calculations are included in the model under the below mentioned headings:
H169: I_Series | M169: C_Index
H170: 2.f Applicable indexation factors | M170: Indexation
H172: I_Series
H173: 3.b Indexation
A176: 8: FINANCING
D178: Summary: | H178: The model calculates total drawdowns of capital based on liquidity look-forward requirements. Capital drawdowns are a combination of debt and shareholder equity as described below.
H180: Financing assumptions are included under the below mentioned headings:
H182: I_Scenarios
H183: 2.e Financing | J183: For static financing assumptions, fixed for all periods.
H186: I_Series
H187: =I_Series!A285 -> 3.g Financing | J187: For profiled financing assumptions.
D190: 8.1 Liquidity look-forward requirement:
H191: The model ensures that there is sufficient capital available to cover debt service payments, capital expenditures and minimum dividend requirements for up to 3 years.
H193: The look-forward calculation for interest payments on new debt drawn during the forecast period has been simplified to a multiple of current year interest, rather than future years. This is to avoid introducing circularities within the model logic.
H194: A percentage of the liquidity requirement is assumed to be available from stand-by facilities and capital arranged in advance but not yet drawn. The remainder is the cash requirement.
H195: Liquidity look-forward inputs and calculations are included within the model under the below headings:
H197: I_Series | M197: C_LookForward
H198: =I_Series!B293 -> 3.g.ii Liquidity look forward | M198: Financing look-forward
D201: 8.2 Debt: | G201: Debt drawdowns are calculated to achieve a target gearing ratio (calculated as Net Debt / RAB)
G202: The user is able to select between different target levels of gearing under the following headings:
H203: I_Scenarios
H204: 2.e Financing
G206: Each of the scenarios available are entered as profiled series inputs under the following headings:
H207: I_Series
H208: =I_Series!B287 -> 3.g.i Gearing target scenarios (Net Debt / RAB)
G211: Target Net Debt = (RAB x Target Gearing Ratio %)
G213: Target Gross Debt is therefore calculated as follows:
G215: Target Gross Debt = (RAB Balance x Target Gearing Ratio %) + Cash Balance. Where the model targets a Cash Balance = Minimum Cash Required (Look Forward)
G217: Profiled series inputs are available for opening and closing balances, interest and repayments related to debt drawn prior to the forecast period. This encapsulates and summarises all existing debt types.
G218: Inputs relating to pre-existing debt are included in the model under the following headings:
H219: I_Series
H220: =I_Series!B310 -> 3.g.iii Embedded Debt
G222: Target debt drawdowns are calculated under the following heading:
H223: C_LookForward
H224: Total Debt Drawdowns
G226: Target debt drawdowns are calculated as follows:
G227: Debt Drawdowns Required = Target Gross Debt - Opening Debt (including accretions) + Repayments
G229: The model includes 3 categories of debt: fixed interest, index-linked and synthetic index-linked.
G230: The proportion in which the different categories of debt are drawn are specified within the below mentioned headings. A market capacity cap is included for index-linked debt, beyond which synthetic index-linked debt is drawn.
H231: I_Series
H232: =I_Series!B320 -> 3.g.iv New debt drawdowns proportions
G234: Calculations for each category of debt are included in the below mentioned sheets. Note that synthetic index-linked debt is divided across two separate sheets to allow for differences in repayment terms of capital and accretion of indexation respectively.
H236: Fixed Interest Debt calculations | M236: C_Fin_Fixed
H237: Index-Linked Debt calculations | M237: C_Fin_Ind
H238: Synthetic Index-Linked Debt calculations | M238: C_Fin_Synth
H239: Accretion on Synthetic Index-Linked debt calculations | M239: C_Fin_SynthAccretion
G241: Debt is repaid in bullet instalments at the end of a predefined term.
G243: Interest on Fixed Debt and Synthetic Debt is assumed to be fixed to the prevailing rate in the period in which the debt is drawn.
G244: Interest on Index-linked Debt is assumed to be floating, so references the prevailing interest rate in each year.
G246: Profiled inputs for the cost of debt are provided under the following headings:
H247: I_Series
H248: =I_Series!B325 -> 3.g.v Cost of Capital
D252: 8.3. Dividends and new equity capital drawn:
G253: Cashflows to shareholders are calculated as the greater of a minimum yield on either the opening share capital balance or the RAB equity wedge (determined by dropdown selection) and the cashflow available to shareholders after debt service payments. In the event that cashflow available to shareholders is lower than the minimum yield value, additional equity drawdowns are triggered.
G254: Dividends and share capital issuance inputs and calculations are provided under the following headings:
H256: I_Series | M256: C_Fin_Summ
H257: =I_Series!E298 -> Minimum yield to equity investors | M257: Equity Returns
G260: Minimum Dividend = Minimum Dividend Yield % multiplied by either the Equity Wedge (Average RAB Balance x (1 - Target Gearing %)) or the opening share capital balance
G261: Dividends are assumed to be paid as declared and are calculated as follows:
G262: Dividends declared and paid = Higher of Minimum Dividend and Cash available to shareholders before equity drawings and minimum dividend restricted by retained earnings
G263: Cash available to shareholders before equity drawings and minimum dividend = Opening Cash + Cashflow available to shareholders - Minimum Cash Requirement (Look Forward)
G264: Equity drawdowns = MAX(Minimum Dividend - Cashflow available to shareholders before equity drawings and minimum dividend, 0) + additional equity required to achieve target gearing
G265: Dividends are restricted by Retained Earnings. In the event that dividends are capped to a degree that does not satisfy the minimum yield, share repurchases are triggered. In the event that all share capital has been repurchased any shortfall in cash distributions will be accrued as trapped cash
G266: In periods where both share repurchases and equity drawings are triggered, they are netted off to produce a net share capital additions/(repurchases)
D268: 8.4 Returns to shareholders of equity:
G269: An equity IRR (pre dividends and capital gains tax) is calculated in C_Fin_Summ, taking into account forecast inflows and outflows of cash to/from shareholders. Cash outflows refer to new equity drawings and cash inflows relate to dividends received plus an exit value at the end of the forecast period. For the purposes of the model the exit value is calculated as a multiple of the closing RAB balance.
G270: Assumptions and calculations relating to equity returns are included under the following headings:
H272: I_Scenarios | M272: C_Fin_Summ
H273: 2.e Financing | M273: Equity Returns
H275: C_Fin_Summ
H276: Equity
D279: 8.5 Summary of uses and sources of capital:
G280: A summary of the uses and sources of capital is provided within the model at the following locations:
H281: C_Fin_Summ
H282: Cash uses and sources summary
A284: 9: OPERATING COSTS
C286: Summary: | G286: The model includes the following 5 categories of operating expenditure: People, Operations, Rent & Rates, Utilities, Facilities & Maintenance and Other Expenditures. Each line item is split between its base and marginal components. Inputs are in real terms with indexation calculated separately, as described in Section 7 above.
G287: Operating cost assumptions and calculations are included in the following locations:
H288: I_Scenarios
H289: =I_InputSets!A23 -> 2.c Operating costs scenarios
H291: I_Scenarios | M291: C_Opex
H292: =I_InputSets!B462 -> 2.n.ii Additional base opex | M292: Opex Calculations
H294: I_Series
... 320 more rows

Sheet Map
A1: =MID(CELL( "filename", $A$1 ), SEARCH( "[",CELL( "filename", $A$1 ) ) + 1, SEARCH( "]",CELL( "filename", $A$1 ) ) - SEARCH( "[",CELL( "filename", $A$1 ) ) - 1 ) -> 
B2: =RIGHT(CELL( "filename", B2 ), LEN(CELL( "filename", B2 ) ) - SEARCH( "]",CELL( "filename", B2 ) ) ) -> 
A50: End of spreadsheet

Sheet Control>>>
A1: =MID(CELL( "filename", $A$1 ), SEARCH( "[",CELL( "filename", $A$1 ) ) + 1, SEARCH( "]",CELL( "filename", $A$1 ) ) - SEARCH( "[",CELL( "filename", $A$1 ) ) - 1 ) -> 
B2: =RIGHT(CELL( "filename", B2 ), LEN(CELL( "filename", B2 ) ) - SEARCH( "]",CELL( "filename", B2 ) ) ) -> 

Sheet Checks
A1: =MID(CELL( "filename", $A$1 ), SEARCH( "[",CELL( "filename", $A$1 ) ) + 1, SEARCH( "]",CELL( "filename", $A$1 ) ) - SEARCH( "[",CELL( "filename", $A$1 ) ) - 1 ) -> 
B2: =RIGHT(CELL( "filename", B2 ), LEN(CELL( "filename", B2 ) ) - SEARCH( "]",CELL( "filename", B2 ) ) ) ->  | I2: =I_InputSets!$I$2 -> Warning, dashboard overrides active
E3: =Checks!E$71 -> Checks & Alerts | F3: =Checks!$F$71 -> -1 | H3: =C_Ratios!H3 -> Alerts | I3: =C_Ratios!I3 -> ALERT: one or more financial ratios are breaching thresholds
B4: =I_Scenarios!$G$16 -> Input set used to determine prices | F4: =I_Scenarios!$G$17 -> Input set 1
B5: =I_Scenarios!$I$16 -> Input set used to determine outturn financial statements & ratios | F5: =I_Scenarios!$I$17 -> Input set 1
B6: =I_Scenarios!$E$16 -> Live Scenario | F6: =I_Scenarios!E$17 & " " & I_Scenarios!F$17 -> Scenario 1 Mid case
A8: Integrity checks
B9: As these checks test the logical integrity of the model they should all be in 'ok' status at all times. Any exceptions to this (Error) should be investigated.
E11: =C_Capex!E$130 -> NCA Existing assets negative check | F11: =C_Capex!F$130 -> 0 | G11: =C_Capex!G$130 -> check | I11: Checks that the NCA existing assets are not over depreciated
E12: =O_FinStats!E$185 -> FinStat - balance sheet check | F12: =O_FinStats!F$185 -> 0 | G12: =O_FinStats!G$185 -> check | I12: Checks that the balance sheet balances (i.e. assets equals equity and liabilities) in all periods
E13: =O_FinStats!E$188 -> FinStat - cash flow check | F13: =O_FinStats!F$188 -> 0 | G13: =O_FinStats!G$188 -> check | I13: Checks that the cash balance on the balance sheet is equal to retained cash on the cashflow statement
E14: =O_FinStats!E$182 -> FinStat - income statement check | F14: =O_FinStats!F$182 -> 0 | G14: =O_FinStats!G$182 -> check | I14: Checks that the retained earnings balance on the balance sheet is equal to retained earnings from the income statement
E15: =O_FinStats!E$191 -> FinStat - cash balance check | F15: =O_FinStats!F$191 -> 0 | G15: =O_FinStats!G$191 -> check | I15: Checks that the retained cash balance on the balance sheet is equal to Minimum Cash Required (Look Forward) plus Trapped cash & Additional equity draw
E16: =C_Fin_Summ!E$29 -> Financing - debt drawdowns check | F16: =C_Fin_Summ!F$29 -> 0 | G16: =C_Fin_Summ!G$29 -> check | I16: Checks that debt drawdowns are equal to required debt drawdowns calculated based on target gearing
E17: =C_Fin_Summ!E$79 -> Financing - Fixed Debt Balance check | F17: =C_Fin_Summ!F$79 -> 0 | G17: =C_Fin_Summ!G$79 -> check | I17: Checks that corkscrew calculations for fixed interest debt are operating correctly
E18: =C_Fin_Summ!E$88 -> Financing - Index-linked Debt Balance check | F18: =C_Fin_Summ!F$88 -> 0 | G18: =C_Fin_Summ!G$88 -> check | I18: Checks that corkscrew calculations for index-linked debt are operating correctly
E19: =C_Fin_Summ!E$96 -> Financing - Synthetic Debt Balance check | F19: =C_Fin_Summ!F$96 -> 0 | G19: =C_Fin_Summ!G$96 -> check | I19: Checks that corkscrew calculations for synthetic index-linked debt are operating correctly
E20: =C_Fin_Summ!E$104 -> Financing - Accretion on Synthetic Debt Balance check | F20: =C_Fin_Summ!F$104 -> 0 | G20: =C_Fin_Summ!G$104 -> check | I20: Checks that corkscrew calculations for accretion on synthetic index-linked debt are operating correctly
E21: =C_Fin_Summ!E$302 -> Financing & FinStat - cash balances recon check | F21: =C_Fin_Summ!F$302 -> 0 | G21: =C_Fin_Summ!G$302 -> check | I21: Checks that the cash balance calculated in the cashflow statement is equal to the cash balance calculated from financing calculations
E22: =C_Fin_Summ!E$215 -> Financing - cash balance equals look-forward requirement check | F22: =C_Fin_Summ!F$215 -> 0 | G22: =C_Fin_Summ!G$215 -> check | I22: Checks that the cash balance on the balance sheet is equal to the cash balance requirement calculated from the liquidity look-forward
E23: =C_Fin_Summ!E$295 -> Financing - Capital used vs capital sources check | F23: =C_Fin_Summ!F$295 -> 0 | G23: =C_Fin_Summ!G$295 -> check | I23: Checks that total capital used is equal to total capital sources in each period
E24: =C_Fin_Summ!E$315 -> Financing - Net debt adjusted for trapped cash / RAB | F24: =C_Fin_Summ!F$315 -> 0 | G24: =C_Fin_Summ!G$315 -> check | I24: Checks that the achieved Net Debt after adjusting for trapped cash / RAB gearing ratio is equal to target
E25: =I_InputSets!E$313 -> Category 1 description capital allowance allocation check | F25: =I_InputSets!F$313 -> 0 | G25: =I_InputSets!G$313 -> check | I25: Checks that the allocation to the 4 available capital allowance pools sums to 100%
E26: =I_InputSets!E$320 -> Category 2 description capital allowance allocation check | F26: =I_InputSets!F$320 -> 0 | G26: =I_InputSets!G$320 -> check | I26: Checks that the allocation to the 4 available capital allowance pools sums to 100%
E27: =I_InputSets!E$327 -> Category 3 description capital allowance allocation check | F27: =I_InputSets!F$327 -> 0 | G27: =I_InputSets!G$327 -> check | I27: Checks that the allocation to the 4 available capital allowance pools sums to 100%
E28: =I_InputSets!E$334 -> Category 4 description capital allowance allocation check | F28: =I_InputSets!F$334 -> 0 | G28: =I_InputSets!G$334 -> check | I28: Checks that the allocation to the 4 available capital allowance pools sums to 100%
E29: =I_InputSets!E$341 -> Category 5 description capital allowance allocation check | F29: =I_InputSets!F$341 -> 0 | G29: =I_InputSets!G$341 -> check | I29: Checks that the allocation to the 4 available capital allowance pools sums to 100%
E30: =I_InputSets!E$348 -> Category 6 description capital allowance allocation check | F30: =I_InputSets!F$348 -> 0 | G30: =I_InputSets!G$348 -> check | I30: Checks that the allocation to the 4 available capital allowance pools sums to 100%
E31: =I_InputSets!E$355 -> Category 7 description capital allowance allocation check | F31: =I_InputSets!F$355 -> 0 | G31: =I_InputSets!G$355 -> check | I31: Checks that the allocation to the 4 available capital allowance pools sums to 100%
E32: =I_InputSets!E$362 -> Category 8 description capital allowance allocation check | F32: =I_InputSets!F$362 -> 0 | G32: =I_InputSets!G$362 -> check | I32: Checks that the allocation to the 4 available capital allowance pools sums to 100%
E33: =I_InputSets!E$369 -> Category 9 description capital allowance allocation check | F33: =I_InputSets!F$369 -> 0 | G33: =I_InputSets!G$369 -> check | I33: Checks that the allocation to the 4 available capital allowance pools sums to 100%
E34: =I_InputSets!E$376 -> Category 10 description capital allowance allocation check | F34: =I_InputSets!F$376 -> 0 | G34: =I_InputSets!G$376 -> check | I34: Checks that the allocation to the 4 available capital allowance pools sums to 100%
E35: =I_InputSets!E$570 -> Q6 dates check | F35: =I_InputSets!F$570 -> 0 | G35: =I_InputSets!G$570 -> check | I35: Checks that the price control start date is before the start date of the following price control period
E36: =I_InputSets!E$571 -> Q6+1 dates check | F36: =I_InputSets!F$571 -> 0 | G36: =I_InputSets!G$571 -> check | I36: Checks that the price control start date is before the start date of the following price control period
E37: =I_InputSets!E$572 -> iH7 dates check | F37: =I_InputSets!F$572 -> 0 | G37: =I_InputSets!G$572 -> check | I37: Checks that the price control start date is before the start date of the following price control period
E38: =I_InputSets!E$573 -> H7 dates check | F38: =I_InputSets!F$573 -> 0 | G38: =I_InputSets!G$573 -> check | I38: Checks that the price control start date is before the start date of the following price control period
E39: =I_InputSets!E$574 -> H8 dates check | F39: =I_InputSets!F$574 -> 0 | G39: =I_InputSets!G$574 -> check | I39: Checks that the price control start date is before the start date of the following price control period
E40: =I_InputSets!E$575 -> H9 dates check | F40: =I_InputSets!F$575 -> 0 | G40: =I_InputSets!G$575 -> check | I40: Checks that the price control start date is before the start date of the following price control period
E41: =I_InputSets!E$576 -> H10 dates check | F41: =I_InputSets!F$576 -> 0 | G41: =I_InputSets!G$576 -> check | I41: Checks that the price control start date is before the start date of the following price control period
E42: =I_InputSets!E$577 -> H11 dates check | F42: =I_InputSets!F$577 -> 0 | G42: =I_InputSets!G$577 -> check | I42: Checks that the price control start date is before the start date of the following price control period
E43: =I_InputSets!E$578 -> H12 final period check | F43: =I_InputSets!F$578 -> 0 | G43: =I_InputSets!G$578 -> check | I43: Checks that the price control start date is before the model end date
E44: =C_TRS!E69 -> TRS mechanism check | F44: =C_TRS!F69 -> 0 | G44: =C_TRS!G69 -> check | I44: Checks the TRS mechanism captures correct amount of over/under recovery
E45: =I_Actuals!E83 -> Historical input signage checks | F45: =I_Actuals!F$83 -> 0 | G45: =I_Actuals!G$83 -> check | I45: Checks the signage of inputs are entered correctly in I_Actuals
E46: =I_Series!E398 -> Series input signage checks | F46: =I_Series!F$398 -> 0 | G46: =I_Series!G$398 -> check | I46: Checks the signage of inputs are entered correctly in I_series
A48: Alerts:
B49: These checks confirm whether the Net Present Value of the profiled aero revenues is equal to the Net Present Value of the unprofiled aero revenues for each price control period.
E51: =C_Revenue!E$461 -> Revenue - Q6 period price profiling | F51: =C_Revenue!F$461 -> 0 | G51: =C_Revenue!G$461 -> check | I51: Checks whether the NPV of profiled revenue is equal to the NPV of unprofiled revenue during the relevant price control period
E52: =C_Revenue!E$462 -> Revenue - Q6+1 period price profiling | F52: =C_Revenue!F$462 -> 0 | G52: =C_Revenue!G$462 -> check | I52: Checks whether the NPV of profiled revenue is equal to the NPV of unprofiled revenue during the relevant price control period
E53: =C_Revenue!E$463 -> Revenue - iH7 period price profiling | F53: =C_Revenue!F$463 -> 0 | G53: =C_Revenue!G$463 -> check | I53: Checks whether the NPV of profiled revenue is equal to the NPV of unprofiled revenue during the relevant price control period
E54: =C_Revenue!E$464 -> Revenue - H7 period price profiling | F54: =C_Revenue!F$464 -> 0 | G54: =C_Revenue!G$464 -> check | I54: Checks whether the NPV of profiled revenue is equal to the NPV of unprofiled revenue during the relevant price control period
E55: =C_Revenue!E$465 -> Check that nominal charge in 2024 is as per underlying PCM calculations | F55: =C_Revenue!F$465 -> 0 | G55: =C_Revenue!G$465 -> check | I55: Check that nominal charge in 2024 is as per underlying PCM calculations
E56: =C_Revenue!E$466 -> Revenue - H8 period price profiling | F56: =C_Revenue!F$466 -> 0 | G56: =C_Revenue!G$466 -> check | I56: Checks whether the NPV of profiled revenue is equal to the NPV of unprofiled revenue during the relevant price control period
E57: =C_Revenue!E$467 -> Revenue - H9 period price profiling | F57: =C_Revenue!F$467 -> 0 | G57: =C_Revenue!G$467 -> check | I57: Checks whether the NPV of profiled revenue is equal to the NPV of unprofiled revenue during the relevant price control period
E58: =C_Revenue!E$468 -> Revenue - H10 period price profiling | F58: =C_Revenue!F$468 -> 0 | G58: =C_Revenue!G$468 -> check | I58: Checks whether the NPV of profiled revenue is equal to the NPV of unprofiled revenue during the relevant price control period
E59: =C_Revenue!E$469 -> Revenue - H11 period price profiling | F59: =C_Revenue!F$469 -> 0 | G59: =C_Revenue!G$469 -> check | I59: Checks whether the NPV of profiled revenue is equal to the NPV of unprofiled revenue during the relevant price control period
E60: =C_Revenue!E$470 -> Revenue - H12 period price profiling | F60: =C_Revenue!F$470 -> 0 | G60: =C_Revenue!G$470 -> check | I60: Checks whether the NPV of profiled revenue is equal to the NPV of unprofiled revenue during the relevant price control period
E61: =C_Revenue!E$471 -> Revenue - allowed revenue profiling | F61: =C_Revenue!F$471 -> 0 | G61: =C_Revenue!G$471 -> check | I61: Checks whether the NPV of profiled revenue is equal to the NPV of unprofiled revenue during the relevant price control period
E63: =O_FinStats!E$194 -> FinStat - trapped cash alert | F63: =O_FinStats!F$194 -> 1 | G63: =O_FinStats!G$194 -> check | I63: Checks whether trapped cash is being triggered
E65: =C_Revenue!E569 -> Profiling adjustment check | F65: =C_Revenue!F$569 -> 6 | G65: =C_Revenue!G$569 -> check | I65: Checks whether the profiling adjustment is NPV neutral during the relevant price control period | K65: H8 to H12 profiling adjustment have not been updated as these are not used in any analysis.
E67: =CAAchartdata!E$82 -> Unprofiled yield per passenger check | F67: =CAAchartdata!F$82 -> 0 | G67: =CAAchartdata!G$82 -> check | I67: Checks whether the unprofiled yield has been converted correctly to the appropriate price base for use in te graphs and outputs
A69: Checks and Alerts Summary
E71: Checks & Alerts | F71: =IF( SUM( F11:F46 ) <> 0, 1, IF( SUM( F51:F63, F65:F65,F67 ) <> 0, -1, 0 ) ) -> -1 | G71: =I_Global!$F$116 -> check
A73: End of spreadsheet

Sheet Macros
A1: =MID(CELL( "filename", $A$1 ), SEARCH( "[",CELL( "filename", $A$1 ) ) + 1, SEARCH( "]",CELL( "filename", $A$1 ) ) - SEARCH( "[",CELL( "filename", $A$1 ) ) - 1 ) -> 
B2: =RIGHT(CELL( "filename", B2 ), LEN(CELL( "filename", B2 ) ) - SEARCH( "]",CELL( "filename", B2 ) ) ) ->  | I2: =I_InputSets!$I$2 -> Warning, dashboard overrides active
E3: =Checks!E$71 -> Checks & Alerts | F3: =Checks!F$3 -> -1 | H3: =C_Ratios!H3 -> Alerts | I3: =C_Ratios!I3 -> ALERT: one or more financial ratios are breaching thresholds
B4: =I_Scenarios!$G$16 -> Input set used to determine prices | F4: =I_Scenarios!$G$17 -> Input set 1
B5: =I_Scenarios!$I$16 -> Input set used to determine outturn financial statements & ratios | F5: =I_Scenarios!$I$17 -> Input set 1
B6: =I_Scenarios!$E$16 -> Live Scenario | F6: =I_Scenarios!E$17 & " " & I_Scenarios!F$17 -> Scenario 1 Mid case
A8: Timeline
E9: =C_Time!E8 -> Period Beginning | G9: =C_Time!G8 -> date | AA9: =C_Time!AA8 -> 2015-01-01 | AB9: =C_Time!AB8 -> 2016-01-01 | AC9: =C_Time!AC8 -> 2017-01-01 | AD9: =C_Time!AD8 -> 2018-01-01 | AE9: =C_Time!AE8 -> 2019-01-01 | AF9: =C_Time!AF8 -> 2020-01-01 | AG9: =C_Time!AG8 -> 2021-01-01 | AH9: =C_Time!AH8 -> 2022-01-01 | AI9: =C_Time!AI8 -> 2023-01-01 | AJ9: =C_Time!AJ8 -> 2024-01-01 | AK9: =C_Time!AK8 -> 2025-01-01 | AL9: =C_Time!AL8 -> 2026-01-01 | AM9: =C_Time!AM8 -> 2027-01-01 | AN9: =C_Time!AN8 -> 2028-01-01 | AO9: =C_Time!AO8 -> 2029-01-01 | AP9: =C_Time!AP8 -> 2030-01-01 | AQ9: =C_Time!AQ8 -> 2031-01-01 | AR9: =C_Time!AR8 -> 2032-01-01 | AS9: =C_Time!AS8 -> 2033-01-01 | AT9: =C_Time!AT8 -> 2034-01-01 | AU9: =C_Time!AU8 -> 2035-01-01 | AV9: =C_Time!AV8 -> 2036-01-01 | AW9: =C_Time!AW8 -> 2037-01-01 | AX9: =C_Time!AX8 -> 2038-01-01 | AY9: =C_Time!AY8 -> 2039-01-01 | AZ9: =C_Time!AZ8 -> 2040-01-01 | BA9: =C_Time!BA8 -> 2041-01-01 | BB9: =C_Time!BB8 -> 2042-01-01 | BC9: =C_Time!BC8 -> 2043-01-01 | BD9: =C_Time!BD8 -> 2044-01-01 | BE9: =C_Time!BE8 -> 2045-01-01 | BF9: =C_Time!BF8 -> 2046-01-01 | BG9: =C_Time!BG8 -> 2047-01-01 | BH9: =C_Time!BH8 -> 2048-01-01 | BI9: =C_Time!BI8 -> 2049-01-01 | BJ9: =C_Time!BJ8 -> 2050-01-01
E10: =C_Time!E9 -> Period Ending | G10: =C_Time!G9 -> date | AA10: =C_Time!AA9 -> 2015-12-31 | AB10: =C_Time!AB9 -> 2016-12-31 | AC10: =C_Time!AC9 -> 2017-12-31 | AD10: =C_Time!AD9 -> 2018-12-31 | AE10: =C_Time!AE9 -> 2019-12-31 | AF10: =C_Time!AF9 -> 2020-12-31 | AG10: =C_Time!AG9 -> 2021-12-31 | AH10: =C_Time!AH9 -> 2022-12-31 | AI10: =C_Time!AI9 -> 2023-12-31 | AJ10: =C_Time!AJ9 -> 2024-12-31 | AK10: =C_Time!AK9 -> 2025-12-31 | AL10: =C_Time!AL9 -> 2026-12-31 | AM10: =C_Time!AM9 -> 2027-12-31 | AN10: =C_Time!AN9 -> 2028-12-31 | AO10: =C_Time!AO9 -> 2029-12-31 | AP10: =C_Time!AP9 -> 2030-12-31 | AQ10: =C_Time!AQ9 -> 2031-12-31 | AR10: =C_Time!AR9 -> 2032-12-31 | AS10: =C_Time!AS9 -> 2033-12-31 | AT10: =C_Time!AT9 -> 2034-12-31 | AU10: =C_Time!AU9 -> 2035-12-31 | AV10: =C_Time!AV9 -> 2036-12-31 | AW10: =C_Time!AW9 -> 2037-12-31 | AX10: =C_Time!AX9 -> 2038-12-31 | AY10: =C_Time!AY9 -> 2039-12-31 | AZ10: =C_Time!AZ9 -> 2040-12-31 | BA10: =C_Time!BA9 -> 2041-12-31 | BB10: =C_Time!BB9 -> 2042-12-31 | BC10: =C_Time!BC9 -> 2043-12-31 | BD10: =C_Time!BD9 -> 2044-12-31 | BE10: =C_Time!BE9 -> 2045-12-31 | BF10: =C_Time!BF9 -> 2046-12-31 | BG10: =C_Time!BG9 -> 2047-12-31 | BH10: =C_Time!BH9 -> 2048-12-31 | BI10: =C_Time!BI9 -> 2049-12-31 | BJ10: =C_Time!BJ9 -> 2050-12-31
E11: =C_Time!E10 -> Model period number | G11: =C_Time!G10 -> # | AA11: =C_Time!AA10 -> 1 | AB11: =C_Time!AB10 -> 2 | AC11: =C_Time!AC10 -> 3 | AD11: =C_Time!AD10 -> 4 | AE11: =C_Time!AE10 -> 5 | AF11: =C_Time!AF10 -> 6 | AG11: =C_Time!AG10 -> 7 | AH11: =C_Time!AH10 -> 8 | AI11: =C_Time!AI10 -> 9 | AJ11: =C_Time!AJ10 -> 10 | AK11: =C_Time!AK10 -> 11 | AL11: =C_Time!AL10 -> 12 | AM11: =C_Time!AM10 -> 13 | AN11: =C_Time!AN10 -> 14 | AO11: =C_Time!AO10 -> 15 | AP11: =C_Time!AP10 -> 16 | AQ11: =C_Time!AQ10 -> 17 | AR11: =C_Time!AR10 -> 18 | AS11: =C_Time!AS10 -> 19 | AT11: =C_Time!AT10 -> 20 | AU11: =C_Time!AU10 -> 21 | AV11: =C_Time!AV10 -> 22 | AW11: =C_Time!AW10 -> 23 | AX11: =C_Time!AX10 -> 24 | AY11: =C_Time!AY10 -> 25 | AZ11: =C_Time!AZ10 -> 26 | BA11: =C_Time!BA10 -> 27 | BB11: =C_Time!BB10 -> 28 | BC11: =C_Time!BC10 -> 29 | BD11: =C_Time!BD10 -> 30 | BE11: =C_Time!BE10 -> 31 | BF11: =C_Time!BF10 -> 32 | BG11: =C_Time!BG10 -> 33 | BH11: =C_Time!BH10 -> 34 | BI11: =C_Time!BI10 -> 35 | BJ11: =C_Time!BJ10 -> 36
E12: =C_Time!E$11 -> Pricing Period | G12: =C_Time!G$11 -> periods | AA12: =C_Time!AA$11 -> Q6 | AB12: =C_Time!AB$11 -> Q6 | AC12: =C_Time!AC$11 -> Q6 | AD12: =C_Time!AD$11 -> Q6 | AE12: =C_Time!AE$11 -> Q6+1 | AF12: =C_Time!AF$11 -> iH7 | AG12: =C_Time!AG$11 -> iH7 | AH12: =C_Time!AH$11 -> H7 | AI12: =C_Time!AI$11 -> H7 | AJ12: =C_Time!AJ$11 -> H7 | AK12: =C_Time!AK$11 -> H7 | AL12: =C_Time!AL$11 -> H7 | AM12: =C_Time!AM$11 -> H8 | AN12: =C_Time!AN$11 -> H8 | AO12: =C_Time!AO$11 -> H8 | AP12: =C_Time!AP$11 -> H8 | AQ12: =C_Time!AQ$11 -> H8 | AR12: =C_Time!AR$11 -> H9 | AS12: =C_Time!AS$11 -> H9 | AT12: =C_Time!AT$11 -> H9 | AU12: =C_Time!AU$11 -> H9 | AV12: =C_Time!AV$11 -> H9 | AW12: =C_Time!AW$11 -> H10 | AX12: =C_Time!AX$11 -> H10 | AY12: =C_Time!AY$11 -> H10 | AZ12: =C_Time!AZ$11 -> H10 | BA12: =C_Time!BA$11 -> H10 | BB12: =C_Time!BB$11 -> H11 | BC12: =C_Time!BC$11 -> H11 | BD12: =C_Time!BD$11 -> H11 | BE12: =C_Time!BE$11 -> H11 | BF12: =C_Time!BF$11 -> H11 | BG12: =C_Time!BG$11 -> H12 | BH12: =C_Time!BH$11 -> H12 | BI12: =C_Time!BI$11 -> H12 | BJ12: =C_Time!BJ$11 -> H12
E13: =C_Time!E$12 -> Forecast vs Actuals | G13: =C_Time!G$12 -> label | AA13: =C_Time!AA$12 -> Actual | AB13: =C_Time!AB$12 -> Actual | AC13: =C_Time!AC$12 -> Actual | AD13: =C_Time!AD$12 -> Actual | AE13: =C_Time!AE$12 -> Actual | AF13: =C_Time!AF$12 -> Forecast | AG13: =C_Time!AG$12 -> Forecast | AH13: =C_Time!AH$12 -> Forecast | AI13: =C_Time!AI$12 -> Forecast | AJ13: =C_Time!AJ$12 -> Forecast | AK13: =C_Time!AK$12 -> Forecast | AL13: =C_Time!AL$12 -> Forecast | AM13: =C_Time!AM$12 -> Forecast | AN13: =C_Time!AN$12 -> Forecast | AO13: =C_Time!AO$12 -> Forecast | AP13: =C_Time!AP$12 -> Forecast | AQ13: =C_Time!AQ$12 -> Forecast | AR13: =C_Time!AR$12 -> Forecast | AS13: =C_Time!AS$12 -> Forecast | AT13: =C_Time!AT$12 -> Forecast | AU13: =C_Time!AU$12 -> Forecast | AV13: =C_Time!AV$12 -> Forecast | AW13: =C_Time!AW$12 -> Forecast | AX13: =C_Time!AX$12 -> Forecast | AY13: =C_Time!AY$12 -> Forecast | AZ13: =C_Time!AZ$12 -> Forecast | BA13: =C_Time!BA$12 -> Forecast | BB13: =C_Time!BB$12 -> Forecast | BC13: =C_Time!BC$12 -> Forecast | BD13: =C_Time!BD$12 -> Forecast | BE13: =C_Time!BE$12 -> Forecast | BF13: =C_Time!BF$12 -> Forecast | BG13: =C_Time!BG$12 -> Forecast | BH13: =C_Time!BH$12 -> Forecast | BI13: =C_Time!BI$12 -> Forecast | BJ13: =C_Time!BJ$12 -> Forecast
A15: Macros
B17: Run_Deltas (to store current FinStat values)
C19: Description of macro function
E21: Resets stored values within 'O_Finstats - Values' to equal current values in 'O_Finstats' such that values in 'O_Finstats - Deltas' are equal to zero
B24: Run_All_Scenarios
C26: Description of macro function
E28: Runs model for all scenarios listed in I_Scenarios, storing values in "Scen 1" to "Scen 9" sheets. First, prices are set based on selected 'Price Setting Scenarios', identified in Pricing_Scenario. The aero charge per passenger is copied into the macro sheet for each scenario following the revenue profiling. Finally the model runs the output results based on the 'Live Scenario' set of inputs and stores the outputs to SCEN sheets.
E29: Note: The alerts related to revenue profiling are only relevant for the active scenario when viewing the sheet O_finstats, hence alerts may be present when user switches scenario after running this macro. This macro runs the profiling for all scenarios and results will be captured in the SCEN sheets..
B31: Profile_Revenue
C33: Description of macro function
E35: Runs model for Live scenario. First it calculates value of X per price control period such that the NPV of profiled revenue is equal to the NPV of un-profiled revenue in each price control period. Secondly, stores the resulting aero charge per passenger (for live scenario) in macro sheet, switches model mode to "Run live outputs" and then stores the output to associated SCEN sheet.
B37: Profile_flatcharges
C39: Description of macro function
E41: Runs model for live scenario. First it calculates value of P0 adjustment per price control period such that the NPV of profiled revenue is equal to the NPV of un-profiled revenue in each price control period keeping the X factor=0 (i.e flat charges). Secondly, stores the resulting aero charge per passenger (for live scenario) in macro sheet, switches model mode to "Run live outputs" and then stores the output to associated SCEN sheet.
B43: Run_All_flatcharges
C45: Description of macro function
E47: Runs model for all scenarios. First it calculates value of P0 adjustment per price control period such that the NPV of profiled revenue is equal to the NPV of un-profiled revenue in each price control period keeping the X factor=0 (i.e flat charges). Secondly, stores the resulting aero charge per passenger (for live scenario) in macro sheet, switches model mode to "Run live outputs" and then stores the output to associated SCEN sheet.
E48: Note: The alerts related to revenue profiling are only relevant for the active scenario when viewing the sheet O_finstats, hence alerts may be present when user switches scenario after running this macro. This macro runs the profiling for all scenarios and results will be captured in the SCEN sheets..
B50: Gearing_Solver
C52: Description of macro function
E54: Solves for the gearing level in H7 such that the dividends paid and share capital additions net out to zero. Then pastes the Financial statements into the relevant SCEN tab. Note 1: Change to Profiled WACC if using gearing solver to avoid impacting allowed return.
A56: Related inputs and outputs
B58: NPV of profiled and unprofiled allowed airport charges
E60: Q6 period X-Factor | F60: 0.003416082715 | G60: Q6_X
E61: =C_Revenue!E$88 -> Present value of unprofiled Q6 period allowed airport charges | F61: =C_Revenue!F$88 -> 0 | G61: =C_Revenue!G$88 -> £'m nominal | H61: =C_Revenue!H$88 -> 0 | I61: =C_Revenue!I$88 -> 0 | J61: =C_Revenue!J$88 -> 0 | K61: =C_Revenue!K$88 -> 0 | L61: =C_Revenue!L$88 -> 0 | M61: =C_Revenue!M$88 -> 0 | N61: =C_Revenue!N$88 -> 0 | O61: =C_Revenue!O$88 -> 0 | P61: =C_Revenue!P$88 -> 0 | Q61: =C_Revenue!Q$88 -> 0 | R61: =C_Revenue!R$88 -> 0 | S61: =C_Revenue!S$88 -> 0 | T61: =C_Revenue!T$88 -> 0 | U61: =C_Revenue!U$88 -> 0 | V61: =C_Revenue!V$88 -> 0 | W61: =C_Revenue!W$88 -> 0 | X61: =C_Revenue!X$88 -> 0 | Y61: =C_Revenue!Y$88 -> 6236.643368 | Z61: =C_Revenue!Z$88 -> 0 | AA61: =C_Revenue!AA$88 -> 1645.297368 | AB61: =C_Revenue!AB$88 -> 1537.126419 | AC61: =C_Revenue!AC$88 -> 1527.106996 | AD61: =C_Revenue!AD$88 -> 1527.112587 | AE61: =C_Revenue!AE$88 -> 0 | AF61: =C_Revenue!AF$88 -> 0 | AG61: =C_Revenue!AG$88 -> 0 | AH61: =C_Revenue!AH$88 -> 0 | AI61: =C_Revenue!AI$88 -> 0 | AJ61: =C_Revenue!AJ$88 -> 0 | AK61: =C_Revenue!AK$88 -> 0 | AL61: =C_Revenue!AL$88 -> 0 | AM61: =C_Revenue!AM$88 -> 0 | AN61: =C_Revenue!AN$88 -> 0 | AO61: =C_Revenue!AO$88 -> 0 | AP61: =C_Revenue!AP$88 -> 0 | AQ61: =C_Revenue!AQ$88 -> 0 | AR61: =C_Revenue!AR$88 -> 0 | AS61: =C_Revenue!AS$88 -> 0 | AT61: =C_Revenue!AT$88 -> 0 | AU61: =C_Revenue!AU$88 -> 0 | AV61: =C_Revenue!AV$88 -> 0 | AW61: =C_Revenue!AW$88 -> 0 | AX61: =C_Revenue!AX$88 -> 0 | AY61: =C_Revenue!AY$88 -> 0 | AZ61: =C_Revenue!AZ$88 -> 0 | BA61: =C_Revenue!BA$88 -> 0 | BB61: =C_Revenue!BB$88 -> 0 | BC61: =C_Revenue!BC$88 -> 0 | BD61: =C_Revenue!BD$88 -> 0 | BE61: =C_Revenue!BE$88 -> 0 | BF61: =C_Revenue!BF$88 -> 0 | BG61: =C_Revenue!BG$88 -> 0 | BH61: =C_Revenue!BH$88 -> 0 | BI61: =C_Revenue!BI$88 -> 0 | BJ61: =C_Revenue!BJ$88 -> 0
E62: =C_Revenue!E$89 -> Present value of profiled Q6 period allowed airport charges | F62: =C_Revenue!F$89 -> 0 | G62: =C_Revenue!G$89 -> £'m nominal | H62: =C_Revenue!H$89 -> 0 | I62: =C_Revenue!I$89 -> 0 | J62: =C_Revenue!J$89 -> 0 | K62: =C_Revenue!K$89 -> 0 | L62: =C_Revenue!L$89 -> 0 | M62: =C_Revenue!M$89 -> 0 | N62: =C_Revenue!N$89 -> 0 | O62: =C_Revenue!O$89 -> 0 | P62: =C_Revenue!P$89 -> 0 | Q62: =C_Revenue!Q$89 -> 0 | R62: =C_Revenue!R$89 -> 0 | S62: =C_Revenue!S$89 -> 0 | T62: =C_Revenue!T$89 -> 0 | U62: =C_Revenue!U$89 -> 0 | V62: =C_Revenue!V$89 -> 0 | W62: =C_Revenue!W$89 -> 0 | X62: =C_Revenue!X$89 -> 0 | Y62: =C_Revenue!Y$89 -> 6236.643364 | Z62: =C_Revenue!Z$89 -> 0 | AA62: =C_Revenue!AA$89 -> 1574.110808 | AB62: =C_Revenue!AB$89 -> 1489.372579 | AC62: =C_Revenue!AC$89 -> 1513.859522 | AD62: =C_Revenue!AD$89 -> 1659.300455 | AE62: =C_Revenue!AE$89 -> 0 | AF62: =C_Revenue!AF$89 -> 0 | AG62: =C_Revenue!AG$89 -> 0 | AH62: =C_Revenue!AH$89 -> 0 | AI62: =C_Revenue!AI$89 -> 0 | AJ62: =C_Revenue!AJ$89 -> 0 | AK62: =C_Revenue!AK$89 -> 0 | AL62: =C_Revenue!AL$89 -> 0 | AM62: =C_Revenue!AM$89 -> 0 | AN62: =C_Revenue!AN$89 -> 0 | AO62: =C_Revenue!AO$89 -> 0 | AP62: =C_Revenue!AP$89 -> 0 | AQ62: =C_Revenue!AQ$89 -> 0 | AR62: =C_Revenue!AR$89 -> 0 | AS62: =C_Revenue!AS$89 -> 0 | AT62: =C_Revenue!AT$89 -> 0 | AU62: =C_Revenue!AU$89 -> 0 | AV62: =C_Revenue!AV$89 -> 0 | AW62: =C_Revenue!AW$89 -> 0 | AX62: =C_Revenue!AX$89 -> 0 | AY62: =C_Revenue!AY$89 -> 0 | AZ62: =C_Revenue!AZ$89 -> 0 | BA62: =C_Revenue!BA$89 -> 0 | BB62: =C_Revenue!BB$89 -> 0 | BC62: =C_Revenue!BC$89 -> 0 | BD62: =C_Revenue!BD$89 -> 0 | BE62: =C_Revenue!BE$89 -> 0 | BF62: =C_Revenue!BF$89 -> 0 | BG62: =C_Revenue!BG$89 -> 0 | BH62: =C_Revenue!BH$89 -> 0 | BI62: =C_Revenue!BI$89 -> 0 | BJ62: =C_Revenue!BJ$89 -> 0
E63: Revenue - Q6 period price profiling | F63: =IF(ABS(Y61 - Y62) > CheckTOL, 1, 0) -> 0 | G63: check | H63: Checks NPV of profiled allowed revenue equals un-profiled allowed revenue | Y63: =Y61 - Y62 -> 4.234076187e-06 | Z63: Q6_NPVcheck
E65: Q6+1 period X-Factor | G65: Q6plus1_X
E66: =C_Revenue!E$130 -> Present value of unprofiled Q6+1 period allowed airport charges | F66: =C_Revenue!F$130 -> 0 | G66: =C_Revenue!G$130 -> £'m nominal | H66: =C_Revenue!H$130 -> 0 | I66: =C_Revenue!I$130 -> 0 | J66: =C_Revenue!J$130 -> 0 | K66: =C_Revenue!K$130 -> 0 | L66: =C_Revenue!L$130 -> 0 | M66: =C_Revenue!M$130 -> 0 | N66: =C_Revenue!N$130 -> 0 | O66: =C_Revenue!O$130 -> 0 | P66: =C_Revenue!P$130 -> 0 | Q66: =C_Revenue!Q$130 -> 0 | R66: =C_Revenue!R$130 -> 0 | S66: =C_Revenue!S$130 -> 0 | T66: =C_Revenue!T$130 -> 0 | U66: =C_Revenue!U$130 -> 0 | V66: =C_Revenue!V$130 -> 0 | W66: =C_Revenue!W$130 -> 0 | X66: =C_Revenue!X$130 -> 0 | Y66: =C_Revenue!Y$130 -> 1761.472846 | Z66: =C_Revenue!Z$130 -> 0 | AA66: =C_Revenue!AA$130 -> 0 | AB66: =C_Revenue!AB$130 -> 0 | AC66: =C_Revenue!AC$130 -> 0 | AD66: =C_Revenue!AD$130 -> 0 | AE66: =C_Revenue!AE$130 -> 1761.472846 | AF66: =C_Revenue!AF$130 -> 0 | AG66: =C_Revenue!AG$130 -> 0 | AH66: =C_Revenue!AH$130 -> 0 | AI66: =C_Revenue!AI$130 -> 0 | AJ66: =C_Revenue!AJ$130 -> 0 | AK66: =C_Revenue!AK$130 -> 0 | AL66: =C_Revenue!AL$130 -> 0 | AM66: =C_Revenue!AM$130 -> 0 | AN66: =C_Revenue!AN$130 -> 0 | AO66: =C_Revenue!AO$130 -> 0 | AP66: =C_Revenue!AP$130 -> 0 | AQ66: =C_Revenue!AQ$130 -> 0 | AR66: =C_Revenue!AR$130 -> 0 | AS66: =C_Revenue!AS$130 -> 0 | AT66: =C_Revenue!AT$130 -> 0 | AU66: =C_Revenue!AU$130 -> 0 | AV66: =C_Revenue!AV$130 -> 0 | AW66: =C_Revenue!AW$130 -> 0 | AX66: =C_Revenue!AX$130 -> 0 | AY66: =C_Revenue!AY$130 -> 0 | AZ66: =C_Revenue!AZ$130 -> 0 | BA66: =C_Revenue!BA$130 -> 0 | BB66: =C_Revenue!BB$130 -> 0 | BC66: =C_Revenue!BC$130 -> 0 | BD66: =C_Revenue!BD$130 -> 0 | BE66: =C_Revenue!BE$130 -> 0 | BF66: =C_Revenue!BF$130 -> 0 | BG66: =C_Revenue!BG$130 -> 0 | BH66: =C_Revenue!BH$130 -> 0 | BI66: =C_Revenue!BI$130 -> 0 | BJ66: =C_Revenue!BJ$130 -> 0
E67: =C_Revenue!E$131 -> Present value of profiled Q6+1 period allowed airport charges | F67: =C_Revenue!F$131 -> 0 | G67: =C_Revenue!G$131 -> £'m nominal | H67: =C_Revenue!H$131 -> 0 | I67: =C_Revenue!I$131 -> 0 | J67: =C_Revenue!J$131 -> 0 | K67: =C_Revenue!K$131 -> 0 | L67: =C_Revenue!L$131 -> 0 | M67: =C_Revenue!M$131 -> 0 | N67: =C_Revenue!N$131 -> 0 | O67: =C_Revenue!O$131 -> 0 | P67: =C_Revenue!P$131 -> 0 | Q67: =C_Revenue!Q$131 -> 0 | R67: =C_Revenue!R$131 -> 0 | S67: =C_Revenue!S$131 -> 0 | T67: =C_Revenue!T$131 -> 0 | U67: =C_Revenue!U$131 -> 0 | V67: =C_Revenue!V$131 -> 0 | W67: =C_Revenue!W$131 -> 0 | X67: =C_Revenue!X$131 -> 0 | Y67: =C_Revenue!Y$131 -> 1761.472846 | Z67: =C_Revenue!Z$131 -> 0 | AA67: =C_Revenue!AA$131 -> 0 | AB67: =C_Revenue!AB$131 -> 0 | AC67: =C_Revenue!AC$131 -> 0 | AD67: =C_Revenue!AD$131 -> 0 | AE67: =C_Revenue!AE$131 -> 1761.472846 | AF67: =C_Revenue!AF$131 -> 0 | AG67: =C_Revenue!AG$131 -> 0 | AH67: =C_Revenue!AH$131 -> 0 | AI67: =C_Revenue!AI$131 -> 0 | AJ67: =C_Revenue!AJ$131 -> 0 | AK67: =C_Revenue!AK$131 -> 0 | AL67: =C_Revenue!AL$131 -> 0 | AM67: =C_Revenue!AM$131 -> 0 | AN67: =C_Revenue!AN$131 -> 0 | AO67: =C_Revenue!AO$131 -> 0 | AP67: =C_Revenue!AP$131 -> 0 | AQ67: =C_Revenue!AQ$131 -> 0 | AR67: =C_Revenue!AR$131 -> 0 | AS67: =C_Revenue!AS$131 -> 0 | AT67: =C_Revenue!AT$131 -> 0 | AU67: =C_Revenue!AU$131 -> 0 | AV67: =C_Revenue!AV$131 -> 0 | AW67: =C_Revenue!AW$131 -> 0 | AX67: =C_Revenue!AX$131 -> 0 | AY67: =C_Revenue!AY$131 -> 0 | AZ67: =C_Revenue!AZ$131 -> 0 | BA67: =C_Revenue!BA$131 -> 0 | BB67: =C_Revenue!BB$131 -> 0 | BC67: =C_Revenue!BC$131 -> 0 | BD67: =C_Revenue!BD$131 -> 0 | BE67: =C_Revenue!BE$131 -> 0 | BF67: =C_Revenue!BF$131 -> 0 | BG67: =C_Revenue!BG$131 -> 0 | BH67: =C_Revenue!BH$131 -> 0 | BI67: =C_Revenue!BI$131 -> 0 | BJ67: =C_Revenue!BJ$131 -> 0
E68: Revenue - Q6+1 period price profiling | F68: =IF(ABS(Y66 - Y67) > CheckTOL, 1, 0) -> 0 | G68: check | H68: Checks NPV of profiled allowed revenue equals un-profiled allowed revenue | K68: DIFF | Y68: =Y66 - Y67 -> 0 | Z68: Q6plus1_NPVcheck
E70: iH7 period X-Factor | G70: iH7_X
E71: =C_Revenue!E$172 -> Present value of unprofiled iH7 period allowed airport charges | F71: =C_Revenue!F$172 -> 0 | G71: =C_Revenue!G$172 -> £'m nominal | H71: =C_Revenue!H$172 -> 0 | I71: =C_Revenue!I$172 -> 0 | J71: =C_Revenue!J$172 -> 0 | K71: =C_Revenue!K$172 -> 0 | L71: =C_Revenue!L$172 -> 0 | M71: =C_Revenue!M$172 -> 0 | N71: =C_Revenue!N$172 -> 0 | O71: =C_Revenue!O$172 -> 0 | P71: =C_Revenue!P$172 -> 0 | Q71: =C_Revenue!Q$172 -> 0 | R71: =C_Revenue!R$172 -> 0 | S71: =C_Revenue!S$172 -> 0 | T71: =C_Revenue!T$172 -> 0 | U71: =C_Revenue!U$172 -> 0 | V71: =C_Revenue!V$172 -> 0 | W71: =C_Revenue!W$172 -> 0 | X71: =C_Revenue!X$172 -> 0 | Y71: =C_Revenue!Y$172 -> 3940.434815 | Z71: =C_Revenue!Z$172 -> 0 | AA71: =C_Revenue!AA$172 -> 0 | AB71: =C_Revenue!AB$172 -> 0 | AC71: =C_Revenue!AC$172 -> 0 | AD71: =C_Revenue!AD$172 -> 0 | AE71: =C_Revenue!AE$172 -> 0 | AF71: =C_Revenue!AF$172 -> 2121.394126 | AG71: =C_Revenue!AG$172 -> 1819.040689 | AH71: =C_Revenue!AH$172 -> 0 | AI71: =C_Revenue!AI$172 -> 0 | AJ71: =C_Revenue!AJ$172 -> 0 | AK71: =C_Revenue!AK$172 -> 0 | AL71: =C_Revenue!AL$172 -> 0 | AM71: =C_Revenue!AM$172 -> 0 | AN71: =C_Revenue!AN$172 -> 0 | AO71: =C_Revenue!AO$172 -> 0 | AP71: =C_Revenue!AP$172 -> 0 | AQ71: =C_Revenue!AQ$172 -> 0 | AR71: =C_Revenue!AR$172 -> 0 | AS71: =C_Revenue!AS$172 -> 0 | AT71: =C_Revenue!AT$172 -> 0 | AU71: =C_Revenue!AU$172 -> 0 | AV71: =C_Revenue!AV$172 -> 0 | AW71: =C_Revenue!AW$172 -> 0 | AX71: =C_Revenue!AX$172 -> 0 | AY71: =C_Revenue!AY$172 -> 0 | AZ71: =C_Revenue!AZ$172 -> 0 | BA71: =C_Revenue!BA$172 -> 0 | BB71: =C_Revenue!BB$172 -> 0 | BC71: =C_Revenue!BC$172 -> 0 | BD71: =C_Revenue!BD$172 -> 0 | BE71: =C_Revenue!BE$172 -> 0 | BF71: =C_Revenue!BF$172 -> 0 | BG71: =C_Revenue!BG$172 -> 0 | BH71: =C_Revenue!BH$172 -> 0 | BI71: =C_Revenue!BI$172 -> 0 | BJ71: =C_Revenue!BJ$172 -> 0
E72: =C_Revenue!E$173 -> Present value of profiled iH7 period allowed airport charges | F72: =C_Revenue!F$173 -> 0 | G72: =C_Revenue!G$173 -> £'m nominal | H72: =C_Revenue!H$173 -> 0 | I72: =C_Revenue!I$173 -> 0 | J72: =C_Revenue!J$173 -> 0 | K72: =C_Revenue!K$173 -> 0 | L72: =C_Revenue!L$173 -> 0 | M72: =C_Revenue!M$173 -> 0 | N72: =C_Revenue!N$173 -> 0 | O72: =C_Revenue!O$173 -> 0 | P72: =C_Revenue!P$173 -> 0 | Q72: =C_Revenue!Q$173 -> 0 | R72: =C_Revenue!R$173 -> 0 | S72: =C_Revenue!S$173 -> 0 | T72: =C_Revenue!T$173 -> 0 | U72: =C_Revenue!U$173 -> 0 | V72: =C_Revenue!V$173 -> 0 | W72: =C_Revenue!W$173 -> 0 | X72: =C_Revenue!X$173 -> 0 | Y72: =C_Revenue!Y$173 -> 3940.434815 | Z72: =C_Revenue!Z$173 -> 0 | AA72: =C_Revenue!AA$173 -> 0 | AB72: =C_Revenue!AB$173 -> 0 | AC72: =C_Revenue!AC$173 -> 0 | AD72: =C_Revenue!AD$173 -> 0 | AE72: =C_Revenue!AE$173 -> 0 | AF72: =C_Revenue!AF$173 -> 2151.619858 | AG72: =C_Revenue!AG$173 -> 1788.814958 | AH72: =C_Revenue!AH$173 -> 0 | AI72: =C_Revenue!AI$173 -> 0 | AJ72: =C_Revenue!AJ$173 -> 0 | AK72: =C_Revenue!AK$173 -> 0 | AL72: =C_Revenue!AL$173 -> 0 | AM72: =C_Revenue!AM$173 -> 0 | AN72: =C_Revenue!AN$173 -> 0 | AO72: =C_Revenue!AO$173 -> 0 | AP72: =C_Revenue!AP$173 -> 0 | AQ72: =C_Revenue!AQ$173 -> 0 | AR72: =C_Revenue!AR$173 -> 0 | AS72: =C_Revenue!AS$173 -> 0 | AT72: =C_Revenue!AT$173 -> 0 | AU72: =C_Revenue!AU$173 -> 0 | AV72: =C_Revenue!AV$173 -> 0 | AW72: =C_Revenue!AW$173 -> 0 | AX72: =C_Revenue!AX$173 -> 0 | AY72: =C_Revenue!AY$173 -> 0 | AZ72: =C_Revenue!AZ$173 -> 0 | BA72: =C_Revenue!BA$173 -> 0 | BB72: =C_Revenue!BB$173 -> 0 | BC72: =C_Revenue!BC$173 -> 0 | BD72: =C_Revenue!BD$173 -> 0 | BE72: =C_Revenue!BE$173 -> 0 | BF72: =C_Revenue!BF$173 -> 0 | BG72: =C_Revenue!BG$173 -> 0 | BH72: =C_Revenue!BH$173 -> 0 | BI72: =C_Revenue!BI$173 -> 0 | BJ72: =C_Revenue!BJ$173 -> 0
E73: Revenue - iH7 period price profiling | F73: =IF(ABS(Y71 - Y72) > CheckTOL, 1, 0) -> 0 | G73: check | H73: Checks NPV of profiled allowed revenue equals un-profiled allowed revenue | K73: DIFF | Y73: =Y71 - Y72 -> 0 | Z73: iH7_NPVcheck
E75: H7 period X-Factor | G75: H7_X
E76: =C_Revenue!E$227 -> Present value of unprofiled H7 period allowed airport charges | F76: =C_Revenue!F$227 -> 0 | G76: =C_Revenue!G$227 -> £'m nominal | H76: =C_Revenue!H$227 -> 0 | I76: =C_Revenue!I$227 -> 0 | J76: =C_Revenue!J$227 -> 0 | K76: =C_Revenue!K$227 -> 0 | L76: =C_Revenue!L$227 -> 0 | M76: =C_Revenue!M$227 -> 0 | N76: =C_Revenue!N$227 -> 0 | O76: =C_Revenue!O$227 -> 0 | P76: =C_Revenue!P$227 -> 0 | Q76: =C_Revenue!Q$227 -> 0 | R76: =C_Revenue!R$227 -> 0 | S76: =C_Revenue!S$227 -> 0 | T76: =C_Revenue!T$227 -> 0 | U76: =C_Revenue!U$227 -> 0 | V76: =C_Revenue!V$227 -> 0 | W76: =C_Revenue!W$227 -> 0 | X76: =C_Revenue!X$227 -> 0 | Y76: =C_Revenue!Y$227 -> 7719.349816 | Z76: =C_Revenue!Z$227 -> 0 | AA76: =C_Revenue!AA$227 -> 0 | AB76: =C_Revenue!AB$227 -> 0 | AC76: =C_Revenue!AC$227 -> 0 | AD76: =C_Revenue!AD$227 -> 0 | AE76: =C_Revenue!AE$227 -> 0 | AF76: =C_Revenue!AF$227 -> 0 | AG76: =C_Revenue!AG$227 -> 0 | AH76: =C_Revenue!AH$227 -> 1738.383419 | AI76: =C_Revenue!AI$227 -> 1591.163411 | AJ76: =C_Revenue!AJ$227 -> 1496.476275 | AK76: =C_Revenue!AK$227 -> 1465.591387 | AL76: =C_Revenue!AL$227 -> 1427.735324 | AM76: =C_Revenue!AM$227 -> 0 | AN76: =C_Revenue!AN$227 -> 0 | AO76: =C_Revenue!AO$227 -> 0 | AP76: =C_Revenue!AP$227 -> 0 | AQ76: =C_Revenue!AQ$227 -> 0 | AR76: =C_Revenue!AR$227 -> 0 | AS76: =C_Revenue!AS$227 -> 0 | AT76: =C_Revenue!AT$227 -> 0 | AU76: =C_Revenue!AU$227 -> 0 | AV76: =C_Revenue!AV$227 -> 0 | AW76: =C_Revenue!AW$227 -> 0 | AX76: =C_Revenue!AX$227 -> 0 | AY76: =C_Revenue!AY$227 -> 0 | AZ76: =C_Revenue!AZ$227 -> 0 | BA76: =C_Revenue!BA$227 -> 0 | BB76: =C_Revenue!BB$227 -> 0 | BC76: =C_Revenue!BC$227 -> 0 | BD76: =C_Revenue!BD$227 -> 0 | BE76: =C_Revenue!BE$227 -> 0 | BF76: =C_Revenue!BF$227 -> 0 | BG76: =C_Revenue!BG$227 -> 0 | BH76: =C_Revenue!BH$227 -> 0 | BI76: =C_Revenue!BI$227 -> 0 | BJ76: =C_Revenue!BJ$227 -> 0
E77: =C_Revenue!E$228 -> Present value of profiled H7 period allowed airport charges | F77: =C_Revenue!F$228 -> 0 | G77: =C_Revenue!G$228 -> £'m nominal | H77: =C_Revenue!H$228 -> 0 | I77: =C_Revenue!I$228 -> 0 | J77: =C_Revenue!J$228 -> 0 | K77: =C_Revenue!K$228 -> 0 | L77: =C_Revenue!L$228 -> 0 | M77: =C_Revenue!M$228 -> 0 | N77: =C_Revenue!N$228 -> 0 | O77: =C_Revenue!O$228 -> 0 | P77: =C_Revenue!P$228 -> 0 | Q77: =C_Revenue!Q$228 -> 0 | R77: =C_Revenue!R$228 -> 0 | S77: =C_Revenue!S$228 -> 0 | T77: =C_Revenue!T$228 -> 0 | U77: =C_Revenue!U$228 -> 0 | V77: =C_Revenue!V$228 -> 0 | W77: =C_Revenue!W$228 -> 0 | X77: =C_Revenue!X$228 -> 0 | Y77: =C_Revenue!Y$228 -> 7719.349816 | Z77: =C_Revenue!Z$228 -> 0 | AA77: =C_Revenue!AA$228 -> 0 | AB77: =C_Revenue!AB$228 -> 0 | AC77: =C_Revenue!AC$228 -> 0 | AD77: =C_Revenue!AD$228 -> 0 | AE77: =C_Revenue!AE$228 -> 0 | AF77: =C_Revenue!AF$228 -> 0 | AG77: =C_Revenue!AG$228 -> 0 | AH77: =C_Revenue!AH$228 -> 1725.847374 | AI77: =C_Revenue!AI$228 -> 1835.192897 | AJ77: =C_Revenue!AJ$228 -> 1429.62611 | AK77: =C_Revenue!AK$228 -> 1386.468634 | AL77: =C_Revenue!AL$228 -> 1342.2148 | AM77: =C_Revenue!AM$228 -> 0 | AN77: =C_Revenue!AN$228 -> 0 | AO77: =C_Revenue!AO$228 -> 0 | AP77: =C_Revenue!AP$228 -> 0 | AQ77: =C_Revenue!AQ$228 -> 0 | AR77: =C_Revenue!AR$228 -> 0 | AS77: =C_Revenue!AS$228 -> 0 | AT77: =C_Revenue!AT$228 -> 0 | AU77: =C_Revenue!AU$228 -> 0 | AV77: =C_Revenue!AV$228 -> 0 | AW77: =C_Revenue!AW$228 -> 0 | AX77: =C_Revenue!AX$228 -> 0 | AY77: =C_Revenue!AY$228 -> 0 | AZ77: =C_Revenue!AZ$228 -> 0 | BA77: =C_Revenue!BA$228 -> 0 | BB77: =C_Revenue!BB$228 -> 0 | BC77: =C_Revenue!BC$228 -> 0 | BD77: =C_Revenue!BD$228 -> 0 | BE77: =C_Revenue!BE$228 -> 0 | BF77: =C_Revenue!BF$228 -> 0 | BG77: =C_Revenue!BG$228 -> 0 | BH77: =C_Revenue!BH$228 -> 0 | BI77: =C_Revenue!BI$228 -> 0 | BJ77: =C_Revenue!BJ$228 -> 0
E78: Revenue - H7 period price profiling | F78: =IF(ABS(Y76 - Y77) > CheckTOL, 1, 0) -> 0 | G78: check | H78: Checks NPV of profiled allowed revenue equals un-profiled allowed revenue | K78: DIFF | Y78: =Y76 - Y77 -> 0 | Z78: H7_NPVcheck
E80: H8 period X-Factor | G80: H8_X
E81: =C_Revenue!E$264 -> Present value of unprofiled H8 period allowed airport charges | F81: =C_Revenue!F$264 -> 0 | G81: =C_Revenue!G$264 -> £'m nominal | H81: =C_Revenue!H$264 -> 0 | I81: =C_Revenue!I$264 -> 0 | J81: =C_Revenue!J$264 -> 0 | K81: =C_Revenue!K$264 -> 0 | L81: =C_Revenue!L$264 -> 0 | M81: =C_Revenue!M$264 -> 0 | N81: =C_Revenue!N$264 -> 0 | O81: =C_Revenue!O$264 -> 0 | P81: =C_Revenue!P$264 -> 0 | Q81: =C_Revenue!Q$264 -> 0 | R81: =C_Revenue!R$264 -> 0 | S81: =C_Revenue!S$264 -> 0 | T81: =C_Revenue!T$264 -> 0 | U81: =C_Revenue!U$264 -> 0 | V81: =C_Revenue!V$264 -> 0 | W81: =C_Revenue!W$264 -> 0 | X81: =C_Revenue!X$264 -> 0 | Y81: =C_Revenue!Y$264 -> 9310.337301 | Z81: =C_Revenue!Z$264 -> 0 | AA81: =C_Revenue!AA$264 -> 0 | AB81: =C_Revenue!AB$264 -> 0 | AC81: =C_Revenue!AC$264 -> 0 | AD81: =C_Revenue!AD$264 -> 0 | AE81: =C_Revenue!AE$264 -> 0 | AF81: =C_Revenue!AF$264 -> 0 | AG81: =C_Revenue!AG$264 -> 0 | AH81: =C_Revenue!AH$264 -> 0 | AI81: =C_Revenue!AI$264 -> 0 | AJ81: =C_Revenue!AJ$264 -> 0 | AK81: =C_Revenue!AK$264 -> 0 | AL81: =C_Revenue!AL$264 -> 0 | AM81: =C_Revenue!AM$264 -> 1944.555213 | AN81: =C_Revenue!AN$264 -> 1706.644081 | AO81: =C_Revenue!AO$264 -> 1827.485229 | AP81: =C_Revenue!AP$264 -> 1882.737474 | AQ81: =C_Revenue!AQ$264 -> 1948.915304 | AR81: =C_Revenue!AR$264 -> 0 | AS81: =C_Revenue!AS$264 -> 0 | AT81: =C_Revenue!AT$264 -> 0 | AU81: =C_Revenue!AU$264 -> 0 | AV81: =C_Revenue!AV$264 -> 0 | AW81: =C_Revenue!AW$264 -> 0 | AX81: =C_Revenue!AX$264 -> 0 | AY81: =C_Revenue!AY$264 -> 0 | AZ81: =C_Revenue!AZ$264 -> 0 | BA81: =C_Revenue!BA$264 -> 0 | BB81: =C_Revenue!BB$264 -> 0 | BC81: =C_Revenue!BC$264 -> 0 | BD81: =C_Revenue!BD$264 -> 0 | BE81: =C_Revenue!BE$264 -> 0 | BF81: =C_Revenue!BF$264 -> 0 | BG81: =C_Revenue!BG$264 -> 0 | BH81: =C_Revenue!BH$264 -> 0 | BI81: =C_Revenue!BI$264 -> 0 | BJ81: =C_Revenue!BJ$264 -> 0
E82: =C_Revenue!E$265 -> Present value of profiled H8 period allowed airport charges | F82: =C_Revenue!F$265 -> 0 | G82: =C_Revenue!G$265 -> £'m nominal | H82: =C_Revenue!H$265 -> 0 | I82: =C_Revenue!I$265 -> 0 | J82: =C_Revenue!J$265 -> 0 | K82: =C_Revenue!K$265 -> 0 | L82: =C_Revenue!L$265 -> 0 | M82: =C_Revenue!M$265 -> 0 | N82: =C_Revenue!N$265 -> 0 | O82: =C_Revenue!O$265 -> 0 | P82: =C_Revenue!P$265 -> 0 | Q82: =C_Revenue!Q$265 -> 0 | R82: =C_Revenue!R$265 -> 0 | S82: =C_Revenue!S$265 -> 0 | T82: =C_Revenue!T$265 -> 0 | U82: =C_Revenue!U$265 -> 0 | V82: =C_Revenue!V$265 -> 0 | W82: =C_Revenue!W$265 -> 0 | X82: =C_Revenue!X$265 -> 0 | Y82: =C_Revenue!Y$265 -> 9310.337301 | Z82: =C_Revenue!Z$265 -> 0 | AA82: =C_Revenue!AA$265 -> 0 | AB82: =C_Revenue!AB$265 -> 0 | AC82: =C_Revenue!AC$265 -> 0 | AD82: =C_Revenue!AD$265 -> 0 | AE82: =C_Revenue!AE$265 -> 0 | AF82: =C_Revenue!AF$265 -> 0 | AG82: =C_Revenue!AG$265 -> 0 | AH82: =C_Revenue!AH$265 -> 0 | AI82: =C_Revenue!AI$265 -> 0 | AJ82: =C_Revenue!AJ$265 -> 0 | AK82: =C_Revenue!AK$265 -> 0 | AL82: =C_Revenue!AL$265 -> 0 | AM82: =C_Revenue!AM$265 -> 1894.834699 | AN82: =C_Revenue!AN$265 -> 1804.855477 | AO82: =C_Revenue!AO$265 -> 1833.305165 | AP82: =C_Revenue!AP$265 -> 1869.971268 | AQ82: =C_Revenue!AQ$265 -> 1907.370693 | AR82: =C_Revenue!AR$265 -> 0 | AS82: =C_Revenue!AS$265 -> 0 | AT82: =C_Revenue!AT$265 -> 0 | AU82: =C_Revenue!AU$265 -> 0 | AV82: =C_Revenue!AV$265 -> 0 | AW82: =C_Revenue!AW$265 -> 0 | AX82: =C_Revenue!AX$265 -> 0 | AY82: =C_Revenue!AY$265 -> 0 | AZ82: =C_Revenue!AZ$265 -> 0 | BA82: =C_Revenue!BA$265 -> 0 | BB82: =C_Revenue!BB$265 -> 0 | BC82: =C_Revenue!BC$265 -> 0 | BD82: =C_Revenue!BD$265 -> 0 | BE82: =C_Revenue!BE$265 -> 0 | BF82: =C_Revenue!BF$265 -> 0 | BG82: =C_Revenue!BG$265 -> 0 | BH82: =C_Revenue!BH$265 -> 0 | BI82: =C_Revenue!BI$265 -> 0 | BJ82: =C_Revenue!BJ$265 -> 0
E83: Revenue - H8 period price profiling | F83: =IF(ABS(Y81 - Y82) > CheckTOL, 1, 0) -> 0 | G83: check | H83: Checks NPV of profiled allowed revenue equals un-profiled allowed revenue | K83: DIFF | Y83: =Y81 - Y82 -> 0 | Z83: H8_NPVcheck
E85: H9 period X-Factor | G85: H9_X
E86: =C_Revenue!E$301 -> Present value of unprofiled H9 period allowed airport charges | F86: =C_Revenue!F$301 -> 0 | G86: =C_Revenue!G$301 -> £'m nominal | H86: =C_Revenue!H$301 -> 0 | I86: =C_Revenue!I$301 -> 0 | J86: =C_Revenue!J$301 -> 0 | K86: =C_Revenue!K$301 -> 0 | L86: =C_Revenue!L$301 -> 0 | M86: =C_Revenue!M$301 -> 0 | N86: =C_Revenue!N$301 -> 0 | O86: =C_Revenue!O$301 -> 0 | P86: =C_Revenue!P$301 -> 0 | Q86: =C_Revenue!Q$301 -> 0 | R86: =C_Revenue!R$301 -> 0 | S86: =C_Revenue!S$301 -> 0 | T86: =C_Revenue!T$301 -> 0 | U86: =C_Revenue!U$301 -> 0 | V86: =C_Revenue!V$301 -> 0 | W86: =C_Revenue!W$301 -> 0 | X86: =C_Revenue!X$301 -> 0 | Y86: =C_Revenue!Y$301 -> 11821.70951 | Z86: =C_Revenue!Z$301 -> 0 | AA86: =C_Revenue!AA$301 -> 0 | AB86: =C_Revenue!AB$301 -> 0 | AC86: =C_Revenue!AC$301 -> 0 | AD86: =C_Revenue!AD$301 -> 0 | AE86: =C_Revenue!AE$301 -> 0 | AF86: =C_Revenue!AF$301 -> 0 | AG86: =C_Revenue!AG$301 -> 0 | AH86: =C_Revenue!AH$301 -> 0 | AI86: =C_Revenue!AI$301 -> 0 | AJ86: =C_Revenue!AJ$301 -> 0 | AK86: =C_Revenue!AK$301 -> 0 | AL86: =C_Revenue!AL$301 -> 0 | AM86: =C_Revenue!AM$301 -> 0 | AN86: =C_Revenue!AN$301 -> 0 | AO86: =C_Revenue!AO$301 -> 0 | AP86: =C_Revenue!AP$301 -> 0 | AQ86: =C_Revenue!AQ$301 -> 0 | AR86: =C_Revenue!AR$301 -> 2186.837059 | AS86: =C_Revenue!AS$301 -> 2223.027085 | AT86: =C_Revenue!AT$301 -> 2249.8917 | AU86: =C_Revenue!AU$301 -> 2523.512222 | AV86: =C_Revenue!AV$301 -> 2638.441445 | AW86: =C_Revenue!AW$301 -> 0 | AX86: =C_Revenue!AX$301 -> 0 | AY86: =C_Revenue!AY$301 -> 0 | AZ86: =C_Revenue!AZ$301 -> 0 | BA86: =C_Revenue!BA$301 -> 0 | BB86: =C_Revenue!BB$301 -> 0 | BC86: =C_Revenue!BC$301 -> 0 | BD86: =C_Revenue!BD$301 -> 0 | BE86: =C_Revenue!BE$301 -> 0 | BF86: =C_Revenue!BF$301 -> 0 | BG86: =C_Revenue!BG$301 -> 0 | BH86: =C_Revenue!BH$301 -> 0 | BI86: =C_Revenue!BI$301 -> 0 | BJ86: =C_Revenue!BJ$301 -> 0
E87: =C_Revenue!E$302 -> Present value of profiled H9 period allowed airport charges | F87: =C_Revenue!F$302 -> 0 | G87: =C_Revenue!G$302 -> £'m nominal | H87: =C_Revenue!H$302 -> 0 | I87: =C_Revenue!I$302 -> 0 | J87: =C_Revenue!J$302 -> 0 | K87: =C_Revenue!K$302 -> 0 | L87: =C_Revenue!L$302 -> 0 | M87: =C_Revenue!M$302 -> 0 | N87: =C_Revenue!N$302 -> 0 | O87: =C_Revenue!O$302 -> 0 | P87: =C_Revenue!P$302 -> 0 | Q87: =C_Revenue!Q$302 -> 0 | R87: =C_Revenue!R$302 -> 0 | S87: =C_Revenue!S$302 -> 0 | T87: =C_Revenue!T$302 -> 0 | U87: =C_Revenue!U$302 -> 0 | V87: =C_Revenue!V$302 -> 0 | W87: =C_Revenue!W$302 -> 0 | X87: =C_Revenue!X$302 -> 0 | Y87: =C_Revenue!Y$302 -> 11821.70951 | Z87: =C_Revenue!Z$302 -> 0 | AA87: =C_Revenue!AA$302 -> 0 | AB87: =C_Revenue!AB$302 -> 0 | AC87: =C_Revenue!AC$302 -> 0 | AD87: =C_Revenue!AD$302 -> 0 | AE87: =C_Revenue!AE$302 -> 0 | AF87: =C_Revenue!AF$302 -> 0 | AG87: =C_Revenue!AG$302 -> 0 | AH87: =C_Revenue!AH$302 -> 0 | AI87: =C_Revenue!AI$302 -> 0 | AJ87: =C_Revenue!AJ$302 -> 0 | AK87: =C_Revenue!AK$302 -> 0 | AL87: =C_Revenue!AL$302 -> 0 | AM87: =C_Revenue!AM$302 -> 0 | AN87: =C_Revenue!AN$302 -> 0 | AO87: =C_Revenue!AO$302 -> 0 | AP87: =C_Revenue!AP$302 -> 0 | AQ87: =C_Revenue!AQ$302 -> 0 | AR87: =C_Revenue!AR$302 -> 2403.898405 | AS87: =C_Revenue!AS$302 -> 2284.984672 | AT87: =C_Revenue!AT$302 -> 2330.684366 | AU87: =C_Revenue!AU$302 -> 2377.298053 | AV87: =C_Revenue!AV$302 -> 2424.844014 | AW87: =C_Revenue!AW$302 -> 0 | AX87: =C_Revenue!AX$302 -> 0 | AY87: =C_Revenue!AY$302 -> 0 | AZ87: =C_Revenue!AZ$302 -> 0 | BA87: =C_Revenue!BA$302 -> 0 | BB87: =C_Revenue!BB$302 -> 0 | BC87: =C_Revenue!BC$302 -> 0 | BD87: =C_Revenue!BD$302 -> 0 | BE87: =C_Revenue!BE$302 -> 0 | BF87: =C_Revenue!BF$302 -> 0 | BG87: =C_Revenue!BG$302 -> 0 | BH87: =C_Revenue!BH$302 -> 0 | BI87: =C_Revenue!BI$302 -> 0 | BJ87: =C_Revenue!BJ$302 -> 0
E88: Revenue - H9 period price profiling | F88: =IF(ABS(Y86 - Y87) > CheckTOL, 1, 0) -> 0 | G88: check | H88: Checks NPV of profiled allowed revenue equals un-profiled allowed revenue | K88: DIFF | Y88: =Y86 - Y87 -> 0 | Z88: H9_NPVcheck
E90: H10 period X-Factor | G90: H10_X
E91: =C_Revenue!E$338 -> Present value of unprofiled H10 period allowed airport charges | F91: =C_Revenue!F$338 -> 0 | G91: =C_Revenue!G$338 -> £'m nominal | H91: =C_Revenue!H$338 -> 0 | I91: =C_Revenue!I$338 -> 0 | J91: =C_Revenue!J$338 -> 0 | K91: =C_Revenue!K$338 -> 0 | L91: =C_Revenue!L$338 -> 0 | M91: =C_Revenue!M$338 -> 0 | N91: =C_Revenue!N$338 -> 0 | O91: =C_Revenue!O$338 -> 0 | P91: =C_Revenue!P$338 -> 0 | Q91: =C_Revenue!Q$338 -> 0 | R91: =C_Revenue!R$338 -> 0 | S91: =C_Revenue!S$338 -> 0 | T91: =C_Revenue!T$338 -> 0 | U91: =C_Revenue!U$338 -> 0 | V91: =C_Revenue!V$338 -> 0 | W91: =C_Revenue!W$338 -> 0 | X91: =C_Revenue!X$338 -> 0 | Y91: =C_Revenue!Y$338 -> 15171.73088 | Z91: =C_Revenue!Z$338 -> 0 | AA91: =C_Revenue!AA$338 -> 0 | AB91: =C_Revenue!AB$338 -> 0 | AC91: =C_Revenue!AC$338 -> 0 | AD91: =C_Revenue!AD$338 -> 0 | AE91: =C_Revenue!AE$338 -> 0 | AF91: =C_Revenue!AF$338 -> 0 | AG91: =C_Revenue!AG$338 -> 0 | AH91: =C_Revenue!AH$338 -> 0 | AI91: =C_Revenue!AI$338 -> 0 | AJ91: =C_Revenue!AJ$338 -> 0 | AK91: =C_Revenue!AK$338 -> 0 | AL91: =C_Revenue!AL$338 -> 0 | AM91: =C_Revenue!AM$338 -> 0 | AN91: =C_Revenue!AN$338 -> 0 | AO91: =C_Revenue!AO$338 -> 0 | AP91: =C_Revenue!AP$338 -> 0 | AQ91: =C_Revenue!AQ$338 -> 0 | AR91: =C_Revenue!AR$338 -> 0 | AS91: =C_Revenue!AS$338 -> 0 | AT91: =C_Revenue!AT$338 -> 0 | AU91: =C_Revenue!AU$338 -> 0 | AV91: =C_Revenue!AV$338 -> 0 | AW91: =C_Revenue!AW$338 -> 2983.185575 | AX91: =C_Revenue!AX$338 -> 2872.208849 | AY91: =C_Revenue!AY$338 -> 3050.789747 | AZ91: =C_Revenue!AZ$338 -> 3080.9328 | BA91: =C_Revenue!BA$338 -> 3184.61391 | BB91: =C_Revenue!BB$338 -> 0 | BC91: =C_Revenue!BC$338 -> 0 | BD91: =C_Revenue!BD$338 -> 0 | BE91: =C_Revenue!BE$338 -> 0 | BF91: =C_Revenue!BF$338 -> 0 | BG91: =C_Revenue!BG$338 -> 0 | BH91: =C_Revenue!BH$338 -> 0 | BI91: =C_Revenue!BI$338 -> 0 | BJ91: =C_Revenue!BJ$338 -> 0
E92: =C_Revenue!E$339 -> Present value of profiled H10 period allowed airport charges | F92: =C_Revenue!F$339 -> 0 | G92: =C_Revenue!G$339 -> £'m nominal | H92: =C_Revenue!H$339 -> 0 | I92: =C_Revenue!I$339 -> 0 | J92: =C_Revenue!J$339 -> 0 | K92: =C_Revenue!K$339 -> 0 | L92: =C_Revenue!L$339 -> 0 | M92: =C_Revenue!M$339 -> 0 | N92: =C_Revenue!N$339 -> 0 | O92: =C_Revenue!O$339 -> 0 | P92: =C_Revenue!P$339 -> 0 | Q92: =C_Revenue!Q$339 -> 0 | R92: =C_Revenue!R$339 -> 0 | S92: =C_Revenue!S$339 -> 0 | T92: =C_Revenue!T$339 -> 0 | U92: =C_Revenue!U$339 -> 0 | V92: =C_Revenue!V$339 -> 0 | W92: =C_Revenue!W$339 -> 0 | X92: =C_Revenue!X$339 -> 0 | Y92: =C_Revenue!Y$339 -> 15171.73088 | Z92: =C_Revenue!Z$339 -> 0 | AA92: =C_Revenue!AA$339 -> 0 | AB92: =C_Revenue!AB$339 -> 0 | AC92: =C_Revenue!AC$339 -> 0 | AD92: =C_Revenue!AD$339 -> 0 | AE92: =C_Revenue!AE$339 -> 0 | AF92: =C_Revenue!AF$339 -> 0 | AG92: =C_Revenue!AG$339 -> 0 | AH92: =C_Revenue!AH$339 -> 0 | AI92: =C_Revenue!AI$339 -> 0 | AJ92: =C_Revenue!AJ$339 -> 0 | AK92: =C_Revenue!AK$339 -> 0 | AL92: =C_Revenue!AL$339 -> 0 | AM92: =C_Revenue!AM$339 -> 0 | AN92: =C_Revenue!AN$339 -> 0 | AO92: =C_Revenue!AO$339 -> 0 | AP92: =C_Revenue!AP$339 -> 0 | AQ92: =C_Revenue!AQ$339 -> 0 | AR92: =C_Revenue!AR$339 -> 0 | AS92: =C_Revenue!AS$339 -> 0 | AT92: =C_Revenue!AT$339 -> 0 | AU92: =C_Revenue!AU$339 -> 0 | AV92: =C_Revenue!AV$339 -> 0 | AW92: =C_Revenue!AW$339 -> 3085.112152 | AX92: =C_Revenue!AX$339 -> 2932.500793 | AY92: =C_Revenue!AY$339 -> 2991.150809 | AZ92: =C_Revenue!AZ$339 -> 3050.973825 | BA92: =C_Revenue!BA$339 -> 3111.993302 | BB92: =C_Revenue!BB$339 -> 0 | BC92: =C_Revenue!BC$339 -> 0 | BD92: =C_Revenue!BD$339 -> 0 | BE92: =C_Revenue!BE$339 -> 0 | BF92: =C_Revenue!BF$339 -> 0 | BG92: =C_Revenue!BG$339 -> 0 | BH92: =C_Revenue!BH$339 -> 0 | BI92: =C_Revenue!BI$339 -> 0 | BJ92: =C_Revenue!BJ$339 -> 0
E93: Revenue - H10 period price profiling | F93: =IF(ABS(Y91 - Y92) > CheckTOL, 1, 0) -> 0 | G93: check | H93: Checks NPV of profiled allowed revenue equals un-profiled allowed revenue | K93: DIFF | Y93: =Y91 - Y92 -> 0 | Z93: H10_NPVcheck
E95: H11 period X-Factor | G95: H11_X
E96: =C_Revenue!E$375 -> Present value of unprofiled H11 period allowed airport charges | F96: =C_Revenue!F$375 -> 0 | G96: =C_Revenue!G$375 -> £'m nominal | H96: =C_Revenue!H$375 -> 0 | I96: =C_Revenue!I$375 -> 0 | J96: =C_Revenue!J$375 -> 0 | K96: =C_Revenue!K$375 -> 0 | L96: =C_Revenue!L$375 -> 0 | M96: =C_Revenue!M$375 -> 0 | N96: =C_Revenue!N$375 -> 0 | O96: =C_Revenue!O$375 -> 0 | P96: =C_Revenue!P$375 -> 0 | Q96: =C_Revenue!Q$375 -> 0 | R96: =C_Revenue!R$375 -> 0 | S96: =C_Revenue!S$375 -> 0 | T96: =C_Revenue!T$375 -> 0 | U96: =C_Revenue!U$375 -> 0 | V96: =C_Revenue!V$375 -> 0 | W96: =C_Revenue!W$375 -> 0 | X96: =C_Revenue!X$375 -> 0 | Y96: =C_Revenue!Y$375 -> 17546.86818 | Z96: =C_Revenue!Z$375 -> 0 | AA96: =C_Revenue!AA$375 -> 0 | AB96: =C_Revenue!AB$375 -> 0 | AC96: =C_Revenue!AC$375 -> 0 | AD96: =C_Revenue!AD$375 -> 0 | AE96: =C_Revenue!AE$375 -> 0 | AF96: =C_Revenue!AF$375 -> 0 | AG96: =C_Revenue!AG$375 -> 0 | AH96: =C_Revenue!AH$375 -> 0 | AI96: =C_Revenue!AI$375 -> 0 | AJ96: =C_Revenue!AJ$375 -> 0 | AK96: =C_Revenue!AK$375 -> 0 | AL96: =C_Revenue!AL$375 -> 0 | AM96: =C_Revenue!AM$375 -> 0 | AN96: =C_Revenue!AN$375 -> 0 | AO96: =C_Revenue!AO$375 -> 0 | AP96: =C_Revenue!AP$375 -> 0 | AQ96: =C_Revenue!AQ$375 -> 0 | AR96: =C_Revenue!AR$375 -> 0 | AS96: =C_Revenue!AS$375 -> 0 | AT96: =C_Revenue!AT$375 -> 0 | AU96: =C_Revenue!AU$375 -> 0 | AV96: =C_Revenue!AV$375 -> 0 | AW96: =C_Revenue!AW$375 -> 0 | AX96: =C_Revenue!AX$375 -> 0 | AY96: =C_Revenue!AY$375 -> 0 | AZ96: =C_Revenue!AZ$375 -> 0 | BA96: =C_Revenue!BA$375 -> 0 | BB96: =C_Revenue!BB$375 -> 3533.693147 | BC96: =C_Revenue!BC$375 -> 3375.617267 | BD96: =C_Revenue!BD$375 -> 3404.057499 | BE96: =C_Revenue!BE$375 -> 3447.357649 | BF96: =C_Revenue!BF$375 -> 3786.142619 | BG96: =C_Revenue!BG$375 -> 0 | BH96: =C_Revenue!BH$375 -> 0 | BI96: =C_Revenue!BI$375 -> 0 | BJ96: =C_Revenue!BJ$375 -> 0
E97: =C_Revenue!E$376 -> Present value of profiled H11 period allowed airport charges | F97: =C_Revenue!F$376 -> 0 | G97: =C_Revenue!G$376 -> £'m nominal | H97: =C_Revenue!H$376 -> 0 | I97: =C_Revenue!I$376 -> 0 | J97: =C_Revenue!J$376 -> 0 | K97: =C_Revenue!K$376 -> 0 | L97: =C_Revenue!L$376 -> 0 | M97: =C_Revenue!M$376 -> 0 | N97: =C_Revenue!N$376 -> 0 | O97: =C_Revenue!O$376 -> 0 | P97: =C_Revenue!P$376 -> 0 | Q97: =C_Revenue!Q$376 -> 0 | R97: =C_Revenue!R$376 -> 0 | S97: =C_Revenue!S$376 -> 0 | T97: =C_Revenue!T$376 -> 0 | U97: =C_Revenue!U$376 -> 0 | V97: =C_Revenue!V$376 -> 0 | W97: =C_Revenue!W$376 -> 0 | X97: =C_Revenue!X$376 -> 0 | Y97: =C_Revenue!Y$376 -> 17546.86818 | Z97: =C_Revenue!Z$376 -> 0 | AA97: =C_Revenue!AA$376 -> 0 | AB97: =C_Revenue!AB$376 -> 0 | AC97: =C_Revenue!AC$376 -> 0 | AD97: =C_Revenue!AD$376 -> 0 | AE97: =C_Revenue!AE$376 -> 0 | AF97: =C_Revenue!AF$376 -> 0 | AG97: =C_Revenue!AG$376 -> 0 | AH97: =C_Revenue!AH$376 -> 0 | AI97: =C_Revenue!AI$376 -> 0 | AJ97: =C_Revenue!AJ$376 -> 0 | AK97: =C_Revenue!AK$376 -> 0 | AL97: =C_Revenue!AL$376 -> 0 | AM97: =C_Revenue!AM$376 -> 0 | AN97: =C_Revenue!AN$376 -> 0 | AO97: =C_Revenue!AO$376 -> 0 | AP97: =C_Revenue!AP$376 -> 0 | AQ97: =C_Revenue!AQ$376 -> 0 | AR97: =C_Revenue!AR$376 -> 0 | AS97: =C_Revenue!AS$376 -> 0 | AT97: =C_Revenue!AT$376 -> 0 | AU97: =C_Revenue!AU$376 -> 0 | AV97: =C_Revenue!AV$376 -> 0 | AW97: =C_Revenue!AW$376 -> 0 | AX97: =C_Revenue!AX$376 -> 0 | AY97: =C_Revenue!AY$376 -> 0 | AZ97: =C_Revenue!AZ$376 -> 0 | BA97: =C_Revenue!BA$376 -> 0 | BB97: =C_Revenue!BB$376 -> 3568.087035 | BC97: =C_Revenue!BC$376 -> 3391.58434 | BD97: =C_Revenue!BD$376 -> 3459.416026 | BE97: =C_Revenue!BE$376 -> 3528.604347 | BF97: =C_Revenue!BF$376 -> 3599.176434 | BG97: =C_Revenue!BG$376 -> 0 | BH97: =C_Revenue!BH$376 -> 0 | BI97: =C_Revenue!BI$376 -> 0 | BJ97: =C_Revenue!BJ$376 -> 0
E98: Revenue - H11 period price profiling | F98: =IF(ABS(Y96 - Y97) > CheckTOL, 1, 0) -> 0 | G98: check | H98: Checks NPV of profiled allowed revenue equals un-profiled allowed revenue | K98: DIFF | Y98: =Y96 - Y97 -> 0 | Z98: H11_NPVcheck
E100: H12 period X-Factor | G100: H12_X
E101: =C_Revenue!E$412 -> Present value of unprofiled H12 period allowed airport charges | F101: =C_Revenue!F$412 -> 0 | G101: =C_Revenue!G$412 -> £'m nominal | H101: =C_Revenue!H$412 -> 0 | I101: =C_Revenue!I$412 -> 0 | J101: =C_Revenue!J$412 -> 0 | K101: =C_Revenue!K$412 -> 0 | L101: =C_Revenue!L$412 -> 0 | M101: =C_Revenue!M$412 -> 0 | N101: =C_Revenue!N$412 -> 0 | O101: =C_Revenue!O$412 -> 0 | P101: =C_Revenue!P$412 -> 0 | Q101: =C_Revenue!Q$412 -> 0 | R101: =C_Revenue!R$412 -> 0 | S101: =C_Revenue!S$412 -> 0 | T101: =C_Revenue!T$412 -> 0 | U101: =C_Revenue!U$412 -> 0 | V101: =C_Revenue!V$412 -> 0 | W101: =C_Revenue!W$412 -> 0 | X101: =C_Revenue!X$412 -> 0 | Y101: =C_Revenue!Y$412 -> 15789.15516 | Z101: =C_Revenue!Z$412 -> 0 | AA101: =C_Revenue!AA$412 -> 0 | AB101: =C_Revenue!AB$412 -> 0 | AC101: =C_Revenue!AC$412 -> 0 | AD101: =C_Revenue!AD$412 -> 0 | AE101: =C_Revenue!AE$412 -> 0 | AF101: =C_Revenue!AF$412 -> 0 | AG101: =C_Revenue!AG$412 -> 0 | AH101: =C_Revenue!AH$412 -> 0 | AI101: =C_Revenue!AI$412 -> 0 | AJ101: =C_Revenue!AJ$412 -> 0 | AK101: =C_Revenue!AK$412 -> 0 | AL101: =C_Revenue!AL$412 -> 0 | AM101: =C_Revenue!AM$412 -> 0 | AN101: =C_Revenue!AN$412 -> 0 | AO101: =C_Revenue!AO$412 -> 0 | AP101: =C_Revenue!AP$412 -> 0 | AQ101: =C_Revenue!AQ$412 -> 0 | AR101: =C_Revenue!AR$412 -> 0 | AS101: =C_Revenue!AS$412 -> 0 | AT101: =C_Revenue!AT$412 -> 0 | AU101: =C_Revenue!AU$412 -> 0 | AV101: =C_Revenue!AV$412 -> 0 | AW101: =C_Revenue!AW$412 -> 0 | AX101: =C_Revenue!AX$412 -> 0 | AY101: =C_Revenue!AY$412 -> 0 | AZ101: =C_Revenue!AZ$412 -> 0 | BA101: =C_Revenue!BA$412 -> 0 | BB101: =C_Revenue!BB$412 -> 0 | BC101: =C_Revenue!BC$412 -> 0 | BD101: =C_Revenue!BD$412 -> 0 | BE101: =C_Revenue!BE$412 -> 0 | BF101: =C_Revenue!BF$412 -> 0 | BG101: =C_Revenue!BG$412 -> 4160.933399 | BH101: =C_Revenue!BH$412 -> 3892.864348 | BI101: =C_Revenue!BI$412 -> 3937.381321 | BJ101: =C_Revenue!BJ$412 -> 3797.976088
E102: =C_Revenue!E$413 -> Present value of profiled H12 period allowed airport charges | F102: =C_Revenue!F$413 -> 0 | G102: =C_Revenue!G$413 -> £'m nominal | H102: =C_Revenue!H$413 -> 0 | I102: =C_Revenue!I$413 -> 0 | J102: =C_Revenue!J$413 -> 0 | K102: =C_Revenue!K$413 -> 0 | L102: =C_Revenue!L$413 -> 0 | M102: =C_Revenue!M$413 -> 0 | N102: =C_Revenue!N$413 -> 0 | O102: =C_Revenue!O$413 -> 0 | P102: =C_Revenue!P$413 -> 0 | Q102: =C_Revenue!Q$413 -> 0 | R102: =C_Revenue!R$413 -> 0 | S102: =C_Revenue!S$413 -> 0 | T102: =C_Revenue!T$413 -> 0 | U102: =C_Revenue!U$413 -> 0 | V102: =C_Revenue!V$413 -> 0 | W102: =C_Revenue!W$413 -> 0 | X102: =C_Revenue!X$413 -> 0 | Y102: =C_Revenue!Y$413 -> 15789.15516 | Z102: =C_Revenue!Z$413 -> 0 | AA102: =C_Revenue!AA$413 -> 0 | AB102: =C_Revenue!AB$413 -> 0 | AC102: =C_Revenue!AC$413 -> 0 | AD102: =C_Revenue!AD$413 -> 0 | AE102: =C_Revenue!AE$413 -> 0 | AF102: =C_Revenue!AF$413 -> 0 | AG102: =C_Revenue!AG$413 -> 0 | AH102: =C_Revenue!AH$413 -> 0 | AI102: =C_Revenue!AI$413 -> 0 | AJ102: =C_Revenue!AJ$413 -> 0 | AK102: =C_Revenue!AK$413 -> 0 | AL102: =C_Revenue!AL$413 -> 0 | AM102: =C_Revenue!AM$413 -> 0 | AN102: =C_Revenue!AN$413 -> 0 | AO102: =C_Revenue!AO$413 -> 0 | AP102: =C_Revenue!AP$413 -> 0 | AQ102: =C_Revenue!AQ$413 -> 0 | AR102: =C_Revenue!AR$413 -> 0 | AS102: =C_Revenue!AS$413 -> 0 | AT102: =C_Revenue!AT$413 -> 0 | AU102: =C_Revenue!AU$413 -> 0 | AV102: =C_Revenue!AV$413 -> 0 | AW102: =C_Revenue!AW$413 -> 0 | AX102: =C_Revenue!AX$413 -> 0 | AY102: =C_Revenue!AY$413 -> 0 | AZ102: =C_Revenue!AZ$413 -> 0 | BA102: =C_Revenue!BA$413 -> 0 | BB102: =C_Revenue!BB$413 -> 0 | BC102: =C_Revenue!BC$413 -> 0 | BD102: =C_Revenue!BD$413 -> 0 | BE102: =C_Revenue!BE$413 -> 0 | BF102: =C_Revenue!BF$413 -> 0 | BG102: =C_Revenue!BG$413 -> 4039.16869 | BH102: =C_Revenue!BH$413 -> 3839.36298 | BI102: =C_Revenue!BI$413 -> 3916.15024 | BJ102: =C_Revenue!BJ$413 -> 3994.473245
E103: Revenue - H12 period price profiling | F103: =IF(ABS(Y101 - Y102) > CheckTOL, 1, 0) -> 0 | G103: check | H103: Checks NPV of profiled allowed revenue equals un-profiled allowed revenue | K103: DIFF | Y103: =Y101 - Y102 -> 0 | Z103: H12_NPVcheck
B105: H7 2023 P0 adjustment
E107: =C_Revenue!E210 -> H7 period 2023 and 2024 per passenger opening price adjustment factor | F107: -0.2381789828
B109: Stored Aero charge per passenger (Pricing Scenario)
E111: SCEN 1
E112: Allowed airport charges per passenger (nominal) (profiled) | F112: Scenario 1 | G112: =I_Global!$F$112 -> nominal £/passenger | AA112: 22.65363538 | AB112: 22.43941095 | AC112: 22.003103 | AD112: 21.78472448 | AE112: 22.63679747 | AF112: 23.56 | AG112: 21.08 | AH112: 30.19 | AI112: 31.32 | AJ112: 24.89459035 | AK112: 24.70160584 | AL112: 24.74431041 | AM112: 24.08774568 | AN112: 24.56950059 | AO112: 25.0608906 | AP112: 25.56210841 | AQ112: 26.07335058 | AR112: 30.6227972 | AS112: 31.23525314 | AT112: 31.8599582 | AU112: 32.49715737 | AV112: 33.14710051 | AW112: 39.30064746 | AX112: 40.08666041 | AY112: 40.88839362 | AZ112: 41.70616149 | BA112: 42.54028472 | BB112: 45.45317116 | BC112: 46.36223458 | BD112: 47.28947927 | BE112: 48.23526886 | BF112: 49.19997423 | BG112: 51.45418931 | BH112: 52.4832731 | BI112: 53.53293856 | BJ112: 54.60359733
E114: SCEN 2
E115: Allowed airport charges per passenger (nominal) (profiled) | F115: Scenario 2 | G115: =I_Global!$F$112 -> nominal £/passenger | AA115: 22.65363538 | AB115: 22.43941095 | AC115: 22.003103 | AD115: 21.78472448 | AE115: 22.63679747 | AF115: 23.56 | AG115: 21.08 | AH115: 30.19 | AI115: 31.32 | AJ115: 25.28919314 | AK115: 25.09314965 | AL115: 25.13653113 | AM115: 24.37702908 | AN115: 24.86456966 | AO115: 25.36186105 | AP115: 25.86909827 | AQ115: 26.38648024 | AR115: 30.95816664 | AS115: 31.57732997 | AT115: 32.20887657 | AU115: 32.8530541 | AV115: 33.51011518 | AW115: 39.68943256 | AX115: 40.48322121 | AY115: 41.29288563 | AZ115: 42.11874335 | BA115: 42.96111821 | BB115: 45.90387964 | BC115: 46.82195723 | BD115: 47.75839637 | BE115: 48.7135643 | BF115: 49.68783559 | BG115: 51.9740558 | BH115: 53.01353692 | BI115: 54.07380766 | BJ115: 55.15528381
E117: SCEN 3
E118: Allowed airport charges per passenger (nominal) (profiled) | F118: Scenario 3 | G118: =I_Global!$F$112 -> nominal £/passenger | AA118: 22.65363538 | AB118: 22.43941095 | AC118: 22.003103 | AD118: 21.78472448 | AE118: 22.63679747 | AF118: 23.56 | AG118: 21.08 | AH118: 30.19 | AI118: 30.96720643 | AJ118: 31.60550608 | AK118: 32.2376162 | AL118: 32.88236853 | AM118: 27.08985189 | AN118: 27.63164893 | AO118: 28.18428191 | AP118: 28.74796754 | AQ118: 29.32292689 | AR118: 34.11335684 | AS118: 34.79562398 | AT118: 35.49153646 | AU118: 36.20136718 | AV118: 36.92539453 | AW118: 43.3769025 | AX118: 44.24444055 | AY118: 45.12932936 | AZ118: 46.03191595 | BA118: 46.95255426 | BB118: 50.09780624 | BC118: 51.09976237 | BD118: 52.12175761 | BE118: 53.16419276 | BF118: 54.22747662 | BG118: 56.88522647 | BH118: 58.022931 | BI118: 59.18338962 | BJ118: 60.36705741
E120: SCEN 4
E121: Allowed airport charges per passenger (nominal) (profiled) | F121: Scenario 4 | G121: =I_Global!$F$112 -> nominal £/passenger | AA121: 22.65363538 | AB121: 22.43941095 | AC121: 22.003103 | AD121: 21.78472448 | AE121: 22.63679747 | AF121: 23.56 | AG121: 21.08 | AH121: 30.19 | AI121: 27.55680311 | AJ121: 27.97982413 | AK121: 28.50583157 | AL121: 29.0759482 | AM121: 24.69727661 | AN121: 25.19122214 | AO121: 25.69504659 | AP121: 26.20894752 | AQ121: 26.73312647 | AR121: 31.23807922 | AS121: 31.86284081 | AT121: 32.50009762 | AU121: 33.15009958 | AV121: 33.81310157 | AW121: 40.12562027 | AX121: 40.92813267 | AY121: 41.74669533 | AZ121: 42.58162923 | BA121: 43.43326182 | BB121: 46.40743072 | BC121: 47.33557934 | BD121: 48.28229093 | BE121: 49.24793674 | BF121: 50.23289548 | BG121: 52.6932088 | BH121: 53.74707297 | BI121: 54.82201443 | BJ121: 55.91845472
E123: SCEN 5
E124: Allowed airport charges per passenger (nominal) (profiled) | F124: Scenario 5 | G124: =I_Global!$F$112 -> nominal £/passenger | AA124: 22.65363538 | AB124: 22.43941095 | AC124: 22.003103 | AD124: 21.78472448 | AE124: 22.63679747 | AF124: 23.56 | AG124: 21.08 | AH124: 30.19 | AI124: 30.96720643 | AJ124: 31.60550608 | AK124: 32.2376162 | AL124: 32.88236853 | AM124: 23.69641798 | AN124: 24.17034634 | AO124: 24.65375327 | AP124: 25.14682833 | AQ124: 25.6497649 | AR124: 30.05198551 | AS124: 30.65302522 | AT124: 31.26608573 | AU124: 31.89140744 | AV124: 32.52923559 | AW124: 38.67467338 | AX124: 39.44816685 | AY124: 40.23713018 | AZ124: 41.04187279 | BA124: 41.86271024 | BB124: 44.81977542 | BC124: 45.71617092 | BD124: 46.63049434 | BE124: 47.56310423 | BF124: 48.51436631 | BG124: 51.49958966 | BH124: 52.52958146 | BI124: 53.58017309 | BJ124: 54.65177655
E126: SCEN 6
E127: Allowed airport charges per passenger (nominal) (profiled) | F127: Scenario 6 | G127: =I_Global!$F$112 -> nominal £/passenger | AA127: 22.65363538 | AB127: 22.43941095 | AC127: 22.003103 | AD127: 21.78472448 | AE127: 22.63679747 | AF127: 23.56 | AG127: 21.08 | AH127: 30.19 | AI127: 30.96720643 | AJ127: 31.60550608 | AK127: 32.2376162 | AL127: 32.88236853 | AM127: 24.22102041 | AN127: 24.70544082 | AO127: 25.19954964 | AP127: 25.70354063 | AQ127: 26.21761144 | AR127: 30.61433646 | AS127: 31.22662319 | AT127: 31.85115565 | AU127: 32.48817877 | AV127: 33.13794234 | AW127: 39.23332629 | AX127: 40.01799282 | AY127: 40.81835267 | AZ127: 41.63471973 | BA127: 42.46741412 | BB127: 45.35928644 | BC127: 46.26647217 | BD127: 47.19180161 | BE127: 48.13563764 | BF127: 49.0983504 | BG127: 51.49958966 | BH127: 52.52958146 | BI127: 53.58017309 | BJ127: 54.65177655
E129: SCEN 7
E130: Allowed airport charges per passenger (nominal) (profiled) | F130: Scenario 7 | G130: =I_Global!$F$112 -> nominal £/passenger | AA130: 22.65363538 | AB130: 22.43941095 | AC130: 22.003103 | AD130: 21.78472448 | AE130: 22.63679747 | AF130: 23.56 | AG130: 21.08 | AH130: 30.19 | AI130: 30.96720643 | AJ130: 31.60550608 | AK130: 32.2376162 | AL130: 32.88236853 | AM130: 24.22102041 | AN130: 24.70544082 | AO130: 25.19954964 | AP130: 25.70354063 | AQ130: 26.21761144 | AR130: 30.61433646 | AS130: 31.22662319 | AT130: 31.85115565 | AU130: 32.48817877 | AV130: 33.13794234 | AW130: 39.23332629 | AX130: 40.01799282 | AY130: 40.81835267 | AZ130: 41.63471973 | BA130: 42.46741412 | BB130: 45.35928644 | BC130: 46.26647217 | BD130: 47.19180161 | BE130: 48.13563764 | BF130: 49.0983504 | BG130: 51.49958966 | BH130: 52.52958146 | BI130: 53.58017309 | BJ130: 54.65177655
E132: SCEN 8
E133: Allowed airport charges per passenger (nominal) (profiled) | F133: Scenario 8 | G133: =I_Global!$F$112 -> nominal £/passenger | AA133: 22.65363538 | AB133: 22.43941095 | AC133: 22.003103 | AD133: 21.78472448 | AE133: 22.63679747 | AF133: 23.56 | AG133: 21.08 | AH133: 30.19 | AI133: 30.96720643 | AJ133: 31.60550608 | AK133: 32.2376162 | AL133: 32.88236853 | AM133: 24.22102041 | AN133: 24.70544082 | AO133: 25.19954964 | AP133: 25.70354063 | AQ133: 26.21761144 | AR133: 30.61433646 | AS133: 31.22662319 | AT133: 31.85115565 | AU133: 32.48817877 | AV133: 33.13794234 | AW133: 39.23332629 | AX133: 40.01799282 | AY133: 40.81835267 | AZ133: 41.63471973 | BA133: 42.46741412 | BB133: 45.35928644 | BC133: 46.26647217 | BD133: 47.19180161 | BE133: 48.13563764 | BF133: 49.0983504 | BG133: 51.49958966 | BH133: 52.52958146 | BI133: 53.58017309 | BJ133: 54.65177655
E135: SCEN 9
E136: Allowed airport charges per passenger (nominal) (profiled) | F136: Scenario 9 | G136: =I_Global!$F$112 -> nominal £/passenger | AA136: 22.65363538 | AB136: 22.43941095 | AC136: 22.003103 | AD136: 21.78472448 | AE136: 22.63679747 | AF136: 23.56 | AG136: 21.08 | AH136: 30.19 | AI136: 30.96720643 | AJ136: 31.60550608 | AK136: 32.2376162 | AL136: 32.88236853 | AM136: 24.22102041 | AN136: 24.70544082 | AO136: 25.19954964 | AP136: 25.70354063 | AQ136: 26.21761144 | AR136: 30.61433646 | AS136: 31.22662319 | AT136: 31.85115565 | AU136: 32.48817877 | AV136: 33.13794234 | AW136: 39.23332629 | AX136: 40.01799282 | AY136: 40.81835267 | AZ136: 41.63471973 | BA136: 42.46741412 | BB136: 45.35928644 | BC136: 46.26647217 | BD136: 47.19180161 | BE136: 48.13563764 | BF136: 49.0983504 | BG136: 51.49958966 | BH136: 52.52958146 | BI136: 53.58017309 | BJ136: 54.65177655
A139: End of spreadsheet

Sheet Inputs>>>
A1: =MID(CELL( "filename", $A$1 ), SEARCH( "[",CELL( "filename", $A$1 ) ) + 1, SEARCH( "]",CELL( "filename", $A$1 ) ) - SEARCH( "[",CELL( "filename", $A$1 ) ) - 1 ) -> 
B2: =RIGHT(CELL( "filename", B2 ), LEN(CELL( "filename", B2 ) ) - SEARCH( "]",CELL( "filename", B2 ) ) ) -> 

Sheet I_Global
A1: =MID(CELL( "filename", $A$1 ), SEARCH( "[",CELL( "filename", $A$1 ) ) + 1, SEARCH( "]",CELL( "filename", $A$1 ) ) - SEARCH( "[",CELL( "filename", $A$1 ) ) - 1 ) -> 
B2: =RIGHT(CELL( "filename", B2 ), LEN(CELL( "filename", B2 ) ) - SEARCH( "]",CELL( "filename", B2 ) ) ) ->  | I2: =I_InputSets!$I$2 -> Warning, dashboard overrides active
E3: =Checks!E$3 -> Checks & Alerts | F3: =Checks!F$3 -> -1 | H3: =C_Ratios!H3 -> Alerts | I3: =C_Ratios!I3 -> ALERT: one or more financial ratios are breaching thresholds
B4: =I_Scenarios!$G$16 -> Input set used to determine prices | F4: =I_Scenarios!$G$17 -> Input set 1
B5: =I_Scenarios!$I$16 -> Input set used to determine outturn financial statements & ratios | F5: =I_Scenarios!$I$17 -> Input set 1
B6: =I_Scenarios!$E$16 -> Live Scenario | F6: =I_Scenarios!E$17 & " " & I_Scenarios!F$17 -> Scenario 1 Mid case
E8: Label | F8: Constant | G8: Units | H8: Notes | I8: Data Source | K8: Confidentiality Status
A9: 1.a Model technical inputs
E11: Model check tolerance level | F11: 0.01 | G11: =$F$129 -> tolerance | H11: CheckTOL
E12: Sign switch | F12: -1 | G12: =$F$128 -> sign switch | H12: SignSwitch
A14: 1.b Time
B16: General
E18: Model Start Date | F18: 2015-01-01 | G18: =$F$118 -> date | H18: fixed for all scenarios | I18: CAA
E19: Number of months in model period | F19: 12 | G19: =$F$107 -> # months | H19: fixed for all scenarios | I19: CAA
E20: Maximum Look-forward Periods | F20: 3 | G20: =$F$131 -> years | H20: fixed for all scenarios | I20: CAA
E21: Forecast period start date | F21: 2020-01-01 | G21: =$F$118 -> date | H21: fixed for all scenarios | I21: CAA
E22: Forecast period end date | F22: 2050-12-31 | G22: =$F$118 -> date | H22: fixed for all scenarios
E23: Price base for real inputs | F23: 2018 | G23: year | H23: fixed for all scenarios | I23: CAA
A25: 1.c Validation lists
B27: Accounting depreciation methods
E29: Accounting depreciation method 1 | F29: straight line
E30: Accounting depreciation method 2 | F30: reducing balance
B32: RAB depreciation methods
E34: RAB depreciation method 1 | F34: straight line
E35: RAB depreciation method 2 | F35: reducing balance
E36: RAB depreciation method 3 | F36: profiled input
B38: Model mode
E40: Model mode 1 | F40: Set price control
E41: Model mode 2 | F41: Run live outputs
B43: RAB categories
E45: RAB 1 | F45: RAB 1
E46: RAB 2 | F46: RAB 2
E47: RAB 3 | F47: RAB 3
B49: Approaches to conversion from Assets Under Construction to Assets in Use
E51: Conversion approach 1 | F51: Profiled input
E52: Conversion approach 2 | F52: Capacity step-ups
B54: Approaches to tax allowance for revenue calculation
E56: Tax Approach 1 | F56: Profiled input
E57: Tax Approach 2 | F57: Compounded tax rate
E58: Tax Approach 3 | F58: WACC uplift
B60: Credit ratings
E62: Credit Rating 1 | F62: A-
E63: Credit Rating 2 | F63: BBB+
E64: Credit Rating 3 | F64: BBB
B66: Capex scenarios
E68: Capex scenario 1 | F68: High capex scenario
E69: Capex scenario 2 | F69: Medium capex scenario
E70: Capex scenario 3 | F70: Low capex scenario
B72: Profiled & unprofiled aero revenues
E74: Profiled aero revenues | F74: Profiled
E75: Unprofiled aero revenues | F75: Unprofiled
B77: Selection of WACC calculation method
E79: WACC input method 1 | F79: Profiled input
E80: WACC input method 2 | F80: Calculated from CoE/CoD inputs
B82: Selection of vanilla of pre tax WACC
E84: Notional vanilla WACC | F84: Vanilla
E85: Notiona pre tax WACC | F85: Pre-tax
B87: Selection of tax rate applied in WACC calculations
E89: Corporation tax rate | F89: Corporation tax
E90: Effective tax rate | F90: Effective tax
B92: Selection of RAB depreciation profile
E94: Profile 1 scenario | F94: Profile 1
E95: Profile 2 scenario | F95: Profile 2
E96: Profile 3 scenario | F96: Profile 3
E97: Profile 4 scenario | F97: Profile 4
B99: Minimum equity yield calculated as percentage of
E101: Equity wedge | F101: Equity wedge
E102: Share capital balance | F102: Share capital balance BEG
A104: 1.d Labels
E106: Number | F106: #
E107: Number of Months | F107: # months
E108: Percentage | F108: %
E109: Percetnage for forecasting purposes | F109: % of look forward capex
E110: RPI-real 2018 £ per passenger | F110: RPI-real 2018 £/passenger
E111: CPI-real £ per passenger | F111: CPI-real £/passenger
E112: Nominal £ per passenger | F112: nominal £/passenger
E113: RPI-real inputs | F113: ="£'m RPI-real "&Price_Base -> £'m RPI-real 2018
E114: CPI-real inputs | F114: ="£'m CPI-real "&Price_Base -> £'m CPI-real 2018
E115: Nominal Value | F115: £'m nominal
E116: Check report flag, linked to 'Checks' Sheet | F116: check
E117: Sequential period counter | F117: counter
E118: Date | F118: date
E119: Factor | F119: factor
E120: Binary Flag for calculations | F120: flag
E121: Label | F121: label
E122: Million Passengers | F122: million pax
E123: Multiple (for ratios) | F123: multiple
E124: Number of periods | F124: periods
E125: Ratio indicator | F125: ratio
E126: Selected Scenario | F126: Input set selection
E127: Selection (drop-down box) | F127: selection
E128: Turn +ve negative, or vice versa | F128: sign switch
E129: Limit for decimal places | F129: tolerance
E130: Unit | F130: unit
E131: Number of years | F131: years
E132: Actual | F132: Actual
E133: Forecast | F133: Forecast
A135: 1.e Asset categories
E137: Category 1 | F137: Category 1 description
E138: Category 2 | F138: Category 2 description
E139: Category 3 | F139: Category 3 description
E140: Category 4 | F140: Category 4 description
E141: Category 5 | F141: Category 5 description
E142: Category 6 | F142: Category 6 description
E143: Category 7 | F143: Category 7 description
E144: Category 8 | F144: Category 8 description
E145: Category 9 | F145: Category 9 description
E146: Category 10 | F146: Category 10 description
A148: 1.f TRS implementation method
E150: Traffic Risk sharing mechanism implementation 1 | F150: RAB adjustment
E151: Traffic Risk sharing mechanism implementation 2 | F151: Revenue adjustment
A153: End of spreadsheet

Sheet I_Actuals
A1: =MID(CELL( "filename", $A$1 ), SEARCH( "[",CELL( "filename", $A$1 ) ) + 1, SEARCH( "]",CELL( "filename", $A$1 ) ) - SEARCH( "[",CELL( "filename", $A$1 ) ) - 1 ) -> 
B2: =RIGHT(CELL( "filename", B2 ), LEN(CELL( "filename", B2 ) ) - SEARCH( "]",CELL( "filename", B2 ) ) ) ->  | I2: =I_InputSets!$I$2 -> Warning, dashboard overrides active
E3: =Checks!E$71 -> Checks & Alerts | F3: =Checks!F$3 -> -1 | H3: =C_Ratios!H3 -> Alerts | I3: =C_Ratios!I3 -> ALERT: one or more financial ratios are breaching thresholds
B4: =I_Scenarios!$G$16 -> Input set used to determine prices | F4: =I_Scenarios!$G$17 -> Input set 1
B5: =I_Scenarios!$I$16 -> Input set used to determine outturn financial statements & ratios | F5: =I_Scenarios!$I$17 -> Input set 1
B6: =I_Scenarios!$E$16 -> Live Scenario | F6: =I_Scenarios!E$17 & " " & I_Scenarios!F$17 -> Scenario 1 Mid case
A7: Timeline
E8: =C_Time!E8 -> Period Beginning | G8: =C_Time!G8 -> date | AA8: =C_Time!AA8 -> 2015-01-01 | AB8: =C_Time!AB8 -> 2016-01-01 | AC8: =C_Time!AC8 -> 2017-01-01 | AD8: =C_Time!AD8 -> 2018-01-01 | AE8: =C_Time!AE8 -> 2019-01-01 | AF8: =C_Time!AF8 -> 2020-01-01 | AG8: =C_Time!AG8 -> 2021-01-01 | AH8: =C_Time!AH8 -> 2022-01-01 | AI8: =C_Time!AI8 -> 2023-01-01 | AJ8: =C_Time!AJ8 -> 2024-01-01 | AK8: =C_Time!AK8 -> 2025-01-01 | AL8: =C_Time!AL8 -> 2026-01-01 | AM8: =C_Time!AM8 -> 2027-01-01 | AN8: =C_Time!AN8 -> 2028-01-01 | AO8: =C_Time!AO8 -> 2029-01-01 | AP8: =C_Time!AP8 -> 2030-01-01 | AQ8: =C_Time!AQ8 -> 2031-01-01 | AR8: =C_Time!AR8 -> 2032-01-01 | AS8: =C_Time!AS8 -> 2033-01-01 | AT8: =C_Time!AT8 -> 2034-01-01 | AU8: =C_Time!AU8 -> 2035-01-01 | AV8: =C_Time!AV8 -> 2036-01-01 | AW8: =C_Time!AW8 -> 2037-01-01 | AX8: =C_Time!AX8 -> 2038-01-01 | AY8: =C_Time!AY8 -> 2039-01-01 | AZ8: =C_Time!AZ8 -> 2040-01-01 | BA8: =C_Time!BA8 -> 2041-01-01 | BB8: =C_Time!BB8 -> 2042-01-01 | BC8: =C_Time!BC8 -> 2043-01-01 | BD8: =C_Time!BD8 -> 2044-01-01 | BE8: =C_Time!BE8 -> 2045-01-01 | BF8: =C_Time!BF8 -> 2046-01-01 | BG8: =C_Time!BG8 -> 2047-01-01 | BH8: =C_Time!BH8 -> 2048-01-01 | BI8: =C_Time!BI8 -> 2049-01-01 | BJ8: =C_Time!BJ8 -> 2050-01-01
E9: =C_Time!E9 -> Period Ending | G9: =C_Time!G9 -> date | AA9: =C_Time!AA9 -> 2015-12-31 | AB9: =C_Time!AB9 -> 2016-12-31 | AC9: =C_Time!AC9 -> 2017-12-31 | AD9: =C_Time!AD9 -> 2018-12-31 | AE9: =C_Time!AE9 -> 2019-12-31 | AF9: =C_Time!AF9 -> 2020-12-31 | AG9: =C_Time!AG9 -> 2021-12-31 | AH9: =C_Time!AH9 -> 2022-12-31 | AI9: =C_Time!AI9 -> 2023-12-31 | AJ9: =C_Time!AJ9 -> 2024-12-31 | AK9: =C_Time!AK9 -> 2025-12-31 | AL9: =C_Time!AL9 -> 2026-12-31 | AM9: =C_Time!AM9 -> 2027-12-31 | AN9: =C_Time!AN9 -> 2028-12-31 | AO9: =C_Time!AO9 -> 2029-12-31 | AP9: =C_Time!AP9 -> 2030-12-31 | AQ9: =C_Time!AQ9 -> 2031-12-31 | AR9: =C_Time!AR9 -> 2032-12-31 | AS9: =C_Time!AS9 -> 2033-12-31 | AT9: =C_Time!AT9 -> 2034-12-31 | AU9: =C_Time!AU9 -> 2035-12-31 | AV9: =C_Time!AV9 -> 2036-12-31 | AW9: =C_Time!AW9 -> 2037-12-31 | AX9: =C_Time!AX9 -> 2038-12-31 | AY9: =C_Time!AY9 -> 2039-12-31 | AZ9: =C_Time!AZ9 -> 2040-12-31 | BA9: =C_Time!BA9 -> 2041-12-31 | BB9: =C_Time!BB9 -> 2042-12-31 | BC9: =C_Time!BC9 -> 2043-12-31 | BD9: =C_Time!BD9 -> 2044-12-31 | BE9: =C_Time!BE9 -> 2045-12-31 | BF9: =C_Time!BF9 -> 2046-12-31 | BG9: =C_Time!BG9 -> 2047-12-31 | BH9: =C_Time!BH9 -> 2048-12-31 | BI9: =C_Time!BI9 -> 2049-12-31 | BJ9: =C_Time!BJ9 -> 2050-12-31
E10: =C_Time!E10 -> Model period number | G10: =C_Time!G10 -> # | AA10: =C_Time!AA10 -> 1 | AB10: =C_Time!AB10 -> 2 | AC10: =C_Time!AC10 -> 3 | AD10: =C_Time!AD10 -> 4 | AE10: =C_Time!AE10 -> 5 | AF10: =C_Time!AF10 -> 6 | AG10: =C_Time!AG10 -> 7 | AH10: =C_Time!AH10 -> 8 | AI10: =C_Time!AI10 -> 9 | AJ10: =C_Time!AJ10 -> 10 | AK10: =C_Time!AK10 -> 11 | AL10: =C_Time!AL10 -> 12 | AM10: =C_Time!AM10 -> 13 | AN10: =C_Time!AN10 -> 14 | AO10: =C_Time!AO10 -> 15 | AP10: =C_Time!AP10 -> 16 | AQ10: =C_Time!AQ10 -> 17 | AR10: =C_Time!AR10 -> 18 | AS10: =C_Time!AS10 -> 19 | AT10: =C_Time!AT10 -> 20 | AU10: =C_Time!AU10 -> 21 | AV10: =C_Time!AV10 -> 22 | AW10: =C_Time!AW10 -> 23 | AX10: =C_Time!AX10 -> 24 | AY10: =C_Time!AY10 -> 25 | AZ10: =C_Time!AZ10 -> 26 | BA10: =C_Time!BA10 -> 27 | BB10: =C_Time!BB10 -> 28 | BC10: =C_Time!BC10 -> 29 | BD10: =C_Time!BD10 -> 30 | BE10: =C_Time!BE10 -> 31 | BF10: =C_Time!BF10 -> 32 | BG10: =C_Time!BG10 -> 33 | BH10: =C_Time!BH10 -> 34 | BI10: =C_Time!BI10 -> 35 | BJ10: =C_Time!BJ10 -> 36
E11: =C_Time!E$11 -> Pricing Period | G11: =C_Time!G$11 -> periods | AA11: =C_Time!AA$11 -> Q6 | AB11: =C_Time!AB$11 -> Q6 | AC11: =C_Time!AC$11 -> Q6 | AD11: =C_Time!AD$11 -> Q6 | AE11: =C_Time!AE$11 -> Q6+1 | AF11: =C_Time!AF$11 -> iH7 | AG11: =C_Time!AG$11 -> iH7 | AH11: =C_Time!AH$11 -> H7 | AI11: =C_Time!AI$11 -> H7 | AJ11: =C_Time!AJ$11 -> H7 | AK11: =C_Time!AK$11 -> H7 | AL11: =C_Time!AL$11 -> H7 | AM11: =C_Time!AM$11 -> H8 | AN11: =C_Time!AN$11 -> H8 | AO11: =C_Time!AO$11 -> H8 | AP11: =C_Time!AP$11 -> H8 | AQ11: =C_Time!AQ$11 -> H8 | AR11: =C_Time!AR$11 -> H9 | AS11: =C_Time!AS$11 -> H9 | AT11: =C_Time!AT$11 -> H9 | AU11: =C_Time!AU$11 -> H9 | AV11: =C_Time!AV$11 -> H9 | AW11: =C_Time!AW$11 -> H10 | AX11: =C_Time!AX$11 -> H10 | AY11: =C_Time!AY$11 -> H10 | AZ11: =C_Time!AZ$11 -> H10 | BA11: =C_Time!BA$11 -> H10 | BB11: =C_Time!BB$11 -> H11 | BC11: =C_Time!BC$11 -> H11 | BD11: =C_Time!BD$11 -> H11 | BE11: =C_Time!BE$11 -> H11 | BF11: =C_Time!BF$11 -> H11 | BG11: =C_Time!BG$11 -> H12 | BH11: =C_Time!BH$11 -> H12 | BI11: =C_Time!BI$11 -> H12 | BJ11: =C_Time!BJ$11 -> H12
E12: =C_Time!E$12 -> Forecast vs Actuals | G12: =C_Time!G$12 -> label | AA12: =C_Time!AA$12 -> Actual | AB12: =C_Time!AB$12 -> Actual | AC12: =C_Time!AC$12 -> Actual | AD12: =C_Time!AD$12 -> Actual | AE12: =C_Time!AE$12 -> Actual | AF12: =C_Time!AF$12 -> Forecast | AG12: =C_Time!AG$12 -> Forecast | AH12: =C_Time!AH$12 -> Forecast | AI12: =C_Time!AI$12 -> Forecast | AJ12: =C_Time!AJ$12 -> Forecast | AK12: =C_Time!AK$12 -> Forecast | AL12: =C_Time!AL$12 -> Forecast | AM12: =C_Time!AM$12 -> Forecast | AN12: =C_Time!AN$12 -> Forecast | AO12: =C_Time!AO$12 -> Forecast | AP12: =C_Time!AP$12 -> Forecast | AQ12: =C_Time!AQ$12 -> Forecast | AR12: =C_Time!AR$12 -> Forecast | AS12: =C_Time!AS$12 -> Forecast | AT12: =C_Time!AT$12 -> Forecast | AU12: =C_Time!AU$12 -> Forecast | AV12: =C_Time!AV$12 -> Forecast | AW12: =C_Time!AW$12 -> Forecast | AX12: =C_Time!AX$12 -> Forecast | AY12: =C_Time!AY$12 -> Forecast | AZ12: =C_Time!AZ$12 -> Forecast | BA12: =C_Time!BA$12 -> Forecast | BB12: =C_Time!BB$12 -> Forecast | BC12: =C_Time!BC$12 -> Forecast | BD12: =C_Time!BD$12 -> Forecast | BE12: =C_Time!BE$12 -> Forecast | BF12: =C_Time!BF$12 -> Forecast | BG12: =C_Time!BG$12 -> Forecast | BH12: =C_Time!BH$12 -> Forecast | BI12: =C_Time!BI$12 -> Forecast | BJ12: =C_Time!BJ$12 -> Forecast
E14: Label | F14: Constant | G14: Units | H14: Notes | I14: Data Source | K14: Confidentiality Status | Y14: Total
A15: 4.a Balances
B17: 4.a.i Balance Sheet
E19: Non-Current Assets balance (actual) | G19: =I_Global!$F$115 -> £'m nominal | H19: Nominal. Enter as positive | I19: Opening RAB Balance, Pre 2019 Heathrow SP accounts (2019 figures for all prior years as placeholder) | K19: Already published | AA19: 15125 | AB19: 15125 | AC19: 15125 | AD19: 15125 | AE19: =I_InputSets!F382 -> 16139.26458
E21: Retained earnings (actual) | G21: =I_Global!$F$115 -> £'m nominal | H21: Nominal | I21: 2019 HAL RBP assumption, Pre 2019 Heathrow SP accounts (2019 figures for all prior years as placeholder) | K21: Already published | AA21: 661 | AB21: 661 | AC21: 661 | AD21: 661 | AE21: =(I_InputSets!F382*0.4*0.5) -> 3227.852916
E23: Share capital plus share premium (actual) | G23: =I_Global!$F$115 -> £'m nominal | H23: Nominal share capital plus share premium | I23: 2019 HAL RBP assumption, Pre 2019 Heathrow SP accounts (2019 figures for all prior years as placeholder) | K23: Already published | AA23: 510 | AB23: 510 | AC23: 510 | AD23: 510 | AE23: =0.4*0.5*I_InputSets!F382 -> 3227.852916
E25: Retained cash (actual) | G25: =I_Global!$F$115 -> £'m nominal | H25: Nominal | I25: Heathrow SP accounts (2019 figures for all prior years as placeholder) | K25: Already published | AA25: 815 | AB25: 815 | AC25: 815 | AD25: 815 | AE25: 815
E27: Other assets (actual for historic balances) | G27: =I_Global!$F$115 -> £'m nominal | H27: Nominal | I27: Heathrow SP accounts (2019 figures for all prior years as placeholder). Current assets exc cash | K27: Already published | AA27: 985 | AB27: 985 | AC27: 985 | AD27: 985
E29: Other equity (actual for historic balance) | G29: =I_Global!$F$115 -> £'m nominal | H29: Nominal | I29: Heathrow SP accounts (2019 figures for all prior years as placeholder) | K29: Already published | AA29: -3945 | AB29: -3945 | AC29: -3945 | AD29: -3945
E31: Other liabilities (actual for historic balances) | G31: =I_Global!$F$115 -> £'m nominal | H31: Nominal | I31: Heathrow SP accounts (2019 figures for all prior years as placeholder). Balancing figure for total liabilities and embedded debt | K31: Already published | AA31: 5199.769905 | AB31: 5199.769905 | AC31: 5199.769905 | AD31: 5199.769905
E33: Embedded debt fixed (actual) | G33: =I_Global!$F$115 -> £'m nominal | H33: Nominal | I33: Calculated as 60% of RAB, then 70% fixed | AA33: 10000.23009 | AB33: 10000.23009 | AC33: 10000.23009 | AD33: 10000.23009 | AE33: =((I_InputSets!$AA$382)*0.6+$AE$25)*0.7 -> 7348.991124
E35: Embedded debt indexed linked (actual) | G35: =I_Global!$F$115 -> £'m nominal | H35: Nominal | I35: Calculated as 60% of RAB, then 30% IL | AA35: 4499 | AB35: 4499 | AC35: 4499 | AD35: 4499 | AE35: =((I_InputSets!$AA$382)*0.6+$AE$25)*0.3 -> 3149.567624
B37: 4.a.ii Capital Allowances
E39: Existing main pool assets balance | G39: =I_Global!$F$115 -> £'m nominal | H39: Nominal | I39: CAA | K39: Already published | AA39: =1751+88 -> 1839 | AB39: =1751+88 -> 1839 | AC39: =1751+88 -> 1839 | AD39: =1751+88 -> 1839 | AE39: =1751+88 -> 1839
E40: Existing special pool assets balance | G40: =I_Global!$F$115 -> £'m nominal | H40: Nominal | I40: CAA | K40: Already published | AA40: =827+693 -> 1520 | AB40: =827+693 -> 1520 | AC40: =827+693 -> 1520 | AD40: =827+693 -> 1520 | AE40: =827+693 -> 1520
E41: Existing structures and buildings allowance assets balance | G41: =I_Global!$F$115 -> £'m nominal | H41: Nominal
A43: 4.b Income statement items
B45: 4.b.i Revenue
E47: Airport charges revenue historic actuals | G47: =I_Global!$F$115 -> £'m nominal | H47: Nominal | I47: Heathrow SP accts 2019, dummy values prior | K47: Already published | AA47: 1699 | AB47: 1699 | AC47: 1716 | AD47: 1745 | AE47: 1831
E48: Retail revenue historic actuals | G48: =I_Global!$F$115 -> £'m nominal | H48: Nominal | I48: Heathrow SP accts 2019, dummy values prior | K48: Already published | AA48: 568 | AB48: 612 | AC48: 659 | AD48: 716 | AE48: 722
E49: Surface access revenue historic actuals | G49: =I_Global!$F$115 -> £'m nominal | H49: Nominal | I49: Heathrow SP accts 2019, dummy values prior | K49: Already published
E50: Property revenue historic actuals | G50: =I_Global!$F$115 -> £'m nominal | H50: Nominal | I50: Heathrow SP accts 2019, dummy values prior | K50: Already published | AA50: 161 | AB50: 204 | AC50: 143 | AD50: 142 | AE50: =108+25 -> 133
E51: ORC's revenue historic actuals | G51: =I_Global!$F$115 -> £'m nominal | H51: Nominal | I51: Heathrow SP accts 2019, dummy values prior | K51: Already published | AA51: 239 | AB51: 232 | AC51: 243 | AD51: 240 | AE51: 244
E52: Other commercial revenue historic actuals | G52: =I_Global!$F$115 -> £'m nominal | H52: Nominal | I52: Heathrow SP accts 2019, dummy values prior | K52: Already published | AC52: -56 | AD52: -96
E53: Rail revenue historic actuals | G53: =I_Global!$F$115 -> £'m nominal | H53: Nominal | I53: Heathrow SP accts 2019, dummy values prior | K53: Already published | AA53: 87 | AB53: 13 | AC53: 123 | AD53: 127 | AE53: =117+23 -> 140
E54: emissions charging revenue historic actuals | G54: =I_Global!$F$115 -> £'m nominal | H54: Nominal | I54: Heathrow SP accts 2019, dummy values prior | K54: Already published
B56: 4.b.ii Operating Costs
E58: People costs historic actuals | G58: =I_Global!$F$115 -> £'m nominal | H58: Nominal. Enter as positive | I58: Heathrow SP accts 2019, dummy values prior | K58: Already published | AA58: 361 | AB58: 349 | AC58: 349 | AD58: 355 | AE58: 378
E59: Operations costs historic actuals | G59: =I_Global!$F$115 -> £'m nominal | H59: Nominal. Enter as positive | I59: Heathrow SP accts 2019, dummy values prior | K59: Already published | AA59: 243 | AB59: 257 | AC59: 241 | AD59: 252 | AE59: 279
E60: Rent & rates historic actuals | G60: =I_Global!$F$115 -> £'m nominal | H60: Nominal. Enter as positive | I60: Heathrow SP accts 2019, dummy values prior | K60: Already published | AA60: 123 | AB60: 127 | AC60: 124 | AD60: 119 | AE60: 117
E61: Utilities historic actuals | G61: =I_Global!$F$115 -> £'m nominal | H61: Nominal. Enter as positive | I61: Heathrow SP accts 2019, dummy values prior | K61: Already published | AA61: 90 | AB61: 72 | AC61: 86 | AD61: 88 | AE61: 72
E62: Facilities & maintenance actuals | G62: =I_Global!$F$115 -> £'m nominal | H62: Nominal. Enter as positive | I62: Heathrow SP accts 2019, dummy values prior | K62: Already published | AA62: 175 | AB62: 164 | AC62: 164 | AD62: 165 | AE62: 173
E63: Other opex historic actuals | G63: =I_Global!$F$115 -> £'m nominal | H63: Nominal. Enter as positive | I63: Heathrow SP accts 2019, dummy values prior | K63: Already published | AA63: 165 | AB63: 111 | AC63: 112 | AD63: 103 | AE63: 130
B65: 4.b.iii Depreciation
E67: Accounting depreciation actuals & forecast on existing NCA | G67: =I_Global!$F$115 -> £'m nominal | H67: Nominal. Enter as positive | I67: HAL accounts (2018 figures for all prior years as placeholder) | K67: Already published | Y67: =SUM(AA67:BJ67) -> 14930.89682 | AA67: 489 | AB67: 489 | AC67: 489 | AD67: 489 | AE67: 671.0021027 | AF67: 656.7775795 | AG67: 643.4528015 | AH67: 630.8116524 | AI67: 618.621512 | AJ67: 606.8573001 | AK67: 595.3168061 | AL67: 583.9957755 | AM67: 572.8900349 | AN67: 561.9954901 | AO67: 551.3081249 | AP67: 540.8239994 | AQ67: 530.5392485 | AR67: 520.4500809 | AS67: 510.5527771 | AT67: 500.8436885 | AU67: 491.3192359 | AV67: 481.9759081 | AW67: 472.8102606 | AX67: 463.8189145 | AY67: 454.9985552 | AZ67: 446.3459311 | BA67: 437.8578524 | BB67: 429.5311899
B69: 4.b.iv Tax
E71: Historic actual tax expense | F71: =IF(SUM(AA71:BJ71)>=0,0,1) -> 0 | G71: =I_Global!$F$115 -> £'m nominal | H71: Nominal. Enter as positive | I71: Heathrow SP accts 2019, dummy values prior | K71: Being published with this model | AA71: 133 | AB71: 133 | AC71: 133 | AD71: 133 | AE71: 133
E73: Historic actual tax paid | F73: =IF(SUM(AA73:BJ73)>=0,0,1) -> 0 | G73: =I_Global!$F$115 -> £'m nominal | H73: Nominal. Enter as positive | I73: Heathrow SP accts 2019, dummy values prior | K73: Being published with this model | AA73: 133 | AB73: 133 | AC73: 133 | AD73: 133 | AE73: 133
A75: 4.c Cashflows
E77: Capital expenditures (actuals) | G77: =I_Global!$F$115 -> £'m nominal | H77: Nominal. Enter as positive | I77: Heathrow SP accts 2019, dummy values prior | K77: Being published with this model | Y77: =SUM(AA77:BJ77) -> 3596 | AA77: 586 | AB77: 668 | AC77: 693 | AD77: 793 | AE77: 856
E79: Historic actual dividends | F79: =IF(SUM(AA79:BJ79)>=0,0,1) -> 0 | G79: =I_Global!$F$115 -> £'m nominal | H79: Nominal. Enter as positive | I79: Heathrow SP accts 2019, 2018, dummy values prior | K79: Already published | Y79: =SUM(AA79:BJ79) -> 2197 | AA79: 361 | AB79: 594 | AC79: 277 | AD79: 485 | AE79: 480
A81: 5. Input checks
E83: Historical input signage checks | F83: =SUM(F79,F73,F71) -> 0 | G83: check
A85: End of spreadsheet

Sheet I_Ratios
A1: =MID(CELL( "filename", $A$1 ), SEARCH( "[",CELL( "filename", $A$1 ) ) + 1, SEARCH( "]",CELL( "filename", $A$1 ) ) - SEARCH( "[",CELL( "filename", $A$1 ) ) - 1 ) -> 
B2: =RIGHT(CELL( "filename", B2 ), LEN(CELL( "filename", B2 ) ) - SEARCH( "]",CELL( "filename", B2 ) ) ) ->  | I2: =I_InputSets!$I$2 -> Warning, dashboard overrides active
E3: =Checks!E$71 -> Checks & Alerts | F3: =Checks!F$3 -> -1 | H3: =C_Ratios!H3 -> Alerts | I3: =C_Ratios!I3 -> ALERT: one or more financial ratios are breaching thresholds
B4: =I_Scenarios!$G$16 -> Input set used to determine prices | F4: =I_Scenarios!$G$17 -> Input set 1
B5: =I_Scenarios!$I$16 -> Input set used to determine outturn financial statements & ratios | F5: =I_Scenarios!$I$17 -> Input set 1
B6: =I_Scenarios!$E$16 -> Live Scenario | F6: =I_Scenarios!E$17 & " " & I_Scenarios!F$17 -> Scenario 1 Mid case
A7: Timeline
E8: =C_Time!E8 -> Period Beginning | G8: =C_Time!G8 -> date | AA8: =C_Time!AA8 -> 2015-01-01 | AB8: =C_Time!AB8 -> 2016-01-01 | AC8: =C_Time!AC8 -> 2017-01-01 | AD8: =C_Time!AD8 -> 2018-01-01 | AE8: =C_Time!AE8 -> 2019-01-01 | AF8: =C_Time!AF8 -> 2020-01-01 | AG8: =C_Time!AG8 -> 2021-01-01 | AH8: =C_Time!AH8 -> 2022-01-01 | AI8: =C_Time!AI8 -> 2023-01-01 | AJ8: =C_Time!AJ8 -> 2024-01-01 | AK8: =C_Time!AK8 -> 2025-01-01 | AL8: =C_Time!AL8 -> 2026-01-01 | AM8: =C_Time!AM8 -> 2027-01-01 | AN8: =C_Time!AN8 -> 2028-01-01 | AO8: =C_Time!AO8 -> 2029-01-01 | AP8: =C_Time!AP8 -> 2030-01-01 | AQ8: =C_Time!AQ8 -> 2031-01-01 | AR8: =C_Time!AR8 -> 2032-01-01 | AS8: =C_Time!AS8 -> 2033-01-01 | AT8: =C_Time!AT8 -> 2034-01-01 | AU8: =C_Time!AU8 -> 2035-01-01 | AV8: =C_Time!AV8 -> 2036-01-01 | AW8: =C_Time!AW8 -> 2037-01-01 | AX8: =C_Time!AX8 -> 2038-01-01 | AY8: =C_Time!AY8 -> 2039-01-01 | AZ8: =C_Time!AZ8 -> 2040-01-01 | BA8: =C_Time!BA8 -> 2041-01-01 | BB8: =C_Time!BB8 -> 2042-01-01 | BC8: =C_Time!BC8 -> 2043-01-01 | BD8: =C_Time!BD8 -> 2044-01-01 | BE8: =C_Time!BE8 -> 2045-01-01 | BF8: =C_Time!BF8 -> 2046-01-01 | BG8: =C_Time!BG8 -> 2047-01-01 | BH8: =C_Time!BH8 -> 2048-01-01 | BI8: =C_Time!BI8 -> 2049-01-01 | BJ8: =C_Time!BJ8 -> 2050-01-01
E9: =C_Time!E9 -> Period Ending | G9: =C_Time!G9 -> date | AA9: =C_Time!AA9 -> 2015-12-31 | AB9: =C_Time!AB9 -> 2016-12-31 | AC9: =C_Time!AC9 -> 2017-12-31 | AD9: =C_Time!AD9 -> 2018-12-31 | AE9: =C_Time!AE9 -> 2019-12-31 | AF9: =C_Time!AF9 -> 2020-12-31 | AG9: =C_Time!AG9 -> 2021-12-31 | AH9: =C_Time!AH9 -> 2022-12-31 | AI9: =C_Time!AI9 -> 2023-12-31 | AJ9: =C_Time!AJ9 -> 2024-12-31 | AK9: =C_Time!AK9 -> 2025-12-31 | AL9: =C_Time!AL9 -> 2026-12-31 | AM9: =C_Time!AM9 -> 2027-12-31 | AN9: =C_Time!AN9 -> 2028-12-31 | AO9: =C_Time!AO9 -> 2029-12-31 | AP9: =C_Time!AP9 -> 2030-12-31 | AQ9: =C_Time!AQ9 -> 2031-12-31 | AR9: =C_Time!AR9 -> 2032-12-31 | AS9: =C_Time!AS9 -> 2033-12-31 | AT9: =C_Time!AT9 -> 2034-12-31 | AU9: =C_Time!AU9 -> 2035-12-31 | AV9: =C_Time!AV9 -> 2036-12-31 | AW9: =C_Time!AW9 -> 2037-12-31 | AX9: =C_Time!AX9 -> 2038-12-31 | AY9: =C_Time!AY9 -> 2039-12-31 | AZ9: =C_Time!AZ9 -> 2040-12-31 | BA9: =C_Time!BA9 -> 2041-12-31 | BB9: =C_Time!BB9 -> 2042-12-31 | BC9: =C_Time!BC9 -> 2043-12-31 | BD9: =C_Time!BD9 -> 2044-12-31 | BE9: =C_Time!BE9 -> 2045-12-31 | BF9: =C_Time!BF9 -> 2046-12-31 | BG9: =C_Time!BG9 -> 2047-12-31 | BH9: =C_Time!BH9 -> 2048-12-31 | BI9: =C_Time!BI9 -> 2049-12-31 | BJ9: =C_Time!BJ9 -> 2050-12-31
E10: =C_Time!E10 -> Model period number | G10: =C_Time!G10 -> # | AA10: =C_Time!AA10 -> 1 | AB10: =C_Time!AB10 -> 2 | AC10: =C_Time!AC10 -> 3 | AD10: =C_Time!AD10 -> 4 | AE10: =C_Time!AE10 -> 5 | AF10: =C_Time!AF10 -> 6 | AG10: =C_Time!AG10 -> 7 | AH10: =C_Time!AH10 -> 8 | AI10: =C_Time!AI10 -> 9 | AJ10: =C_Time!AJ10 -> 10 | AK10: =C_Time!AK10 -> 11 | AL10: =C_Time!AL10 -> 12 | AM10: =C_Time!AM10 -> 13 | AN10: =C_Time!AN10 -> 14 | AO10: =C_Time!AO10 -> 15 | AP10: =C_Time!AP10 -> 16 | AQ10: =C_Time!AQ10 -> 17 | AR10: =C_Time!AR10 -> 18 | AS10: =C_Time!AS10 -> 19 | AT10: =C_Time!AT10 -> 20 | AU10: =C_Time!AU10 -> 21 | AV10: =C_Time!AV10 -> 22 | AW10: =C_Time!AW10 -> 23 | AX10: =C_Time!AX10 -> 24 | AY10: =C_Time!AY10 -> 25 | AZ10: =C_Time!AZ10 -> 26 | BA10: =C_Time!BA10 -> 27 | BB10: =C_Time!BB10 -> 28 | BC10: =C_Time!BC10 -> 29 | BD10: =C_Time!BD10 -> 30 | BE10: =C_Time!BE10 -> 31 | BF10: =C_Time!BF10 -> 32 | BG10: =C_Time!BG10 -> 33 | BH10: =C_Time!BH10 -> 34 | BI10: =C_Time!BI10 -> 35 | BJ10: =C_Time!BJ10 -> 36
E11: =C_Time!E$11 -> Pricing Period | G11: =C_Time!G$11 -> periods | AA11: =C_Time!AA$11 -> Q6 | AB11: =C_Time!AB$11 -> Q6 | AC11: =C_Time!AC$11 -> Q6 | AD11: =C_Time!AD$11 -> Q6 | AE11: =C_Time!AE$11 -> Q6+1 | AF11: =C_Time!AF$11 -> iH7 | AG11: =C_Time!AG$11 -> iH7 | AH11: =C_Time!AH$11 -> H7 | AI11: =C_Time!AI$11 -> H7 | AJ11: =C_Time!AJ$11 -> H7 | AK11: =C_Time!AK$11 -> H7 | AL11: =C_Time!AL$11 -> H7 | AM11: =C_Time!AM$11 -> H8 | AN11: =C_Time!AN$11 -> H8 | AO11: =C_Time!AO$11 -> H8 | AP11: =C_Time!AP$11 -> H8 | AQ11: =C_Time!AQ$11 -> H8 | AR11: =C_Time!AR$11 -> H9 | AS11: =C_Time!AS$11 -> H9 | AT11: =C_Time!AT$11 -> H9 | AU11: =C_Time!AU$11 -> H9 | AV11: =C_Time!AV$11 -> H9 | AW11: =C_Time!AW$11 -> H10 | AX11: =C_Time!AX$11 -> H10 | AY11: =C_Time!AY$11 -> H10 | AZ11: =C_Time!AZ$11 -> H10 | BA11: =C_Time!BA$11 -> H10 | BB11: =C_Time!BB$11 -> H11 | BC11: =C_Time!BC$11 -> H11 | BD11: =C_Time!BD$11 -> H11 | BE11: =C_Time!BE$11 -> H11 | BF11: =C_Time!BF$11 -> H11 | BG11: =C_Time!BG$11 -> H12 | BH11: =C_Time!BH$11 -> H12 | BI11: =C_Time!BI$11 -> H12 | BJ11: =C_Time!BJ$11 -> H12
E12: =C_Time!E$12 -> Forecast vs Actuals | G12: =C_Time!G$12 -> label | AA12: =C_Time!AA$12 -> Actual | AB12: =C_Time!AB$12 -> Actual | AC12: =C_Time!AC$12 -> Actual | AD12: =C_Time!AD$12 -> Actual | AE12: =C_Time!AE$12 -> Actual | AF12: =C_Time!AF$12 -> Forecast | AG12: =C_Time!AG$12 -> Forecast | AH12: =C_Time!AH$12 -> Forecast | AI12: =C_Time!AI$12 -> Forecast | AJ12: =C_Time!AJ$12 -> Forecast | AK12: =C_Time!AK$12 -> Forecast | AL12: =C_Time!AL$12 -> Forecast | AM12: =C_Time!AM$12 -> Forecast | AN12: =C_Time!AN$12 -> Forecast | AO12: =C_Time!AO$12 -> Forecast | AP12: =C_Time!AP$12 -> Forecast | AQ12: =C_Time!AQ$12 -> Forecast | AR12: =C_Time!AR$12 -> Forecast | AS12: =C_Time!AS$12 -> Forecast | AT12: =C_Time!AT$12 -> Forecast | AU12: =C_Time!AU$12 -> Forecast | AV12: =C_Time!AV$12 -> Forecast | AW12: =C_Time!AW$12 -> Forecast | AX12: =C_Time!AX$12 -> Forecast | AY12: =C_Time!AY$12 -> Forecast | AZ12: =C_Time!AZ$12 -> Forecast | BA12: =C_Time!BA$12 -> Forecast | BB12: =C_Time!BB$12 -> Forecast | BC12: =C_Time!BC$12 -> Forecast | BD12: =C_Time!BD$12 -> Forecast | BE12: =C_Time!BE$12 -> Forecast | BF12: =C_Time!BF$12 -> Forecast | BG12: =C_Time!BG$12 -> Forecast | BH12: =C_Time!BH$12 -> Forecast | BI12: =C_Time!BI$12 -> Forecast | BJ12: =C_Time!BJ$12 -> Forecast
E14: Label | F14: Constant | G14: Units | H14: Notes | I14: Data Source | K14: Confidentiality Status | Y14: Total
A15: Off Model Inputs
B17: S&P
E19: Operating leases commitments (Debt Adjustment) | G19: =I_Global!$F$115 -> £'m nominal | Y19: =SUM(AA19:BJ19) -> 0
E20: PRB/ deferred compensation (Debt Adjustment) | G20: =I_Global!$F$115 -> £'m nominal | Y20: =SUM(AA20:BJ20) -> 0
E21: Foreign currency swaps | G21: =I_Global!$F$115 -> £'m nominal | Y21: 0
E22: Intercompany loan | G22: =I_Global!$F$115 -> £'m nominal | Y22: 0
E23: Home provision loss | G23: =I_Global!$F$115 -> £'m nominal | Y23: 0
E24: Revaluation gain on investment property | G24: =I_Global!$F$115 -> £'m nominal | Y24: 0
E25: Interest paid to debenture | G25: =I_Global!$F$115 -> £'m nominal | Y25: 0
E26: Operating Lease Commitment (EBITDA Adjustment) | G26: =I_Global!$F$115 -> £'m nominal | Y26: 0
E27: PRB/ deferred compensation (EBITDA Adjustment) | G27: =I_Global!$F$115 -> £'m nominal | Y27: 0
E28: Operating Lease Commitment (FFO Adjustment) | G28: =I_Global!$F$115 -> £'m nominal | Y28: 0
B30: Moody's
E32: Assumed Remaining Concession Life | G32: =I_Global!$F$131 -> years | I32: Heathrow - Rating Agency Methodologies - Reconciliation (Draft).docx | K32: Being published with this model | Y32: =SUM(AA32:BJ32) -> 3400 | AC32: 100 | AD32: 100 | AE32: 100 | AF32: 100 | AG32: 100 | AH32: 100 | AI32: 100 | AJ32: 100 | AK32: 100 | AL32: 100 | AM32: 100 | AN32: 100 | AO32: 100 | AP32: 100 | AQ32: 100 | AR32: 100 | AS32: 100 | AT32: 100 | AU32: 100 | AV32: 100 | AW32: 100 | AX32: 100 | AY32: 100 | AZ32: 100 | BA32: 100 | BB32: 100 | BC32: 100 | BD32: 100 | BE32: 100 | BF32: 100 | BG32: 100 | BH32: 100 | BI32: 100 | BJ32: 100
E33: Working Capital | G33: =I_Global!$F$115 -> £'m nominal | Y33: 0
E34: Defined Benefit obligations | G34: =I_Global!$F$115 -> £'m nominal | Y34: 0
E35: Operating leases commitments | G35: =I_Global!$F$115 -> £'m nominal | Y35: 0
E36: Pensions Finance Cost | G36: =I_Global!$F$115 -> £'m nominal | Y36: 0
E37: Defined Benefit obligations (Interest Charge Adjustment) | G37: =I_Global!$F$115 -> £'m nominal | Y37: 0
E38: Operating Lease Commitments (Interest Charge Adjustment) | G38: =I_Global!$F$115 -> £'m nominal | Y38: 0
E39: Operating Lease Commitments (Adj to Debt) | G39: =I_Global!$F$115 -> £'m nominal | Y39: 0
E40: Non-standard adjustment A (Adj to Debt) | G40: =I_Global!$F$115 -> £'m nominal | Y40: 0
E41: Non-standard adjustment B (Adj to Debt) | G41: =I_Global!$F$115 -> £'m nominal | Y41: 0
B43: Fitch
E45: Marketable Securities | G45: =I_Global!$F$115 -> £'m nominal | Y45: =SUM(AA45:BJ45) -> 0
E46: Cash reported as restricted or blocked | G46: =I_Global!$F$115 -> £'m nominal | Y46: 0
E47: Cash deemed not readily available | G47: =I_Global!$F$115 -> £'m nominal | Y47: 0
E48: Provision for bad debt | G48: =I_Global!$F$115 -> £'m nominal | Y48: 0
E49: Impairments included in EBITDA | G49: =I_Global!$F$115 -> £'m nominal | Y49: 0
E50: Regulatory Fees | G50: =I_Global!$F$115 -> £'m nominal | Y50: 0
E51: Other operating income | G51: =I_Global!$F$115 -> £'m nominal | Y51: 0
E52: Adjustment for Non-Recurring/ non-recourse items | G52: =I_Global!$F$115 -> £'m nominal | Y52: 0
E53: Analyst adjustments to EBITDA | G53: =I_Global!$F$115 -> £'m nominal | Y53: 0
E54: Intra-group Loans | G54: =I_Global!$F$115 -> £'m nominal | Y54: 0
E55: Working Capital Movements | G55: =I_Global!$F$115 -> £'m nominal | Y55: 0
E56: RAB Percentage | G56: =I_Global!$F$108 -> % | I56: 2019 rating annual report - page 30 (notes) | K56: Already published | AD56: 0.02 | AE56: 0.02 | AF56: 0.02 | AG56: 0.02 | AH56: 0.02 | AI56: 0.02 | AJ56: 0.02 | AK56: 0.02 | AL56: 0.02 | AM56: 0.02 | AN56: 0.02 | AO56: 0.02 | AP56: 0.02 | AQ56: 0.02 | AR56: 0.02 | AS56: 0.02 | AT56: 0.02 | AU56: 0.02 | AV56: 0.02 | AW56: 0.02 | AX56: 0.02 | AY56: 0.02 | AZ56: 0.02 | BA56: 0.02 | BB56: 0.02 | BC56: 0.02 | BD56: 0.02 | BE56: 0.02 | BF56: 0.02 | BG56: 0.02 | BH56: 0.02 | BI56: 0.02 | BJ56: 0.02
A58: Financial Ratio Thresholds
B60: Moody's
E62: Cash Interest Coverage Ratio
E63: Aaa Cash Interest Coverage threshold | G63: =I_Global!$F$125 -> ratio
E64: Baa Cash Interest Coverage threshold | G64: =I_Global!$F$125 -> ratio
E65: B Cash Interest Coverage threshold | G65: =I_Global!$F$125 -> ratio
E67: FFO to Net Debt
E68: Aaa Funds from Operations (FFO) to Net Debt threshold | G68: =I_Global!$F$108 -> %
E69: Baa Funds from Operations (FFO) to Net Debt threshold | G69: =I_Global!$F$108 -> %
E70: B Funds from Operations (FFO) to Net Debt threshold | G70: =I_Global!$F$108 -> %
E72: Moody's Debt Service Coverage Ratio
E73: Aaa Moody's Debt Service Coverage Ratio threshold | G73: =I_Global!$F$125 -> ratio
E74: Baa Moody's Debt Service Coverage Ratio threshold | G74: =I_Global!$F$125 -> ratio
E75: B Moody's Debt Service Coverage Ratio threshold | G75: =I_Global!$F$125 -> ratio
E77: RCF to Debt
E78: Aaa Retained Cash Flow (RCF) to Debt threshold | G78: =I_Global!$F$108 -> %
E79: Baa Retained Cash Flow (RCF) to Debt threshold | G79: =I_Global!$F$108 -> %
E80: B Retained Cash Flow (RCF) to Debt threshold | G80: =I_Global!$F$108 -> %
E82: Adjusted Interest Coverage Ratio
E83: Aaa Adjusted Interest Coverage threshold | G83: =I_Global!$F$125 -> ratio
E84: Baa Adjusted Interest Coverage threshold | G84: =I_Global!$F$125 -> ratio
E85: B Adjusted Interest Coverage threshold | G85: =I_Global!$F$125 -> ratio
E87: Regulatory Asset Ratio
E88: Aaa Debt to Regulatory Asset Ratio threshold | G88: =I_Global!$F$108 -> %
E89: Baa Debt to Regulatory Asset Ratio threshold | G89: =I_Global!$F$108 -> %
E90: B Debt to Regulatory Asset Ratio threshold | G90: =I_Global!$F$108 -> %
B92: S&P
E94: FFO to Net Debt
E95: A- Funds from Operations (FFO) to Net Debt threshold | G95: =I_Global!$F$108 -> % | H95: negative rating action thresholds | I95: CO Heathrow Funding Ltd 9 Aug 2019 | K95: Already published | AA95: 0.08 | AB95: 0.08 | AC95: 0.08 | AD95: 0.08 | AE95: 0.08 | AF95: 0.08 | AG95: 0.08 | AH95: 0.08 | AI95: 0.08 | AJ95: 0.08 | AK95: 0.08 | AL95: 0.08 | AM95: 0.08 | AN95: 0.08 | AO95: 0.08 | AP95: 0.08 | AQ95: 0.08 | AR95: 0.08 | AS95: 0.08 | AT95: 0.08 | AU95: 0.08 | AV95: 0.08 | AW95: 0.08 | AX95: 0.08 | AY95: 0.08 | AZ95: 0.08 | BA95: 0.08 | BB95: 0.08 | BC95: 0.08 | BD95: 0.08 | BE95: 0.08 | BF95: 0.08 | BG95: 0.08 | BH95: 0.08 | BI95: 0.08 | BJ95: 0.08
E96: BBB+ Funds from Operations (FFO) to Net Debt threshold | G96: =I_Global!$F$108 -> % | H96: negative rating action thresholds | I96: Midpoint of A- and BBB | K96: Being published with this model | AA96: =(AA95+AA97)/2 -> 0.07 | AB96: 0.07 | AC96: 0.07 | AD96: 0.07 | AE96: 0.07 | AF96: 0.07 | AG96: 0.07 | AH96: 0.07 | AI96: 0.07 | AJ96: 0.07 | AK96: 0.07 | AL96: 0.07 | AM96: 0.07 | AN96: 0.07 | AO96: 0.07 | AP96: 0.07 | AQ96: 0.07 | AR96: 0.07 | AS96: 0.07 | AT96: 0.07 | AU96: 0.07 | AV96: 0.07 | AW96: 0.07 | AX96: 0.07 | AY96: 0.07 | AZ96: 0.07 | BA96: 0.07 | BB96: 0.07 | BC96: 0.07 | BD96: 0.07 | BE96: 0.07 | BF96: 0.07 | BG96: 0.07 | BH96: 0.07 | BI96: 0.07 | BJ96: 0.07
E97: BBB Funds from Operations (FFO) to Net Debt threshold | G97: =I_Global!$F$108 -> % | H97: negative rating action thresholds | I97: CO Heathrow Funding Ltd 9 Aug 2019 | K97: Already published | AA97: 0.06 | AB97: 0.06 | AC97: 0.06 | AD97: 0.06 | AE97: 0.06 | AF97: 0.06 | AG97: 0.06 | AH97: 0.06 | AI97: 0.06 | AJ97: 0.06 | AK97: 0.06 | AL97: 0.06 | AM97: 0.06 | AN97: 0.06 | AO97: 0.06 | AP97: 0.06 | AQ97: 0.06 | AR97: 0.06 | AS97: 0.06 | AT97: 0.06 | AU97: 0.06 | AV97: 0.06 | AW97: 0.06 | AX97: 0.06 | AY97: 0.06 | AZ97: 0.06 | BA97: 0.06 | BB97: 0.06 | BC97: 0.06 | BD97: 0.06 | BE97: 0.06 | BF97: 0.06 | BG97: 0.06 | BH97: 0.06 | BI97: 0.06 | BJ97: 0.06
E99: Debt/EBITDA
E100: A- Debt/EBITDA threshold | G100: =I_Global!$F$125 -> ratio
E101: BBB+ Debt/EBITDA threshold | G101: =I_Global!$F$125 -> ratio
E102: BBB Debt/EBITDA threshold | G102: =I_Global!$F$125 -> ratio
E104: Regulatory Asset Ratio
E105: A- Debt to Regulatory Asset Ratio threshold | G105: =I_Global!$F$108 -> % | H105: negative rating action thresholds | I105: CO Heathrow Funding Ltd 9 Aug 2019 | K105: Already published | AA105: 0.7 | AB105: 0.7 | AC105: 0.7 | AD105: 0.7 | AE105: 0.7 | AF105: 0.7 | AG105: 0.7 | AH105: 0.7 | AI105: 0.7 | AJ105: 0.7 | AK105: 0.7 | AL105: 0.7 | AM105: 0.7 | AN105: 0.7 | AO105: 0.7 | AP105: 0.7 | AQ105: 0.7 | AR105: 0.7 | AS105: 0.7 | AT105: 0.7 | AU105: 0.7 | AV105: 0.7 | AW105: 0.7 | AX105: 0.7 | AY105: 0.7 | AZ105: 0.7 | BA105: 0.7 | BB105: 0.7 | BC105: 0.7 | BD105: 0.7 | BE105: 0.7 | BF105: 0.7 | BG105: 0.7 | BH105: 0.7 | BI105: 0.7 | BJ105: 0.7
E106: BBB+ Debt to Regulatory Asset Ratio threshold | G106: =I_Global!$F$108 -> % | H106: negative rating action thresholds | I106: Midpoint of A- and BBB | K106: Being published with this model | AA106: =(AA105+AA107)/2 -> 0.75 | AB106: 0.75 | AC106: 0.75 | AD106: 0.75 | AE106: 0.75 | AF106: 0.75 | AG106: 0.75 | AH106: 0.75 | AI106: 0.75 | AJ106: 0.75 | AK106: 0.75 | AL106: 0.75 | AM106: 0.75 | AN106: 0.75 | AO106: 0.75 | AP106: 0.75 | AQ106: 0.75 | AR106: 0.75 | AS106: 0.75 | AT106: 0.75 | AU106: 0.75 | AV106: 0.75 | AW106: 0.75 | AX106: 0.75 | AY106: 0.75 | AZ106: 0.75 | BA106: 0.75 | BB106: 0.75 | BC106: 0.75 | BD106: 0.75 | BE106: 0.75 | BF106: 0.75 | BG106: 0.75 | BH106: 0.75 | BI106: 0.75 | BJ106: 0.75
E107: BBB Debt to Regulatory Asset Ratio threshold | G107: =I_Global!$F$108 -> % | H107: negative rating action thresholds | I107: CO Heathrow Funding Ltd 9 Aug 2019 | K107: Already published | AA107: 0.8 | AB107: 0.8 | AC107: 0.8 | AD107: 0.8 | AE107: 0.8 | AF107: 0.8 | AG107: 0.8 | AH107: 0.8 | AI107: 0.8 | AJ107: 0.8 | AK107: 0.8 | AL107: 0.8 | AM107: 0.8 | AN107: 0.8 | AO107: 0.8 | AP107: 0.8 | AQ107: 0.8 | AR107: 0.8 | AS107: 0.8 | AT107: 0.8 | AU107: 0.8 | AV107: 0.8 | AW107: 0.8 | AX107: 0.8 | AY107: 0.8 | AZ107: 0.8 | BA107: 0.8 | BB107: 0.8 | BC107: 0.8 | BD107: 0.8 | BE107: 0.8 | BF107: 0.8 | BG107: 0.8 | BH107: 0.8 | BI107: 0.8 | BJ107: 0.8
E109: EBITDA Margin
E110: A- EBITDA Margin | G110: =I_Global!$F$108 -> %
E111: BBB+ EBITDA Margin | G111: =I_Global!$F$108 -> %
E112: BBB EBITDA Margin | G112: =I_Global!$F$108 -> %
E114: FFO to Cash Interest Coverage ratio
E115: A- Funds from Operations (FFO) to Cash interest coverage threshold | G115: =I_Global!$F$125 -> ratio
E116: BBB+ Funds from Operations (FFO) to Cash interest coverage threshold | G116: =I_Global!$F$125 -> ratio
E117: BBB Funds from Operations (FFO) to Cash interest coverage threshold | G117: =I_Global!$F$125 -> ratio
B119: Fitch
E121: Net Debt/EBITDA
E122: A- Debt/EBITDA threshold | G122: =I_Global!$F$125 -> ratio | H122: negative rating action thresholds (recovery by 2023) | I122: CO 30 Mar 2021 | K122: Already published | AA122: 8 | AB122: 8 | AC122: 8 | AD122: 8 | AE122: 8 | AF122: 8 | AG122: 8 | AH122: 8 | AI122: 8 | AJ122: 8 | AK122: 8 | AL122: 8 | AM122: 8 | AN122: 8 | AO122: 8 | AP122: 8 | AQ122: 8 | AR122: 8 | AS122: 8 | AT122: 8 | AU122: 8 | AV122: 8 | AW122: 8 | AX122: 8 | AY122: 8 | AZ122: 8 | BA122: 8 | BB122: 8 | BC122: 8 | BD122: 8 | BE122: 8 | BF122: 8 | BG122: 8 | BH122: 8 | BI122: 8 | BJ122: 8
E123: BBB+ Debt/EBITDA threshold | G123: =I_Global!$F$125 -> ratio | H123: negative rating action thresholds (recovery by 2023) | I123: Midpoint of A- and BBB | K123: Being published with this model | AA123: =(AA122+AA124)/2 -> 8.5 | AB123: =(AB122+AB124)/2 -> 8.5 | AC123: 8.5 | AD123: 8.5 | AE123: 8.5 | AF123: 8.5 | AG123: 8.5 | AH123: 8.5 | AI123: 8.5 | AJ123: 8.5 | AK123: 8.5 | AL123: 8.5 | AM123: 8.5 | AN123: 8.5 | AO123: 8.5 | AP123: 8.5 | AQ123: 8.5 | AR123: 8.5 | AS123: 8.5 | AT123: 8.5 | AU123: 8.5 | AV123: 8.5 | AW123: 8.5 | AX123: 8.5 | AY123: 8.5 | AZ123: 8.5 | BA123: 8.5 | BB123: 8.5 | BC123: 8.5 | BD123: 8.5 | BE123: 8.5 | BF123: 8.5 | BG123: 8.5 | BH123: 8.5 | BI123: 8.5 | BJ123: 8.5
E124: BBB Debt/EBITDA threshold | G124: =I_Global!$F$125 -> ratio | H124: negative rating action thresholds (recovery by 2023) | I124: CO 30 Mar 2021 | K124: Already published | AA124: 9 | AB124: 9 | AC124: 9 | AD124: 9 | AE124: 9 | AF124: 9 | AG124: 9 | AH124: 9 | AI124: 9 | AJ124: 9 | AK124: 9 | AL124: 9 | AM124: 9 | AN124: 9 | AO124: 9 | AP124: 9 | AQ124: 9 | AR124: 9 | AS124: 9 | AT124: 9 | AU124: 9 | AV124: 9 | AW124: 9 | AX124: 9 | AY124: 9 | AZ124: 9 | BA124: 9 | BB124: 9 | BC124: 9 | BD124: 9 | BE124: 9 | BF124: 9 | BG124: 9 | BH124: 9 | BI124: 9 | BJ124: 9
E126: PMICR
E127: A- Post Maintenance Interest Cover Ratio (PMICR) threshold | G127: =I_Global!$F$125 -> ratio | H127: negative rating action thresholds (recovery by 2023) | I127: CO 30 Mar 2021 | K127: Already published | AA127: 1.6 | AB127: 1.6 | AC127: 1.6 | AD127: 1.6 | AE127: 1.6 | AF127: 1.6 | AG127: 1.6 | AH127: 1.6 | AI127: 1.6 | AJ127: 1.6 | AK127: 1.6 | AL127: 1.6 | AM127: 1.6 | AN127: 1.6 | AO127: 1.6 | AP127: 1.6 | AQ127: 1.6 | AR127: 1.6 | AS127: 1.6 | AT127: 1.6 | AU127: 1.6 | AV127: 1.6 | AW127: 1.6 | AX127: 1.6 | AY127: 1.6 | AZ127: 1.6 | BA127: 1.6 | BB127: 1.6 | BC127: 1.6 | BD127: 1.6 | BE127: 1.6 | BF127: 1.6 | BG127: 1.6 | BH127: 1.6 | BI127: 1.6 | BJ127: 1.6
E128: BBB+ Post Maintenance Interest Cover Ratio (PMICR) threshold | G128: =I_Global!$F$125 -> ratio | H128: negative rating action thresholds (recovery by 2023) | I128: Midpoint of A- and BBB | K128: Being published with this model | AA128: =(AA127+AA129)/2 -> 1.45 | AB128: 1.45 | AC128: 1.45 | AD128: 1.45 | AE128: 1.45 | AF128: 1.45 | AG128: 1.45 | AH128: 1.45 | AI128: 1.45 | AJ128: 1.45 | AK128: 1.45 | AL128: 1.45 | AM128: 1.45 | AN128: 1.45 | AO128: 1.45 | AP128: 1.45 | AQ128: 1.45 | AR128: 1.45 | AS128: 1.45 | AT128: 1.45 | AU128: 1.45 | AV128: 1.45 | AW128: 1.45 | AX128: 1.45 | AY128: 1.45 | AZ128: 1.45 | BA128: 1.45 | BB128: 1.45 | BC128: 1.45 | BD128: 1.45 | BE128: 1.45 | BF128: 1.45 | BG128: 1.45 | BH128: 1.45 | BI128: 1.45 | BJ128: 1.45
E129: BBB Post Maintenance Interest Cover Ratio (PMICR) threshold | G129: =I_Global!$F$125 -> ratio | H129: negative rating action thresholds (recovery by 2023) | I129: CO 30 Mar 2021 | K129: Already published | AA129: 1.3 | AB129: 1.3 | AC129: 1.3 | AD129: 1.3 | AE129: 1.3 | AF129: 1.3 | AG129: 1.3 | AH129: 1.3 | AI129: 1.3 | AJ129: 1.3 | AK129: 1.3 | AL129: 1.3 | AM129: 1.3 | AN129: 1.3 | AO129: 1.3 | AP129: 1.3 | AQ129: 1.3 | AR129: 1.3 | AS129: 1.3 | AT129: 1.3 | AU129: 1.3 | AV129: 1.3 | AW129: 1.3 | AX129: 1.3 | AY129: 1.3 | AZ129: 1.3 | BA129: 1.3 | BB129: 1.3 | BC129: 1.3 | BD129: 1.3 | BE129: 1.3 | BF129: 1.3 | BG129: 1.3 | BH129: 1.3 | BI129: 1.3 | BJ129: 1.3
E131: Regulatory Asset Ratio
E132: A- Debt to Regulatory Asset Ratio threshold | G132: =I_Global!$F$108 -> %
E133: BBB+ Debt to Regulatory Asset Ratio threshold | G133: =I_Global!$F$108 -> %
E134: BBB Debt to Regulatory Asset Ratio threshold | G134: =I_Global!$F$108 -> %
E136: ICR
E137: A- Interest Cover Ratio (ICR) threshold | G137: =I_Global!$F$125 -> ratio
E138: BBB+ Interest Cover Ratio (ICR) threshold | G138: =I_Global!$F$125 -> ratio
E139: BBB Interest Cover Ratio (ICR) threshold | G139: =I_Global!$F$125 -> ratio
E141: ICR trigger level (distribution lockup) | G141: =I_Global!$F$125 -> ratio | I141: CAA | K141: Being published with this model | AH141: 1.4 | AI141: 1.4 | AJ141: 1.4 | AK141: 1.4 | AL141: 1.4 | AM141: 1.4 | AN141: 1.4 | AO141: 1.4 | AP141: 1.4 | AQ141: 1.4 | AR141: 1.4 | AS141: 1.4 | AT141: 1.4 | AU141: 1.4 | AV141: 1.4 | AW141: 1.4 | AX141: 1.4 | AY141: 1.4 | AZ141: 1.4 | BA141: 1.4 | BB141: 1.4 | BC141: 1.4 | BD141: 1.4 | BE141: 1.4 | BF141: 1.4 | BG141: 1.4 | BH141: 1.4 | BI141: 1.4 | BJ141: 1.4
A143: End of spreadsheet

Sheet I_Series
A1: =MID(CELL( "filename", $A$1 ), SEARCH( "[",CELL( "filename", $A$1 ) ) + 1, SEARCH( "]",CELL( "filename", $A$1 ) ) - SEARCH( "[",CELL( "filename", $A$1 ) ) - 1 ) -> 
B2: =RIGHT(CELL( "filename", B2 ), LEN(CELL( "filename", B2 ) ) - SEARCH( "]",CELL( "filename", B2 ) ) ) ->  | I2: =I_InputSets!$I$2 -> Warning, dashboard overrides active
E3: =Checks!E$71 -> Checks & Alerts | F3: =Checks!F$3 -> -1 | H3: =C_Ratios!H3 -> Alerts | I3: =C_Ratios!I3 -> ALERT: one or more financial ratios are breaching thresholds
B4: =I_Scenarios!$G$16 -> Input set used to determine prices | F4: =I_Scenarios!$G$17 -> Input set 1
B5: =I_Scenarios!$I$16 -> Input set used to determine outturn financial statements & ratios | F5: =I_Scenarios!$I$17 -> Input set 1
B6: =I_Scenarios!$E$16 -> Live Scenario | F6: =I_Scenarios!E$17 & " " & I_Scenarios!F$17 -> Scenario 1 Mid case
A7: Timeline
E8: =C_Time!E8 -> Period Beginning | G8: =C_Time!G8 -> date | AA8: =C_Time!AA8 -> 2015-01-01 | AB8: =C_Time!AB8 -> 2016-01-01 | AC8: =C_Time!AC8 -> 2017-01-01 | AD8: =C_Time!AD8 -> 2018-01-01 | AE8: =C_Time!AE8 -> 2019-01-01 | AF8: =C_Time!AF8 -> 2020-01-01 | AG8: =C_Time!AG8 -> 2021-01-01 | AH8: =C_Time!AH8 -> 2022-01-01 | AI8: =C_Time!AI8 -> 2023-01-01 | AJ8: =C_Time!AJ8 -> 2024-01-01 | AK8: =C_Time!AK8 -> 2025-01-01 | AL8: =C_Time!AL8 -> 2026-01-01 | AM8: =C_Time!AM8 -> 2027-01-01 | AN8: =C_Time!AN8 -> 2028-01-01 | AO8: =C_Time!AO8 -> 2029-01-01 | AP8: =C_Time!AP8 -> 2030-01-01 | AQ8: =C_Time!AQ8 -> 2031-01-01 | AR8: =C_Time!AR8 -> 2032-01-01 | AS8: =C_Time!AS8 -> 2033-01-01 | AT8: =C_Time!AT8 -> 2034-01-01 | AU8: =C_Time!AU8 -> 2035-01-01 | AV8: =C_Time!AV8 -> 2036-01-01 | AW8: =C_Time!AW8 -> 2037-01-01 | AX8: =C_Time!AX8 -> 2038-01-01 | AY8: =C_Time!AY8 -> 2039-01-01 | AZ8: =C_Time!AZ8 -> 2040-01-01 | BA8: =C_Time!BA8 -> 2041-01-01 | BB8: =C_Time!BB8 -> 2042-01-01 | BC8: =C_Time!BC8 -> 2043-01-01 | BD8: =C_Time!BD8 -> 2044-01-01 | BE8: =C_Time!BE8 -> 2045-01-01 | BF8: =C_Time!BF8 -> 2046-01-01 | BG8: =C_Time!BG8 -> 2047-01-01 | BH8: =C_Time!BH8 -> 2048-01-01 | BI8: =C_Time!BI8 -> 2049-01-01 | BJ8: =C_Time!BJ8 -> 2050-01-01
E9: =C_Time!E9 -> Period Ending | G9: =C_Time!G9 -> date | AA9: =C_Time!AA9 -> 2015-12-31 | AB9: =C_Time!AB9 -> 2016-12-31 | AC9: =C_Time!AC9 -> 2017-12-31 | AD9: =C_Time!AD9 -> 2018-12-31 | AE9: =C_Time!AE9 -> 2019-12-31 | AF9: =C_Time!AF9 -> 2020-12-31 | AG9: =C_Time!AG9 -> 2021-12-31 | AH9: =C_Time!AH9 -> 2022-12-31 | AI9: =C_Time!AI9 -> 2023-12-31 | AJ9: =C_Time!AJ9 -> 2024-12-31 | AK9: =C_Time!AK9 -> 2025-12-31 | AL9: =C_Time!AL9 -> 2026-12-31 | AM9: =C_Time!AM9 -> 2027-12-31 | AN9: =C_Time!AN9 -> 2028-12-31 | AO9: =C_Time!AO9 -> 2029-12-31 | AP9: =C_Time!AP9 -> 2030-12-31 | AQ9: =C_Time!AQ9 -> 2031-12-31 | AR9: =C_Time!AR9 -> 2032-12-31 | AS9: =C_Time!AS9 -> 2033-12-31 | AT9: =C_Time!AT9 -> 2034-12-31 | AU9: =C_Time!AU9 -> 2035-12-31 | AV9: =C_Time!AV9 -> 2036-12-31 | AW9: =C_Time!AW9 -> 2037-12-31 | AX9: =C_Time!AX9 -> 2038-12-31 | AY9: =C_Time!AY9 -> 2039-12-31 | AZ9: =C_Time!AZ9 -> 2040-12-31 | BA9: =C_Time!BA9 -> 2041-12-31 | BB9: =C_Time!BB9 -> 2042-12-31 | BC9: =C_Time!BC9 -> 2043-12-31 | BD9: =C_Time!BD9 -> 2044-12-31 | BE9: =C_Time!BE9 -> 2045-12-31 | BF9: =C_Time!BF9 -> 2046-12-31 | BG9: =C_Time!BG9 -> 2047-12-31 | BH9: =C_Time!BH9 -> 2048-12-31 | BI9: =C_Time!BI9 -> 2049-12-31 | BJ9: =C_Time!BJ9 -> 2050-12-31
E10: =C_Time!E10 -> Model period number | G10: =C_Time!G10 -> # | AA10: =C_Time!AA10 -> 1 | AB10: =C_Time!AB10 -> 2 | AC10: =C_Time!AC10 -> 3 | AD10: =C_Time!AD10 -> 4 | AE10: =C_Time!AE10 -> 5 | AF10: =C_Time!AF10 -> 6 | AG10: =C_Time!AG10 -> 7 | AH10: =C_Time!AH10 -> 8 | AI10: =C_Time!AI10 -> 9 | AJ10: =C_Time!AJ10 -> 10 | AK10: =C_Time!AK10 -> 11 | AL10: =C_Time!AL10 -> 12 | AM10: =C_Time!AM10 -> 13 | AN10: =C_Time!AN10 -> 14 | AO10: =C_Time!AO10 -> 15 | AP10: =C_Time!AP10 -> 16 | AQ10: =C_Time!AQ10 -> 17 | AR10: =C_Time!AR10 -> 18 | AS10: =C_Time!AS10 -> 19 | AT10: =C_Time!AT10 -> 20 | AU10: =C_Time!AU10 -> 21 | AV10: =C_Time!AV10 -> 22 | AW10: =C_Time!AW10 -> 23 | AX10: =C_Time!AX10 -> 24 | AY10: =C_Time!AY10 -> 25 | AZ10: =C_Time!AZ10 -> 26 | BA10: =C_Time!BA10 -> 27 | BB10: =C_Time!BB10 -> 28 | BC10: =C_Time!BC10 -> 29 | BD10: =C_Time!BD10 -> 30 | BE10: =C_Time!BE10 -> 31 | BF10: =C_Time!BF10 -> 32 | BG10: =C_Time!BG10 -> 33 | BH10: =C_Time!BH10 -> 34 | BI10: =C_Time!BI10 -> 35 | BJ10: =C_Time!BJ10 -> 36
E11: =C_Time!E$11 -> Pricing Period | G11: =C_Time!G$11 -> periods | AA11: =C_Time!AA$11 -> Q6 | AB11: =C_Time!AB$11 -> Q6 | AC11: =C_Time!AC$11 -> Q6 | AD11: =C_Time!AD$11 -> Q6 | AE11: =C_Time!AE$11 -> Q6+1 | AF11: =C_Time!AF$11 -> iH7 | AG11: =C_Time!AG$11 -> iH7 | AH11: =C_Time!AH$11 -> H7 | AI11: =C_Time!AI$11 -> H7 | AJ11: =C_Time!AJ$11 -> H7 | AK11: =C_Time!AK$11 -> H7 | AL11: =C_Time!AL$11 -> H7 | AM11: =C_Time!AM$11 -> H8 | AN11: =C_Time!AN$11 -> H8 | AO11: =C_Time!AO$11 -> H8 | AP11: =C_Time!AP$11 -> H8 | AQ11: =C_Time!AQ$11 -> H8 | AR11: =C_Time!AR$11 -> H9 | AS11: =C_Time!AS$11 -> H9 | AT11: =C_Time!AT$11 -> H9 | AU11: =C_Time!AU$11 -> H9 | AV11: =C_Time!AV$11 -> H9 | AW11: =C_Time!AW$11 -> H10 | AX11: =C_Time!AX$11 -> H10 | AY11: =C_Time!AY$11 -> H10 | AZ11: =C_Time!AZ$11 -> H10 | BA11: =C_Time!BA$11 -> H10 | BB11: =C_Time!BB$11 -> H11 | BC11: =C_Time!BC$11 -> H11 | BD11: =C_Time!BD$11 -> H11 | BE11: =C_Time!BE$11 -> H11 | BF11: =C_Time!BF$11 -> H11 | BG11: =C_Time!BG$11 -> H12 | BH11: =C_Time!BH$11 -> H12 | BI11: =C_Time!BI$11 -> H12 | BJ11: =C_Time!BJ$11 -> H12
E12: =C_Time!E$12 -> Forecast vs Actuals | G12: =C_Time!G$12 -> label | AA12: =C_Time!AA$12 -> Actual | AB12: =C_Time!AB$12 -> Actual | AC12: =C_Time!AC$12 -> Actual | AD12: =C_Time!AD$12 -> Actual | AE12: =C_Time!AE$12 -> Actual | AF12: =C_Time!AF$12 -> Forecast | AG12: =C_Time!AG$12 -> Forecast | AH12: =C_Time!AH$12 -> Forecast | AI12: =C_Time!AI$12 -> Forecast | AJ12: =C_Time!AJ$12 -> Forecast | AK12: =C_Time!AK$12 -> Forecast | AL12: =C_Time!AL$12 -> Forecast | AM12: =C_Time!AM$12 -> Forecast | AN12: =C_Time!AN$12 -> Forecast | AO12: =C_Time!AO$12 -> Forecast | AP12: =C_Time!AP$12 -> Forecast | AQ12: =C_Time!AQ$12 -> Forecast | AR12: =C_Time!AR$12 -> Forecast | AS12: =C_Time!AS$12 -> Forecast | AT12: =C_Time!AT$12 -> Forecast | AU12: =C_Time!AU$12 -> Forecast | AV12: =C_Time!AV$12 -> Forecast | AW12: =C_Time!AW$12 -> Forecast | AX12: =C_Time!AX$12 -> Forecast | AY12: =C_Time!AY$12 -> Forecast | AZ12: =C_Time!AZ$12 -> Forecast | BA12: =C_Time!BA$12 -> Forecast | BB12: =C_Time!BB$12 -> Forecast | BC12: =C_Time!BC$12 -> Forecast | BD12: =C_Time!BD$12 -> Forecast | BE12: =C_Time!BE$12 -> Forecast | BF12: =C_Time!BF$12 -> Forecast | BG12: =C_Time!BG$12 -> Forecast | BH12: =C_Time!BH$12 -> Forecast | BI12: =C_Time!BI$12 -> Forecast | BJ12: =C_Time!BJ$12 -> Forecast
E14: Label | F14: Constant | G14: Units | H14: Notes | I14: Data Source | K14: Confidentiality Status | Y14: Total
A15: 3.a Passenger numbers
E17: Base Capacity | G17: =I_Global!$F$122 -> million pax | I17: CAA | K17: Being published with this model | AA17: =MAX(AA20:AA24) -> 72 | AB17: =MAX(AB20:AB24) -> 72.7 | AC17: 73.4 | AD17: 80.102014 | AE17: 80.88626 | AF17: 22.11 | AG17: 19.4 | AH17: 61.6 | AI17: 73.008769 | AJ17: 78.890705 | AK17: 80.653561 | AL17: 81.318198 | AM17: 81.318198 | AN17: 81.318198 | AO17: 81.318198 | AP17: 81.318198 | AQ17: 81.318198 | AR17: 81.318198 | AS17: 82.08337691 | AT17: 83.52850751 | AU17: 84.9736381 | AV17: 86.41876869 | AW17: 87.86389929 | AX17: 88.09598865 | AY17: 88.32473538 | AZ17: 88.55023343 | BA17: 88.75595714 | BB17: 88.9751859 | BC17: 89.17473499 | BD17: 89.38803615 | BE17: 89.58174367 | BF17: 89.78943777 | BG17: 89.99446171 | BH17: 90.18000519 | BI17: 90.37986738 | BJ17: 90.56031764
E20: Stress test passenger demand (high) | G20: =I_Global!$F$122 -> million pax | K20: Being published with this model | AA20: 72 | AB20: 72.7 | AC20: 73.4 | AD20: 80.102014 | AE20: 80.88626 | AF20: 22.11 | AG20: 19.4 | AM20: =AL20 -> 0 | AN20: =AM20 -> 0 | AO20: 0 | AP20: 0 | AQ20: 0 | AR20: 0 | AS20: 0 | AT20: 0 | AU20: 0 | AV20: 0 | AW20: 0 | AX20: 0 | AY20: 0 | AZ20: 0 | BA20: 0 | BB20: 0 | BC20: 0 | BD20: 0 | BE20: 0 | BF20: 0 | BG20: 0 | BH20: 0 | BI20: 0 | BJ20: 0
E21: Stress test passenger demand (middle high) | G21: =I_Global!$F$122 -> million pax
E22: Stress test passenger demand (middle) | G22: =I_Global!$F$122 -> million pax | I22: CAA FD | K22: Being published with this model | AA22: 72 | AB22: 72.7 | AC22: 73.4 | AD22: 80.102014 | AE22: 80.88626 | AF22: 22.11 | AG22: 19.4 | AH22: 61.6 | AI22: 73.008769 | AJ22: 78.890705 | AK22: 80.653561 | AL22: 81.318198 | AM22: =AL22 -> 81.318198 | AN22: =AM22 -> 81.318198 | AO22: 81.318198 | AP22: 81.318198 | AQ22: 81.318198 | AR22: 81.318198 | AS22: 81.318198 | AT22: 81.318198 | AU22: 81.318198 | AV22: 81.318198 | AW22: 81.318198 | AX22: 81.318198 | AY22: 81.318198 | AZ22: 81.318198 | BA22: 81.318198 | BB22: 81.318198 | BC22: 81.318198 | BD22: 81.318198 | BE22: 81.318198 | BF22: 81.318198 | BG22: 81.318198 | BH22: 81.318198 | BI22: 81.318198 | BJ22: 81.318198
E23: Stress test passenger demand (middle low) | G23: =I_Global!$F$122 -> million pax | I23: CAA Low stress case | K23: Already published | AA23: 72 | AB23: 72.7 | AC23: 73.4 | AD23: 80.102014 | AE23: 80.88626 | AF23: 22.11 | AG23: 19.4 | AM23: 73.41259334 | AN23: 74.85772394 | AO23: 76.30285453 | AP23: 77.74798513 | AQ23: 79.19311572 | AR23: 80.63824632 | AS23: 82.08337691 | AT23: 83.52850751 | AU23: 84.9736381 | AV23: 86.41876869 | AW23: 87.86389929 | AX23: 88.09598865 | AY23: 88.32473538 | AZ23: 88.55023343 | BA23: 88.75595714 | BB23: 88.9751859 | BC23: 89.17473499 | BD23: 89.38803615 | BE23: 89.58174367 | BF23: 89.78943777 | BG23: 89.99446171 | BH23: 90.18000519 | BI23: 90.37986738 | BJ23: 90.56031764
E24: Stress test passenger demand (low) | G24: =I_Global!$F$122 -> million pax | I24: CAA FP Low | K24: Being published with this model | AA24: 72 | AB24: 72.7 | AC24: 73.4 | AD24: 80.102014 | AE24: 80.88626 | AF24: 22.11 | AG24: 19.4 | AH24: 61.6 | AI24: 65.7 | AJ24: 71.01 | AK24: 72.63 | AL24: 73.17 | AM24: =AL24 -> 73.17 | AN24: =AM24 -> 73.17 | AO24: 73.17 | AP24: 73.17 | AQ24: 73.17 | AR24: 73.17 | AS24: 73.17 | AT24: 73.17 | AU24: 73.17 | AV24: 73.17 | AW24: 73.17 | AX24: 73.17 | AY24: 73.17 | AZ24: 73.17 | BA24: 73.17 | BB24: 73.17 | BC24: 73.17 | BD24: 73.17 | BE24: 73.17 | BF24: 73.17 | BG24: 73.17 | BH24: 73.17 | BI24: 73.17 | BJ24: 73.17
A26: 3.b Indexation
E29: RPI annual growth rate | G29: =I_Global!$F$108 -> % | H29: 2015-21: ONS CHAW. 2022-2026: OBR. Thereafter: constant 3% | I29: Indexation model | K29: Already published | AA29: 0.009796901445 | AB29: 0.01743755036 | AC29: 0.03582969017 | AD29: 0.03342814325 | AE29: 0.02562888429 | AF29: 0.01503347184 | AG29: 0.04045256844 | AH29: 0.1163690344 | AI29: 0.1071061589 | AJ29: 0.01495577975 | AK29: -0.003531997458 | AL29: 0.009697391245 | AM29: 0.02572132156 | AN29: 0.03 | AO29: 0.03 | AP29: 0.03 | AQ29: 0.03 | AR29: 0.03 | AS29: 0.03 | AT29: 0.03 | AU29: 0.03 | AV29: 0.03 | AW29: 0.03 | AX29: 0.03 | AY29: 0.03 | AZ29: 0.03 | BA29: 0.03 | BB29: 0.03 | BC29: 0.03 | BD29: 0.03 | BE29: 0.03 | BF29: 0.03 | BG29: 0.03 | BH29: 0.03 | BI29: 0.03 | BJ29: 0.03
E30: CPI annual growth rate | G30: =I_Global!$F$108 -> % | H30: 2015-21: ONS D7BT. 2022-2026: OBR. Thereafter: constant 2% | I30: Indexation model | K30: Already published | AA30: 0.0005002084202 | AB30: 0.006416131989 | AC30: 0.02690842855 | AD30: 0.02475207611 | AE30: 0.01778127459 | AF30: 0.008812615955 | AG30: 0.02582375479 | AH30: 0.09149446824 | AI30: 0.07355830824 | AJ30: 0.006276274506 | AK30: -0.007752065764 | AL30: 0.001728817375 | AM30: 0.01715888515 | AN30: 0.02 | AO30: 0.02 | AP30: 0.02 | AQ30: 0.02 | AR30: 0.02 | AS30: 0.02 | AT30: 0.02 | AU30: 0.02 | AV30: 0.02 | AW30: 0.02 | AX30: 0.02 | AY30: 0.02 | AZ30: 0.02 | BA30: 0.02 | BB30: 0.02 | BC30: 0.02 | BD30: 0.02 | BE30: 0.02 | BF30: 0.02 | BG30: 0.02 | BH30: 0.02 | BI30: 0.02 | BJ30: 0.02
E31: RPI April growth rate | G31: =I_Global!$F$108 -> % | H31: 2015-21: ONS CHAW. 2022-2026: OBR. Thereafter: constant 3% | I31: Indexation model | K31: Already published | AA31: 0.008994915917 | AB31: 0.01317829457 | AC31: 0.03519510329 | AD31: 0.03362897265 | AE31: 0.03038970325 | AF31: 0.01526717557 | AG31: 0.02904989747 | AH31: 0.10195716 | AI31: 0.05091541131 | AJ31: 0.02563356639 | AK31: 0.02507137267 | AL31: 0.02707952067 | AM31: 0.03 | AN31: 0.03 | AO31: 0.03 | AP31: 0.03 | AQ31: 0.03 | AR31: 0.03 | AS31: 0.03 | AT31: 0.03 | AU31: 0.03 | AV31: 0.03 | AW31: 0.03 | AX31: 0.03 | AY31: 0.03 | AZ31: 0.03 | BA31: 0.03 | BB31: 0.03 | BC31: 0.03 | BD31: 0.03 | BE31: 0.03 | BF31: 0.03 | BG31: 0.03 | BH31: 0.03 | BI31: 0.03 | BJ31: 0.03
E32: RPI Dec growth rate | G32: =I_Global!$F$108 -> % | H32: 2015-21: ONS CHAW. 2022-2026: OBR. Thereafter: constant 3% | I32: Indexation model | K32: Already published | AA32: 0.01203883495 | AB32: 0.02494244052 | AC32: 0.0411830775 | AD32: 0.02696871629 | AE32: 0.02205882353 | AF32: 0.01199040767 | AG32: 0.07549085985 | AH32: 0.1406892647 | AI32: 0.06270103099 | AJ32: 0.00162043515 | AK32: -0.006231295103 | AL32: 0.02085505053 | AM32: 0.02739441136 | AN32: 0.03 | AO32: 0.03 | AP32: 0.03 | AQ32: 0.03 | AR32: 0.03 | AS32: 0.03 | AT32: 0.03 | AU32: 0.03 | AV32: 0.03 | AW32: 0.03 | AX32: 0.03 | AY32: 0.03 | AZ32: 0.03 | BA32: 0.03 | BB32: 0.03 | BC32: 0.03 | BD32: 0.03 | BE32: 0.03 | BF32: 0.03 | BG32: 0.03 | BH32: 0.03 | BI32: 0.03 | BJ32: 0.03
E33: RPI Dec/RPI average | G33: =I_Global!$F$108 -> % | H33: 2015-21: ONS CHAW. 2022-2026: OBR. Thereafter: constant 3% | I33: Indexation model | K33: Already published | AA33: 0.007961321515 | AB33: 0.01539631249 | AC33: 0.02064409579 | AD33: 0.01426457532 | AE33: 0.01073407202 | AF33: 0.007703897433 | AG33: 0.04163934426 | AH33: 0.06433157946 | AI33: 0.02164210516 | AJ33: 0.008218909984 | AK33: 0.005487780714 | AL33: 0.0165989217 | AM33: 0.01825713164 | AN33: 0.03 | AO33: 0.03 | AP33: 0.03 | AQ33: 0.03 | AR33: 0.03 | AS33: 0.03 | AT33: 0.03 | AU33: 0.03 | AV33: 0.03 | AW33: 0.03 | AX33: 0.03 | AY33: 0.03 | AZ33: 0.03 | BA33: 0.03 | BB33: 0.03 | BC33: 0.03 | BD33: 0.03 | BE33: 0.03 | BF33: 0.03 | BG33: 0.03 | BH33: 0.03 | BI33: 0.03 | BJ33: 0.03
E34: Spare | G34: =I_Global!$F$108 -> % | H34: Notes required | I34: Dummy | AA34: 0 | AB34: 0 | AC34: 0 | AD34: 0 | AE34: 0.02562888429 | AF34: 0.01503347184 | AG34: 0.03840845244 | AH34: 0 | AI34: 0 | AJ34: 0 | AK34: 0 | AL34: 0 | AM34: 0 | AN34: 0 | AO34: 0 | AP34: 0 | AQ34: 0 | AR34: 0 | AS34: 0 | AT34: 0 | AU34: 0 | AV34: 0 | AW34: 0 | AX34: 0 | AY34: 0 | AZ34: 0 | BA34: 0 | BB34: 0 | BC34: 0 | BD34: 0 | BE34: 0 | BF34: 0 | BG34: 0 | BH34: 0 | BI34: 0 | BJ34: 0
E35: Spare | G35: =I_Global!$F$108 -> % | H35: Notes required | I35: Dummy | AA35: 0 | AB35: 0 | AC35: 0 | AD35: 0 | AE35: 0 | AF35: 0 | AG35: 0 | AH35: 0 | AI35: 0 | AJ35: 0 | AK35: 0 | AL35: 0 | AM35: 0 | AN35: 0 | AO35: 0 | AP35: 0 | AQ35: 0 | AR35: 0 | AS35: 0 | AT35: 0 | AU35: 0 | AV35: 0 | AW35: 0 | AX35: 0 | AY35: 0 | AZ35: 0 | BA35: 0 | BB35: 0 | BC35: 0 | BD35: 0 | BE35: 0 | BF35: 0 | BG35: 0 | BH35: 0 | BI35: 0 | BJ35: 0
E36: Spare | G36: =I_Global!$F$108 -> % | H36: Notes required | I36: Dummy | AA36: 0 | AB36: 0 | AC36: 0 | AD36: 0 | AE36: 0 | AF36: 0 | AG36: 0 | AH36: 0 | AI36: 0 | AJ36: 0 | AK36: 0 | AL36: 0 | AM36: 0 | AN36: 0 | AO36: 0 | AP36: 0 | AQ36: 0 | AR36: 0 | AS36: 0 | AT36: 0 | AU36: 0 | AV36: 0 | AW36: 0 | AX36: 0 | AY36: 0 | AZ36: 0 | BA36: 0 | BB36: 0 | BC36: 0 | BD36: 0 | BE36: 0 | BF36: 0 | BG36: 0 | BH36: 0 | BI36: 0 | BJ36: 0
E37: Spare | G37: =I_Global!$F$108 -> % | H37: Notes required | I37: Dummy | AA37: 0 | AB37: 0 | AC37: 0 | AD37: 0 | AE37: 0 | AF37: 0 | AG37: 0 | AH37: 0 | AI37: 0 | AJ37: 0 | AK37: 0 | AL37: 0 | AM37: 0 | AN37: 0 | AO37: 0 | AP37: 0 | AQ37: 0 | AR37: 0 | AS37: 0 | AT37: 0 | AU37: 0 | AV37: 0 | AW37: 0 | AX37: 0 | AY37: 0 | AZ37: 0 | BA37: 0 | BB37: 0 | BC37: 0 | BD37: 0 | BE37: 0 | BF37: 0 | BG37: 0 | BH37: 0 | BI37: 0 | BJ37: 0
E38: Spare | G38: =I_Global!$F$108 -> % | H38: Notes required | I38: Dummy | AA38: 0 | AB38: 0 | AC38: 0 | AD38: 0 | AE38: 0 | AF38: 0 | AG38: 0 | AH38: 0 | AI38: 0 | AJ38: 0 | AK38: 0 | AL38: 0 | AM38: 0 | AN38: 0 | AO38: 0 | AP38: 0 | AQ38: 0 | AR38: 0 | AS38: 0 | AT38: 0 | AU38: 0 | AV38: 0 | AW38: 0 | AX38: 0 | AY38: 0 | AZ38: 0 | BA38: 0 | BB38: 0 | BC38: 0 | BD38: 0 | BE38: 0 | BF38: 0 | BG38: 0 | BH38: 0 | BI38: 0 | BJ38: 0
A40: 3.c Capital Expenditure
B42: 3.c.i Capex
C44: =I_Global!F68 -> High capex scenario
E45: ="Allowed cashflows relating to capex on " & I_Global!F$137 -> Allowed cashflows relating to capex on Category 1 description | G45: =I_Global!$F$113 -> £'m RPI-real 2018 | H45: RPI indexation to be applied | I45: HAL Reg Accts (2020), RBP update 2 (2021), CTA model (2022-2026) | K45: Being published with this model | AM45: 1085.466969 | AN45: 1082.968342 | AO45: 1086.937194 | AP45: 880.3616291 | AQ45: 944.2962763 | AR45: 680.4338475 | AS45: 914.2220588 | AT45: 1177.178731 | AU45: 1470.200165 | AV45: 931.4714492 | AW45: 931.4714492 | AX45: 931.4714492 | AY45: 931.4714492 | AZ45: 931.4714492 | BA45: 931.4714492 | BB45: 931.4714492 | BC45: 931.4714492 | BD45: 931.4714492 | BE45: 931.4714492 | BF45: 931.4714492 | BG45: 931.4714492 | BH45: 931.4714492 | BI45: 931.4714492 | BJ45: 931.4714492
E46: ="Allowed cashflows relating to capex on " & I_Global!F$138 -> Allowed cashflows relating to capex on Category 2 description | G46: =I_Global!$F$113 -> £'m RPI-real 2018 | H46: RPI indexation to be applied
E47: ="Allowed cashflows relating to capex on " & I_Global!F$139 -> Allowed cashflows relating to capex on Category 3 description | G47: =I_Global!$F$113 -> £'m RPI-real 2018 | H47: RPI indexation to be applied
E48: ="Allowed cashflows relating to capex on " & I_Global!F$140 -> Allowed cashflows relating to capex on Category 4 description | G48: =I_Global!$F$113 -> £'m RPI-real 2018 | H48: RPI indexation to be applied
E49: ="Allowed cashflows relating to capex on " & I_Global!F$141 -> Allowed cashflows relating to capex on Category 5 description | G49: =I_Global!$F$113 -> £'m RPI-real 2018 | H49: RPI indexation to be applied
E50: ="Allowed cashflows relating to capex on " & I_Global!F$142 -> Allowed cashflows relating to capex on Category 6 description | G50: =I_Global!$F$113 -> £'m RPI-real 2018 | H50: RPI indexation to be applied
E51: ="Allowed cashflows relating to capex on " & I_Global!F$143 -> Allowed cashflows relating to capex on Category 7 description | G51: =I_Global!$F$113 -> £'m RPI-real 2018 | H51: RPI indexation to be applied
E52: ="Allowed cashflows relating to capex on " & I_Global!F$144 -> Allowed cashflows relating to capex on Category 8 description | G52: =I_Global!$F$113 -> £'m RPI-real 2018 | H52: RPI indexation to be applied
E53: ="Allowed cashflows relating to capex on " & I_Global!F$145 -> Allowed cashflows relating to capex on Category 9 description | G53: =I_Global!$F$113 -> £'m RPI-real 2018 | H53: RPI indexation to be applied
E54: ="Allowed cashflows relating to capex on " & I_Global!F$146 -> Allowed cashflows relating to capex on Category 10 description | G54: =I_Global!$F$113 -> £'m RPI-real 2018 | H54: RPI indexation to be applied
C56: =I_Global!F69 -> Medium capex scenario
E57: ="Allowed cashflows relating to capex on " & I_Global!F$137 -> Allowed cashflows relating to capex on Category 1 description | G57: =I_Global!$F$113 -> £'m RPI-real 2018 | H57: RPI indexation to be applied | I57: HAL Reg Accts (2020), RBP update 2 (2021), CTA model (2022-2026) | K57: Being published with this model | AF57: 429.3751599 | AG57: 262.1956284 | AH57: 339.6426619 | AI57: 509.4001822 | AJ57: 625.8710541 | AK57: 902.0858881 | AL57: 850.5091959 | AM57: 1085.466969 | AN57: 1082.968342 | AO57: 1086.937194 | AP57: 880.3616291 | AQ57: 944.2962763 | AR57: 680.4338475 | AS57: 914.2220588 | AT57: 1177.178731 | AU57: 1470.200165 | AV57: 931.4714492 | AW57: 931.4714492 | AX57: 931.4714492 | AY57: 931.4714492 | AZ57: 931.4714492 | BA57: 931.4714492 | BB57: 931.4714492 | BC57: 931.4714492 | BD57: 931.4714492 | BE57: 931.4714492 | BF57: 931.4714492 | BG57: 931.4714492 | BH57: 931.4714492 | BI57: 931.4714492 | BJ57: 931.4714492
E58: ="Allowed cashflows relating to capex on " & I_Global!F$138 -> Allowed cashflows relating to capex on Category 2 description | G58: =I_Global!$F$113 -> £'m RPI-real 2018 | H58: RPI indexation to be applied
E59: ="Allowed cashflows relating to capex on " & I_Global!F$139 -> Allowed cashflows relating to capex on Category 3 description | G59: =I_Global!$F$113 -> £'m RPI-real 2018 | H59: RPI indexation to be applied
E60: ="Allowed cashflows relating to capex on " & I_Global!F$140 -> Allowed cashflows relating to capex on Category 4 description | G60: =I_Global!$F$113 -> £'m RPI-real 2018 | H60: RPI indexation to be applied
E61: ="Allowed cashflows relating to capex on " & I_Global!F$141 -> Allowed cashflows relating to capex on Category 5 description | G61: =I_Global!$F$113 -> £'m RPI-real 2018 | H61: RPI indexation to be applied
E62: ="Allowed cashflows relating to capex on " & I_Global!F$142 -> Allowed cashflows relating to capex on Category 6 description | G62: =I_Global!$F$113 -> £'m RPI-real 2018 | H62: RPI indexation to be applied
E63: ="Allowed cashflows relating to capex on " & I_Global!F$143 -> Allowed cashflows relating to capex on Category 7 description | G63: =I_Global!$F$113 -> £'m RPI-real 2018 | H63: RPI indexation to be applied
E64: ="Allowed cashflows relating to capex on " & I_Global!F$144 -> Allowed cashflows relating to capex on Category 8 description | G64: =I_Global!$F$113 -> £'m RPI-real 2018 | H64: RPI indexation to be applied
E65: ="Allowed cashflows relating to capex on " & I_Global!F$145 -> Allowed cashflows relating to capex on Category 9 description | G65: =I_Global!$F$113 -> £'m RPI-real 2018 | H65: RPI indexation to be applied
E66: ="Allowed cashflows relating to capex on " & I_Global!F$146 -> Allowed cashflows relating to capex on Category 10 description | G66: =I_Global!$F$113 -> £'m RPI-real 2018 | H66: RPI indexation to be applied
C68: =I_Global!F70 -> Low capex scenario
E69: ="Allowed cashflows relating to capex on " & I_Global!F$137 -> Allowed cashflows relating to capex on Category 1 description | G69: =I_Global!$F$113 -> £'m RPI-real 2018 | H69: RPI indexation to be applied | I69: HAL Reg Accts (2020), RBP update 2 (2021), CTA model (2022-2026) | K69: Being published with this model | AM69: 863.4969689 | AN69: 961.7199557 | AO69: 980.0975983 | AP69: 1120.887329 | AQ69: 1367.558617 | AR69: 1435.13095 | AS69: 1195.025918 | AT69: 1133.912249 | AU69: 1160.956491 | AV69: 1125.475339 | AW69: 1167.878244 | AX69: 959.137309 | AY69: 868.3790688 | AZ69: 797.8901971 | BA69: 758.5611837 | BB69: 724.794115 | BC69: 910.5092507 | BD69: 1138.973776 | BE69: 1212.053386 | BF69: 630.9951226 | BG69: 636.6433305 | BH69: 662.7032085 | BI69: 661.2929027 | BJ69: 673.9715553
E70: ="Allowed cashflows relating to capex on " & I_Global!F$138 -> Allowed cashflows relating to capex on Category 2 description | G70: =I_Global!$F$113 -> £'m RPI-real 2018 | H70: RPI indexation to be applied
E71: ="Allowed cashflows relating to capex on " & I_Global!F$139 -> Allowed cashflows relating to capex on Category 3 description | G71: =I_Global!$F$113 -> £'m RPI-real 2018 | H71: RPI indexation to be applied
E72: ="Allowed cashflows relating to capex on " & I_Global!F$140 -> Allowed cashflows relating to capex on Category 4 description | G72: =I_Global!$F$113 -> £'m RPI-real 2018 | H72: RPI indexation to be applied
E73: ="Allowed cashflows relating to capex on " & I_Global!F$141 -> Allowed cashflows relating to capex on Category 5 description | G73: =I_Global!$F$113 -> £'m RPI-real 2018 | H73: RPI indexation to be applied
E74: ="Allowed cashflows relating to capex on " & I_Global!F$142 -> Allowed cashflows relating to capex on Category 6 description | G74: =I_Global!$F$113 -> £'m RPI-real 2018 | H74: RPI indexation to be applied
E75: ="Allowed cashflows relating to capex on " & I_Global!F$143 -> Allowed cashflows relating to capex on Category 7 description | G75: =I_Global!$F$113 -> £'m RPI-real 2018 | H75: RPI indexation to be applied
E76: ="Allowed cashflows relating to capex on " & I_Global!F$144 -> Allowed cashflows relating to capex on Category 8 description | G76: =I_Global!$F$113 -> £'m RPI-real 2018 | H76: RPI indexation to be applied
E77: ="Allowed cashflows relating to capex on " & I_Global!F$145 -> Allowed cashflows relating to capex on Category 9 description | G77: =I_Global!$F$113 -> £'m RPI-real 2018 | H77: RPI indexation to be applied
E78: ="Allowed cashflows relating to capex on " & I_Global!F$146 -> Allowed cashflows relating to capex on Category 10 description | G78: =I_Global!$F$113 -> £'m RPI-real 2018 | H78: RPI indexation to be applied
C80: =I_Global!F68 -> High capex scenario
E81: ="Outturn cashflows relating to capex on " & I_Global!F$137 -> Outturn cashflows relating to capex on Category 1 description | G81: =I_Global!$F$113 -> £'m RPI-real 2018 | H81: RPI indexation to be applied | I81: CAA- CTA model | K81: Being published with this model | AF81: =AF45 -> 0 | AG81: =AG45 -> 0 | AH81: 0 | AI81: 0 | AJ81: 0 | AK81: 0 | AL81: 0 | AM81: 1085.466969 | AN81: 1082.968342 | AO81: 1086.937194 | AP81: 880.3616291 | AQ81: 944.2962763 | AR81: 680.4338475 | AS81: 914.2220588 | AT81: 1177.178731 | AU81: 1470.200165 | AV81: 931.4714492 | AW81: 931.4714492 | AX81: 931.4714492 | AY81: 931.4714492 | AZ81: 931.4714492 | BA81: 931.4714492 | BB81: 931.4714492 | BC81: 931.4714492 | BD81: 931.4714492 | BE81: 931.4714492 | BF81: 931.4714492 | BG81: 931.4714492 | BH81: 931.4714492 | BI81: 931.4714492 | BJ81: 931.4714492
E82: ="Outturn cashflows relating to capex on " & I_Global!F$138 -> Outturn cashflows relating to capex on Category 2 description | G82: =I_Global!$F$113 -> £'m RPI-real 2018 | H82: RPI indexation to be applied
E83: ="Outturn cashflows relating to capex on " & I_Global!F$139 -> Outturn cashflows relating to capex on Category 3 description | G83: =I_Global!$F$113 -> £'m RPI-real 2018 | H83: RPI indexation to be applied
E84: ="Outturn cashflows relating to capex on " & I_Global!F$140 -> Outturn cashflows relating to capex on Category 4 description | G84: =I_Global!$F$113 -> £'m RPI-real 2018 | H84: RPI indexation to be applied
E85: ="Outturn cashflows relating to capex on " & I_Global!F$141 -> Outturn cashflows relating to capex on Category 5 description | G85: =I_Global!$F$113 -> £'m RPI-real 2018 | H85: RPI indexation to be applied
E86: ="Outturn cashflows relating to capex on " & I_Global!F$142 -> Outturn cashflows relating to capex on Category 6 description | G86: =I_Global!$F$113 -> £'m RPI-real 2018 | H86: RPI indexation to be applied
E87: ="Outturn cashflows relating to capex on " & I_Global!F$143 -> Outturn cashflows relating to capex on Category 7 description | G87: =I_Global!$F$113 -> £'m RPI-real 2018 | H87: RPI indexation to be applied
E88: ="Outturn cashflows relating to capex on " & I_Global!F$144 -> Outturn cashflows relating to capex on Category 8 description | G88: =I_Global!$F$113 -> £'m RPI-real 2018 | H88: RPI indexation to be applied
E89: ="Outturn cashflows relating to capex on " & I_Global!F$145 -> Outturn cashflows relating to capex on Category 9 description | G89: =I_Global!$F$113 -> £'m RPI-real 2018 | H89: RPI indexation to be applied
E90: ="Outturn cashflows relating to capex on " & I_Global!F$146 -> Outturn cashflows relating to capex on Category 10 description | G90: =I_Global!$F$113 -> £'m RPI-real 2018 | H90: RPI indexation to be applied
C92: =I_Global!F69 -> Medium capex scenario
E93: ="Outturn cashflows relating to capex on " & I_Global!F$137 -> Outturn cashflows relating to capex on Category 1 description | G93: =I_Global!$F$113 -> £'m RPI-real 2018 | H93: RPI indexation to be applied | I93: CAA- CTA model | K93: Being published with this model | AF93: =AF$57 -> 429.3751599 | AG93: =AG$57 -> 262.1956284 | AH93: 339.6426619 | AI93: 509.4001822 | AJ93: 625.8710541 | AK93: 902.0858881 | AL93: 850.5091959 | AM93: =AM$57 -> 1085.466969 | AN93: 1082.968342 | AO93: 1086.937194 | AP93: 880.3616291 | AQ93: 944.2962763 | AR93: 680.4338475 | AS93: 914.2220588 | AT93: 1177.178731 | AU93: 1470.200165 | AV93: 931.4714492 | AW93: 931.4714492 | AX93: 931.4714492 | AY93: 931.4714492 | AZ93: 931.4714492 | BA93: 931.4714492 | BB93: 931.4714492 | BC93: 931.4714492 | BD93: 931.4714492 | BE93: 931.4714492 | BF93: 931.4714492 | BG93: 931.4714492 | BH93: 931.4714492 | BI93: 931.4714492 | BJ93: 931.4714492
E94: ="Outturn cashflows relating to capex on " & I_Global!F$138 -> Outturn cashflows relating to capex on Category 2 description | G94: =I_Global!$F$113 -> £'m RPI-real 2018 | H94: RPI indexation to be applied
E95: ="Outturn cashflows relating to capex on " & I_Global!F$139 -> Outturn cashflows relating to capex on Category 3 description | G95: =I_Global!$F$113 -> £'m RPI-real 2018 | H95: RPI indexation to be applied
E96: ="Outturn cashflows relating to capex on " & I_Global!F$140 -> Outturn cashflows relating to capex on Category 4 description | G96: =I_Global!$F$113 -> £'m RPI-real 2018 | H96: RPI indexation to be applied
E97: ="Outturn cashflows relating to capex on " & I_Global!F$141 -> Outturn cashflows relating to capex on Category 5 description | G97: =I_Global!$F$113 -> £'m RPI-real 2018 | H97: RPI indexation to be applied
E98: ="Outturn cashflows relating to capex on " & I_Global!F$142 -> Outturn cashflows relating to capex on Category 6 description | G98: =I_Global!$F$113 -> £'m RPI-real 2018 | H98: RPI indexation to be applied
E99: ="Outturn cashflows relating to capex on " & I_Global!F$143 -> Outturn cashflows relating to capex on Category 7 description | G99: =I_Global!$F$113 -> £'m RPI-real 2018 | H99: RPI indexation to be applied
E100: ="Outturn cashflows relating to capex on " & I_Global!F$144 -> Outturn cashflows relating to capex on Category 8 description | G100: =I_Global!$F$113 -> £'m RPI-real 2018 | H100: RPI indexation to be applied
E101: ="Outturn cashflows relating to capex on " & I_Global!F$145 -> Outturn cashflows relating to capex on Category 9 description | G101: =I_Global!$F$113 -> £'m RPI-real 2018 | H101: RPI indexation to be applied
E102: ="Outturn cashflows relating to capex on " & I_Global!F$146 -> Outturn cashflows relating to capex on Category 10 description | G102: =I_Global!$F$113 -> £'m RPI-real 2018 | H102: RPI indexation to be applied
C104: =I_Global!F70 -> Low capex scenario
E105: ="Outturn cashflows relating to capex on " & I_Global!F$137 -> Outturn cashflows relating to capex on Category 1 description | G105: =I_Global!$F$113 -> £'m RPI-real 2018 | H105: RPI indexation to be applied | I105: CAA- CTA model | K105: Being published with this model | AF105: =AF$69 -> 0 | AG105: =AG$69 -> 0 | AH105: 0 | AI105: 0 | AJ105: 0 | AK105: 0 | AL105: 0 | AM105: 863.4969689 | AN105: 961.7199557 | AO105: 980.0975983 | AP105: 1120.887329 | AQ105: 1367.558617 | AR105: 1435.13095 | AS105: 1195.025918 | AT105: 1133.912249 | AU105: 1160.956491 | AV105: 1125.475339 | AW105: 1167.878244 | AX105: 959.137309 | AY105: 868.3790688 | AZ105: 797.8901971 | BA105: 758.5611837 | BB105: 724.794115 | BC105: 910.5092507 | BD105: 1138.973776 | BE105: 1212.053386 | BF105: 630.9951226 | BG105: 636.6433305 | BH105: 662.7032085 | BI105: 661.2929027 | BJ105: 673.9715553
E106: ="Outturn cashflows relating to capex on " & I_Global!F$138 -> Outturn cashflows relating to capex on Category 2 description | G106: =I_Global!$F$113 -> £'m RPI-real 2018 | H106: RPI indexation to be applied
E107: ="Outturn cashflows relating to capex on " & I_Global!F$139 -> Outturn cashflows relating to capex on Category 3 description | G107: =I_Global!$F$113 -> £'m RPI-real 2018 | H107: RPI indexation to be applied
E108: ="Outturn cashflows relating to capex on " & I_Global!F$140 -> Outturn cashflows relating to capex on Category 4 description | G108: =I_Global!$F$113 -> £'m RPI-real 2018 | H108: RPI indexation to be applied
E109: ="Outturn cashflows relating to capex on " & I_Global!F$141 -> Outturn cashflows relating to capex on Category 5 description | G109: =I_Global!$F$113 -> £'m RPI-real 2018 | H109: RPI indexation to be applied
E110: ="Outturn cashflows relating to capex on " & I_Global!F$142 -> Outturn cashflows relating to capex on Category 6 description | G110: =I_Global!$F$113 -> £'m RPI-real 2018 | H110: RPI indexation to be applied
E111: ="Outturn cashflows relating to capex on " & I_Global!F$143 -> Outturn cashflows relating to capex on Category 7 description | G111: =I_Global!$F$113 -> £'m RPI-real 2018 | H111: RPI indexation to be applied
E112: ="Outturn cashflows relating to capex on " & I_Global!F$144 -> Outturn cashflows relating to capex on Category 8 description | G112: =I_Global!$F$113 -> £'m RPI-real 2018 | H112: RPI indexation to be applied
E113: ="Outturn cashflows relating to capex on " & I_Global!F$145 -> Outturn cashflows relating to capex on Category 9 description | G113: =I_Global!$F$113 -> £'m RPI-real 2018 | H113: RPI indexation to be applied
E114: ="Outturn cashflows relating to capex on " & I_Global!F$146 -> Outturn cashflows relating to capex on Category 10 description | G114: =I_Global!$F$113 -> £'m RPI-real 2018 | H114: RPI indexation to be applied
B116: 3.c.ii RAB depreciation profiles
E118: RAB 1 depreciation (Profile 1) | G118: =I_Global!$F$113 -> £'m RPI-real 2018 | H118: RPI indexation to be applied | I118: CAA Depn | K118: Being published with this model | AF118: -797.337831 | AG118: -802.8416651 | AH118: -778.36548 | AI118: -788.8104782 | AJ118: -817.0538263 | AK118: -860.1340631 | AL118: -898.4035671 | AM118: -763.9818316 | AN118: -651.6757624 | AO118: -641.5892874 | AP118: -655.7307832 | AQ118: -677.1721169 | AR118: -699.1822819 | AS118: -768.6022236 | AT118: -752.2566116 | AU118: -871.7660997 | AV118: -893.858683 | AW118: -932.4221289 | AX118: -939.0484993 | AY118: -998.1728397 | AZ118: -973.7608447 | BA118: -986.3508944 | BB118: -1000.525163 | BC118: -1000.592707 | BD118: -973.6028656 | BE118: -953.3669264 | BF118: -1067.604327 | BG118: -1070.165197 | BH118: -1039.135163 | BI118: -1020.814952 | BJ118: -927.0725796
E119: RAB 1 depreciation (Profile 2) | G119: =I_Global!$F$113 -> £'m RPI-real 2018 | H119: RPI indexation to be applied
E120: RAB 1 depreciation (Profile 3) | G120: =I_Global!$F$113 -> £'m RPI-real 2018 | H120: RPI indexation to be applied
E121: RAB 1 depreciation (Profile 4) | G121: =I_Global!$F$113 -> £'m RPI-real 2018 | H121: RPI indexation to be applied
E122: RAB 2 depreciation (Profile 1) | G122: =I_Global!$F$113 -> £'m RPI-real 2018 | H122: RPI indexation to be applied
E123: RAB 2 depreciation (Profile 2) | G123: =I_Global!$F$113 -> £'m RPI-real 2018 | H123: RPI indexation to be applied
E124: RAB 2 depreciation (Profile 3) | G124: =I_Global!$F$113 -> £'m RPI-real 2018 | H124: RPI indexation to be applied
E125: RAB 2 depreciation (Profile 4) | G125: =I_Global!$F$113 -> £'m RPI-real 2018 | H125: RPI indexation to be applied
E126: RAB 3 depreciation (Profile 1) | G126: =I_Global!$F$113 -> £'m RPI-real 2018 | H126: RPI indexation to be applied
E127: RAB 3 depreciation (Profile 2) | G127: =I_Global!$F$113 -> £'m RPI-real 2018 | H127: RPI indexation to be applied
E128: RAB 3 depreciation (Profile 3) | G128: =I_Global!$F$113 -> £'m RPI-real 2018 | H128: RPI indexation to be applied
E129: RAB 3 depreciation (Profile 4) | G129: =I_Global!$F$113 -> £'m RPI-real 2018 | H129: RPI indexation to be applied
E130: Existing RAB depreciation profile | G130: =I_Global!$F$113 -> £'m RPI-real 2018 | H130: RPI indexation to be applied
B132: 3.c.iii Conversion of Assets Under Construction (AUC) to Assets in Use (AIU)
E134: Profiled percentage of AUC transferred to AIU | G134: =I_Global!$F$108 -> % | I134: CAA | K134: Being published with this model | AE134: 1 | AF134: 1 | AG134: 1 | AH134: 1 | AI134: 1 | AJ134: 1 | AK134: 1 | AL134: 1 | AM134: 1 | AN134: 1 | AO134: 1 | AP134: 1 | AQ134: 1 | AR134: 1 | AS134: 1 | AT134: 1 | AU134: 1 | AV134: 1 | AW134: 1 | AX134: 1 | AY134: 1 | AZ134: 1 | BA134: 1 | BB134: 1 | BC134: 1 | BD134: 1 | BE134: 1 | BF134: 1 | BG134: 1 | BH134: 1 | BI134: 1 | BJ134: 1
B136: 3.c.iv Non-Capex RAB adjustments
C138: Existing RAB
E139: =C138&" In-period "&"non capex RAB adjustments" -> Existing RAB In-period non capex RAB adjustments | G139: =I_Global!$F$113 -> £'m RPI-real 2018 | I139: RAB calculator v0.6 | K139: Being published with this model | AG139: 864.5403366 | AH139: 0 | AI139: 0 | AJ139: 0 | AK139: 0 | AL139: 0
E140: =C138&" "&" non capex RAB adjustments effected at start of price control period" -> Existing RAB non capex RAB adjustments effected at start of price control period | G140: =I_Global!$F$113 -> £'m RPI-real 2018
C142: RAB 1
E143: =C142&" In-period "&"non capex RAB adjustments" -> RAB 1 In-period non capex RAB adjustments | G143: =I_Global!$F$113 -> £'m RPI-real 2018 | AH143: 0
E144: =C142&" "&" non capex RAB adjustments effected at start of price control period" -> RAB 1 non capex RAB adjustments effected at start of price control period | G144: =I_Global!$F$113 -> £'m RPI-real 2018
C146: RAB 2
E147: =C146&" In-period "&"non capex RAB adjustments" -> RAB 2 In-period non capex RAB adjustments | G147: =I_Global!$F$113 -> £'m RPI-real 2018
E148: =C146&" "&" non capex RAB adjustments effected at start of price control period" -> RAB 2 non capex RAB adjustments effected at start of price control period | G148: =I_Global!$F$113 -> £'m RPI-real 2018
C150: RAB 3
E151: =C150&" In-period "&"non capex RAB adjustments" -> RAB 3 In-period non capex RAB adjustments | G151: =I_Global!$F$113 -> £'m RPI-real 2018
E152: =C150&" "&" non capex RAB adjustments effected at start of price control period" -> RAB 3 non capex RAB adjustments effected at start of price control period | G152: =I_Global!$F$113 -> £'m RPI-real 2018
A154: 3.d Operating Expenditure
B156: 3.d.i Forecast base operating costs
E158: Base people (high) | F158: =IF(SUM(AA158:BJ158)>=0,0,1) -> 0 | G158: =I_Global!$F$113 -> £'m RPI-real 2018 | H158: Assumes forecast (not realised) passenger numbers | I158: CAA- CTA model | K158: Being published with this model | AF158: 971.1371066 | AG158: 879.1401782 | AM158: =AL158 -> 0 | AN158: =AM158 -> 0 | AO158: 0 | AP158: 0 | AQ158: 0 | AR158: 0 | AS158: 0 | AT158: 0 | AU158: 0 | AV158: 0 | AW158: 0 | AX158: 0 | AY158: 0 | AZ158: 0 | BA158: 0 | BB158: 0 | BC158: 0 | BD158: 0 | BE158: 0 | BF158: 0 | BG158: 0 | BH158: 0 | BI158: 0 | BJ158: 0
E159: Base people (middle) | F159: =IF(SUM(AA159:BJ159)>=0,0,1) -> 0 | G159: =I_Global!$F$113 -> £'m RPI-real 2018 | H159: Assumes forecast (not realised) passenger numbers | I159: CAA- CTA model | K159: Being published with this model | AE159: 1196.019501 | AF159: 971.1371066 | AG159: 879.1401782 | AH159: 1074.498694 | AI159: 1031.700041 | AJ159: 1057.703353 | AK159: 1075.689112 | AL159: 1056.658154 | AM159: =AL159 -> 1056.658154 | AN159: =AM159 -> 1056.658154 | AO159: 1056.658154 | AP159: 1056.658154 | AQ159: 1056.658154 | AR159: 1056.658154 | AS159: 1056.658154 | AT159: 1056.658154 | AU159: 1056.658154 | AV159: 1056.658154 | AW159: 1056.658154 | AX159: 1056.658154 | AY159: 1056.658154 | AZ159: 1056.658154 | BA159: 1056.658154 | BB159: 1056.658154 | BC159: 1056.658154 | BD159: 1056.658154 | BE159: 1056.658154 | BF159: 1056.658154 | BG159: 1056.658154 | BH159: 1056.658154 | BI159: 1056.658154 | BJ159: 1056.658154
E160: Base people (low) | F160: =IF(SUM(AA160:BJ160)>=0,0,1) -> 0 | G160: =I_Global!$F$113 -> £'m RPI-real 2018 | H160: Assumes forecast (not realised) passenger numbers | I160: CAA- CTA model | K160: Being published with this model | AF160: 971.1371066 | AG160: 879.1401782 | AH160: 1029.726623 | AI160: 1001.661228 | AJ160: 1026.907432 | AK160: 1044.369521 | AL160: 1025.892665 | AM160: =AL160 -> 1025.892665 | AN160: =AM160 -> 1025.892665 | AO160: 1025.892665 | AP160: 1025.892665 | AQ160: 1025.892665 | AR160: 1025.892665 | AS160: 1025.892665 | AT160: 1025.892665 | AU160: 1025.892665 | AV160: 1025.892665 | AW160: 1025.892665 | AX160: 1025.892665 | AY160: 1025.892665 | AZ160: 1025.892665 | BA160: 1025.892665 | BB160: 1025.892665 | BC160: 1025.892665 | BD160: 1025.892665 | BE160: 1025.892665 | BF160: 1025.892665 | BG160: 1025.892665 | BH160: 1025.892665 | BI160: 1025.892665 | BJ160: 1025.892665
E162: Base operations (high) | F162: =IF(SUM(AA162:BJ162)>=0,0,1) -> 0 | G162: =I_Global!$F$113 -> £'m RPI-real 2018 | H162: Assumes forecast (not realised) passenger numbers | AF162: 120.0713534 | AG162: 12.18554464
E163: Base operations (middle) | F163: =IF(SUM(AA163:BJ163)>=0,0,1) -> 0 | G163: =I_Global!$F$113 -> £'m RPI-real 2018 | H163: Assumes forecast (not realised) passenger numbers | AF163: 120.0713534 | AG163: 12.18554464
E164: Base operations (low) | F164: =IF(SUM(AA164:BJ164)>=0,0,1) -> 0 | G164: =I_Global!$F$113 -> £'m RPI-real 2018 | H164: Assumes forecast (not realised) passenger numbers | AF164: 120.0713534 | AG164: 12.18554464
E166: Base rent & rates (high) | F166: =IF(SUM(AA166:BJ166)>=0,0,1) -> 0 | G166: =I_Global!$F$113 -> £'m RPI-real 2018 | H166: Assumes forecast (not realised) passenger numbers
E167: Base rent & rates (middle) | F167: =IF(SUM(AA167:BJ167)>=0,0,1) -> 0 | G167: =I_Global!$F$113 -> £'m RPI-real 2018 | H167: Assumes forecast (not realised) passenger numbers
E168: Base rent & rates (low) | F168: =IF(SUM(AA168:BJ168)>=0,0,1) -> 0 | G168: =I_Global!$F$113 -> £'m RPI-real 2018 | H168: Assumes forecast (not realised) passenger numbers
E170: Base utilities (high) | F170: =IF(SUM(AA170:BJ170)>=0,0,1) -> 0 | G170: =I_Global!$F$113 -> £'m RPI-real 2018 | H170: Assumes forecast (not realised) passenger numbers
E171: Base utilities (middle) | F171: =IF(SUM(AA171:BJ171)>=0,0,1) -> 0 | G171: =I_Global!$F$113 -> £'m RPI-real 2018 | H171: Assumes forecast (not realised) passenger numbers
E172: Base utilities (low) | F172: =IF(SUM(AA172:BJ172)>=0,0,1) -> 0 | G172: =I_Global!$F$113 -> £'m RPI-real 2018 | H172: Assumes forecast (not realised) passenger numbers
E174: Base facilities & maintenance (high) | F174: =IF(SUM(AA174:BJ174)>=0,0,1) -> 0 | G174: =I_Global!$F$113 -> £'m RPI-real 2018 | H174: Assumes forecast (not realised) passenger numbers
E175: Base facilities & maintenance (middle) | F175: =IF(SUM(AA175:BJ175)>=0,0,1) -> 0 | G175: =I_Global!$F$113 -> £'m RPI-real 2018 | H175: Assumes forecast (not realised) passenger numbers
E176: Base facilities & maintenance (low) | F176: =IF(SUM(AA176:BJ176)>=0,0,1) -> 0 | G176: =I_Global!$F$113 -> £'m RPI-real 2018 | H176: Assumes forecast (not realised) passenger numbers
E178: Base other expenditure (high) | F178: =IF(SUM(AA178:BJ178)>=0,0,1) -> 0 | G178: =I_Global!$F$113 -> £'m RPI-real 2018 | H178: Assumes forecast (not realised) passenger numbers
E179: Base other expenditure (middle) | F179: =IF(SUM(AA179:BJ179)>=0,0,1) -> 0 | G179: =I_Global!$F$113 -> £'m RPI-real 2018 | H179: Assumes forecast (not realised) passenger numbers
E180: Base other expenditure (low) | F180: =IF(SUM(AA180:BJ180)>=0,0,1) -> 0 | G180: =I_Global!$F$113 -> £'m RPI-real 2018 | H180: Assumes forecast (not realised) passenger numbers
B182: 3.d.ii Marginal costs per million pax
E184: Marginal people (high) | G184: =I_Global!$F$110 -> RPI-real 2018 £/passenger | H184: Applied to difference between forecast and realised pax
E185: Marginal people (middle) | G185: =I_Global!$F$110 -> RPI-real 2018 £/passenger | H185: Applied to difference between forecast and realised pax
E186: Marginal people (low) | G186: =I_Global!$F$110 -> RPI-real 2018 £/passenger | H186: Applied to difference between forecast and realised pax | I186: CAA- Opex CR calc | K186: Being published with this model | AH186: 0 | AI186: 4.26904058 | AJ186: 3.946167669 | AK186: 3.761031798 | AL186: 3.655171431
E188: Marginal operations (high) | G188: =I_Global!$F$110 -> RPI-real 2018 £/passenger | H188: Applied to difference between forecast and realised pax
E189: Marginal operations (middle) | G189: =I_Global!$F$110 -> RPI-real 2018 £/passenger | H189: Applied to difference between forecast and realised pax
E190: Marginal operations (low) | G190: =I_Global!$F$110 -> RPI-real 2018 £/passenger | H190: Applied to difference between forecast and realised pax
E192: Marginal rent & rates (high) | G192: =I_Global!$F$110 -> RPI-real 2018 £/passenger | H192: Applied to difference between forecast and realised pax
E193: Marginal rent & rates (middle) | G193: =I_Global!$F$110 -> RPI-real 2018 £/passenger | H193: Applied to difference between forecast and realised pax
E194: Marginal rent & rates (low) | G194: =I_Global!$F$110 -> RPI-real 2018 £/passenger | H194: Applied to difference between forecast and realised pax
E196: Marginal utilities (high) | G196: =I_Global!$F$110 -> RPI-real 2018 £/passenger | H196: Applied to difference between forecast and realised pax
E197: Marginal utilities (middle) | G197: =I_Global!$F$110 -> RPI-real 2018 £/passenger | H197: Applied to difference between forecast and realised pax
E198: Marginal utilities (low) | G198: =I_Global!$F$110 -> RPI-real 2018 £/passenger | H198: Applied to difference between forecast and realised pax
E200: Marginal facilities & maintenance (high) | G200: =I_Global!$F$110 -> RPI-real 2018 £/passenger | H200: Applied to difference between forecast and realised pax
E201: Marginal facilities & maintenance (middle) | G201: =I_Global!$F$110 -> RPI-real 2018 £/passenger | H201: Applied to difference between forecast and realised pax
E202: Marginal facilities & maintenance (low) | G202: =I_Global!$F$110 -> RPI-real 2018 £/passenger | H202: Applied to difference between forecast and realised pax
E204: Marginal other expenditure (high) | G204: =I_Global!$F$110 -> RPI-real 2018 £/passenger | H204: Applied to difference between forecast and realised pax
E205: Marginal other expenditure (middle) | G205: =I_Global!$F$110 -> RPI-real 2018 £/passenger | H205: Applied to difference between forecast and realised pax
E206: Marginal other expenditure (low) | G206: =I_Global!$F$110 -> RPI-real 2018 £/passenger | H206: Applied to difference between forecast and realised pax
A208: 3.e Non Aero Revenue and cargo revenues
B210: 3.e.i Forecast and outturn cargo revenues
E212: Base cargo revenue (high) | G212: =I_Global!$F$113 -> £'m RPI-real 2018 | H212: RPI indexation to be applied | I212: CAA- CTA model | K212: Being published with this model | AF212: 72.04281206 | AG212: 82.95086966 | AM212: 11.62871685 | AN212: 11.43852866 | AO212: 11.24834047 | AP212: 11.05815228 | AQ212: 10.86796409 | AR212: 10.6777759 | AS212: 10.48758771 | AT212: 10.29739952 | AU212: 10.10721133 | AV212: 9.917023144 | AW212: 9.726834955 | AX212: 9.696290549 | AY212: 9.666186054 | AZ212: 9.636509106 | BA212: 9.609434584 | BB212: 9.580582714 | BC212: 9.55432081 | BD212: 9.526249047 | BE212: 9.500755931 | BF212: 9.473422094 | BG212: 9.446439666 | BH212: 9.422020988 | BI212: 9.395717879 | BJ212: 9.3719695
E213: Base cargo revenue (middle) | G213: =I_Global!$F$113 -> £'m RPI-real 2018 | H213: RPI indexation to be applied | I213: CAA- CTA model | K213: Being published with this model | AF213: 72.04281206 | AG213: 82.95086966 | AH213: 32.34218085 | AI213: 18.31768359 | AJ213: 12.04246757 | AK213: 10.30945548 | AL213: 9.962503043 | AM213: 11.62871685 | AN213: 11.43852866 | AO213: 11.24834047 | AP213: 11.05815228 | AQ213: 10.86796409 | AR213: 10.6777759 | AS213: 10.48758771 | AT213: 10.29739952 | AU213: 10.10721133 | AV213: 9.917023144 | AW213: 9.726834955 | AX213: 9.696290549 | AY213: 9.666186054 | AZ213: 9.636509106 | BA213: 9.609434584 | BB213: 9.580582714 | BC213: 9.55432081 | BD213: 9.526249047 | BE213: 9.500755931 | BF213: 9.473422094 | BG213: 9.446439666 | BH213: 9.422020988 | BI213: 9.395717879 | BJ213: 9.3719695
E214: Base cargo revenue (low) | G214: =I_Global!$F$113 -> £'m RPI-real 2018 | H214: RPI indexation to be applied | I214: CAA- CTA model | K214: Being published with this model | AF214: 72.04281206 | AG214: 82.95086966 | AH214: 69.48305512 | AI214: 47.84986475 | AJ214: 31.89990976 | AK214: 24.18187308 | AL214: 18.54379395 | AM214: 11.62871685 | AN214: 11.43852866 | AO214: 11.24834047 | AP214: 11.05815228 | AQ214: 10.86796409 | AR214: 10.6777759 | AS214: 10.48758771 | AT214: 10.29739952 | AU214: 10.10721133 | AV214: 9.917023144 | AW214: 9.726834955 | AX214: 9.696290549 | AY214: 9.666186054 | AZ214: 9.636509106 | BA214: 9.609434584 | BB214: 9.580582714 | BC214: 9.55432081 | BD214: 9.526249047 | BE214: 9.500755931 | BF214: 9.473422094 | BG214: 9.446439666 | BH214: 9.422020988 | BI214: 9.395717879 | BJ214: 9.3719695
E216: Stress cargo revenue (high) | G216: =I_Global!$F$113 -> £'m RPI-real 2018 | H216: RPI indexation to be applied | I216: CAA- CTA model | K216: Being published with this model | AF216: 72.04281206 | AG216: 82.95086966 | AH216: =AH212 -> 0 | AI216: =AI212 -> 0 | AJ216: 0 | AK216: 0 | AL216: 0 | AM216: 11.62871685 | AN216: 11.43852866 | AO216: 11.24834047 | AP216: 11.05815228 | AQ216: 10.86796409 | AR216: 10.6777759 | AS216: 10.48758771 | AT216: 10.29739952 | AU216: 10.10721133 | AV216: 9.917023144 | AW216: 9.726834955 | AX216: 9.696290549 | AY216: 9.666186054 | AZ216: 9.636509106 | BA216: 9.609434584 | BB216: 9.580582714 | BC216: 9.55432081 | BD216: 9.526249047 | BE216: 9.500755931 | BF216: 9.473422094 | BG216: 9.446439666 | BH216: 9.422020988 | BI216: 9.395717879 | BJ216: 9.3719695
E217: Stress cargo revenue (middle) | G217: =I_Global!$F$113 -> £'m RPI-real 2018 | H217: RPI indexation to be applied | I217: CAA- CTA model | K217: Being published with this model | AF217: 72.04281206 | AG217: 82.95086966 | AH217: =AH213 -> 32.34218085 | AI217: =AI213 -> 18.31768359 | AJ217: 12.04246757 | AK217: 10.30945548 | AL217: 9.962503043 | AM217: 11.62871685 | AN217: 11.43852866 | AO217: 11.24834047 | AP217: 11.05815228 | AQ217: 10.86796409 | AR217: 10.6777759 | AS217: 10.48758771 | AT217: 10.29739952 | AU217: 10.10721133 | AV217: 9.917023144 | AW217: 9.726834955 | AX217: 9.696290549 | AY217: 9.666186054 | AZ217: 9.636509106 | BA217: 9.609434584 | BB217: 9.580582714 | BC217: 9.55432081 | BD217: 9.526249047 | BE217: 9.500755931 | BF217: 9.473422094 | BG217: 9.446439666 | BH217: 9.422020988 | BI217: 9.395717879 | BJ217: 9.3719695
E218: Stress cargo revenue (low) | G218: =I_Global!$F$113 -> £'m RPI-real 2018 | H218: RPI indexation to be applied | I218: CAA- Opex CR calc | K218: Being published with this model | AF218: 72.04281206 | AG218: 82.95086966 | AH218: 41.96946578 | AI218: 34.37101647 | AJ218: 25.10774663 | AK218: 19.17672953 | AL218: 18.34093743 | AM218: =AM214 -> 11.62871685 | AN218: 11.43852866 | AO218: 11.24834047 | AP218: 11.05815228 | AQ218: 10.86796409 | AR218: 10.6777759 | AS218: 10.48758771 | AT218: 10.29739952 | AU218: 10.10721133 | AV218: 9.917023144 | AW218: 9.726834955 | AX218: 9.696290549 | AY218: 9.666186054 | AZ218: 9.636509106 | BA218: 9.609434584 | BB218: 9.580582714 | BC218: 9.55432081 | BD218: 9.526249047 | BE218: 9.500755931 | BF218: 9.473422094 | BG218: 9.446439666 | BH218: 9.422020988 | BI218: 9.395717879 | BJ218: 9.3719695
B220: 3.e.ii Forecast base non-aero revenues excluding capacity step-ups
E222: Base retail revenue (high) | F222: =IF(SUM(AA222:BJ222)>=0,0,1) -> 0 | G222: =I_Global!$F$113 -> £'m RPI-real 2018 | H222: RPI indexation to be applied | I222: CAA- CTA model | K222: Being published with this model | AF222: 507.1813969 | AG222: 518.6596547 | AM222: 974.4263979 | AN222: 1001.108477 | AO222: 951.677212 | AP222: 979.5217401 | AQ222: 1004.384354 | AR222: 1010.925152 | AS222: 1000.751103 | AT222: 1021.841674 | AU222: 1033.450233 | AV222: 1045.172428 | AW222: 1047.873603 | AX222: 1049.323595 | AY222: 1055.59725 | AZ222: 1062.105199 | BA222: 1066.838573 | BB222: 1071.955019 | BC222: 1077.222796 | BD222: 1082.899467 | BE222: 1088.758558 | BF222: 1093.427733 | BG222: 1100.117169 | BH222: 1107.09629 | BI222: 1114.65657 | BJ222: 1122.599172
E223: Base retail revenue (middle) | F223: =IF(SUM(AA223:BJ223)>=0,0,1) -> 0 | G223: =I_Global!$F$113 -> £'m RPI-real 2018 | H223: RPI indexation to be applied | I223: CAA- CTA model | K223: Being published with this model | AE223: 1207.603313 | AF223: 507.1813969 | AG223: 518.6596547 | AH223: 837.8093944 | AI223: 881.3560676 | AJ223: 944.1839263 | AK223: 972.8258864 | AL223: 976.6864446 | AM223: 974.4263979 | AN223: 1001.108477 | AO223: 951.677212 | AP223: 979.5217401 | AQ223: 1004.384354 | AR223: 1010.925152 | AS223: 1000.751103 | AT223: 1021.841674 | AU223: 1033.450233 | AV223: 1045.172428 | AW223: 1047.873603 | AX223: 1049.323595 | AY223: 1055.59725 | AZ223: 1062.105199 | BA223: 1066.838573 | BB223: 1071.955019 | BC223: 1077.222796 | BD223: 1082.899467 | BE223: 1088.758558 | BF223: 1093.427733 | BG223: 1100.117169 | BH223: 1107.09629 | BI223: 1114.65657 | BJ223: 1122.599172
E224: Base retail revenue (low) | F224: =IF(SUM(AA224:BJ224)>=0,0,1) -> 0 | G224: =I_Global!$F$113 -> £'m RPI-real 2018 | H224: RPI indexation to be applied | I224: CAA- CTA model | K224: Being published with this model | AF224: 507.1813969 | AG224: 518.6596547 | AH224: 784.8241536 | AI224: 829.4954604 | AJ224: 886.1249178 | AK224: 907.8994392 | AL224: 909.2421546 | AM224: 974.4263979 | AN224: 1001.108477 | AO224: 951.677212 | AP224: 979.5217401 | AQ224: 1004.384354 | AR224: 1010.925152 | AS224: 1000.751103 | AT224: 1021.841674 | AU224: 1033.450233 | AV224: 1045.172428 | AW224: 1047.873603 | AX224: 1049.323595 | AY224: 1055.59725 | AZ224: 1062.105199 | BA224: 1066.838573 | BB224: 1071.955019 | BC224: 1077.222796 | BD224: 1082.899467 | BE224: 1088.758558 | BF224: 1093.427733 | BG224: 1100.117169 | BH224: 1107.09629 | BI224: 1114.65657 | BJ224: 1122.599172
E226: Base surface access revenue (high) | F226: =IF(SUM(AA226:BJ226)>=0,0,1) -> 0 | G226: =I_Global!$F$113 -> £'m RPI-real 2018 | H226: RPI indexation to be applied
E227: Base surface access revenue (middle) | F227: =IF(SUM(AA227:BJ227)>=0,0,1) -> 0 | G227: =I_Global!$F$113 -> £'m RPI-real 2018 | H227: RPI indexation to be applied
E228: Base surface access revenue (low) | F228: =IF(SUM(AA228:BJ228)>=0,0,1) -> 0 | G228: =I_Global!$F$113 -> £'m RPI-real 2018 | H228: RPI indexation to be applied
E230: Base property revenue (high) | F230: =IF(SUM(AA230:BJ230)>=0,0,1) -> 0 | G230: =I_Global!$F$113 -> £'m RPI-real 2018 | H230: RPI indexation to be applied
E231: Base property revenue (middle) | F231: =IF(SUM(AA231:BJ231)>=0,0,1) -> 0 | G231: =I_Global!$F$113 -> £'m RPI-real 2018 | H231: RPI indexation to be applied
E232: Base property revenue (low) | F232: =IF(SUM(AA232:BJ232)>=0,0,1) -> 0 | G232: =I_Global!$F$113 -> £'m RPI-real 2018 | H232: RPI indexation to be applied
E234: Base other ORC's (high) | F234: =IF(SUM(AA234:BJ234)>=0,0,1) -> 0 | G234: =I_Global!$F$113 -> £'m RPI-real 2018 | H234: RPI indexation to be applied
E235: Base other ORC's (middle) | F235: =IF(SUM(AA235:BJ235)>=0,0,1) -> 0 | G235: =I_Global!$F$113 -> £'m RPI-real 2018 | H235: RPI indexation to be applied
E236: Base other ORC's (low) | F236: =IF(SUM(AA236:BJ236)>=0,0,1) -> 0 | G236: =I_Global!$F$113 -> £'m RPI-real 2018 | H236: RPI indexation to be applied
E238: Base other commercial revenue (high) | F238: =IF(SUM(AA238:BJ238)>=0,0,1) -> 0 | G238: =I_Global!$F$113 -> £'m RPI-real 2018 | H238: RPI indexation to be applied
E239: Base other commercial revenue (middle) | F239: =IF(SUM(AA239:BJ239)>=0,0,1) -> 0 | G239: =I_Global!$F$113 -> £'m RPI-real 2018 | H239: RPI indexation to be applied
E240: Base other commercial revenue (low) | F240: =IF(SUM(AA240:BJ240)>=0,0,1) -> 0 | G240: =I_Global!$F$113 -> £'m RPI-real 2018 | H240: RPI indexation to be applied
E242: Base rail revenue (high) | F242: =IF(SUM(AA242:BJ242)>=0,0,1) -> 0 | G242: =I_Global!$F$113 -> £'m RPI-real 2018 | H242: RPI indexation to be applied
E243: Base rail revenue (middle) | F243: =IF(SUM(AA243:BJ243)>=0,0,1) -> 0 | G243: =I_Global!$F$113 -> £'m RPI-real 2018 | H243: RPI indexation to be applied
E244: Base rail revenue (low) | F244: =IF(SUM(AA244:BJ244)>=0,0,1) -> 0 | G244: =I_Global!$F$113 -> £'m RPI-real 2018 | H244: RPI indexation to be applied
E246: Base emissions charging revenue (high) | F246: =IF(SUM(AA246:BJ246)>=0,0,1) -> 0 | G246: =I_Global!$F$113 -> £'m RPI-real 2018 | H246: RPI indexation to be applied
E247: Base emissions charging revenue (middle) | F247: =IF(SUM(AA247:BJ247)>=0,0,1) -> 0 | G247: =I_Global!$F$113 -> £'m RPI-real 2018 | H247: RPI indexation to be applied
E248: Base emissions charging revenue (low) | F248: =IF(SUM(AA248:BJ248)>=0,0,1) -> 0 | G248: =I_Global!$F$113 -> £'m RPI-real 2018 | H248: RPI indexation to be applied
B250: 3.e.iii Marginal non-aero revenues
E252: Marginal retail revenue (high) | G252: =I_Global!$F$110 -> RPI-real 2018 £/passenger | H252: Applied to difference between forecast and realised pax
E253: Marginal retail revenue (middle) | G253: =I_Global!$F$110 -> RPI-real 2018 £/passenger | H253: Applied to difference between forecast and realised pax
... 100 more rows

Sheet I_Scenarios
A1: =MID(CELL( "filename", $A$1 ), SEARCH( "[",CELL( "filename", $A$1 ) ) + 1, SEARCH( "]",CELL( "filename", $A$1 ) ) - SEARCH( "[",CELL( "filename", $A$1 ) ) - 1 ) -> 
B2: =RIGHT(CELL( "filename", B2 ), LEN(CELL( "filename", B2 ) ) - SEARCH( "]",CELL( "filename", B2 ) ) ) ->  | I2: =I_InputSets!$I$2 -> Warning, dashboard overrides active
E3: =Checks!E$71 -> Checks & Alerts | F3: =Checks!F$3 -> -1 | H3: =C_Ratios!H3 -> Alerts | I3: =C_Ratios!I3 -> ALERT: one or more financial ratios are breaching thresholds
B4: =I_Scenarios!$G$16 -> Input set used to determine prices | F4: =I_Scenarios!$G$17 -> Input set 1
B5: =I_Scenarios!$I$16 -> Input set used to determine outturn financial statements & ratios | F5: =I_Scenarios!$I$17 -> Input set 1
B6: =I_Scenarios!$E$16 -> Live Scenario | F6: =I_Scenarios!E$17 & " " & I_Scenarios!F$17 -> Scenario 1 Mid case
A9: Scenario Selector
A10: 1. Live Scenario
D12: Model Mode | E12: Run live outputs | G12: =IF( E12 = I_Global!$F$40, "Model run based on Scenario for prices", "Model run based on Scenario for financial statements and ratios" ) -> Model run based on Scenario for financial statements and ratios
D13: Live combination | E13: Scenario 1 | F13: =INDEX( D$24:D$32, MATCH( $E$13, $E$24:$E$32, 0 ) ) -> 1 | G13: (Price scenario, Outturn scenario)
D14: Live Input set being run in model | E14: =IF( $E$12 = I_Global!$F$40, I_Scenarios!$G$18, I_Scenarios!$I$18 ) -> 1 | G14: =IF(E12 = I_Global!F40, "Price Scenario", "Outturn scenario") -> Outturn scenario
E16: Live Scenario | G16: Input set used to determine prices | I16: Input set used to determine outturn financial statements & ratios | K16: Base vs Stress
D17: Live | E17: =$E$13 -> Scenario 1 | F17: =INDEX( F$24:F$32, MATCH( $E$13, $E$24:$E$32, 0 ) ) -> Mid case | G17: Input set 1 | H17: Base case | I17: Input set 1 | J17: Base case | K17: Base
E18: column number | G18: =MATCH( G$17, I_InputSets!$AA$13:$AJ$13, 0 ) -> 1 | I18: =MATCH( I$17, I_InputSets!$AA$13:$AJ$13, 0 ) -> 1
A21: 2.a Scenario names
D23: ID | E23: Scenario | G23: Input set used to determine prices | I23: Input set used to determine outturn financial statements & ratios | K23: Base vs Stress
D24: 1 | E24: Scenario 1 | F24: Mid case | G24: Input set 1 | H24: =INDEX(I_InputSets!$AA$15:$AI$15,MATCH(I_Scenarios!$G24,I_InputSets!$AA$13:$AI$13,0)) -> Base case | I24: Input set 1 | J24: =INDEX(I_InputSets!$AA$15:$AI$15,MATCH(I_Scenarios!$I24,I_InputSets!$AA$13:$AI$13,0)) -> Base case | K24: =IF( $G24 <> $I24,"Stress","Base" ) -> Base
D25: 2 | E25: Scenario 2 | F25: Stress test | G25: Input set 1 | H25: =INDEX(I_InputSets!$AA$15:$AI$15,MATCH(I_Scenarios!$G25,I_InputSets!$AA$13:$AI$13,0)) -> Base case | I25: Input set 2 | J25: =INDEX(I_InputSets!$AA$15:$AI$15,MATCH(I_Scenarios!$I25,I_InputSets!$AA$13:$AI$13,0)) -> 10% reduction in pax | K25: =IF( $G25 <> $I25,"Stress","Base" ) -> Stress
D26: 3 | E26: Scenario 3 | G26: Input set 3 | H26: =INDEX(I_InputSets!$AA$15:$AI$15,MATCH(I_Scenarios!$G26,I_InputSets!$AA$13:$AI$13,0)) -> 0 | I26: Input set 3 | J26: =INDEX(I_InputSets!$AA$15:$AI$15,MATCH(I_Scenarios!$I26,I_InputSets!$AA$13:$AI$13,0)) -> 0 | K26: Base
D27: 4 | E27: Scenario 4 | G27: Input set 4 | H27: =INDEX(I_InputSets!$AA$15:$AI$15,MATCH(I_Scenarios!$G27,I_InputSets!$AA$13:$AI$13,0)) -> 0 | I27: Input set 4 | J27: =INDEX(I_InputSets!$AA$15:$AI$15,MATCH(I_Scenarios!$I27,I_InputSets!$AA$13:$AI$13,0)) -> 0 | K27: Base
D28: 5 | E28: Scenario 5 | G28: Input set 5 | H28: =INDEX(I_InputSets!$AA$15:$AI$15,MATCH(I_Scenarios!$G28,I_InputSets!$AA$13:$AI$13,0)) -> 0 | I28: Input set 5 | J28: =INDEX(I_InputSets!$AA$15:$AI$15,MATCH(I_Scenarios!$I28,I_InputSets!$AA$13:$AI$13,0)) -> 0 | K28: Base
D29: 6 | E29: Scenario 6 | F29: x1 | G29: Input set 6 | H29: =INDEX(I_InputSets!$AA$15:$AI$15,MATCH(I_Scenarios!$G29,I_InputSets!$AA$13:$AI$13,0)) -> 0 | I29: Input set 6 | J29: =INDEX(I_InputSets!$AA$15:$AI$15,MATCH(I_Scenarios!$I29,I_InputSets!$AA$13:$AI$13,0)) -> 0 | K29: Base
D30: 7 | E30: Scenario 7 | F30: x2 | G30: Input set 7 | H30: =INDEX(I_InputSets!$AA$15:$AI$15,MATCH(I_Scenarios!$G30,I_InputSets!$AA$13:$AI$13,0)) -> 0 | I30: Input set 7 | J30: =INDEX(I_InputSets!$AA$15:$AI$15,MATCH(I_Scenarios!$I30,I_InputSets!$AA$13:$AI$13,0)) -> 0 | K30: Base
D31: 8 | E31: Scenario 8 | F31: x3 | G31: Input set 8 | H31: =INDEX(I_InputSets!$AA$15:$AI$15,MATCH(I_Scenarios!$G31,I_InputSets!$AA$13:$AI$13,0)) -> 0 | I31: Input set 8 | J31: =INDEX(I_InputSets!$AA$15:$AI$15,MATCH(I_Scenarios!$I31,I_InputSets!$AA$13:$AI$13,0)) -> 0 | K31: Base
D32: 9 | E32: Scenario 9 | F32: x4 | G32: Input set 9 | H32: =INDEX(I_InputSets!$AA$15:$AI$15,MATCH(I_Scenarios!$G32,I_InputSets!$AA$13:$AI$13,0)) -> 0 | I32: Input set 9 | J32: =INDEX(I_InputSets!$AA$15:$AI$15,MATCH(I_Scenarios!$I32,I_InputSets!$AA$13:$AI$13,0)) -> 0 | K32: Base
G33: dropdowns | I33: dropdowns
A35: End of spreadsheet

Sheet I_InputSets
A1: =MID(CELL( "filename", $A$1 ), SEARCH( "[",CELL( "filename", $A$1 ) ) + 1, SEARCH( "]",CELL( "filename", $A$1 ) ) - SEARCH( "[",CELL( "filename", $A$1 ) ) - 1 ) -> 
B2: =RIGHT(CELL( "filename", B2 ), LEN(CELL( "filename", B2 ) ) - SEARCH( "]",CELL( "filename", B2 ) ) ) ->  | I2: =IF(COUNTA(Y12:Y606) - COUNTIF(Y12:Y606, "n/a") = 0, "Dashboard overrides not used", "Warning, dashboard overrides active") -> Warning, dashboard overrides active
E3: =Checks!E$71 -> Checks & Alerts | F3: =Checks!F$3 -> -1 | H3: =C_Ratios!H3 -> Alerts | I3: =C_Ratios!I3 -> ALERT: one or more financial ratios are breaching thresholds
B4: =I_Scenarios!$G$16 -> Input set used to determine prices | F4: =I_Scenarios!$G$17 -> Input set 1 | I4: If input selections (from row 19 downwards) are blank then the inputs are taken from column AA
B5: =I_Scenarios!$I$16 -> Input set used to determine outturn financial statements & ratios | F5: =I_Scenarios!$I$17 -> Input set 1
B6: =I_Scenarios!$E$16 -> Live Scenario | F6: =I_Scenarios!E$17 & " " & I_Scenarios!F$17 -> Scenario 1 Mid case
E8: Label | F8: Constant | G8: Units | H8: Notes | I8: Data Source | K8: Confidentiality Status | Y8: Dashboard Override
A9: Scenario Selector
A10: 2.a Scenario names
E12: Model mode | F12: =I_Scenarios!$E$12 -> Run live outputs
E13: Live combination | F13: =I_Scenarios!$E$13 -> Scenario 1 | G13: =I_Global!$F$127 -> selection | AA13: Input set 1 | AB13: Input set 2 | AC13: Input set 3 | AD13: Input set 4 | AE13: Input set 5 | AF13: Input set 6 | AG13: Input set 7 | AH13: Input set 8 | AI13: Input set 9
E14: Live Input set column number | F14: =IF( Y14 = "n/a", I_Scenarios!$E$14, Y14 ) -> 1 | G14: =I_Global!$F$106 -> # | Y14: =IF(O_Dashboards!F15 = "", "n/a", O_Dashboards!F15) -> n/a
E15: Live Input set descriptor | F15: =IF(INDEX( AA15:AJ15, $F$14 ) = "", AA15, INDEX( AA15:AJ15, $F$14 ) ) -> Base case | G15: =I_Global!$F$126 -> Input set selection | AA15: Base case | AB15: 10% reduction in pax
A17: Collection of assumptions for scenarios
A18: 2.b Passenger numbers
E20: Passenger numbers for price setting scenario | F20: =IF(OR(Y20 = "n/a", Y20 = ""), IF(INDEX(AA20:AJ20, $F$14) = "", AA20, INDEX(AA20:AJ20, $F$14)), Y20) -> Stress test passenger demand (middle) | G20: =I_Global!$F$126 -> Input set selection | I20: CAA | K20: Being published with this model | AA20: Stress test passenger demand (middle) | AB20: Stress test passenger demand (middle)
E21: Passenger demand for live outputs scenario | F21: =IF(OR(Y21 = "n/a", Y21 = ""), IF(INDEX(AA21:AJ21, $F$14) = "", AA21, INDEX(AA21:AJ21, $F$14)), Y21) -> Stress test passenger demand (middle) | G21: =I_Global!$F$126 -> Input set selection | I21: CAA | K21: Being published with this model | Y21: =IF(O_Dashboards!F16 = "", "n/a", O_Dashboards!F16) -> n/a | AA21: Stress test passenger demand (middle) | AB21: Stress test passenger demand (low)
A23: 2.c Operating costs scenarios
B25: 2.c.i Forecast base operating costs
E27: Base people costs scenario | F27: =IF(OR(Y27 = "n/a", Y27 = ""), IF(INDEX(AA27:AJ27, $F$14) = "", AA27, INDEX(AA27:AJ27, $F$14)), Y27) -> Base people (middle) | G27: =I_Global!$F$126 -> Input set selection | I27: CAA | K27: Being published with this model | AA27: Base people (middle) | AB27: Base people (low)
E28: Base operations costs scenario | F28: Base operations (middle) | G28: =I_Global!$F$126 -> Input set selection | I28: CAA | K28: Being published with this model | AA28: Base operations (middle)
E29: Base rent & rates scenario | F29: Base rent & rates (middle) | G29: =I_Global!$F$126 -> Input set selection | I29: CAA | K29: Being published with this model | AA29: Base rent & rates (middle)
E30: Base utilities scenario | F30: Base utilities (middle) | G30: =I_Global!$F$126 -> Input set selection | I30: CAA | K30: Being published with this model | AA30: Base utilities (middle)
E31: Base facilities & maintenance scenario | F31: Base facilities & maintenance (middle) | G31: =I_Global!$F$126 -> Input set selection | I31: CAA | K31: Being published with this model | AA31: Base facilities & maintenance (middle)
E32: Base other expenditure scenario | F32: Base other expenditure (middle) | G32: =I_Global!$F$126 -> Input set selection | I32: CAA | K32: Being published with this model | AA32: Base other expenditure (middle)
B34: 2.c.ii Marginal operating costs
E36: Marginal people costs scenario | F36: =IF(OR(Y36 = "n/a", Y36 = ""), IF(INDEX(AA36:AJ36, $F$14) = "", AA36, INDEX(AA36:AJ36, $F$14)), Y36) -> Marginal people (middle) | G36: =I_Global!$F$126 -> Input set selection | I36: CAA | K36: Being published with this model | AA36: Marginal people (middle)
E37: Marginal operations costs scenario | F37: Marginal operations (middle) | G37: =I_Global!$F$126 -> Input set selection | I37: CAA | K37: Being published with this model | AA37: Marginal operations (middle)
E38: Marginal rent & rates scenario | F38: Marginal rent & rates (middle) | G38: =I_Global!$F$126 -> Input set selection | I38: CAA | K38: Being published with this model | AA38: Marginal rent & rates (middle)
E39: Marginal utilities scenario | F39: Marginal utilities (middle) | G39: =I_Global!$F$126 -> Input set selection | I39: CAA | K39: Being published with this model | AA39: Marginal utilities (middle)
E40: Marginal facilities & maintenance scenario | F40: Marginal facilities & maintenance (middle) | G40: =I_Global!$F$126 -> Input set selection | I40: CAA | K40: Being published with this model | AA40: Marginal facilities & maintenance (middle)
E41: Marginal other expenditure scenario | F41: Marginal other expenditure (middle) | G41: =I_Global!$F$126 -> Input set selection | I41: CAA | K41: Being published with this model | AA41: Marginal other expenditure (middle)
A43: 2.d Non aero revenue scenarios
B45: 2.d.i Forecast non-aero revenues
E47: Base retail revenue scenario | F47: =IF(OR(Y47 = "n/a", Y47 = ""), IF(INDEX(AA47:AJ47, $F$14) = "", AA47, INDEX(AA47:AJ47, $F$14)), Y47) -> Base retail revenue (middle) | G47: =I_Global!$F$126 -> Input set selection | I47: CAA | K47: Being published with this model | AA47: Base retail revenue (middle) | AB47: Base retail revenue (low)
E48: Base surface access revenue scenario | F48: Base surface access revenue (middle) | G48: =I_Global!$F$126 -> Input set selection | I48: CAA | K48: Being published with this model | AA48: Base surface access revenue (middle)
E49: Base property revenue scenario | F49: Base property revenue (middle) | G49: =I_Global!$F$126 -> Input set selection | I49: CAA | K49: Being published with this model | AA49: Base property revenue (middle)
E50: Base ORC's revenue scenario | F50: Base other ORC's (middle) | G50: =I_Global!$F$126 -> Input set selection | I50: CAA | K50: Being published with this model | AA50: Base other ORC's (middle)
E51: Base other commercial revenue scenario | F51: Base other commercial revenue (middle) | G51: =I_Global!$F$126 -> Input set selection | I51: CAA | K51: Being published with this model | AA51: Base other commercial revenue (middle)
E52: Base rail revenue scenario | F52: Base rail revenue (middle) | G52: =I_Global!$F$126 -> Input set selection | I52: CAA | K52: Being published with this model | AA52: Base rail revenue (middle)
E53: Base emissions charging revenue scenario | F53: Base emissions charging revenue (middle) | G53: =I_Global!$F$126 -> Input set selection | I53: CAA | K53: Being published with this model | AA53: Base emissions charging revenue (middle)
E55: Base cargo revenues | F55: =IF(OR(Y55 = "n/a", Y55 = ""), IF(INDEX(AA55:AJ55, $F$14) = "", AA55, INDEX(AA55:AJ55, $F$14)), Y55) -> Base cargo revenue (middle) | G55: =I_Global!$F$126 -> Input set selection | I55: CAA | K55: Being published with this model | AA55: Base cargo revenue (middle)
B57: 2.d.ii Marginal non-aero revenues
E59: Marginal retail revenue scenario | F59: =IF(OR(Y59 = "n/a", Y59 = ""), IF(INDEX(AA59:AJ59, $F$14) = "", AA59, INDEX(AA59:AJ59, $F$14)), Y59) -> Marginal retail revenue (middle) | G59: =I_Global!$F$126 -> Input set selection | I59: CAA | K59: Being published with this model | AA59: Marginal retail revenue (middle)
E60: Marginal surface access revenue scenario | F60: Marginal surface access revenue (middle) | G60: =I_Global!$F$126 -> Input set selection | I60: CAA | K60: Being published with this model | AA60: Marginal surface access revenue (middle)
E61: Marginal property revenue scenario | F61: Marginal property revenue (middle) | G61: =I_Global!$F$126 -> Input set selection | I61: CAA | K61: Being published with this model | AA61: Marginal property revenue (middle)
E62: Marginal ORC's revenue scenario | F62: Marginal other ORC's (middle) | G62: =I_Global!$F$126 -> Input set selection | I62: CAA | K62: Being published with this model | AA62: Marginal other ORC's (middle)
E63: Marginal other commercial revenue scenario | F63: Marginal other commercial revenue (middle) | G63: =I_Global!$F$126 -> Input set selection | I63: CAA | K63: Being published with this model | AA63: Marginal other commercial revenue (middle)
E64: Marginal rail revenue scenario | F64: Marginal rail revenue (middle) | G64: =I_Global!$F$126 -> Input set selection | I64: CAA | K64: Being published with this model | AA64: Marginal rail revenue (middle)
E65: Marginal emissions charging revenue scenario | F65: Marginal emissions charging revenue (middle) | G65: =I_Global!$F$126 -> Input set selection | I65: CAA | K65: Being published with this model | AA65: Marginal emissions charging revenue (middle)
E66: Stress cargo revenue scenario | F66: =IF(OR(Y66 = "n/a", Y66 = ""), IF(INDEX(AA66:AJ66, $F$14) = "", AA66, INDEX(AA66:AJ66, $F$14)), Y66) -> Stress cargo revenue (middle) | G66: =I_Global!$F$126 -> Input set selection | I66: CAA | K66: Being published with this model | AA66: Stress cargo revenue (middle)
A68: 2.e Financing
E70: Gearing scenario selected | F70: =IF( OR( Y70 = "n/a", Y70 = "" ), IF(INDEX( AA70:AJ70, $F$14 ) = "", AA70, INDEX( AA70:AJ70, $F$14 ) ), Y70 ) -> Gearing target A | G70: =I_Global!$F$127 -> selection | I70: CAA | K70: Being published with this model | Y70: =IF(O_Dashboards!F18 = "", "n/a", O_Dashboards!F18) -> n/a | AA70: Gearing target A
E71: New debt term | F71: =IF(OR(Y71 = "n/a", Y71 = ""), IF(INDEX(AA71:AJ71, $F$14) = "", AA71, INDEX(AA71:AJ71, $F$14)), Y71) -> 20 | G71: =I_Global!$F$131 -> years | I71: CAA | K71: Being published with this model | AA71: 20
E72: Index-linked debt indexation | F72: RPI annual growth rate | G72: =I_Global!$F$119 -> factor | I72: CAA | K72: Being published with this model | AA72: RPI annual growth rate
E73: Equity RAB entry multiple | F73: =IF(OR(Y73 = "n/a", Y73 = ""), IF(INDEX(AA73:AJ73, $F$14) = "", AA73, INDEX(AA73:AJ73, $F$14)), Y73) -> 0.3520729976 | G73: =I_Global!$F$125 -> ratio | I73: CAA | K73: Being published with this model | AA73: =(1-C_Ratios!$AG$100) -> 0.3520729976
E74: Equity RAB exit multiple | F74: 0.399989739 | G74: =I_Global!$F$125 -> ratio | I74: CAA | K74: Being published with this model | AA74: =(1-C_Ratios!$AL$100) -> 0.399989739
E75: Equity IRR guess | F75: 0.1 | G75: =I_Global!$F$108 -> % | I75: CAA | K75: Being published with this model | AA75: 0.1
E76: Repayment term for accretion on synthetic index-linked debt | F76: 5 | G76: =I_Global!$F$131 -> years | I76: CAA | K76: Being published with this model | AA76: 5
E77: Minimum equity yield calculated as percentage of | F77: Equity wedge | G77: =I_Global!$F$127 -> selection | I77: CAA | K77: Being published with this model | AA77: Equity wedge
E78: % of accretion | F78: 0.5 | G78: =I_Global!$F$108 -> % | I78: CAA | K78: Being published with this model | AA78: 0.5
A80: 2.f Applicable indexation factors
E82: People costs indexation | F82: =IF(OR(Y82 = "n/a", Y82 = ""), IF(INDEX(AA82:AJ82, $F$14) = "", AA82, INDEX(AA82:AJ82, $F$14)), Y82) -> RPI annual growth rate | G82: =I_Global!$F$119 -> factor | I82: CAA | K82: Being published with this model | AA82: RPI annual growth rate
E83: Operations costs indexation | F83: RPI annual growth rate | G83: =I_Global!$F$119 -> factor | I83: CAA | K83: Being published with this model | AA83: RPI annual growth rate
E84: Rent & rates indexation | F84: RPI annual growth rate | G84: =I_Global!$F$119 -> factor | I84: CAA | K84: Being published with this model | AA84: RPI annual growth rate
E85: Utilities indexation | F85: =IF(OR(Y85 = "n/a", Y85 = ""), IF(INDEX(AA85:AJ85, $F$14) = "", AA85, INDEX(AA85:AJ85, $F$14)), Y85) -> RPI annual growth rate | G85: =I_Global!$F$119 -> factor | I85: CAA | K85: Being published with this model | AA85: RPI annual growth rate
E86: Facilities & maintenance indexation | F86: RPI annual growth rate | G86: =I_Global!$F$119 -> factor | I86: CAA | K86: Being published with this model | AA86: RPI annual growth rate
E87: Other expenditure indexation | F87: RPI annual growth rate | G87: =I_Global!$F$119 -> factor | I87: CAA | K87: Being published with this model | AA87: RPI annual growth rate
E88: Airport charges revenues indexation | F88: CPI annual growth rate | G88: =I_Global!$F$119 -> factor | I88: CAA | K88: Being published with this model | AA88: CPI annual growth rate
E89: Retail revenue indexation | F89: RPI annual growth rate | G89: =I_Global!$F$119 -> factor | I89: CAA | K89: Being published with this model | AA89: RPI annual growth rate
E90: Surface access revenue indexation | F90: RPI annual growth rate | G90: =I_Global!$F$119 -> factor | I90: CAA | K90: Being published with this model | AA90: RPI annual growth rate
E91: Property revenue indexation | F91: RPI annual growth rate | G91: =I_Global!$F$119 -> factor | I91: CAA | K91: Being published with this model | AA91: RPI annual growth rate
E92: ORC's revenue indexation | F92: RPI annual growth rate | G92: =I_Global!$F$119 -> factor | I92: CAA | K92: Being published with this model | AA92: RPI annual growth rate
E93: Other commercial revenue indexation | F93: RPI annual growth rate | G93: =I_Global!$F$119 -> factor | I93: CAA | K93: Being published with this model | AA93: RPI annual growth rate
E94: Rail revenue indexation | F94: RPI annual growth rate | G94: =I_Global!$F$119 -> factor | I94: CAA | K94: Being published with this model | AA94: RPI annual growth rate
E95: Emissions charging revenue indexation | F95: RPI annual growth rate | G95: =I_Global!$F$119 -> factor | I95: CAA | K95: Being published with this model | AA95: RPI annual growth rate
E96: Cargo revenue indexation | F96: =IF(OR(Y96 = "n/a", Y96 = ""), IF(INDEX(AA96:AJ96, $F$14) = "", AA96, INDEX(AA96:AJ96, $F$14)), Y96) -> RPI annual growth rate | G96: =I_Global!$F$119 -> factor | I96: CAA | K96: Being published with this model | AA96: RPI annual growth rate
E97: Capex indexation | F97: RPI annual growth rate | G97: =I_Global!$F$119 -> factor | I97: CAA | K97: Being published with this model | AA97: RPI annual growth rate
E98: Existing RAB indexation | F98: RPI Dec growth rate | G98: =I_Global!$F$119 -> factor | I98: CAA | K98: Being published with this model | AA98: RPI Dec growth rate
E99: Capex and Depreciation (in year) indexation for RAB | F99: RPI Dec/RPI average | G99: =I_Global!$F$119 -> factor | I99: CAA | K99: Being published with this model | AA99: RPI Dec/RPI average
E100: Indexation for calculating the discount rate | F100: =IF(OR(Y100 = "n/a", Y100 = ""), IF(INDEX(AA100:AJ100, $F$14) = "", AA100, INDEX(AA100:AJ100, $F$14)), Y100) -> RPI annual growth rate | G100: =I_Global!$F$119 -> factor | H100: Must be same as RAB indexation (RPI) | I100: CAA | K100: Being published with this model | AA100: RPI annual growth rate
A102: 2.g Taxation
E104: Approach to taxation allowance | F104: =IF(OR(Y104 = "n/a", Y104 = ""), IF(INDEX(AA104:AJ104, $F$14) = "", AA104, INDEX(AA104:AJ104, $F$14)), Y104) -> WACC uplift | G104: =I_Global!$F$126 -> Input set selection | I104: CAA | K104: Being published with this model | Y104: =IF(O_Dashboards!F19 = "", "n/a", O_Dashboards!F19) -> n/a | AA104: WACC uplift
E105: Tax rate for WACC | F105: =IF(OR(Y105 = "n/a", Y105 = ""), IF(INDEX(AA105:AJ105, $F$14) = "", AA105, INDEX(AA105:AJ105, $F$14)), Y105) -> Corporation tax | G105: =I_Global!$F$126 -> Input set selection | I105: CAA | K105: Being published with this model | AA105: Corporation tax
A107: 2.h RAB Allocations
E109: =I_Global!F$137 &" additions RAB Allocations" -> Category 1 description additions RAB Allocations | F109: =IF(OR(Y109 = "n/a", Y109 = ""), IF(INDEX(AA109:AJ109, $F$14) = "", AA109, INDEX(AA109:AJ109, $F$14)), Y109) -> RAB 1 | G109: =I_Global!$F$127 -> selection | I109: CAA | K109: Being published with this model | AA109: RAB 1
E110: =I_Global!F$138 &" additions RAB Allocations" -> Category 2 description additions RAB Allocations | F110: RAB 1 | G110: =I_Global!$F$127 -> selection | I110: CAA | K110: Being published with this model | AA110: RAB 1
E111: =I_Global!F$139 &" additions RAB Allocations" -> Category 3 description additions RAB Allocations | F111: RAB 1 | G111: =I_Global!$F$127 -> selection | I111: CAA | K111: Being published with this model | AA111: RAB 1
E112: =I_Global!F$140 &" additions RAB Allocations" -> Category 4 description additions RAB Allocations | F112: RAB 1 | G112: =I_Global!$F$127 -> selection | I112: CAA | K112: Being published with this model | AA112: RAB 1
E113: =I_Global!F$141 &" additions RAB Allocations" -> Category 5 description additions RAB Allocations | F113: RAB 1 | G113: =I_Global!$F$127 -> selection | I113: CAA | K113: Being published with this model | AA113: RAB 1
E114: =I_Global!F$142 &" additions RAB Allocations" -> Category 6 description additions RAB Allocations | F114: RAB 1 | G114: =I_Global!$F$127 -> selection | I114: CAA | K114: Being published with this model | AA114: RAB 1
E115: =I_Global!F$143 &" additions RAB Allocations" -> Category 7 description additions RAB Allocations | F115: RAB 1 | G115: =I_Global!$F$127 -> selection | I115: CAA | K115: Being published with this model | AA115: RAB 1
E116: =I_Global!F$144 &" additions RAB Allocations" -> Category 8 description additions RAB Allocations | F116: RAB 1 | G116: =I_Global!$F$127 -> selection | I116: CAA | K116: Being published with this model | AA116: RAB 1
E117: =I_Global!F$145 &" additions RAB Allocations" -> Category 9 description additions RAB Allocations | F117: RAB 1 | G117: =I_Global!$F$127 -> selection | I117: CAA | K117: Being published with this model | AA117: RAB 1
E118: =I_Global!F$146 &" additions RAB Allocations" -> Category 10 description additions RAB Allocations | F118: RAB 1 | G118: =I_Global!$F$127 -> selection | I118: CAA | K118: Being published with this model | AA118: RAB 1
A120: 2.i Capex Incentives and Sharing Mechanisms
C122: RAB 1
D124: Benefit Share - Underspend Ranges:
E125: =C122 & " underspend range 1 (<" & F125 * 100 & "% of allowed cashflow)" -> RAB 1 underspend range 1 (<-50% of allowed cashflow) | F125: =IF(OR(Y125 = "n/a", Y125 = ""), IF(INDEX(AA125:AJ125, $F$14) = "", AA125, INDEX(AA125:AJ125, $F$14)), Y125) -> -0.5 | G125: =I_Global!$F$108 -> % | H125: Enter negative | I125: CAA | K125: Being published with this model | AA125: -0.5
E126: =C122 & " underspend range 2 (" & F126 * 100 & " to " & F125 * 100 & "% of allowed cashflow)" -> RAB 1 underspend range 2 (-25 to -50% of allowed cashflow) | F126: =IF(OR(Y126 = "n/a", Y126 = ""), IF(INDEX(AA126:AJ126, $F$14) = "", AA126, INDEX(AA126:AJ126, $F$14)), Y126) -> -0.25 | G126: =I_Global!$F$108 -> % | H126: Enter negative | I126: CAA | K126: Being published with this model | AA126: -0.25
E127: =C122 & " underspend range 3 (" & F127 * 100 & " to " & F126 * 100 & "% of allowed cashflow)" -> RAB 1 underspend range 3 (-10 to -25% of allowed cashflow) | F127: =IF(OR(Y127 = "n/a", Y127 = ""), IF(INDEX(AA127:AJ127, $F$14) = "", AA127, INDEX(AA127:AJ127, $F$14)), Y127) -> -0.1 | G127: =I_Global!$F$108 -> % | H127: Enter negative | I127: CAA | K127: Being published with this model | AA127: -0.1
E128: =C122 & " underspend range 4 (" & F128 * 100 & " to " & F127 * 100 & "% of allowed cashflow)" -> RAB 1 underspend range 4 (-5 to -10% of allowed cashflow) | F128: =IF(OR(Y128 = "n/a", Y128 = ""), IF(INDEX(AA128:AJ128, $F$14) = "", AA128, INDEX(AA128:AJ128, $F$14)), Y128) -> -0.05 | G128: =I_Global!$F$108 -> % | H128: Enter negative | I128: CAA | K128: Being published with this model | AA128: -0.05
E129: =C122 & " underspend range 5 (" & F129 * 100 & " to " & F128 * 100 & "% of allowed cashflow)" -> RAB 1 underspend range 5 (0 to -5% of allowed cashflow) | F129: =IF(OR(Y129 = "n/a", Y129 = ""), IF(INDEX(AA129:AJ129, $F$14) = "", AA129, INDEX(AA129:AJ129, $F$14)), Y129) -> 0 | G129: =I_Global!$F$108 -> % | H129: Enter negative | I129: CAA | K129: Being published with this model | AA129: 0
D131: Benefit Share - Allocation to RAB:
E132: ="% of underspend allocated to " & C122 & " for underspend range 1" -> % of underspend allocated to RAB 1 for underspend range 1 | F132: =IF(OR(Y132 = "n/a", Y132 = ""), IF(INDEX(AA132:AJ132, $F$14) = "", AA132, INDEX(AA132:AJ132, $F$14)), Y132) -> 0.25 | G132: =I_Global!$F$108 -> % | I132: CAA | K132: Being published with this model | AA132: 0.25
E133: ="% of underspend allocated to " & C122 & " for underspend range 2" -> % of underspend allocated to RAB 1 for underspend range 2 | F133: =IF(OR(Y133 = "n/a", Y133 = ""), IF(INDEX(AA133:AJ133, $F$14) = "", AA133, INDEX(AA133:AJ133, $F$14)), Y133) -> 0.25 | G133: =I_Global!$F$108 -> % | I133: CAA | K133: Being published with this model | AA133: 0.25
E134: ="% of underspend allocated to " & C122 & " for underspend range 3" -> % of underspend allocated to RAB 1 for underspend range 3 | F134: =IF(OR(Y134 = "n/a", Y134 = ""), IF(INDEX(AA134:AJ134, $F$14) = "", AA134, INDEX(AA134:AJ134, $F$14)), Y134) -> 0.25 | G134: =I_Global!$F$108 -> % | I134: CAA | K134: Being published with this model | AA134: 0.25
E135: ="% of underspend allocated to " & C122 & " for underspend range 4" -> % of underspend allocated to RAB 1 for underspend range 4 | F135: =IF(OR(Y135 = "n/a", Y135 = ""), IF(INDEX(AA135:AJ135, $F$14) = "", AA135, INDEX(AA135:AJ135, $F$14)), Y135) -> 0.25 | G135: =I_Global!$F$108 -> % | I135: CAA | K135: Being published with this model | AA135: 0.25
E136: ="% of underspend allocated to " & C122 & " for underspend range 5" -> % of underspend allocated to RAB 1 for underspend range 5 | F136: =IF(OR(Y136 = "n/a", Y136 = ""), IF(INDEX(AA136:AJ136, $F$14) = "", AA136, INDEX(AA136:AJ136, $F$14)), Y136) -> 0.25 | G136: =I_Global!$F$108 -> % | I136: CAA | K136: Being published with this model | AA136: 0.25
D138: Risk Share - Overspend Ranges:
E139: =C122 & " overspend range 1 (>" & F139 * 100 & "% of allowed cashflow)" -> RAB 1 overspend range 1 (>50% of allowed cashflow) | F139: =IF(OR(Y139 = "n/a", Y139 = ""), IF(INDEX(AA139:AJ139, $F$14) = "", AA139, INDEX(AA139:AJ139, $F$14)), Y139) -> 0.5 | G139: =I_Global!$F$108 -> % | I139: CAA | K139: Being published with this model | AA139: 0.5
E140: =C122 & " overspend range 2 (" & F140 * 100 & " to " & F139 * 100 & "% of allowed cashflow)" -> RAB 1 overspend range 2 (25 to 50% of allowed cashflow) | F140: =IF(OR(Y140 = "n/a", Y140 = ""), IF(INDEX(AA140:AJ140, $F$14) = "", AA140, INDEX(AA140:AJ140, $F$14)), Y140) -> 0.25 | G140: =I_Global!$F$108 -> % | I140: CAA | K140: Being published with this model | AA140: 0.25
E141: =C122 & " overspend range 3 (" & F141 * 100 & " to " & F140 * 100 & "% of allowed cashflow)" -> RAB 1 overspend range 3 (10 to 25% of allowed cashflow) | F141: =IF(OR(Y141 = "n/a", Y141 = ""), IF(INDEX(AA141:AJ141, $F$14) = "", AA141, INDEX(AA141:AJ141, $F$14)), Y141) -> 0.1 | G141: =I_Global!$F$108 -> % | I141: CAA | K141: Being published with this model | AA141: 0.1
E142: =C122 & " overspend range 4 (" & F142 * 100 & " to " & F141 * 100 & "% of allowed cashflow)" -> RAB 1 overspend range 4 (5 to 10% of allowed cashflow) | F142: =IF(OR(Y142 = "n/a", Y142 = ""), IF(INDEX(AA142:AJ142, $F$14) = "", AA142, INDEX(AA142:AJ142, $F$14)), Y142) -> 0.05 | G142: =I_Global!$F$108 -> % | I142: CAA | K142: Being published with this model | AA142: 0.05
E143: =C122 & " overspend range 5 (" & F143 * 100 & " to " & F142 * 100 & "% of allowed cashflow)" -> RAB 1 overspend range 5 (0 to 5% of allowed cashflow) | F143: =IF(OR(Y143 = "n/a", Y143 = ""), IF(INDEX(AA143:AJ143, $F$14) = "", AA143, INDEX(AA143:AJ143, $F$14)), Y143) -> 0 | G143: =I_Global!$F$108 -> % | I143: CAA | K143: Being published with this model | AA143: 0
D145: Risk Share - Allocation to RAB:
E146: ="% of overspend allocated to " & C122 & " for overspend range 1" -> % of overspend allocated to RAB 1 for overspend range 1 | F146: =IF(OR(Y146 = "n/a", Y146 = ""), IF(INDEX(AA146:AJ146, $F$14) = "", AA146, INDEX(AA146:AJ146, $F$14)), Y146) -> 0.25 | G146: =I_Global!$F$108 -> % | I146: CAA | K146: Being published with this model | AA146: 0.25
E147: ="% of overspend allocated to " & C122 & " for overspend range 2" -> % of overspend allocated to RAB 1 for overspend range 2 | F147: =IF(OR(Y147 = "n/a", Y147 = ""), IF(INDEX(AA147:AJ147, $F$14) = "", AA147, INDEX(AA147:AJ147, $F$14)), Y147) -> 0.25 | G147: =I_Global!$F$108 -> % | I147: CAA | K147: Being published with this model | AA147: 0.25
E148: ="% of overspend allocated to " & C122 & " for overspend range 3" -> % of overspend allocated to RAB 1 for overspend range 3 | F148: =IF(OR(Y148 = "n/a", Y148 = ""), IF(INDEX(AA148:AJ148, $F$14) = "", AA148, INDEX(AA148:AJ148, $F$14)), Y148) -> 0.25 | G148: =I_Global!$F$108 -> % | I148: CAA | K148: Being published with this model | AA148: 0.25
E149: ="% of overspend allocated to " & C122 & " for overspend range 4" -> % of overspend allocated to RAB 1 for overspend range 4 | F149: =IF(OR(Y149 = "n/a", Y149 = ""), IF(INDEX(AA149:AJ149, $F$14) = "", AA149, INDEX(AA149:AJ149, $F$14)), Y149) -> 0.25 | G149: =I_Global!$F$108 -> % | I149: CAA | K149: Being published with this model | AA149: 0.25
E150: ="% of overspend allocated to " & C122 & " for overspend range 5" -> % of overspend allocated to RAB 1 for overspend range 5 | F150: =IF(OR(Y150 = "n/a", Y150 = ""), IF(INDEX(AA150:AJ150, $F$14) = "", AA150, INDEX(AA150:AJ150, $F$14)), Y150) -> 0.25 | G150: =I_Global!$F$108 -> % | I150: CAA | K150: Being published with this model | AA150: 0.25
C152: RAB 2
D154: Benefit Share - Underspend Ranges:
E155: =C152 & " underspend range 1 (<" & F155 * 100 & "% of allowed cashflow)" -> RAB 2 underspend range 1 (<-50% of allowed cashflow) | F155: =IF(OR(Y155 = "n/a", Y155 = ""), IF(INDEX(AA155:AJ155, $F$14) = "", AA155, INDEX(AA155:AJ155, $F$14)), Y155) -> -0.5 | G155: =I_Global!$F$108 -> % | H155: Enter negative | I155: CAA | K155: Being published with this model | AA155: -0.5
E156: =C152 & " underspend range 2 (" & F156 * 100 & " to " & F155 * 100 & "% of allowed cashflow)" -> RAB 2 underspend range 2 (-25 to -50% of allowed cashflow) | F156: =IF(OR(Y156 = "n/a", Y156 = ""), IF(INDEX(AA156:AJ156, $F$14) = "", AA156, INDEX(AA156:AJ156, $F$14)), Y156) -> -0.25 | G156: =I_Global!$F$108 -> % | H156: Enter negative | I156: CAA | K156: Being published with this model | AA156: -0.25
E157: =C152 & " underspend range 3 (" & F157 * 100 & " to " & F156 * 100 & "% of allowed cashflow)" -> RAB 2 underspend range 3 (-10 to -25% of allowed cashflow) | F157: =IF(OR(Y157 = "n/a", Y157 = ""), IF(INDEX(AA157:AJ157, $F$14) = "", AA157, INDEX(AA157:AJ157, $F$14)), Y157) -> -0.1 | G157: =I_Global!$F$108 -> % | H157: Enter negative | I157: CAA | K157: Being published with this model | AA157: -0.1
E158: =C152 & " underspend range 4 (" & F158 * 100 & " to " & F157 * 100 & "% of allowed cashflow)" -> RAB 2 underspend range 4 (-5 to -10% of allowed cashflow) | F158: =IF(OR(Y158 = "n/a", Y158 = ""), IF(INDEX(AA158:AJ158, $F$14) = "", AA158, INDEX(AA158:AJ158, $F$14)), Y158) -> -0.05 | G158: =I_Global!$F$108 -> % | H158: Enter negative | I158: CAA | K158: Being published with this model | AA158: -0.05
E159: =C152 & " underspend range 5 (" & F159 * 100 & " to " & F158 * 100 & "% of allowed cashflow)" -> RAB 2 underspend range 5 (0 to -5% of allowed cashflow) | F159: =IF(OR(Y159 = "n/a", Y159 = ""), IF(INDEX(AA159:AJ159, $F$14) = "", AA159, INDEX(AA159:AJ159, $F$14)), Y159) -> 0 | G159: =I_Global!$F$108 -> % | H159: Enter negative | I159: CAA | K159: Being published with this model | AA159: 0
D161: Benefit Share - Allocation to RAB:
E162: ="% of underspend allocated to " & C152 & " for underspend range 1" -> % of underspend allocated to RAB 2 for underspend range 1 | F162: =IF(OR(Y162 = "n/a", Y162 = ""), IF(INDEX(AA162:AJ162, $F$14) = "", AA162, INDEX(AA162:AJ162, $F$14)), Y162) -> 0.25 | G162: =I_Global!$F$108 -> % | I162: CAA | K162: Being published with this model | AA162: 0.25
E163: ="% of underspend allocated to " & C152 & " for underspend range 2" -> % of underspend allocated to RAB 2 for underspend range 2 | F163: =IF(OR(Y163 = "n/a", Y163 = ""), IF(INDEX(AA163:AJ163, $F$14) = "", AA163, INDEX(AA163:AJ163, $F$14)), Y163) -> 0.25 | G163: =I_Global!$F$108 -> % | I163: CAA | K163: Being published with this model | AA163: 0.25
E164: ="% of underspend allocated to " & C152 & " for underspend range 3" -> % of underspend allocated to RAB 2 for underspend range 3 | F164: =IF(OR(Y164 = "n/a", Y164 = ""), IF(INDEX(AA164:AJ164, $F$14) = "", AA164, INDEX(AA164:AJ164, $F$14)), Y164) -> 0.25 | G164: =I_Global!$F$108 -> % | I164: CAA | K164: Being published with this model | AA164: 0.25
E165: ="% of underspend allocated to " & C152 & " for underspend range 4" -> % of underspend allocated to RAB 2 for underspend range 4 | F165: =IF(OR(Y165 = "n/a", Y165 = ""), IF(INDEX(AA165:AJ165, $F$14) = "", AA165, INDEX(AA165:AJ165, $F$14)), Y165) -> 0.25 | G165: =I_Global!$F$108 -> % | I165: CAA | K165: Being published with this model | AA165: 0.25
E166: ="% of underspend allocated to " & C152 & " for underspend range 5" -> % of underspend allocated to RAB 2 for underspend range 5 | F166: =IF(OR(Y166 = "n/a", Y166 = ""), IF(INDEX(AA166:AJ166, $F$14) = "", AA166, INDEX(AA166:AJ166, $F$14)), Y166) -> 0.25 | G166: =I_Global!$F$108 -> % | I166: CAA | K166: Being published with this model | AA166: 0.25
D168: Risk Share - Overspend Ranges:
E169: =C152 & " overspend range 1 (>" & F169 * 100 & "% of allowed cashflow)" -> RAB 2 overspend range 1 (>50% of allowed cashflow) | F169: =IF(OR(Y169 = "n/a", Y169 = ""), IF(INDEX(AA169:AJ169, $F$14) = "", AA169, INDEX(AA169:AJ169, $F$14)), Y169) -> 0.5 | G169: =I_Global!$F$108 -> % | I169: CAA | K169: Being published with this model | AA169: 0.5
E170: =C152 & " overspend range 2 (" & F170 * 100 & " to " & F169 * 100 & "% of allowed cashflow)" -> RAB 2 overspend range 2 (25 to 50% of allowed cashflow) | F170: =IF(OR(Y170 = "n/a", Y170 = ""), IF(INDEX(AA170:AJ170, $F$14) = "", AA170, INDEX(AA170:AJ170, $F$14)), Y170) -> 0.25 | G170: =I_Global!$F$108 -> % | I170: CAA | K170: Being published with this model | AA170: 0.25
E171: =C152 & " overspend range 3 (" & F171 * 100 & " to " & F170 * 100 & "% of allowed cashflow)" -> RAB 2 overspend range 3 (10 to 25% of allowed cashflow) | F171: =IF(OR(Y171 = "n/a", Y171 = ""), IF(INDEX(AA171:AJ171, $F$14) = "", AA171, INDEX(AA171:AJ171, $F$14)), Y171) -> 0.1 | G171: =I_Global!$F$108 -> % | I171: CAA | K171: Being published with this model | AA171: 0.1
E172: =C152 & " overspend range 4 (" & F172 * 100 & " to " & F171 * 100 & "% of allowed cashflow)" -> RAB 2 overspend range 4 (5 to 10% of allowed cashflow) | F172: =IF(OR(Y172 = "n/a", Y172 = ""), IF(INDEX(AA172:AJ172, $F$14) = "", AA172, INDEX(AA172:AJ172, $F$14)), Y172) -> 0.05 | G172: =I_Global!$F$108 -> % | I172: CAA | K172: Being published with this model | AA172: 0.05
E173: =C152 & " overspend range 5 (" & F173 * 100 & " to " & F172 * 100 & "% of allowed cashflow)" -> RAB 2 overspend range 5 (0 to 5% of allowed cashflow) | F173: =IF(OR(Y173 = "n/a", Y173 = ""), IF(INDEX(AA173:AJ173, $F$14) = "", AA173, INDEX(AA173:AJ173, $F$14)), Y173) -> 0 | G173: =I_Global!$F$108 -> % | I173: CAA | K173: Being published with this model | AA173: 0
D175: Risk Share - Allocation to RAB:
E176: ="% of overspend allocated to " & C152 & " for overspend range 1" -> % of overspend allocated to RAB 2 for overspend range 1 | F176: =IF(OR(Y176 = "n/a", Y176 = ""), IF(INDEX(AA176:AJ176, $F$14) = "", AA176, INDEX(AA176:AJ176, $F$14)), Y176) -> 0.25 | G176: =I_Global!$F$108 -> % | I176: CAA | K176: Being published with this model | AA176: 0.25
E177: ="% of overspend allocated to " & C152 & " for overspend range 2" -> % of overspend allocated to RAB 2 for overspend range 2 | F177: =IF(OR(Y177 = "n/a", Y177 = ""), IF(INDEX(AA177:AJ177, $F$14) = "", AA177, INDEX(AA177:AJ177, $F$14)), Y177) -> 0.25 | G177: =I_Global!$F$108 -> % | I177: CAA | K177: Being published with this model | AA177: 0.25
E178: ="% of overspend allocated to " & C152 & " for overspend range 3" -> % of overspend allocated to RAB 2 for overspend range 3 | F178: =IF(OR(Y178 = "n/a", Y178 = ""), IF(INDEX(AA178:AJ178, $F$14) = "", AA178, INDEX(AA178:AJ178, $F$14)), Y178) -> 0.25 | G178: =I_Global!$F$108 -> % | I178: CAA | K178: Being published with this model | AA178: 0.25
E179: ="% of overspend allocated to " & C152 & " for overspend range 4" -> % of overspend allocated to RAB 2 for overspend range 4 | F179: =IF(OR(Y179 = "n/a", Y179 = ""), IF(INDEX(AA179:AJ179, $F$14) = "", AA179, INDEX(AA179:AJ179, $F$14)), Y179) -> 0.25 | G179: =I_Global!$F$108 -> % | I179: CAA | K179: Being published with this model | AA179: 0.25
E180: ="% of overspend allocated to " & C152 & " for overspend range 5" -> % of overspend allocated to RAB 2 for overspend range 5 | F180: =IF(OR(Y180 = "n/a", Y180 = ""), IF(INDEX(AA180:AJ180, $F$14) = "", AA180, INDEX(AA180:AJ180, $F$14)), Y180) -> 0.25 | G180: =I_Global!$F$108 -> % | I180: CAA | K180: Being published with this model | AA180: 0.25
C182: RAB 3
D184: Benefit Share - Underspend Ranges:
E185: =C182 & " underspend range 1 (<" & F185 * 100 & "% of allowed cashflow)" -> RAB 3 underspend range 1 (<-50% of allowed cashflow) | F185: =IF(OR(Y185 = "n/a", Y185 = ""), IF(INDEX(AA185:AJ185, $F$14) = "", AA185, INDEX(AA185:AJ185, $F$14)), Y185) -> -0.5 | G185: =I_Global!$F$108 -> % | H185: Enter negative | I185: CAA | K185: Being published with this model | AA185: -0.5
E186: =C182 & " underspend range 2 (" & F186 * 100 & " to " & F185 * 100 & "% of allowed cashflow)" -> RAB 3 underspend range 2 (-25 to -50% of allowed cashflow) | F186: =IF(OR(Y186 = "n/a", Y186 = ""), IF(INDEX(AA186:AJ186, $F$14) = "", AA186, INDEX(AA186:AJ186, $F$14)), Y186) -> -0.25 | G186: =I_Global!$F$108 -> % | H186: Enter negative | I186: CAA | K186: Being published with this model | AA186: -0.25
E187: =C182 & " underspend range 3 (" & F187 * 100 & " to " & F186 * 100 & "% of allowed cashflow)" -> RAB 3 underspend range 3 (-10 to -25% of allowed cashflow) | F187: =IF(OR(Y187 = "n/a", Y187 = ""), IF(INDEX(AA187:AJ187, $F$14) = "", AA187, INDEX(AA187:AJ187, $F$14)), Y187) -> -0.1 | G187: =I_Global!$F$108 -> % | H187: Enter negative | I187: CAA | K187: Being published with this model | AA187: -0.1
E188: =C182 & " underspend range 4 (" & F188 * 100 & " to " & F187 * 100 & "% of allowed cashflow)" -> RAB 3 underspend range 4 (-5 to -10% of allowed cashflow) | F188: =IF(OR(Y188 = "n/a", Y188 = ""), IF(INDEX(AA188:AJ188, $F$14) = "", AA188, INDEX(AA188:AJ188, $F$14)), Y188) -> -0.05 | G188: =I_Global!$F$108 -> % | H188: Enter negative | I188: CAA | K188: Being published with this model | AA188: -0.05
E189: =C182 & " underspend range 5 (" & F189 * 100 & " to " & F188 * 100 & "% of allowed cashflow)" -> RAB 3 underspend range 5 (0 to -5% of allowed cashflow) | F189: =IF(OR(Y189 = "n/a", Y189 = ""), IF(INDEX(AA189:AJ189, $F$14) = "", AA189, INDEX(AA189:AJ189, $F$14)), Y189) -> 0 | G189: =I_Global!$F$108 -> % | H189: Enter negative | I189: CAA | K189: Being published with this model | AA189: 0
D191: Benefit Share - Allocation to RAB:
E192: ="% of underspend allocated to " & C182 & " for underspend range 1" -> % of underspend allocated to RAB 3 for underspend range 1 | F192: =IF(OR(Y192 = "n/a", Y192 = ""), IF(INDEX(AA192:AJ192, $F$14) = "", AA192, INDEX(AA192:AJ192, $F$14)), Y192) -> 0.25 | G192: =I_Global!$F$108 -> % | I192: CAA | K192: Being published with this model | AA192: 0.25
E193: ="% of underspend allocated to " & C182 & " for underspend range 2" -> % of underspend allocated to RAB 3 for underspend range 2 | F193: =IF(OR(Y193 = "n/a", Y193 = ""), IF(INDEX(AA193:AJ193, $F$14) = "", AA193, INDEX(AA193:AJ193, $F$14)), Y193) -> 0.25 | G193: =I_Global!$F$108 -> % | I193: CAA | K193: Being published with this model | AA193: 0.25
E194: ="% of underspend allocated to " & C182 & " for underspend range 3" -> % of underspend allocated to RAB 3 for underspend range 3 | F194: =IF(OR(Y194 = "n/a", Y194 = ""), IF(INDEX(AA194:AJ194, $F$14) = "", AA194, INDEX(AA194:AJ194, $F$14)), Y194) -> 0.25 | G194: =I_Global!$F$108 -> % | I194: CAA | K194: Being published with this model | AA194: 0.25
E195: ="% of underspend allocated to " & C182 & " for underspend range 4" -> % of underspend allocated to RAB 3 for underspend range 4 | F195: =IF(OR(Y195 = "n/a", Y195 = ""), IF(INDEX(AA195:AJ195, $F$14) = "", AA195, INDEX(AA195:AJ195, $F$14)), Y195) -> 0.25 | G195: =I_Global!$F$108 -> % | I195: CAA | K195: Being published with this model | AA195: 0.25
E196: ="% of underspend allocated to " & C182 & " for underspend range 5" -> % of underspend allocated to RAB 3 for underspend range 5 | F196: =IF(OR(Y196 = "n/a", Y196 = ""), IF(INDEX(AA196:AJ196, $F$14) = "", AA196, INDEX(AA196:AJ196, $F$14)), Y196) -> 0.25 | G196: =I_Global!$F$108 -> % | I196: CAA | K196: Being published with this model | AA196: 0.25
D198: Risk Share - Overspend Ranges:
E199: =C182 & " overspend range 1 (>" & F199 * 100 & "% of allowed cashflow)" -> RAB 3 overspend range 1 (>50% of allowed cashflow) | F199: =IF(OR(Y199 = "n/a", Y199 = ""), IF(INDEX(AA199:AJ199, $F$14) = "", AA199, INDEX(AA199:AJ199, $F$14)), Y199) -> 0.5 | G199: =I_Global!$F$108 -> % | I199: CAA | K199: Being published with this model | AA199: 0.5
E200: =C182 & " overspend range 2 (" & F200 * 100 & " to " & F199 * 100 & "% of allowed cashflow)" -> RAB 3 overspend range 2 (25 to 50% of allowed cashflow) | F200: =IF(OR(Y200 = "n/a", Y200 = ""), IF(INDEX(AA200:AJ200, $F$14) = "", AA200, INDEX(AA200:AJ200, $F$14)), Y200) -> 0.25 | G200: =I_Global!$F$108 -> % | I200: CAA | K200: Being published with this model | AA200: 0.25
E201: =C182 & " overspend range 3 (" & F201 * 100 & " to " & F200 * 100 & "% of allowed cashflow)" -> RAB 3 overspend range 3 (10 to 25% of allowed cashflow) | F201: =IF(OR(Y201 = "n/a", Y201 = ""), IF(INDEX(AA201:AJ201, $F$14) = "", AA201, INDEX(AA201:AJ201, $F$14)), Y201) -> 0.1 | G201: =I_Global!$F$108 -> % | I201: CAA | K201: Being published with this model | AA201: 0.1
E202: =C182 & " overspend range 4 (" & F202 * 100 & " to " & F201 * 100 & "% of allowed cashflow)" -> RAB 3 overspend range 4 (5 to 10% of allowed cashflow) | F202: =IF(OR(Y202 = "n/a", Y202 = ""), IF(INDEX(AA202:AJ202, $F$14) = "", AA202, INDEX(AA202:AJ202, $F$14)), Y202) -> 0.05 | G202: =I_Global!$F$108 -> % | I202: CAA | K202: Being published with this model | AA202: 0.05
E203: =C182 & " overspend range 5 (" & F203 * 100 & " to " & F202 * 100 & "% of allowed cashflow)" -> RAB 3 overspend range 5 (0 to 5% of allowed cashflow) | F203: =IF(OR(Y203 = "n/a", Y203 = ""), IF(INDEX(AA203:AJ203, $F$14) = "", AA203, INDEX(AA203:AJ203, $F$14)), Y203) -> 0 | G203: =I_Global!$F$108 -> % | I203: CAA | K203: Being published with this model | AA203: 0
D205: Risk Share - Allocation to RAB:
E206: ="% of overspend allocated to " & C182 & " for overspend range 1" -> % of overspend allocated to RAB 3 for overspend range 1 | F206: =IF(OR(Y206 = "n/a", Y206 = ""), IF(INDEX(AA206:AJ206, $F$14) = "", AA206, INDEX(AA206:AJ206, $F$14)), Y206) -> 0.25 | G206: =I_Global!$F$108 -> % | I206: CAA | K206: Being published with this model | AA206: 0.25
E207: ="% of overspend allocated to " & C182 & " for overspend range 2" -> % of overspend allocated to RAB 3 for overspend range 2 | F207: =IF(OR(Y207 = "n/a", Y207 = ""), IF(INDEX(AA207:AJ207, $F$14) = "", AA207, INDEX(AA207:AJ207, $F$14)), Y207) -> 0.25 | G207: =I_Global!$F$108 -> % | I207: CAA | K207: Being published with this model | AA207: 0.25
E208: ="% of overspend allocated to " & C182 & " for overspend range 3" -> % of overspend allocated to RAB 3 for overspend range 3 | F208: =IF(OR(Y208 = "n/a", Y208 = ""), IF(INDEX(AA208:AJ208, $F$14) = "", AA208, INDEX(AA208:AJ208, $F$14)), Y208) -> 0.25 | G208: =I_Global!$F$108 -> % | I208: CAA | K208: Being published with this model | AA208: 0.25
E209: ="% of overspend allocated to " & C182 & " for overspend range 4" -> % of overspend allocated to RAB 3 for overspend range 4 | F209: =IF(OR(Y209 = "n/a", Y209 = ""), IF(INDEX(AA209:AJ209, $F$14) = "", AA209, INDEX(AA209:AJ209, $F$14)), Y209) -> 0.25 | G209: =I_Global!$F$108 -> % | I209: CAA | K209: Being published with this model | AA209: 0.25
E210: ="% of overspend allocated to " & C182 & " for overspend range 5" -> % of overspend allocated to RAB 3 for overspend range 5 | F210: =IF(OR(Y210 = "n/a", Y210 = ""), IF(INDEX(AA210:AJ210, $F$14) = "", AA210, INDEX(AA210:AJ210, $F$14)), Y210) -> 0.25 | G210: =I_Global!$F$108 -> % | I210: CAA | K210: Being published with this model | AA210: 0.25
A212: 2.j Conversion of Assets Under Construction (AUC) to Assets in Use (AIU)
E214: Assets conversion modelling approach | F214: =IF(OR(Y214 = "n/a", Y214 = ""), IF(INDEX(AA214:AJ214, $F$14) = "", AA214, INDEX(AA214:AJ214, $F$14)), Y214) -> Capacity step-ups | G214: =I_Global!$F$127 -> selection | I214: CAA | Y214: =IF(O_Dashboards!F20 = "", "n/a", O_Dashboards!F20) -> n/a | AA214: Capacity step-ups
D216: =I_Global!F$137 -> Category 1 description | I216: Followed RFM model to reconcile accounting depreciation on capex as RFM
E217: ="% of "&D216&" AUC transferred to AIU between capacity step-ups" -> % of Category 1 description AUC transferred to AIU between capacity step-ups | F217: =IF(OR(Y217 = "n/a", Y217 = ""), IF(INDEX(AA217:AJ217, $F$14) = "", AA217, INDEX(AA217:AJ217, $F$14)), Y217) -> 0.5 | G217: =I_Global!$F$108 -> % | I217: CAA | K217: Being published with this model | AA217: 0.5
E218: ="% of "&D216&" AUC transferred to AIU at 1st capacity step-up" -> % of Category 1 description AUC transferred to AIU at 1st capacity step-up | F218: 0.9 | G218: =I_Global!$F$108 -> % | I218: CAA | K218: Being published with this model | AA218: 0.9
E219: ="% of "&D216&" AUC transferred to AIU at 2nd capacity step-up" -> % of Category 1 description AUC transferred to AIU at 2nd capacity step-up | F219: 0.9 | G219: =I_Global!$F$108 -> % | I219: CAA | K219: Being published with this model | AA219: 0.9
E220: ="% of "&D216&" AUC transferred to AIU at 3rd capacity step-up" -> % of Category 1 description AUC transferred to AIU at 3rd capacity step-up | F220: 0.9 | G220: =I_Global!$F$108 -> % | I220: CAA | K220: Being published with this model | AA220: 0.9
E221: ="% of "&D216&" AUC transferred to AIU at 4th capacity step-up" -> % of Category 1 description AUC transferred to AIU at 4th capacity step-up | F221: 0.9 | G221: =I_Global!$F$108 -> % | I221: CAA | K221: Being published with this model | AA221: 0.9
E222: ="% of "&D216&" AUC transferred to AIU at 5th capacity step-up" -> % of Category 1 description AUC transferred to AIU at 5th capacity step-up | F222: 0.9 | G222: =I_Global!$F$108 -> % | I222: CAA | K222: Being published with this model | AA222: 0.9
E223: ="% of "&D216&" AUC transferred to AIU after last capacity step-up" -> % of Category 1 description AUC transferred to AIU after last capacity step-up | F223: 0.9 | G223: =I_Global!$F$108 -> % | I223: CAA | K223: Being published with this model | AA223: 0.9
D225: =I_Global!F$138 -> Category 2 description
E226: ="% of "&D225&" AUC transferred to AIU between capacity step-ups" -> % of Category 2 description AUC transferred to AIU between capacity step-ups | F226: =IF(OR(Y226 = "n/a", Y226 = ""), IF(INDEX(AA226:AJ226, $F$14) = "", AA226, INDEX(AA226:AJ226, $F$14)), Y226) -> 0.5 | G226: =I_Global!$F$108 -> % | I226: CAA | K226: Being published with this model | AA226: 0.5
E227: ="% of "&D225&" AUC transferred to AIU at 1st capacity step-up" -> % of Category 2 description AUC transferred to AIU at 1st capacity step-up | F227: 0.9 | G227: =I_Global!$F$108 -> % | I227: CAA | K227: Being published with this model | AA227: 0.9
E228: ="% of "&D225&" AUC transferred to AIU at 2nd capacity step-up" -> % of Category 2 description AUC transferred to AIU at 2nd capacity step-up | F228: 0.9 | G228: =I_Global!$F$108 -> % | I228: CAA | K228: Being published with this model | AA228: 0.9
E229: ="% of "&D225&" AUC transferred to AIU at 3rd capacity step-up" -> % of Category 2 description AUC transferred to AIU at 3rd capacity step-up | F229: 0.9 | G229: =I_Global!$F$108 -> % | I229: CAA | K229: Being published with this model | AA229: 0.9
E230: ="% of "&D225&" AUC transferred to AIU at 4th capacity step-up" -> % of Category 2 description AUC transferred to AIU at 4th capacity step-up | F230: 0.9 | G230: =I_Global!$F$108 -> % | I230: CAA | K230: Being published with this model | AA230: 0.9
E231: ="% of "&D225&" AUC transferred to AIU at 5th capacity step-up" -> % of Category 2 description AUC transferred to AIU at 5th capacity step-up | F231: 0.9 | G231: =I_Global!$F$108 -> % | I231: CAA | K231: Being published with this model | AA231: 0.9
E232: ="% of "&D225&" AUC transferred to AIU after last capacity step-up" -> % of Category 2 description AUC transferred to AIU after last capacity step-up | F232: 0.9 | G232: =I_Global!$F$108 -> % | I232: CAA | K232: Being published with this model | AA232: 0.9
D234: =I_Global!F$139 -> Category 3 description
E235: ="% of "&D234&" AUC transferred to AIU between capacity step-ups" -> % of Category 3 description AUC transferred to AIU between capacity step-ups | F235: =IF(OR(Y235 = "n/a", Y235 = ""), IF(INDEX(AA235:AJ235, $F$14) = "", AA235, INDEX(AA235:AJ235, $F$14)), Y235) -> 0.5 | G235: =I_Global!$F$108 -> % | I235: CAA | K235: Being published with this model | AA235: 0.5
E236: ="% of "&D234&" AUC transferred to AIU at 1st capacity step-up" -> % of Category 3 description AUC transferred to AIU at 1st capacity step-up | F236: 0.9 | G236: =I_Global!$F$108 -> % | I236: CAA | K236: Being published with this model | AA236: 0.9
E237: ="% of "&D234&" AUC transferred to AIU at 2nd capacity step-up" -> % of Category 3 description AUC transferred to AIU at 2nd capacity step-up | F237: 0.9 | G237: =I_Global!$F$108 -> % | I237: CAA | K237: Being published with this model | AA237: 0.9
E238: ="% of "&D234&" AUC transferred to AIU at 3rd capacity step-up" -> % of Category 3 description AUC transferred to AIU at 3rd capacity step-up | F238: 0.9 | G238: =I_Global!$F$108 -> % | I238: CAA | K238: Being published with this model | AA238: 0.9
E239: ="% of "&D234&" AUC transferred to AIU at 4th capacity step-up" -> % of Category 3 description AUC transferred to AIU at 4th capacity step-up | F239: 0.9 | G239: =I_Global!$F$108 -> % | I239: CAA | K239: Being published with this model | AA239: 0.9
E240: ="% of "&D234&" AUC transferred to AIU at 5th capacity step-up" -> % of Category 3 description AUC transferred to AIU at 5th capacity step-up | F240: 0.9 | G240: =I_Global!$F$108 -> % | I240: CAA | K240: Being published with this model | AA240: 0.9
E241: ="% of "&D234&" AUC transferred to AIU after last capacity step-up" -> % of Category 3 description AUC transferred to AIU after last capacity step-up | F241: 0.9 | G241: =I_Global!$F$108 -> % | I241: CAA | K241: Being published with this model | AA241: 0.9
D243: =I_Global!F$140 -> Category 4 description
E244: ="% of "&D243&" AUC transferred to AIU between capacity step-ups" -> % of Category 4 description AUC transferred to AIU between capacity step-ups | F244: =IF(OR(Y244 = "n/a", Y244 = ""), IF(INDEX(AA244:AJ244, $F$14) = "", AA244, INDEX(AA244:AJ244, $F$14)), Y244) -> 0.5 | G244: =I_Global!$F$108 -> % | I244: CAA | K244: Being published with this model | AA244: 0.5
E245: ="% of "&D243&" AUC transferred to AIU at 1st capacity step-up" -> % of Category 4 description AUC transferred to AIU at 1st capacity step-up | F245: 0.9 | G245: =I_Global!$F$108 -> % | I245: CAA | K245: Being published with this model | AA245: 0.9
... 303 more rows

Sheet Calcs>>>
A1: =MID(CELL( "filename", $A$1 ), SEARCH( "[",CELL( "filename", $A$1 ) ) + 1, SEARCH( "]",CELL( "filename", $A$1 ) ) - SEARCH( "[",CELL( "filename", $A$1 ) ) - 1 ) -> 
B2: =RIGHT(CELL( "filename", B2 ), LEN(CELL( "filename", B2 ) ) - SEARCH( "]",CELL( "filename", B2 ) ) ) -> 

Sheet C_Time
A1: =MID(CELL( "filename", $A$1 ), SEARCH( "[",CELL( "filename", $A$1 ) ) + 1, SEARCH( "]",CELL( "filename", $A$1 ) ) - SEARCH( "[",CELL( "filename", $A$1 ) ) - 1 ) -> 
B2: =RIGHT(CELL( "filename", B2 ), LEN(CELL( "filename", B2 ) ) - SEARCH( "]",CELL( "filename", B2 ) ) ) ->  | I2: =I_InputSets!$I$2 -> Warning, dashboard overrides active
E3: =Checks!E$3 -> Checks & Alerts | F3: =Checks!F$3 -> -1 | H3: =C_Ratios!H3 -> Alerts | I3: =C_Ratios!I3 -> ALERT: one or more financial ratios are breaching thresholds
B4: =I_Scenarios!$G$16 -> Input set used to determine prices | F4: =I_Scenarios!$G$17 -> Input set 1
B5: =I_Scenarios!$I$16 -> Input set used to determine outturn financial statements & ratios | F5: =I_Scenarios!$I$17 -> Input set 1
B6: =I_Scenarios!$E$16 -> Live Scenario | F6: =I_Scenarios!E$17 & " " & I_Scenarios!F$17 -> Scenario 1 Mid case
A7: Timeline
E8: Period Beginning | G8: date | AA8: 2015-01-01 | AB8: 2016-01-01 | AC8: 2017-01-01 | AD8: 2018-01-01 | AE8: 2019-01-01 | AF8: 2020-01-01 | AG8: 2021-01-01 | AH8: 2022-01-01 | AI8: 2023-01-01 | AJ8: 2024-01-01 | AK8: 2025-01-01 | AL8: 2026-01-01 | AM8: 2027-01-01 | AN8: 2028-01-01 | AO8: 2029-01-01 | AP8: 2030-01-01 | AQ8: 2031-01-01 | AR8: 2032-01-01 | AS8: 2033-01-01 | AT8: 2034-01-01 | AU8: 2035-01-01 | AV8: 2036-01-01 | AW8: 2037-01-01 | AX8: 2038-01-01 | AY8: 2039-01-01 | AZ8: 2040-01-01 | BA8: 2041-01-01 | BB8: 2042-01-01 | BC8: 2043-01-01 | BD8: 2044-01-01 | BE8: 2045-01-01 | BF8: 2046-01-01 | BG8: 2047-01-01 | BH8: 2048-01-01 | BI8: 2049-01-01 | BJ8: 2050-01-01
E9: Period Ending | G9: date | AA9: 2015-12-31 | AB9: 2016-12-31 | AC9: 2017-12-31 | AD9: 2018-12-31 | AE9: 2019-12-31 | AF9: 2020-12-31 | AG9: 2021-12-31 | AH9: 2022-12-31 | AI9: 2023-12-31 | AJ9: 2024-12-31 | AK9: 2025-12-31 | AL9: 2026-12-31 | AM9: 2027-12-31 | AN9: 2028-12-31 | AO9: 2029-12-31 | AP9: 2030-12-31 | AQ9: 2031-12-31 | AR9: 2032-12-31 | AS9: 2033-12-31 | AT9: 2034-12-31 | AU9: 2035-12-31 | AV9: 2036-12-31 | AW9: 2037-12-31 | AX9: 2038-12-31 | AY9: 2039-12-31 | AZ9: 2040-12-31 | BA9: 2041-12-31 | BB9: 2042-12-31 | BC9: 2043-12-31 | BD9: 2044-12-31 | BE9: 2045-12-31 | BF9: 2046-12-31 | BG9: 2047-12-31 | BH9: 2048-12-31 | BI9: 2049-12-31 | BJ9: 2050-12-31
E10: Model period number | G10: # | AA10: 1 | AB10: 2 | AC10: 3 | AD10: 4 | AE10: 5 | AF10: 6 | AG10: 7 | AH10: 8 | AI10: 9 | AJ10: 10 | AK10: 11 | AL10: 12 | AM10: 13 | AN10: 14 | AO10: 15 | AP10: 16 | AQ10: 17 | AR10: 18 | AS10: 19 | AT10: 20 | AU10: 21 | AV10: 22 | AW10: 23 | AX10: 24 | AY10: 25 | AZ10: 26 | BA10: 27 | BB10: 28 | BC10: 29 | BD10: 30 | BE10: 31 | BF10: 32 | BG10: 33 | BH10: 34 | BI10: 35 | BJ10: 36
E11: Pricing Period | G11: periods | AA11: Q6 | AB11: Q6 | AC11: Q6 | AD11: Q6 | AE11: Q6+1 | AF11: iH7 | AG11: iH7 | AH11: H7 | AI11: H7 | AJ11: H7 | AK11: H7 | AL11: H7 | AM11: H8 | AN11: H8 | AO11: H8 | AP11: H8 | AQ11: H8 | AR11: H9 | AS11: H9 | AT11: H9 | AU11: H9 | AV11: H9 | AW11: H10 | AX11: H10 | AY11: H10 | AZ11: H10 | BA11: H10 | BB11: H11 | BC11: H11 | BD11: H11 | BE11: H11 | BF11: H11 | BG11: H12 | BH11: H12 | BI11: H12 | BJ11: H12
E12: Forecast vs Actuals | G12: label | AA12: Actual | AB12: Actual | AC12: Actual | AD12: Actual | AE12: Actual | AF12: Forecast | AG12: Forecast | AH12: Forecast | AI12: Forecast | AJ12: Forecast | AK12: Forecast | AL12: Forecast | AM12: Forecast | AN12: Forecast | AO12: Forecast | AP12: Forecast | AQ12: Forecast | AR12: Forecast | AS12: Forecast | AT12: Forecast | AU12: Forecast | AV12: Forecast | AW12: Forecast | AX12: Forecast | AY12: Forecast | AZ12: Forecast | BA12: Forecast | BB12: Forecast | BC12: Forecast | BD12: Forecast | BE12: Forecast | BF12: Forecast | BG12: Forecast | BH12: Forecast | BI12: Forecast | BJ12: Forecast
E14: Label | F14: Constant | G14: Units | H14: Notes | I14: Data Source | K14: Confidentiality Status | Y14: Total
A15: Model Timeline
E17: Model period number | G17: =I_Global!$F$106 -> # | AA17: =Z17 + 1 -> 1 | AB17: =AA17 + 1 -> 2 | AC17: =AB17 + 1 -> 3 | AD17: 4 | AE17: 5 | AF17: 6 | AG17: 7 | AH17: 8 | AI17: 9 | AJ17: 10 | AK17: 11 | AL17: 12 | AM17: 13 | AN17: 14 | AO17: 15 | AP17: 16 | AQ17: 17 | AR17: 18 | AS17: 19 | AT17: 20 | AU17: 21 | AV17: 22 | AW17: 23 | AX17: 24 | AY17: 25 | AZ17: 26 | BA17: 27 | BB17: 28 | BC17: 29 | BD17: 30 | BE17: 31 | BF17: 32 | BG17: 33 | BH17: =BG17 + 1 -> 34 | BI17: =BH17 + 1 -> 35 | BJ17: =BI17 + 1 -> 36
E18: Model period total | F18: =MAX( AA17:BJ17) -> 36 | G18: =I_Global!$F$124 -> periods
E20: =I_Global!E$18 -> Model Start Date | F20: =I_Global!F$18 -> 2015-01-01 | G20: =I_Global!G$18 -> date
E21: =I_Global!E$19 -> Number of months in model period | F21: =I_Global!F$19 -> 12 | G21: =I_Global!G$19 -> # months
E22: =E$17 -> Model period number | G22: =G$17 -> # | AA22: =AA$17 -> 1 | AB22: 2 | AC22: 3 | AD22: 4 | AE22: 5 | AF22: 6 | AG22: 7 | AH22: 8 | AI22: 9 | AJ22: 10 | AK22: 11 | AL22: 12 | AM22: 13 | AN22: 14 | AO22: 15 | AP22: 16 | AQ22: 17 | AR22: 18 | AS22: 19 | AT22: 20 | AU22: 21 | AV22: 22 | AW22: 23 | AX22: 24 | AY22: 25 | AZ22: 26 | BA22: 27 | BB22: 28 | BC22: 29 | BD22: 30 | BE22: 31 | BF22: 32 | BG22: 33 | BH22: 34 | BI22: 35 | BJ22: 36
E23: Period Beginning | G23: =I_Global!$F$118 -> date | AA23: =IF( AA22 = 1, $F20, DATE( YEAR(Z23), MONTH(Z23 ) + $F21, DAY(Z23 ) ) ) -> 2015-01-01 | AB23: =IF( AB22 = 1, $F20, DATE( YEAR(AA23), MONTH(AA23 ) + $F21, DAY(AA23 ) ) ) -> 2016-01-01 | AC23: =IF( AC22 = 1, $F20, DATE( YEAR(AB23), MONTH(AB23 ) + $F21, DAY(AB23 ) ) ) -> 2017-01-01 | AD23: 2018-01-01 | AE23: 2019-01-01 | AF23: 2020-01-01 | AG23: 2021-01-01 | AH23: 2022-01-01 | AI23: 2023-01-01 | AJ23: 2024-01-01 | AK23: 2025-01-01 | AL23: 2026-01-01 | AM23: 2027-01-01 | AN23: 2028-01-01 | AO23: 2029-01-01 | AP23: 2030-01-01 | AQ23: 2031-01-01 | AR23: 2032-01-01 | AS23: 2033-01-01 | AT23: 2034-01-01 | AU23: 2035-01-01 | AV23: 2036-01-01 | AW23: 2037-01-01 | AX23: 2038-01-01 | AY23: 2039-01-01 | AZ23: 2040-01-01 | BA23: 2041-01-01 | BB23: 2042-01-01 | BC23: 2043-01-01 | BD23: 2044-01-01 | BE23: 2045-01-01 | BF23: 2046-01-01 | BG23: 2047-01-01 | BH23: 2048-01-01 | BI23: 2049-01-01 | BJ23: 2050-01-01
E25: =I_Global!E$19 -> Number of months in model period | F25: =I_Global!F$19 -> 12 | G25: =I_Global!G$19 -> # months
E26: =E$23 -> Period Beginning | G26: =G$23 -> date | AA26: =AA$23 -> 2015-01-01 | AB26: =AB$23 -> 2016-01-01 | AC26: 2017-01-01 | AD26: 2018-01-01 | AE26: 2019-01-01 | AF26: 2020-01-01 | AG26: 2021-01-01 | AH26: 2022-01-01 | AI26: 2023-01-01 | AJ26: 2024-01-01 | AK26: 2025-01-01 | AL26: 2026-01-01 | AM26: 2027-01-01 | AN26: 2028-01-01 | AO26: 2029-01-01 | AP26: 2030-01-01 | AQ26: 2031-01-01 | AR26: 2032-01-01 | AS26: 2033-01-01 | AT26: 2034-01-01 | AU26: 2035-01-01 | AV26: 2036-01-01 | AW26: 2037-01-01 | AX26: 2038-01-01 | AY26: 2039-01-01 | AZ26: 2040-01-01 | BA26: 2041-01-01 | BB26: 2042-01-01 | BC26: 2043-01-01 | BD26: 2044-01-01 | BE26: 2045-01-01 | BF26: 2046-01-01 | BG26: 2047-01-01 | BH26: 2048-01-01 | BI26: 2049-01-01 | BJ26: 2050-01-01
E27: Period Ending | G27: =I_Global!$F$118 -> date | AA27: =DATE( YEAR( AA26 ), MONTH( AA26 ) + $F25, DAY( AA26 ) - 1 ) -> 2015-12-31 | AB27: 2016-12-31 | AC27: 2017-12-31 | AD27: 2018-12-31 | AE27: 2019-12-31 | AF27: 2020-12-31 | AG27: 2021-12-31 | AH27: 2022-12-31 | AI27: 2023-12-31 | AJ27: 2024-12-31 | AK27: 2025-12-31 | AL27: 2026-12-31 | AM27: 2027-12-31 | AN27: 2028-12-31 | AO27: 2029-12-31 | AP27: 2030-12-31 | AQ27: 2031-12-31 | AR27: 2032-12-31 | AS27: 2033-12-31 | AT27: 2034-12-31 | AU27: 2035-12-31 | AV27: 2036-12-31 | AW27: 2037-12-31 | AX27: 2038-12-31 | AY27: 2039-12-31 | AZ27: 2040-12-31 | BA27: 2041-12-31 | BB27: 2042-12-31 | BC27: 2043-12-31 | BD27: 2044-12-31 | BE27: 2045-12-31 | BF27: 2046-12-31 | BG27: =DATE( YEAR( BG26 ), MONTH( BG26 ) + $F25, DAY( BG26 ) - 1 ) -> 2047-12-31 | BH27: =DATE( YEAR( BH26 ), MONTH( BH26 ) + $F25, DAY( BH26 ) - 1 ) -> 2048-12-31 | BI27: =DATE( YEAR( BI26 ), MONTH( BI26 ) + $F25, DAY( BI26 ) - 1 ) -> 2049-12-31 | BJ27: =DATE( YEAR( BJ26 ), MONTH( BJ26 ) + $F25, DAY( BJ26 ) - 1 ) -> 2050-12-31
E29: =I_Global!E$22 -> Forecast period end date | F29: =I_Global!F$22 -> 2050-12-31 | G29: =I_Global!G$22 -> date
E30: =E$27 -> Period Ending | G30: =G$27 -> date | AA30: =AA$27 -> 2015-12-31 | AB30: =AB$27 -> 2016-12-31 | AC30: 2017-12-31 | AD30: 2018-12-31 | AE30: 2019-12-31 | AF30: 2020-12-31 | AG30: 2021-12-31 | AH30: 2022-12-31 | AI30: 2023-12-31 | AJ30: 2024-12-31 | AK30: 2025-12-31 | AL30: 2026-12-31 | AM30: 2027-12-31 | AN30: 2028-12-31 | AO30: 2029-12-31 | AP30: 2030-12-31 | AQ30: 2031-12-31 | AR30: 2032-12-31 | AS30: 2033-12-31 | AT30: 2034-12-31 | AU30: 2035-12-31 | AV30: 2036-12-31 | AW30: 2037-12-31 | AX30: 2038-12-31 | AY30: 2039-12-31 | AZ30: 2040-12-31 | BA30: 2041-12-31 | BB30: 2042-12-31 | BC30: 2043-12-31 | BD30: 2044-12-31 | BE30: 2045-12-31 | BF30: 2046-12-31 | BG30: 2047-12-31 | BH30: 2048-12-31 | BI30: 2049-12-31 | BJ30: 2050-12-31
E31: =E29&" flag" -> Forecast period end date flag | G31: =I_Global!$F$120 -> flag | AA31: =IF( AND( $F29 <= AA30, $F29 > Z30 ), 1, 0 ) -> 0 | AB31: =IF( AND( $F29 <= AB30, $F29 > AA30 ), 1, 0 ) -> 0 | AC31: 0 | AD31: 0 | AE31: 0 | AF31: 0 | AG31: 0 | AH31: 0 | AI31: 0 | AJ31: 0 | AK31: 0 | AL31: 0 | AM31: 0 | AN31: 0 | AO31: 0 | AP31: 0 | AQ31: 0 | AR31: 0 | AS31: 0 | AT31: 0 | AU31: 0 | AV31: 0 | AW31: 0 | AX31: 0 | AY31: 0 | AZ31: 0 | BA31: 0 | BB31: 0 | BC31: 0 | BD31: 0 | BE31: 0 | BF31: 0 | BG31: 0 | BH31: 0 | BI31: 0 | BJ31: 1
E33: =I_Global!E$21 -> Forecast period start date | F33: =I_Global!F$21 -> 2020-01-01 | G33: =I_Global!G$21 -> date
E34: =I_Global!E$22 -> Forecast period end date | F34: =I_Global!F$22 -> 2050-12-31 | G34: =I_Global!G$22 -> date
E35: =I_Global!E$132 -> Actual | F35: =I_Global!F$132 -> Actual
E36: =I_Global!E$133 -> Forecast | F36: =I_Global!F$133 -> Forecast
E37: Forecast period flags | G37: =I_Global!$F$120 -> flag | Y37: =SUM( AA37:BJ37 ) -> 31 | AA37: =IF( AND( AA$8 >= $F33, AA$9 <= $F34 ), 1, 0 ) -> 0 | AB37: =IF( AND( AB$8 >= $F33, AB$9 <= $F34 ), 1, 0 ) -> 0 | AC37: 0 | AD37: 0 | AE37: 0 | AF37: 1 | AG37: 1 | AH37: 1 | AI37: 1 | AJ37: 1 | AK37: 1 | AL37: 1 | AM37: 1 | AN37: 1 | AO37: 1 | AP37: 1 | AQ37: 1 | AR37: 1 | AS37: 1 | AT37: 1 | AU37: 1 | AV37: 1 | AW37: 1 | AX37: 1 | AY37: 1 | AZ37: 1 | BA37: 1 | BB37: 1 | BC37: 1 | BD37: 1 | BE37: 1 | BF37: 1 | BG37: 1 | BH37: 1 | BI37: 1 | BJ37: 1
E38: Forecast vs Actuals | G38: =I_Global!$F$121 -> label | AA38: =IF( AA37 = 1, $F$36, $F$35 ) -> Actual | AB38: =IF( AB37 = 1, $F$36, $F$35 ) -> Actual | AC38: Actual | AD38: Actual | AE38: Actual | AF38: Forecast | AG38: Forecast | AH38: Forecast | AI38: Forecast | AJ38: Forecast | AK38: Forecast | AL38: Forecast | AM38: Forecast | AN38: Forecast | AO38: Forecast | AP38: Forecast | AQ38: Forecast | AR38: Forecast | AS38: Forecast | AT38: Forecast | AU38: Forecast | AV38: Forecast | AW38: Forecast | AX38: Forecast | AY38: Forecast | AZ38: Forecast | BA38: Forecast | BB38: Forecast | BC38: Forecast | BD38: Forecast | BE38: Forecast | BF38: Forecast | BG38: Forecast | BH38: Forecast | BI38: Forecast | BJ38: Forecast
E39: Historic actuals period flags | G39: =I_Global!$F$120 -> flag | Y39: =SUM( AA39:BJ39 ) -> 5 | AA39: =1 - AA37 -> 1 | AB39: =1 - AB37 -> 1 | AC39: 1 | AD39: 1 | AE39: 1 | AF39: 0 | AG39: 0 | AH39: 0 | AI39: 0 | AJ39: 0 | AK39: 0 | AL39: 0 | AM39: 0 | AN39: 0 | AO39: 0 | AP39: 0 | AQ39: 0 | AR39: 0 | AS39: 0 | AT39: 0 | AU39: 0 | AV39: 0 | AW39: 0 | AX39: 0 | AY39: 0 | AZ39: 0 | BA39: 0 | BB39: 0 | BC39: 0 | BD39: 0 | BE39: 0 | BF39: 0 | BG39: 0 | BH39: 0 | BI39: 0 | BJ39: 0
E41: =E39 -> Historic actuals period flags | F41: 0 | G41: flag | H41: 0 | I41: 0 | J41: 0 | K41: 0 | L41: 0 | M41: 0 | N41: 0 | O41: 0 | P41: 0 | Q41: 0 | R41: 0 | S41: 0 | T41: 0 | U41: 0 | V41: 0 | W41: 0 | X41: 0 | Y41: 5 | Z41: 0 | AA41: 1 | AB41: =AB39 -> 1 | AC41: 1 | AD41: 1 | AE41: 1 | AF41: 0 | AG41: 0 | AH41: 0 | AI41: 0 | AJ41: 0 | AK41: 0 | AL41: 0 | AM41: 0 | AN41: 0 | AO41: 0 | AP41: 0 | AQ41: 0 | AR41: 0 | AS41: 0 | AT41: 0 | AU41: 0 | AV41: 0 | AW41: 0 | AX41: 0 | AY41: 0 | AZ41: 0 | BA41: 0 | BB41: 0 | BC41: 0 | BD41: 0 | BE41: 0 | BF41: 0 | BG41: 0 | BH41: 0 | BI41: 0 | BJ41: 0
E42: Opening balances flag | G42: =I_Global!$F$120 -> flag | Y42: =SUM( AA42:BJ42 ) -> 1 | AA42: =IF( AND( AA41 = 1, AB41 = 0 ), 1, 0 ) -> 0 | AB42: =IF( AND( AB41 = 1, AC41 = 0 ), 1, 0 ) -> 0 | AC42: 0 | AD42: 0 | AE42: 1 | AF42: 0 | AG42: 0 | AH42: 0 | AI42: 0 | AJ42: 0 | AK42: 0 | AL42: 0 | AM42: 0 | AN42: 0 | AO42: 0 | AP42: 0 | AQ42: 0 | AR42: 0 | AS42: 0 | AT42: 0 | AU42: 0 | AV42: 0 | AW42: 0 | AX42: 0 | AY42: 0 | AZ42: 0 | BA42: 0 | BB42: 0 | BC42: 0 | BD42: 0 | BE42: 0 | BF42: 0 | BG42: 0 | BH42: 0 | BI42: 0 | BJ42: 0
A44: Pricing Control Periods
E46: =I_InputSets!E$551 -> Q6 Period Start | F46: =I_InputSets!F$551 -> 2015-01-01 | G46: =I_InputSets!G$551 -> date
E47: =E$23 -> Period Beginning | G47: =G$23 -> date | AA47: =AA$23 -> 2015-01-01 | AB47: 2016-01-01 | AC47: 2017-01-01 | AD47: 2018-01-01 | AE47: 2019-01-01 | AF47: 2020-01-01 | AG47: 2021-01-01 | AH47: 2022-01-01 | AI47: 2023-01-01 | AJ47: 2024-01-01 | AK47: 2025-01-01 | AL47: 2026-01-01 | AM47: 2027-01-01 | AN47: 2028-01-01 | AO47: 2029-01-01 | AP47: 2030-01-01 | AQ47: 2031-01-01 | AR47: 2032-01-01 | AS47: 2033-01-01 | AT47: 2034-01-01 | AU47: 2035-01-01 | AV47: 2036-01-01 | AW47: 2037-01-01 | AX47: 2038-01-01 | AY47: 2039-01-01 | AZ47: 2040-01-01 | BA47: 2041-01-01 | BB47: 2042-01-01 | BC47: 2043-01-01 | BD47: 2044-01-01 | BE47: 2045-01-01 | BF47: 2046-01-01 | BG47: 2047-01-01 | BH47: 2048-01-01 | BI47: 2049-01-01 | BJ47: 2050-01-01
E48: =E46&" flag" -> Q6 Period Start flag | G48: =I_Global!$F$120 -> flag | AA48: =IF( AND( $F46 <= AA47, $F46 > Z47 ), 1, 0 ) -> 1 | AB48: =IF( AND( $F46 <= AB47, $F46 > AA47 ), 1, 0 ) -> 0 | AC48: 0 | AD48: 0 | AE48: 0 | AF48: 0 | AG48: 0 | AH48: 0 | AI48: 0 | AJ48: 0 | AK48: 0 | AL48: 0 | AM48: 0 | AN48: 0 | AO48: 0 | AP48: 0 | AQ48: 0 | AR48: 0 | AS48: 0 | AT48: 0 | AU48: 0 | AV48: 0 | AW48: 0 | AX48: 0 | AY48: 0 | AZ48: 0 | BA48: 0 | BB48: 0 | BC48: 0 | BD48: 0 | BE48: 0 | BF48: 0 | BG48: 0 | BH48: 0 | BI48: 0 | BJ48: 0
E50: =E46 -> Q6 Period Start | F50: =F46 -> 2015-01-01 | G50: =G46 -> date | L50: =L48 -> 0 | M50: 0 | N50: 0 | O50: 0 | P50: 0 | Q50: 0 | R50: 0 | S50: 0 | T50: 0 | U50: 0 | V50: 0 | W50: 0 | X50: 0
E51: =I_InputSets!E$552 -> Q6 Period End | F51: =I_InputSets!F$552 -> 2018-12-31 | G51: =I_InputSets!G$552 -> date
E52: =LEFT(E50,LEN(E50)-13)&" flags" -> Q6 flags | G52: =I_Global!$F$120 -> flag | Y52: =SUM(AA52:BJ52) -> 4 | AA52: =IF(AND(AA$8>=$F50, AA$9<=$F51), 1, 0) -> 1 | AB52: =IF(AND(AB$8>=$F50, AB$9<=$F51), 1, 0) -> 1 | AC52: 1 | AD52: 1 | AE52: 0 | AF52: 0 | AG52: 0 | AH52: 0 | AI52: 0 | AJ52: 0 | AK52: 0 | AL52: 0 | AM52: 0 | AN52: 0 | AO52: 0 | AP52: 0 | AQ52: 0 | AR52: 0 | AS52: 0 | AT52: 0 | AU52: 0 | AV52: 0 | AW52: 0 | AX52: 0 | AY52: 0 | AZ52: 0 | BA52: 0 | BB52: 0 | BC52: 0 | BD52: 0 | BE52: 0 | BF52: 0 | BG52: 0 | BH52: 0 | BI52: 0 | BJ52: 0
E54: =I_InputSets!E$553 -> Q6+1 Period Start | F54: =I_InputSets!F$553 -> 2019-01-01 | G54: =I_InputSets!G$553 -> date
E55: =E$23 -> Period Beginning | G55: =G$23 -> date | AA55: =AA$23 -> 2015-01-01 | AB55: 2016-01-01 | AC55: 2017-01-01 | AD55: 2018-01-01 | AE55: 2019-01-01 | AF55: 2020-01-01 | AG55: 2021-01-01 | AH55: 2022-01-01 | AI55: 2023-01-01 | AJ55: 2024-01-01 | AK55: 2025-01-01 | AL55: 2026-01-01 | AM55: 2027-01-01 | AN55: 2028-01-01 | AO55: 2029-01-01 | AP55: 2030-01-01 | AQ55: 2031-01-01 | AR55: 2032-01-01 | AS55: 2033-01-01 | AT55: 2034-01-01 | AU55: 2035-01-01 | AV55: 2036-01-01 | AW55: 2037-01-01 | AX55: 2038-01-01 | AY55: 2039-01-01 | AZ55: 2040-01-01 | BA55: 2041-01-01 | BB55: 2042-01-01 | BC55: 2043-01-01 | BD55: 2044-01-01 | BE55: 2045-01-01 | BF55: 2046-01-01 | BG55: 2047-01-01 | BH55: 2048-01-01 | BI55: 2049-01-01 | BJ55: 2050-01-01
E56: =E54&" flag" -> Q6+1 Period Start flag | G56: =I_Global!$F$120 -> flag | AA56: =IF( AND( $F54 <= AA55, $F54 > Z55 ), 1, 0 ) -> 0 | AB56: 0 | AC56: 0 | AD56: 0 | AE56: 1 | AF56: 0 | AG56: 0 | AH56: 0 | AI56: 0 | AJ56: 0 | AK56: 0 | AL56: 0 | AM56: 0 | AN56: 0 | AO56: 0 | AP56: 0 | AQ56: 0 | AR56: 0 | AS56: 0 | AT56: 0 | AU56: 0 | AV56: 0 | AW56: 0 | AX56: 0 | AY56: 0 | AZ56: 0 | BA56: 0 | BB56: 0 | BC56: 0 | BD56: 0 | BE56: 0 | BF56: 0 | BG56: 0 | BH56: 0 | BI56: 0 | BJ56: 0
E58: =E54 -> Q6+1 Period Start | F58: =F54 -> 2019-01-01 | G58: =G54 -> date | L58: =L56 -> 0 | M58: 0 | N58: 0 | O58: 0 | P58: 0 | Q58: 0 | R58: 0 | S58: 0 | T58: 0 | U58: 0 | V58: 0 | W58: 0 | X58: 0
E59: =I_InputSets!E$554 -> Q6+1 Period End | F59: =I_InputSets!F$554 -> 2019-12-31 | G59: =I_InputSets!G$554 -> date
E60: =LEFT(E58,LEN(E58)-13)&" flags" -> Q6+1 flags | G60: =I_Global!$F$120 -> flag | Y60: =SUM(AA60:BJ60) -> 1 | AA60: =IF(AND(AA$8>=$F58, AA$9<=$F59), 1, 0) -> 0 | AB60: =IF(AND(AB$8>=$F58, AB$9<=$F59), 1, 0) -> 0 | AC60: 0 | AD60: 0 | AE60: 1 | AF60: 0 | AG60: 0 | AH60: 0 | AI60: 0 | AJ60: 0 | AK60: 0 | AL60: 0 | AM60: 0 | AN60: 0 | AO60: 0 | AP60: 0 | AQ60: 0 | AR60: 0 | AS60: 0 | AT60: 0 | AU60: 0 | AV60: 0 | AW60: 0 | AX60: 0 | AY60: 0 | AZ60: 0 | BA60: 0 | BB60: 0 | BC60: 0 | BD60: 0 | BE60: 0 | BF60: 0 | BG60: 0 | BH60: 0 | BI60: 0 | BJ60: 0
E62: =I_InputSets!E$555 -> iH7 Period Start | F62: =I_InputSets!F$555 -> 2020-01-01 | G62: =I_InputSets!G$555 -> date
E63: =E$23 -> Period Beginning | G63: =G$23 -> date | AA63: =AA$23 -> 2015-01-01 | AB63: 2016-01-01 | AC63: 2017-01-01 | AD63: 2018-01-01 | AE63: 2019-01-01 | AF63: 2020-01-01 | AG63: 2021-01-01 | AH63: 2022-01-01 | AI63: 2023-01-01 | AJ63: 2024-01-01 | AK63: 2025-01-01 | AL63: 2026-01-01 | AM63: 2027-01-01 | AN63: 2028-01-01 | AO63: 2029-01-01 | AP63: 2030-01-01 | AQ63: 2031-01-01 | AR63: 2032-01-01 | AS63: 2033-01-01 | AT63: 2034-01-01 | AU63: 2035-01-01 | AV63: 2036-01-01 | AW63: 2037-01-01 | AX63: 2038-01-01 | AY63: 2039-01-01 | AZ63: 2040-01-01 | BA63: 2041-01-01 | BB63: 2042-01-01 | BC63: 2043-01-01 | BD63: 2044-01-01 | BE63: 2045-01-01 | BF63: 2046-01-01 | BG63: 2047-01-01 | BH63: 2048-01-01 | BI63: 2049-01-01 | BJ63: 2050-01-01
E64: =E62&" flag" -> iH7 Period Start flag | G64: =I_Global!$F$120 -> flag | AA64: =IF( AND( $F62 <= AA63, $F62 > Z63 ), 1, 0 ) -> 0 | AB64: =IF( AND( $F62 <= AB63, $F62 > AA63 ), 1, 0 ) -> 0 | AC64: 0 | AD64: 0 | AE64: 0 | AF64: 1 | AG64: 0 | AH64: 0 | AI64: 0 | AJ64: 0 | AK64: 0 | AL64: 0 | AM64: 0 | AN64: 0 | AO64: 0 | AP64: 0 | AQ64: 0 | AR64: 0 | AS64: 0 | AT64: 0 | AU64: 0 | AV64: 0 | AW64: 0 | AX64: 0 | AY64: 0 | AZ64: 0 | BA64: 0 | BB64: 0 | BC64: 0 | BD64: 0 | BE64: 0 | BF64: 0 | BG64: 0 | BH64: 0 | BI64: 0 | BJ64: 0
E66: =E62 -> iH7 Period Start | F66: =F62 -> 2020-01-01 | G66: =G62 -> date | L66: =L64 -> 0 | M66: 0 | N66: 0 | O66: 0 | P66: 0 | Q66: 0 | R66: 0 | S66: 0 | T66: 0 | U66: 0 | V66: 0 | W66: 0 | X66: 0
E67: =I_InputSets!E$556 -> iH7 Period End | F67: =I_InputSets!F$556 -> 2021-12-31 | G67: =I_InputSets!G$556 -> date
E68: =LEFT(E66,LEN(E66)-13)&" flags" -> iH7 flags | G68: =I_Global!$F$120 -> flag | Y68: =SUM(AA68:BJ68) -> 2 | AA68: =IF(AND(AA$8>=$F66, AA$9<=$F67), 1, 0) -> 0 | AB68: =IF(AND(AB$8>=$F66, AB$9<=$F67), 1, 0) -> 0 | AC68: 0 | AD68: 0 | AE68: 0 | AF68: 1 | AG68: 1 | AH68: 0 | AI68: 0 | AJ68: 0 | AK68: 0 | AL68: 0 | AM68: 0 | AN68: 0 | AO68: 0 | AP68: 0 | AQ68: 0 | AR68: 0 | AS68: 0 | AT68: 0 | AU68: 0 | AV68: 0 | AW68: 0 | AX68: 0 | AY68: 0 | AZ68: 0 | BA68: 0 | BB68: 0 | BC68: 0 | BD68: 0 | BE68: 0 | BF68: 0 | BG68: 0 | BH68: 0 | BI68: 0 | BJ68: 0
E70: =I_InputSets!E$557 -> H7 Period Start | F70: =I_InputSets!F$557 -> 2022-01-01 | G70: =I_InputSets!G$557 -> date
E71: =E$23 -> Period Beginning | G71: =G$23 -> date | AA71: =AA$23 -> 2015-01-01 | AB71: 2016-01-01 | AC71: 2017-01-01 | AD71: 2018-01-01 | AE71: 2019-01-01 | AF71: 2020-01-01 | AG71: 2021-01-01 | AH71: 2022-01-01 | AI71: 2023-01-01 | AJ71: 2024-01-01 | AK71: 2025-01-01 | AL71: 2026-01-01 | AM71: 2027-01-01 | AN71: 2028-01-01 | AO71: 2029-01-01 | AP71: 2030-01-01 | AQ71: 2031-01-01 | AR71: 2032-01-01 | AS71: 2033-01-01 | AT71: 2034-01-01 | AU71: 2035-01-01 | AV71: 2036-01-01 | AW71: 2037-01-01 | AX71: 2038-01-01 | AY71: 2039-01-01 | AZ71: 2040-01-01 | BA71: 2041-01-01 | BB71: 2042-01-01 | BC71: 2043-01-01 | BD71: 2044-01-01 | BE71: 2045-01-01 | BF71: 2046-01-01 | BG71: 2047-01-01 | BH71: 2048-01-01 | BI71: 2049-01-01 | BJ71: 2050-01-01
E72: =E70&" flag" -> H7 Period Start flag | G72: =I_Global!$F$120 -> flag | AA72: =IF( AND( $F70 <= AA71, $F70 > Z71 ), 1, 0 ) -> 0 | AB72: =IF( AND( $F70 <= AB71, $F70 > AA71 ), 1, 0 ) -> 0 | AC72: 0 | AD72: 0 | AE72: 0 | AF72: 0 | AG72: 0 | AH72: 1 | AI72: 0 | AJ72: 0 | AK72: 0 | AL72: 0 | AM72: 0 | AN72: 0 | AO72: 0 | AP72: 0 | AQ72: 0 | AR72: 0 | AS72: 0 | AT72: 0 | AU72: 0 | AV72: 0 | AW72: 0 | AX72: 0 | AY72: 0 | AZ72: 0 | BA72: 0 | BB72: 0 | BC72: 0 | BD72: 0 | BE72: 0 | BF72: 0 | BG72: 0 | BH72: 0 | BI72: 0 | BJ72: 0
E74: =E70 -> H7 Period Start | F74: =F70 -> 2022-01-01 | G74: =G70 -> date | L74: =L72 -> 0 | M74: 0 | N74: 0 | O74: 0 | P74: 0 | Q74: 0 | R74: 0 | S74: 0 | T74: 0 | U74: 0 | V74: 0 | W74: 0 | X74: 0
E75: =I_InputSets!E$558 -> H7 Period End | F75: =I_InputSets!F$558 -> 2026-12-31 | G75: =I_InputSets!G$558 -> date
E76: =LEFT(E74,LEN(E74)-13)&" flags" -> H7 flags | G76: =I_Global!$F$120 -> flag | Y76: =SUM(AA76:BJ76) -> 5 | AA76: =IF(AND(AA$8>=$F74, AA$9<=$F75), 1, 0) -> 0 | AB76: =IF(AND(AB$8>=$F74, AB$9<=$F75), 1, 0) -> 0 | AC76: 0 | AD76: 0 | AE76: 0 | AF76: 0 | AG76: 0 | AH76: 1 | AI76: 1 | AJ76: 1 | AK76: 1 | AL76: 1 | AM76: 0 | AN76: 0 | AO76: 0 | AP76: 0 | AQ76: 0 | AR76: 0 | AS76: 0 | AT76: 0 | AU76: 0 | AV76: 0 | AW76: 0 | AX76: 0 | AY76: 0 | AZ76: 0 | BA76: 0 | BB76: 0 | BC76: 0 | BD76: 0 | BE76: 0 | BF76: 0 | BG76: 0 | BH76: 0 | BI76: 0 | BJ76: 0
E78: =I_InputSets!E$559 -> H8 Period Start | F78: =I_InputSets!F$559 -> 2027-01-01 | G78: =I_InputSets!G$559 -> date
E79: =E$23 -> Period Beginning | G79: =G$23 -> date | AA79: =AA$23 -> 2015-01-01 | AB79: 2016-01-01 | AC79: 2017-01-01 | AD79: 2018-01-01 | AE79: 2019-01-01 | AF79: 2020-01-01 | AG79: 2021-01-01 | AH79: 2022-01-01 | AI79: 2023-01-01 | AJ79: 2024-01-01 | AK79: 2025-01-01 | AL79: 2026-01-01 | AM79: 2027-01-01 | AN79: 2028-01-01 | AO79: 2029-01-01 | AP79: 2030-01-01 | AQ79: 2031-01-01 | AR79: 2032-01-01 | AS79: 2033-01-01 | AT79: 2034-01-01 | AU79: 2035-01-01 | AV79: 2036-01-01 | AW79: 2037-01-01 | AX79: 2038-01-01 | AY79: 2039-01-01 | AZ79: 2040-01-01 | BA79: 2041-01-01 | BB79: 2042-01-01 | BC79: 2043-01-01 | BD79: 2044-01-01 | BE79: 2045-01-01 | BF79: 2046-01-01 | BG79: 2047-01-01 | BH79: 2048-01-01 | BI79: 2049-01-01 | BJ79: 2050-01-01
E80: =E78&" flag" -> H8 Period Start flag | G80: =I_Global!$F$120 -> flag | AA80: =IF( AND( $F78 <= AA79, $F78 > Z79 ), 1, 0 ) -> 0 | AB80: =IF( AND( $F78 <= AB79, $F78 > AA79 ), 1, 0 ) -> 0 | AC80: 0 | AD80: 0 | AE80: 0 | AF80: 0 | AG80: 0 | AH80: 0 | AI80: 0 | AJ80: 0 | AK80: 0 | AL80: 0 | AM80: =IF( AND( $F78 <= AM79, $F78 > AL79 ), 1, 0 ) -> 1 | AN80: 0 | AO80: 0 | AP80: 0 | AQ80: 0 | AR80: 0 | AS80: 0 | AT80: 0 | AU80: 0 | AV80: 0 | AW80: 0 | AX80: 0 | AY80: 0 | AZ80: 0 | BA80: 0 | BB80: 0 | BC80: 0 | BD80: 0 | BE80: 0 | BF80: 0 | BG80: 0 | BH80: 0 | BI80: 0 | BJ80: 0
E82: =E78 -> H8 Period Start | F82: =F78 -> 2027-01-01 | G82: =G78 -> date | L82: =L80 -> 0 | M82: 0 | N82: 0 | O82: 0 | P82: 0 | Q82: 0 | R82: 0 | S82: 0 | T82: 0 | U82: 0 | V82: 0 | W82: 0 | X82: 0
E83: =I_InputSets!E$560 -> H8 Period End | F83: =I_InputSets!F$560 -> 2031-12-31 | G83: =I_InputSets!G$560 -> date
E84: =LEFT(E82,LEN(E82)-13)&" flags" -> H8 flags | G84: =I_Global!$F$120 -> flag | Y84: =SUM(AA84:BJ84) -> 5 | AA84: =IF(AND(AA$8>=$F82, AA$9<=$F83), 1, 0) -> 0 | AB84: =IF(AND(AB$8>=$F82, AB$9<=$F83), 1, 0) -> 0 | AC84: 0 | AD84: 0 | AE84: 0 | AF84: 0 | AG84: 0 | AH84: 0 | AI84: 0 | AJ84: 0 | AK84: 0 | AL84: 0 | AM84: =IF(AND(AM$8>=$F82, AM$9<=$F83), 1, 0) -> 1 | AN84: 1 | AO84: 1 | AP84: 1 | AQ84: 1 | AR84: 0 | AS84: 0 | AT84: 0 | AU84: 0 | AV84: 0 | AW84: 0 | AX84: 0 | AY84: 0 | AZ84: 0 | BA84: 0 | BB84: 0 | BC84: 0 | BD84: 0 | BE84: 0 | BF84: 0 | BG84: 0 | BH84: 0 | BI84: 0 | BJ84: 0
E86: =I_InputSets!E$561 -> H9 Period Start | F86: =I_InputSets!F$561 -> 2032-01-01 | G86: =I_InputSets!G$561 -> date
E87: =E$23 -> Period Beginning | G87: =G$23 -> date | AA87: =AA$23 -> 2015-01-01 | AB87: 2016-01-01 | AC87: 2017-01-01 | AD87: 2018-01-01 | AE87: 2019-01-01 | AF87: 2020-01-01 | AG87: 2021-01-01 | AH87: 2022-01-01 | AI87: 2023-01-01 | AJ87: 2024-01-01 | AK87: 2025-01-01 | AL87: 2026-01-01 | AM87: 2027-01-01 | AN87: 2028-01-01 | AO87: 2029-01-01 | AP87: 2030-01-01 | AQ87: 2031-01-01 | AR87: 2032-01-01 | AS87: 2033-01-01 | AT87: 2034-01-01 | AU87: 2035-01-01 | AV87: 2036-01-01 | AW87: 2037-01-01 | AX87: 2038-01-01 | AY87: 2039-01-01 | AZ87: 2040-01-01 | BA87: 2041-01-01 | BB87: 2042-01-01 | BC87: 2043-01-01 | BD87: 2044-01-01 | BE87: 2045-01-01 | BF87: 2046-01-01 | BG87: 2047-01-01 | BH87: 2048-01-01 | BI87: 2049-01-01 | BJ87: 2050-01-01
E88: =E86&" flag" -> H9 Period Start flag | G88: =I_Global!$F$120 -> flag | AA88: =IF( AND( $F86 <= AA87, $F86 > Z87 ), 1, 0 ) -> 0 | AB88: =IF( AND( $F86 <= AB87, $F86 > AA87 ), 1, 0 ) -> 0 | AC88: 0 | AD88: 0 | AE88: 0 | AF88: 0 | AG88: 0 | AH88: 0 | AI88: 0 | AJ88: 0 | AK88: 0 | AL88: 0 | AM88: 0 | AN88: 0 | AO88: 0 | AP88: 0 | AQ88: 0 | AR88: 1 | AS88: 0 | AT88: 0 | AU88: 0 | AV88: 0 | AW88: 0 | AX88: 0 | AY88: 0 | AZ88: 0 | BA88: 0 | BB88: 0 | BC88: 0 | BD88: 0 | BE88: 0 | BF88: 0 | BG88: 0 | BH88: 0 | BI88: 0 | BJ88: 0
E90: =E86 -> H9 Period Start | F90: =F86 -> 2032-01-01 | G90: =G86 -> date | L90: =L88 -> 0 | M90: 0 | N90: 0 | O90: 0 | P90: 0 | Q90: 0 | R90: 0 | S90: 0 | T90: 0 | U90: 0 | V90: 0 | W90: 0 | X90: 0
E91: =I_InputSets!E$562 -> H9 Period End | F91: =I_InputSets!F$562 -> 2036-12-31 | G91: =I_InputSets!G$562 -> date
E92: =LEFT(E90,LEN(E90)-13)&" flags" -> H9 flags | G92: =I_Global!$F$120 -> flag | Y92: =SUM(AA92:BJ92) -> 5 | AA92: =IF(AND(AA$8>=$F90, AA$9<=$F91), 1, 0) -> 0 | AB92: =IF(AND(AB$8>=$F90, AB$9<=$F91), 1, 0) -> 0 | AC92: 0 | AD92: 0 | AE92: 0 | AF92: 0 | AG92: 0 | AH92: 0 | AI92: 0 | AJ92: 0 | AK92: 0 | AL92: 0 | AM92: 0 | AN92: 0 | AO92: 0 | AP92: 0 | AQ92: 0 | AR92: 1 | AS92: 1 | AT92: 1 | AU92: 1 | AV92: 1 | AW92: 0 | AX92: 0 | AY92: 0 | AZ92: 0 | BA92: 0 | BB92: 0 | BC92: 0 | BD92: 0 | BE92: 0 | BF92: 0 | BG92: 0 | BH92: 0 | BI92: 0 | BJ92: 0
E94: =I_InputSets!E$563 -> H10 Period Start | F94: =I_InputSets!F$563 -> 2037-01-01 | G94: =I_InputSets!G$563 -> date
E95: =E$23 -> Period Beginning | G95: =G$23 -> date | AA95: =AA$23 -> 2015-01-01 | AB95: 2016-01-01 | AC95: 2017-01-01 | AD95: 2018-01-01 | AE95: 2019-01-01 | AF95: 2020-01-01 | AG95: 2021-01-01 | AH95: 2022-01-01 | AI95: 2023-01-01 | AJ95: 2024-01-01 | AK95: 2025-01-01 | AL95: 2026-01-01 | AM95: 2027-01-01 | AN95: 2028-01-01 | AO95: 2029-01-01 | AP95: 2030-01-01 | AQ95: 2031-01-01 | AR95: 2032-01-01 | AS95: 2033-01-01 | AT95: 2034-01-01 | AU95: 2035-01-01 | AV95: 2036-01-01 | AW95: 2037-01-01 | AX95: 2038-01-01 | AY95: 2039-01-01 | AZ95: 2040-01-01 | BA95: 2041-01-01 | BB95: 2042-01-01 | BC95: 2043-01-01 | BD95: 2044-01-01 | BE95: 2045-01-01 | BF95: 2046-01-01 | BG95: 2047-01-01 | BH95: 2048-01-01 | BI95: 2049-01-01 | BJ95: 2050-01-01
E96: =E94&" flag" -> H10 Period Start flag | G96: =I_Global!$F$120 -> flag | AA96: =IF( AND( $F94 <= AA95, $F94 > Z95 ), 1, 0 ) -> 0 | AB96: =IF( AND( $F94 <= AB95, $F94 > AA95 ), 1, 0 ) -> 0 | AC96: 0 | AD96: 0 | AE96: 0 | AF96: 0 | AG96: 0 | AH96: 0 | AI96: 0 | AJ96: 0 | AK96: 0 | AL96: 0 | AM96: 0 | AN96: 0 | AO96: 0 | AP96: 0 | AQ96: 0 | AR96: 0 | AS96: 0 | AT96: 0 | AU96: 0 | AV96: 0 | AW96: 1 | AX96: 0 | AY96: 0 | AZ96: 0 | BA96: 0 | BB96: 0 | BC96: 0 | BD96: 0 | BE96: 0 | BF96: 0 | BG96: 0 | BH96: 0 | BI96: 0 | BJ96: 0
E98: =E94 -> H10 Period Start | F98: =F94 -> 2037-01-01 | G98: =G94 -> date | L98: =L96 -> 0 | M98: 0 | N98: 0 | O98: 0 | P98: 0 | Q98: 0 | R98: 0 | S98: 0 | T98: 0 | U98: 0 | V98: 0 | W98: 0 | X98: 0
E99: =I_InputSets!E$564 -> H10 Period End | F99: =I_InputSets!F$564 -> 2041-12-31 | G99: =I_InputSets!G$564 -> date
E100: =LEFT(E98,LEN(E98)-13)&" flags" -> H10 flags | G100: =I_Global!$F$120 -> flag | Y100: =SUM(AA100:BJ100) -> 5 | AA100: =IF(AND(AA$8>=$F98, AA$9<=$F99), 1, 0) -> 0 | AB100: =IF(AND(AB$8>=$F98, AB$9<=$F99), 1, 0) -> 0 | AC100: 0 | AD100: 0 | AE100: 0 | AF100: 0 | AG100: 0 | AH100: 0 | AI100: 0 | AJ100: 0 | AK100: 0 | AL100: 0 | AM100: 0 | AN100: 0 | AO100: 0 | AP100: 0 | AQ100: 0 | AR100: 0 | AS100: 0 | AT100: 0 | AU100: 0 | AV100: 0 | AW100: 1 | AX100: 1 | AY100: 1 | AZ100: 1 | BA100: 1 | BB100: 0 | BC100: 0 | BD100: 0 | BE100: 0 | BF100: 0 | BG100: 0 | BH100: 0 | BI100: 0 | BJ100: 0
E102: =I_InputSets!E$565 -> H11 Period Start | F102: =I_InputSets!F$565 -> 2042-01-01 | G102: =I_InputSets!G$565 -> date
E103: =E$23 -> Period Beginning | G103: =G$23 -> date | AA103: =AA$23 -> 2015-01-01 | AB103: 2016-01-01 | AC103: 2017-01-01 | AD103: 2018-01-01 | AE103: 2019-01-01 | AF103: 2020-01-01 | AG103: 2021-01-01 | AH103: 2022-01-01 | AI103: 2023-01-01 | AJ103: 2024-01-01 | AK103: 2025-01-01 | AL103: 2026-01-01 | AM103: 2027-01-01 | AN103: 2028-01-01 | AO103: 2029-01-01 | AP103: 2030-01-01 | AQ103: 2031-01-01 | AR103: 2032-01-01 | AS103: 2033-01-01 | AT103: 2034-01-01 | AU103: 2035-01-01 | AV103: 2036-01-01 | AW103: 2037-01-01 | AX103: 2038-01-01 | AY103: 2039-01-01 | AZ103: 2040-01-01 | BA103: 2041-01-01 | BB103: 2042-01-01 | BC103: 2043-01-01 | BD103: 2044-01-01 | BE103: 2045-01-01 | BF103: 2046-01-01 | BG103: 2047-01-01 | BH103: 2048-01-01 | BI103: 2049-01-01 | BJ103: 2050-01-01
E104: =E102&" flag" -> H11 Period Start flag | G104: =I_Global!$F$120 -> flag | AA104: =IF( AND( $F102 <= AA103, $F102 > Z103 ), 1, 0 ) -> 0 | AB104: =IF( AND( $F102 <= AB103, $F102 > AA103 ), 1, 0 ) -> 0 | AC104: 0 | AD104: 0 | AE104: 0 | AF104: 0 | AG104: 0 | AH104: 0 | AI104: 0 | AJ104: 0 | AK104: 0 | AL104: 0 | AM104: 0 | AN104: 0 | AO104: 0 | AP104: 0 | AQ104: 0 | AR104: 0 | AS104: 0 | AT104: 0 | AU104: 0 | AV104: 0 | AW104: 0 | AX104: 0 | AY104: 0 | AZ104: 0 | BA104: 0 | BB104: 1 | BC104: 0 | BD104: 0 | BE104: 0 | BF104: 0 | BG104: 0 | BH104: 0 | BI104: 0 | BJ104: 0
E106: =E102 -> H11 Period Start | F106: =F102 -> 2042-01-01 | G106: =G102 -> date | L106: =L104 -> 0 | M106: 0 | N106: 0 | O106: 0 | P106: 0 | Q106: 0 | R106: 0 | S106: 0 | T106: 0 | U106: 0 | V106: 0 | W106: 0 | X106: 0
E107: =I_InputSets!E$566 -> H11 Period End | F107: =I_InputSets!F$566 -> 2046-12-31 | G107: =I_InputSets!G$566 -> date
E108: =LEFT(E106,LEN(E106)-13)&" flags" -> H11 flags | G108: =I_Global!$F$120 -> flag | Y108: =SUM(AA108:BJ108) -> 5 | AA108: =IF(AND(AA$8>=$F106, AA$9<=$F107), 1, 0) -> 0 | AB108: =IF(AND(AB$8>=$F106, AB$9<=$F107), 1, 0) -> 0 | AC108: 0 | AD108: 0 | AE108: 0 | AF108: 0 | AG108: 0 | AH108: 0 | AI108: 0 | AJ108: 0 | AK108: 0 | AL108: 0 | AM108: 0 | AN108: 0 | AO108: 0 | AP108: 0 | AQ108: 0 | AR108: 0 | AS108: 0 | AT108: 0 | AU108: 0 | AV108: 0 | AW108: 0 | AX108: 0 | AY108: 0 | AZ108: 0 | BA108: 0 | BB108: 1 | BC108: 1 | BD108: 1 | BE108: 1 | BF108: 1 | BG108: 0 | BH108: 0 | BI108: 0 | BJ108: 0
E110: =I_InputSets!E$567 -> H12 Period Start | F110: =I_InputSets!F$567 -> 2047-01-01 | G110: =I_InputSets!G$567 -> date
E111: =E$23 -> Period Beginning | G111: =G$23 -> date | AA111: =AA$23 -> 2015-01-01 | AB111: 2016-01-01 | AC111: 2017-01-01 | AD111: 2018-01-01 | AE111: 2019-01-01 | AF111: 2020-01-01 | AG111: 2021-01-01 | AH111: 2022-01-01 | AI111: 2023-01-01 | AJ111: 2024-01-01 | AK111: 2025-01-01 | AL111: 2026-01-01 | AM111: 2027-01-01 | AN111: 2028-01-01 | AO111: 2029-01-01 | AP111: 2030-01-01 | AQ111: 2031-01-01 | AR111: 2032-01-01 | AS111: 2033-01-01 | AT111: 2034-01-01 | AU111: 2035-01-01 | AV111: 2036-01-01 | AW111: 2037-01-01 | AX111: 2038-01-01 | AY111: 2039-01-01 | AZ111: 2040-01-01 | BA111: 2041-01-01 | BB111: 2042-01-01 | BC111: 2043-01-01 | BD111: 2044-01-01 | BE111: 2045-01-01 | BF111: 2046-01-01 | BG111: 2047-01-01 | BH111: 2048-01-01 | BI111: 2049-01-01 | BJ111: 2050-01-01
